Workbook

Sheet INDICE
F1: BÉLGICA
F2: Trocas comerciais com Portugal (PT) 2019-2023 Setores agrícola e agroalimentar, do mar e das florestas
C3: Fonte
D4: Estatísticas do Comércio Internacional | F4: Bélgica - Síntese
D5: dados: 2022 definitivos | F5: 1. Evolução da balança comercial
F6: 2. Ranking dos parceiros comerciais de Portugal por país
C7: Data | D7: 2024-05-10T15:05:53.600 | F7: 2A Parceiros comerciais de Portugal - UE vs. Países Terceiros
F8: 3. Principais produtos transacionados (NC a 2 e 4 dígitos)
F9: 3A Principais produtos transacionados (sem mar nem florestas)
F10: 4A Evolução da balança comercial por produto
F11: 5.2. Trocas comerciais por produto (NC 2 dígitos)

Sheet Sintese
A1: Bélgica - Síntese (2019-2023)
A3: • As trocas comerciais de bens transacionáveis (excluindo serviços) entre Portugal e Bélgica representam um total de 1612,4 milhões de € (M€) em exportações e 2750,2 M€ em importações, na média do período 2019-2023, correspondendo a um saldo negativo da balança comercial de cerca de -1137,8 M€.
A4: • No que respeita aos produtos dos setores agrícola e agroalimentar, mar e florestas, Portugal exportou para Bélgica 254,6 M€ em média anual, no mesmo período (este país ocupa assim a 12ª posição em relação ao total dos países), enquanto as importações totalizaram 311,9 M€ (8ª posição), com um saldo negativo de -57,3 M€. Estes setores representam perto de 15,8% do total de exportações de bens transacionáveis e 11,3% das correspondentes importações.
A5: • Se nos referirmos apenas ao setor agrícola e agroalimentar, as exportações representam, em média, 174,4 M€ (11ª posição) e as importações 281,6 milhões (7ª posição), ou seja, Portugal tem um saldo negativo de -107,2 M€. Estes valores representam, respetivamente, cerca de 68,5% das exportações do setor agroflorestal e mar e 90,3% das importações.
A6: • As principais exportações agrícolas e agroalimentares (NC 4 dígitos) neste período são Vinhos de uvas frescas (27%), Produtos hortícolas congelados (22%) e Tomates preparados (6%). As importações agrícolas e agroalimentares mais relevantes referem-se a Produtos hortícolas preparados, congelados (11%), Chocolate e outras preparações com cacau (6%) e Queijos e requeijão (6%). Se considerarmos também os produtos do mar e da floresta, merecem particular destaque, em termos de exportações, Vinhos de uvas frescas (18%), Produtos hortícolas congelados (15%) e Papel e cartão p/ escrita, etc. (10%). Nas importações destes setores, destacam-se Produtos hortícolas preparados, congelados (10%), Chocolate e outras preparações com cacau (6%) e Queijos e requeijão (5%).
A9: Saldo da Balança Comercial | B9: 2019 | C9: 2020 | D9: 2021 | E9: 2022 | F9: 2023 | G9: média 2019-2023 | J9: Posição entre os parceiros comerciais de Portugal (milhares de euros)
A10: Total de Bens Transacionáveis* | B10: -1062016.3 | C10: -725132.804 | D10: -986775.395 | E10: -1575316.377 | F10: -1339890.713 | G10: -1137826.318 | J10: AA + M + F | K10: Posição | L10: média 2019-2023 | M10: % do total | N10: TVMA* 2019-2023 | O10: TVT* 2019-2023
A11: Agrícola e Agroalimentar (AA) | B11: -84502.356 | C11: -37194.62 | D11: -110792.148 | E11: -155314.303 | F11: -148105.406 | G11: -107181.7666 | J11: Exportações | K11: 12ª | L11: 254579.451 | M11: 0.01834676444 | N11: 0.06788847916 | O11: 0.3004797818
A12: Mar (M) | B12: 1064.029 | C12: 3171.665 | D12: 1550.261 | E12: 3125.658 | F12: 7650.014 | G12: 3312.3254 | J12: Importações | K12: 8ª | L12: 311896.3766 | M12: 0.01928130015 | N12: 0.08044521545 | O12: 0.3627337205
A13: Florestas (F) | B13: 34501.694 | C13: 1999-07-02T12:34:33.600 | D13: 40120.241 | E13: 62321.547 | F13: 2062-10-31T13:43:40.800 | G13: 46552.5156 | J13: AA
A14: AA + M + F | B14: -48936.633 | C14: 1906-05-08T13:39:21.600 | D14: -69121.646 | E14: -89867.098 | F14: -80979.82 | G14: -57316.9256 | J14: Exportações | K14: 11ª | L14: 174398.1362 | M14: 0.02251213054 | N14: 0.04887069525 | O14: 0.2102854346
J15: Importações | K15: 7ª | L15: 281579.9028 | M15: 0.02510136663 | N15: 0.06875174702 | O15: 0.3943897712
A16: milhares de euros *exclui serviços | K16: *TVMA - Taxa de variação média anual; TVT - Taxa de variação total
A18: Evolução das trocas comerciais Portugal-Bélgica em milhares de euros (2019-2023)
E27: Exportações | G27: Importações | I27: Saldo
A28: Principais produtos agrícolas e agroalimentares, do mar e da floresta transacionados (NC 4 dígitos)
A47: Principais produtos agrícolas e agroalimentares transacionados (NC 4 dígitos)
A81: Fonte: GPP a partir de dados INE/Comércio Internacional (2022 definitivos) | N81: 2024-05-10T15:05:53.600

Sheet 1
A1: Evolução da balança comercial Portugal-Bélgica 2019-2023 em milhões de euros
A3: Total de Bens Transacionáveis (BT)(1) | B3: 2019 | C3: 2020 | D3: 2021 | E3: 2022 | F3: 2023 | G3: média quinquénio | H3: var. 19/20 | I3: var. 20/21 | J3: var. 21/22 | K3: var. 22/23 | L3: TVMA* 2019-2023 | M3: TVT* 2019-2023
A4: Exportações | B4: 1370.246572 | C4: 1231.151222 | D4: 1595.865173 | E4: 1886.73362 | F4: 1977.940868 | G4: 1612.387491 | H4: -0.1015111826 | I4: 0.2962381424 | J4: 0.1822637977 | K4: 0.04834134879 | L4: 0.09610875068 | M4: 0.4434926592
A5: Importações | B5: 2432.262872 | C5: 1956.284026 | D5: 2582.640568 | E5: 3462.049997 | F5: 3317.831581 | G5: 2750.213809 | H5: -0.1956938337 | I5: 0.3201766889 | J5: 0.3405078662 | K5: -0.04165694202 | L5: 0.08071444552 | M5: 0.3640925161
A6: Saldo (exp-imp) | B6: -1062.0163 | C6: -725.132804 | D6: -986.775395 | E6: -1575.316377 | F6: -1339.890713 | G6: -1137.826318
A7: Cobertura (exp/imp) | B7: 0.5633628617 | C7: 0.6293315314 | D7: 0.6179199664 | E7: 0.5449758443 | F7: 0.5961546931 | G7: 0.5862771417
A8: Exp BT Bélgica / Exp BT Mundo | B8: 0.02287449576 | C8: 0.02290198916 | D8: 0.02508491302 | E8: 0.02408448174 | F8: 0.02552290447 | G8: 0.02420176816 | L8: Exportações
A9: Imp BT Bélgica / Imp BT Mundo | B9: 0.03041198055 | C9: 0.02870742859 | D9: 0.03106161964 | E9: 0.03162099516 | F9: 0.03160815692 | G9: 0.03085123821 | L9: Importações
A10: Exp BT Bélgica / Exp TE Mundo | B10: 0.01469102257 | C10: 0.01657317732 | D10: 0.0178409158 | E10: 0.01569680953 | F10: 0.01569283949 | G10: 0.01601987265
A11: Imp BT Bélgica / Imp TE Mundo | B11: 0.0263512051 | C11: 0.02489393239 | D11: 0.02702983106 | E11: 0.02746956728 | F11: 0.02681097799 | G11: 0.02663823219
A12: (1) Todos os produtos transacionados entre PT e Bélgica (exclui serviços) | D12: TE - Total da Economia (bens e serviços) Fonte: INE/Contas Nacionais | H12: *TVMA - Taxa de variação média anual; TVT - Taxa de variação total
A24: Agro(1) + Mar + Florestas (AMF) | B24: 2019 | C24: 2020 | D24: 2021 | E24: 2022 | F24: 2023 | G24: média quinquénio | H24: var. 19/20 | I24: var. 20/21 | J24: var. 21/22 | K24: var. 22/23 | L24: TVMA* 2019-2023 | M24: TVT* 2019-2023
A25: Exportações | B25: 229.57937 | C25: 220.344361 | D25: 234.919183 | E25: 289.491012 | F25: 298.563329 | G25: 254.579451 | H25: -0.040225779 | I25: 0.06614565462 | J25: 0.2323004376 | K25: 0.03133885552 | L25: 0.06788847916 | M25: 0.3004797818
A26: Importações | B26: 278.516003 | C26: 218.023792 | D26: 304.040829 | E26: 379.35811 | F26: 379.543149 | G26: 311.8963766 | H26: -0.2171947405 | I26: 0.3945305061 | J26: 0.2477209434 | K26: 0.000487768668 | L26: 0.08044521545 | M26: 0.3627337205
A27: Saldo (exp-imp) | B27: -48.936633 | C27: 2.320569 | D27: -69.121646 | E27: -89.867098 | F27: -80.97982 | G27: -57.3169256
A28: Cobertura (exp/imp) | B28: 0.8242950765 | C28: 1.01064365 | D28: 0.772656698 | E28: 0.7631074817 | F28: 0.7866386991 | G28: 0.8162308706
A29: Exp AMF / Exp BT | B29: 0.1675460276 | C29: 0.1789742455 | D29: 0.1472049061 | E29: 0.1534350207 | F29: 0.1509465393 | G29: 0.1578897457 | L29: Exportações
A30: Imp AMF / Imp BT | B30: 0.1145090057 | C30: 0.1114479233 | D30: 0.1177247941 | E30: 0.1095761501 | F30: 0.1143949413 | G30: 0.1134080469 | L30: Importações
A31: Exp AMF Bélgica / Exp AMF Mundo | B31: 0.01941010814 | C31: 0.01910151491 | D31: 0.01753577153 | E31: 0.01766442317 | F31: 0.01839380554 | G31: 0.01834676444
A32: Imp AMF Bélgica / Imp AMF Mundo | B32: 0.02013364007 | C32: 0.01671271065 | D32: 0.02034451261 | E32: 0.01964229575 | F32: 0.01922336783 | G32: 0.01928130015
A33: (1) Produtos agrícolas e agroalimentares | B33: BT - Total de Bens Transacionáveis (exclui serviços) | H33: *TVMA - Taxa de variação média anual; TVT - Taxa de variação total
A45: Agroalimentar (AA)(1) | B45: 2019 | C45: 2020 | D45: 2021 | E45: 2022 | F45: 2023 | G45: média quinquénio | H45: var. 19/20 | I45: var. 20/21 | J45: var. 21/22 | K45: var. 22/23 | L45: TVMA* 2019-2023 | M45: TVT* 2019-2023
A46: Exportações | B46: 164.451233 | C46: 156.878807 | D46: 163.537574 | E46: 188.090135 | F46: 199.032932 | G46: 174.3981362 | H46: -0.0460466356 | I46: 0.04244529346 | J46: 0.1501340664 | K46: 0.05817847385 | L46: 0.04887069525 | M46: 0.2102854346
A47: Importações | B47: 248.953589 | C47: 194.073427 | D47: 274.329722 | E47: 343.404438 | F47: 347.138338 | G47: 281.5799028 | H47: -0.2204433454 | I47: 0.4135357233 | J47: 0.251794503 | K47: 0.01087318505 | L47: 0.08666592032 | M47: 0.3943897712
A48: Saldo (exp-imp) | B48: -84.502356 | C48: -37.19462 | D48: -110.792148 | E48: -155.314303 | F48: -148.105406 | G48: -107.1817666
A49: Cobertura (exp/imp) | B49: 0.6605698422 | C49: 0.8083476931 | D49: 0.5961350918 | E49: 0.5477219109 | F49: 0.5733533586 | G49: 0.6193557653
A50: Exp AA / Exp AMF | B50: 0.7163153771 | C50: 0.7119710543 | D50: 0.6961439756 | E50: 0.6497270285 | F50: 0.6666355599 | G50: 0.6850440423 | L50: Exportações
A51: Imp AA / Imp AMF | B51: 0.8938573953 | C51: 0.8901479294 | D51: 0.9022792199 | E51: 0.9052249812 | F51: 0.9146215362 | G51: 0.9027995319 | L51: Importações
A52: Exp AA / Exp BT | B52: 0.120015796 | C52: 0.1274244822 | D52: 0.1024758086 | E52: 0.09969088005 | F52: 0.1006263308 | G52: 0.1081614297
A53: Imp AA / Imp BT | B53: 0.1023547216 | C53: 0.09920513812 | D53: 0.1062206353 | E53: 0.09919106838 | F53: 0.104628077 | G53: 0.1023847317
A54: Exp AA Bélgica / Exp AA Mundo | B54: 0.02613797436 | C54: 0.02370815651 | D54: 0.02194604155 | E54: 0.02118753503 | F54: 0.02095895672 | G54: 0.02251213054
A55: Imp AA Bélgica / Imp AA Mundo | B55: 0.02672014967 | C55: 0.02136325278 | D55: 0.0267095611 | E55: 0.02594237577 | F55: 0.024482583 | G55: 0.02510136663
A56: (1) Produtos agrícolas e agroalimentares | B56: AMF - Agroalimentar, Mar e Florestas; BT - Total de Bens Transacionáveis (exclui serviços) | H56: *TVMA - Taxa de variação média anual; TVT - Taxa de variação total
A67: Mar (M) | B67: 2019 | C67: 2020 | D67: 2021 | E67: 2022 | F67: 2023 | G67: média quinquénio | H67: var. 19/20 | I67: var. 20/21 | J67: var. 21/22 | K67: var. 22/23 | L67: TVMA* 2019-2023 | M67: TVT* 2019-2023
A68: Exportações | B68: 8.804206 | C68: 10.852932 | D68: 10.863994 | E68: 12.511283 | F68: 17.708069 | G68: 12.1480968 | H68: 0.2326985534 | I68: 0.001019263734 | J68: 0.1516283054 | K68: 0.4153679523 | L68: 0.1908861721 | M68: 1.011319249
A69: Importações | B69: 7.740177 | C69: 7.681267 | D69: 9.313733 | E69: 9.385625 | F69: 10.058055 | G69: 8.8357714 | H69: -0.007610937063 | I69: 0.2125256159 | J69: 0.007718924302 | K69: 0.07164466937 | L69: 0.06767919117
A70: Saldo (exp-imp) | B70: 1.064029 | C70: 3.171665 | D70: 1.550261 | E70: 3.125658 | F70: 7.650014 | G70: 3.3123254
A71: Cobertura (exp/imp) | B71: 1.137468303 | C71: 1.412909094 | D71: 1.166448942 | E71: 1.33302609 | F71: 1.760585819 | G71: 1.374876765
A72: Exp M / Exp AMF | B72: 0.0383492907 | C72: 0.04925441228 | D72: 0.04624566568 | E72: 0.04321820879 | F72: 0.05931093098 | G72: 0.04771829286 | L72: Exportações
A73: Imp M / Imp AMF | B73: 0.02779078012 | C73: 0.03523132466 | D73: 0.03063316539 | E73: 0.02474080493 | F73: 0.02650042565 | G73: 0.028329189 | L73: Importações
A74: Exp M / Exp BT | B74: 0.00642527132 | C74: 0.008815271273 | D74: 0.006807588876 | E74: 0.00663118676 | F74: 0.008952779775 | G74: 0.007534229128
A75: Imp M / Imp BT | B75: 0.003182294599 | C75: 0.003926457967 | D75: 0.003606283087 | E75: 0.002711002154 | F75: 0.003031514637 | G75: 0.003212757994
A76: Exp M Bélgica / Exp M Mundo | B76: 0.008240652991 | C76: 0.01206324066 | D76: 0.009917596748 | E76: 0.009781151127 | F76: 0.01328199943 | G76: 0.01070158001
A77: Imp M Bélgica / Imp M Mundo | B77: 0.003551611514 | C77: 0.003990544481 | D77: 0.004451955041 | E77: 0.003609255926 | F77: 0.003964791774 | G77: 0.00389806369
A78: AMF - Agroalimentar, Mar e Florestas; BT - Total de Bens Transacionáveis (exclui serviços) | H78: *TVMA - Taxa de variação média anual; TVT - Taxa de variação total
A90: Florestas (F) | B90: 2019 | C90: 2020 | D90: 2021 | E90: 2022 | F90: 2023 | G90: média quinquénio | H90: var. 19/20 | I90: var. 20/21 | J90: var. 21/22 | K90: var. 22/23 | L90: TVMA* 2019-2023 | M90: TVT* 2019-2023
A91: Exportações | B91: 56.323931 | C91: 52.612622 | D91: 60.517615 | E91: 88.889594 | F91: 81.822328 | G91: 68.033218 | H91: -0.06589222261 | I91: 0.150248984 | J91: 0.4688218298 | K91: -0.07950611182 | L91: 0.09785432852 | M91: 0.452709826
A92: Importações | B92: 21.822237 | C92: 16.269098 | D92: 20.397374 | E92: 26.568047 | F92: 22.346756 | G92: 21.4807024 | H92: -0.2544715741 | I92: 0.2537495318 | J92: 0.302522913 | K92: -0.1588860107 | L92: 0.005955581711 | M92: 0.02403598678
A93: Saldo (exp-imp) | B93: 34.501694 | C93: 36.343524 | D93: 40.120241 | E93: 62.321547 | F93: 59.475572 | G93: 46.5525156
A94: Cobertura (exp/imp) | B94: 2.581033787 | C94: 3.233899138 | D94: 2.966931675 | E94: 3.345733091 | F94: 3.661485721 | G94: 3.167178462
A95: Exp F / Exp AMF | B95: 0.2453353322 | C95: 0.2387745335 | D95: 0.2576103587 | E95: 0.3070547627 | F95: 0.2740535091 | G95: 0.2672376648 | L95: Exportações
A96: Imp F / Imp AMF | B96: 0.07835182454 | C96: 0.07462074598 | D96: 0.06708761474 | E96: 0.07003421385 | F96: 0.05887803813 | G96: 0.06887127909 | L96: Importações
A97: Exp F / Exp BT | B97: 0.04110496034 | C97: 0.04273449196 | D97: 0.03792150867 | E97: 0.04711295387 | F97: 0.04136742879 | G97: 0.04219408695
A98: Imp F / Imp BT | B98: 0.008971989521 | C98: 0.008316327171 | D98: 0.007897875629 | E98: 0.007674079526 | F98: 0.006735349717 | G98: 0.007810557249
A99: Exp F Bélgica / Exp F Mundo | B99: 0.01260669578 | C99: 0.01309199063 | D99: 0.01247955526 | E99: 0.01426376316 | F99: 0.015146181 | G99: 0.01362308381
A100: Imp F Bélgica / Imp F Mundo | B100: 0.009337912852 | C100: 0.007990442433 | D100: 0.007900713184 | E100: 0.007643951162 | F100: 0.007380019155 | G100: 0.007980385648
A101: AMF - Agroalimentar, Mar e Florestas; BT - Total de Bens Transacionáveis (exclui serviços) | H101: *TVMA - Taxa de variação média anual; TVT - Taxa de variação total
A111: Fonte: GPP a partir de dados INE/Comércio Internacional (2022 definitivos) | H111: 2024-05-10T15:05:53.600

Sheet 2
A1: Ranking dos parceiros comerciais de Portugal por país (média 2019-2023 em milhares de euros) produtos agrícolas e agroalimentares, do mar e da floresta
A2: Exportações | F2: Importações | K2: Trocas comerciais (total e saldo)
A3: P | B3: País | C3: média quinquénio | D3: % do Total | F3: P | G3: País | H3: média quinquénio | I3: % do Total | K3: P | L3: País | M3: Total (exp+imp) | N3: % do Total | O3: Saldo (exp-imp)
A4: 1 | B4: Espanha | C4: 4589477.65 | D4: 0.330749654 | F4: 1 | G4: Espanha | H4: 7534700.686 | I4: 0.4657919629 | K4: 1 | L4: Espanha | M4: 12124178.34 | N4: 0.4034387285 | O4: -2945223.036
A5: 2 | B5: França | C5: 1475809.99 | D5: 0.106357124 | F5: 2 | G5: França | H5: 1064197.953 | I5: 0.06578826077 | K5: 2 | L5: França | M5: 2540007.943 | N5: 0.08452016677 | O5: 411612.0364
A6: 3 | B6: Itália | C6: 915116.4714 | D6: 0.06594965252 | F6: 3 | G6: Países Baixos | H6: 947328.0688 | I6: 0.05856341467 | K6: 3 | L6: Países Baixos | M6: 1580850.188 | N6: 0.05260366289 | O6: -313805.9492
A7: 4 | B7: Alemanha | C7: 650630.7046 | D7: 0.04688897012 | F7: 4 | G7: Alemanha | H7: 912999.7532 | I7: 0.05644125293 | K7: 4 | L7: Alemanha | M7: 1563630.458 | N7: 0.05203066685 | O7: -262369.0486
A8: 5 | B8: Países Baixos | C8: 633522.1196 | D8: 0.04565600659 | F8: 5 | G8: Brasil | H8: 813481.1404 | I8: 0.050289055 | K8: 5 | L8: Itália | M8: 1408658.586 | N8: 0.04687389224 | O8: 421574.357
A9: 6 | B9: Estados Unidos | C9: 565282.6516 | D9: 0.0407381963 | F9: 6 | G9: Itália | H9: 493542.1144 | I9: 0.03051056171 | K9: 6 | L9: Brasil | M9: 1307207.503 | N9: 0.04349805145 | O9: -319754.7774 | P9: Nota: Nesta listagem, o Reino Unido passa a ser constituído por três componentes: Reino Unido [até 2020] ; Reino Unido (sem Irlanda do Norte) pós-2020 e Reino Unido (Irlanda do Norte) pós-2020. Estas componentes são calculadas igualmente como média do quinquénio, embora a primeira corresponda apenas a 2019-2020 e as duas últimas a 2021-2023.
A10: 7 | B10: Brasil | C10: 493726.363 | D10: 0.03558135286 | F10: 7 | G10: Suécia | H10: 338954.0252 | I10: 0.02095399238 | K10: 7 | L10: Estados Unidos | M10: 831258.1132 | N10: 0.0276605727 | O10: 299307.19
A11: 8 | B11: Reino Unido (sem Irlanda do Norte) pós 2020 | C11: 454913.9818 | D11: 0.03278426295 | F11: 8 | G11: Bélgica | H11: 311896.3766 | I11: 0.01928130015 | K11: 8 | L11: Bélgica | M11: 566475.8276 | N11: 0.01884979594 | O11: -57316.9256
A12: 9 | B12: Angola | C12: 292707.7282 | D12: 0.02109455306 | F12: 9 | G12: Estados Unidos | H12: 265975.4616 | I12: 0.01644248889 | K12: 9 | L12: Reino Unido (sem Irlanda do Norte) pós 2020 | M12: 544532.3606 | N12: 0.01811961496 | O12: 365295.603
A13: 10 | B13: Reino Unido | C13: 261878.4294 | D13: 0.01887277954 | F13: 10 | G13: Polónia | H13: 241286.9558 | I13: 0.01491625606 | K13: 10 | L13: Polónia | M13: 500653.6594 | N13: 0.01665952695 | O13: 18079.7478
A14: 11 | B14: Polónia | C14: 259366.7036 | D14: 0.01869176713 | F14: 11 | G14: Ucrânia | H14: 222824.0602 | I14: 0.01377488778 | K14: 11 | L14: Suécia | M14: 438293.7972 | N14: 0.01458446811 | O14: -239614.2532
A15: 12 | B15: Bélgica | C15: 254579.451 | D15: 0.01834676444 | F15: 12 | G15: China, República Popular da | H15: 185792.3874 | I15: 0.01148560566 | K15: 12 | L15: China, República Popular da | M15: 398800.9512 | N15: 0.01327032185 | O15: 27216.1764
A16: 13 | B16: Israel | C16: 229312.128 | D16: 0.01652582555 | F16: 13 | G16: Dinamarca | H16: 157445.0856 | I16: 0.009733187625 | K16: 13 | L16: Reino Unido | M16: 360801.6302 | N16: 0.01200587346 | O16: 162955.2286
A17: 14 | B17: China, República Popular da | C17: 213008.5638 | D17: 0.01535087741 | F17: 14 | G17: África do Sul | H17: 152632.7646 | I17: 0.009435692006 | K17: 14 | L17: Angola | M17: 311606.1852 | N17: 0.01036886787 | O17: 273809.2712
A18: 15 | B18: Turquia | C18: 183340.2302 | D18: 0.01321277111 | F18: 15 | G18: Roménia | H18: 151340.3218 | I18: 0.009355793747 | K18: 15 | L18: Turquia | M18: 242682.4712 | N18: 0.008075393227 | O18: 123997.9892
A19: 16 | B19: Suíça | C19: 154487.3474 | D19: 0.01113343186 | F19: 16 | G19: Irlanda | H19: 122298.3798 | I19: 0.007560433355 | K19: 16 | L19: Dinamarca | M19: 241944.339 | N19: 0.00805083147 | O19: -72945.8322
A20: 17 | B20: Marrocos | C20: 118641.6206 | D20: 0.008550139679 | F20: 17 | G20: Canadá | H20: 119672.9708 | I20: 0.007398131698 | K20: 17 | L20: Ucrânia | M20: 239492.5 | N20: 0.007969245174 | O20: -206155.6204
A21: 18 | B21: Cabo Verde | C21: 109797.6224 | D21: 0.007912779707 | F21: 18 | G21: Argentina | H21: 105868.1334 | I21: 0.006544722574 | K21: 18 | L21: Israel | M21: 237364.4856 | N21: 0.00789843432 | O21: 221259.7704
A22: 19 | B22: Suécia | C22: 99339.772 | D22: 0.007159114331 | F22: 19 | G22: Uruguai | H22: 104314.013 | I22: 0.006448647518 | K22: 19 | L22: Canadá | M22: 218508.6438 | N22: 0.007270995772 | O22: -20837.2978
A23: 20 | B23: Canadá | C23: 98835.673 | D23: 0.007122785454 | F23: 20 | G23: Rússia, Federação da | H23: 103735.9496 | I23: 0.006412911886 | K23: 20 | L23: Irlanda | M23: 195589.7628 | N23: 0.006508357353 | O23: -49006.9968
A24: 21 | B24: Argélia | C24: 96652.6324 | D24: 0.006965460377 | F24: 21 | G24: Reino Unido | H24: 98923.2008 | I24: 0.006115389821 | K24: 21 | L24: África do Sul | M24: 189444.1922 | N24: 0.006303860098 | O24: -115821.337
A25: 22 | B25: Dinamarca | C25: 84499.2534 | D25: 0.006089603427 | F25: 22 | G25: Reino Unido (sem Irlanda do Norte) pós 2020 | H25: 89618.3788 | I25: 0.005540169718 | K25: 22 | L25: Roménia | M25: 177441.9662 | N25: 0.0059044794 | O25: -125238.6774
A26: 23 | B26: Egito | C26: 82715.0134 | D26: 0.005961018693 | F26: 23 | G26: Finlândia | H26: 81334.7174 | I26: 0.005028077325 | K26: 23 | L26: Rússia, Federação da | M26: 176432.6266 | N26: 0.005870893068 | O26: -31039.2726
A27: 24 | B27: México | C27: 78972.8492 | D27: 0.005691332334 | F27: 24 | G27: Índia | H27: 79609.9066 | I27: 0.004921450262 | K27: 24 | L27: Marrocos | M27: 161461.9424 | N27: 0.005372735285 | O27: 75821.2988
A28: 25 | B28: Japão | C28: 73363.5888 | D28: 0.005287090048 | F28: 25 | G28: Costa Rica | H28: 70759.3454 | I28: 0.004374312367 | K28: 25 | L28: Suíça | M28: 158551.5506 | N28: 0.005275890391 | O28: 150423.1442
A29: 26 | B29: Irlanda | C29: 73291.383 | D29: 0.005281886397 | F29: 26 | G29: Áustria | H29: 70408.8626 | I29: 0.00435264567 | K29: 26 | L29: Argentina | M29: 121955.0376 | N29: 0.004058121214 | O29: -89781.2292
A30: 27 | B30: Rússia, Federação da | C30: 72696.677 | D30: 0.005239027749 | F30: 27 | G30: Vietname | H30: 69724.8096 | I30: 0.004310357807 | K30: 27 | L30: Grécia | M30: 120604.866 | N30: 0.004013193508 | O30: -5813.7356
A31: 28 | B31: Luxemburgo | C31: 58628.216 | D31: 0.004225156681 | F31: 28 | G31: Grécia | H31: 63209.3008 | I31: 0.003907571849 | K31: 28 | L31: Áustria | M31: 112631.9138 | N31: 0.003747889122 | O31: -28185.8114
A32: 29 | B32: Grécia | C32: 57395.5652 | D32: 0.004136323298 | F32: 29 | G32: Turquia | H32: 59342.241 | I32: 0.003668511872 | K32: 29 | L32: Finlândia | M32: 112130.7098 | N32: 0.003731211282 | O32: -50538.725
A33: 30 | B33: Áustria | C33: 42223.0512 | D33: 0.003042886498 | F33: 30 | G33: Equador | H33: 58414.7256 | I33: 0.003611173268 | K33: 30 | L33: Índia | M33: 110947.4156 | N33: 0.003691836514 | O33: -48272.3976
A34: 31 | B34: Moçambique | C34: 41346.8404 | D34: 0.002979740659 | F34: 31 | G34: Chile | H34: 53583.805 | I34: 0.00331252783 | K34: 31 | L34: Cabo Verde | M34: 110216.5244 | N34: 0.003667515706 | O34: 109378.7204
A35: 32 | B35: África do Sul | C35: 36811.4276 | D35: 0.002652887293 | F35: 32 | G35: Bulgária | H35: 44086.0538 | I35: 0.002725380927 | K35: 32 | L35: Uruguai | M35: 107585.2684 | N35: 0.003579959209 | O35: -101042.7576
A36: 33 | B36: Arábia Saudita | C36: 35880.8896 | D36: 0.002585826258 | F36: 33 | G36: Marrocos | H36: 42820.3218 | I36: 0.002647133918 | K36: 33 | L36: Argélia | M36: 103327.6826 | N36: 0.003438285691 | O36: 89977.5822
A37: 34 | B37: Austrália | C37: 35113.0132 | D37: 0.002530487749 | F37: 34 | G37: Checa, República | H37: 40116.599 | I37: 0.002479990934 | K37: 34 | L37: Egito | M37: 96954.5744 | N37: 0.003226216997 | O37: 68475.4524
A38: 35 | B38: Guiné-Bissau | C38: 34934.7244 | D38: 0.002517639019 | F38: 35 | G38: Moçambique | H38: 38763.0688 | I38: 0.002396316278 | K38: 35 | L38: México | M38: 96736.9562 | N38: 0.003218975631 | O38: 61208.7422
A39: 36 | B39: Índia | C39: 31337.509 | D39: 0.002258398678 | F39: 36 | G39: Cuba | H39: 37252.762 | I39: 0.00230294976 | K39: 36 | L39: Japão | M39: 88210.8558 | N39: 0.002935264933 | O39: 58516.3218
A40: 37 | B40: Emirados Árabes Unidos | C40: 31194.84 | D40: 0.002248116959 | F40: 37 | G40: Colômbia | H40: 31648.7828 | I40: 0.001956514171 | K40: 37 | L40: Chile | M40: 83999.5896 | N40: 0.002795132725 | O40: -23168.0204
A41: 38 | B41: Checa, República | C41: 30815.952 | D41: 0.002220811656 | F41: 38 | G41: Guiana | H41: 31014.2578 | I41: 0.001917288108 | K41: 38 | L41: Moçambique | M41: 80109.9092 | N41: 0.002665701462 | O41: 2583.7716
A42: 39 | B42: Finlândia | C42: 30795.9924 | D42: 0.002219373229 | F42: 39 | G42: Indonésia | H42: 29000.573 | I42: 0.001792802977 | K42: 39 | L42: Vietname | M42: 76018.5502 | N42: 0.002529559232 | O42: -63431.069
A43: 40 | B43: Chile | C43: 30415.7846 | D43: 0.002191972812 | F43: 40 | G43: Hungria | H43: 27853.1164 | I43: 0.001721867703 | K43: 40 | L43: Costa Rica | M43: 75105.2118 | N43: 0.002499167392 | O43: -66413.479
A44: 41 | B44: Jordânia | C44: 29568.7308 | D44: 0.002130928229 | F44: 41 | G44: Costa do Marfim | H44: 23657.68 | I44: 0.001462507625 | K44: 41 | L44: Checa, República | M44: 70932.551 | N44: 0.0023603198 | O44: -9300.647
A45: 42 | B45: São Tomé e Príncipe | C45: 26643.6118 | D45: 0.001920123826 | F45: 42 | G45: Uganda | H45: 22974.374 | I45: 0.001420265941 | K45: 42 | L45: Luxemburgo | M45: 67457.2882 | N45: 0.002244678512 | O45: 49799.1438
A46: 43 | B46: Roménia | C46: 26101.6444 | D46: 0.001881065889 | F46: 43 | G46: Namíbia | H46: 22899.6914 | I46: 0.001415649095 | K46: 43 | L46: Equador | M46: 61226.8336 | N46: 0.002037356695 | O46: -55602.6176
A47: 44 | B47: Tunísia | C47: 25934.5578 | D47: 0.001869024467 | F47: 44 | G47: Peru | H47: 21918.8742 | I47: 0.001355015397 | K47: 44 | L47: Bulgária | M47: 58372.2568 | N47: 0.001942369075 | O47: -29799.8508
A48: 45 | B48: Noruega | C48: 23600.8176 | D48: 0.00170083893 | F48: 45 | G48: Letónia | H48: 19634.0354 | I48: 0.001213767643 | K48: 45 | L48: Austrália | M48: 52768.539 | N48: 0.001755902271 | O48: 17457.4874
A49: 46 | B49: Coreia, República da | C49: 22131.0668 | D49: 0.001594918473 | F49: 46 | G49: Lituânia | H49: 19279.9074 | I49: 0.001191875602 | K49: 46 | L49: Hungria | M49: 47560.2566 | N49: 0.001582593799 | O49: -8145.9762
A50: 47 | B50: Hungria | C50: 19707.1402 | D50: 0.001420233477 | F50: 47 | G50: Angola | H50: 18898.457 | I50: 0.001168294502 | K50: 47 | L50: Cuba | M50: 44341.484 | N50: 0.001475487363 | O50: -30164.04
A51: 48 | B51: Nigéria | C51: 18837.3684 | D51: 0.001357551677 | F51: 48 | G51: Suazilândia | H51: 17908.5294 | I51: 0.001107097602 | K51: 48 | L51: Colômbia | M51: 40554.3906 | N51: 0.001349469739 | O51: -22743.175
A52: 49 | B52: Ucrânia | C52: 16668.4398 | D52: 0.001201243609 | F52: 49 | G52: México | H52: 17764.107 | I52: 0.001098169471 | K52: 49 | L52: Noruega | M52: 38853.5172 | N52: 0.001292872238 | O52: 8348.118
A53: 50 | B53: Argentina | C53: 16086.9042 | D53: 0.001159334112 | F53: 50 | G53: Austrália | H53: 17655.5258 | I53: 0.001091457028 | K53: 50 | L53: Tunísia | M53: 37484.3298 | N53: 0.001247311771 | O53: 14384.7858
A54: 51 | B54: Lituânia | C54: 15764.2352 | D54: 0.001136080342 | F54: 51 | G54: Senegal | H54: 16694.6988 | I54: 0.001032059115 | K54: 51 | L54: Arábia Saudita | M54: 35932.1724 | N54: 0.001195662877 | O54: 35829.6068
A55: 52 | B55: Macau | C55: 14584.6512 | D55: 0.001051071321 | F55: 52 | G55: Nova Zelânda | H55: 16509.396 | I55: 0.001020603776 | K55: 52 | L55: Costa do Marfim | M55: 35761.2586 | N55: 0.001189975626 | O55: -11554.1014
A56: 53 | B56: Bulgária | C56: 14286.203 | D56: 0.00102956307 | F56: 53 | G56: Estónia | H56: 16320.5418 | I56: 0.00100892889 | K56: 53 | L56: Guiné-Bissau | M56: 35226.5238 | N56: 0.00117218203 | O56: 34642.925
A57: 54 | B57: Líbia, Jamahira Árabe da | C57: 13798.5402 | D57: 0.0009944186996 | F57: 54 | G57: Eslovénia | H57: 16026.5852 | I57: 0.0009907566193 | K57: 54 | L57: Coreia, República da | M57: 35092.7906 | N57: 0.001167731984 | O57: 9169.343
A58: 55 | B58: Iraque | C58: 13659.5246 | D58: 0.0009844002694 | F58: 55 | G58: Noruega | H58: 15252.6996 | I58: 0.0009429153436 | K58: 55 | L58: Lituânia | M58: 35044.1426 | N58: 0.001166113195 | O58: -3515.6722
A59: 56 | B59: Senegal | C59: 13224.0438 | D59: 0.0009530164966 | F59: 56 | G59: Japão | H59: 14847.267 | I59: 0.0009178516743 | K59: 56 | L59: Indonésia | M59: 33328.2666 | N59: 0.001109016473 | O59: -24672.8794
A60: 57 | B60: Letónia | C60: 13144.4668 | D60: 0.0009472816249 | F60: 57 | G60: Egito | H60: 14239.561 | I60: 0.0008802835502 | K60: 57 | L60: Letónia | M60: 32778.5022 | N60: 0.001090722759 | O60: -6489.5686
A61: 58 | B61: Eslováquia | C61: 12793.9168 | D61: 0.0009220185558 | F61: 58 | G61: Mauritânia | H61: 13443.2356 | I61: 0.0008310550557 | K61: 58 | L61: Emirados Árabes Unidos | M61: 31953.4188 | N61: 0.001063267654 | O61: 30436.2612
A62: 59 | B62: Croácia | C62: 12333.56 | D62: 0.0008888420455 | F62: 59 | G62: Tanzânia, República Unida da | H62: 13079.5878 | I62: 0.0008085745048 | K62: 59 | L62: Guiana | M62: 31130.901 | N62: 0.00103589792 | O62: -30897.6146
A63: 60 | B63: Costa do Marfim | C63: 12103.5786 | D63: 0.0008722679876 | F63: 60 | G63: Camarões | H63: 13022.8276 | I63: 0.0008050656135 | K63: 60 | L63: Senegal | M63: 29918.7426 | N63: 0.0009955626797 | O63: -3470.655
A64: 61 | B64: Síria, República Árabe da | C64: 11995.3212 | D64: 0.000864466207 | F64: 61 | G64: Coreia, República da | H64: 12961.7238 | I64: 0.0008012882029 | K64: 61 | L64: Jordânia | M64: 29716.5252 | N64: 0.0009888337841 | O64: 29420.9364
A65: 62 | B65: Dominicana, República | C65: 11848.0206 | D65: 0.0008538507021 | F65: 62 | G65: Paquistão | H65: 12615.7756 | I65: 0.0007799018336 | K65: 62 | L65: São Tomé e Príncipe | M65: 27732.7016 | N65: 0.0009228209584 | O65: 25554.522
A66: 63 | B66: Território Palestiniano Ocupado | C66: 11806.0928 | D66: 0.0008508290935 | F66: 63 | G66: Tailândia | H66: 12316.114 | I66: 0.0007613768821 | K66: 63 | L66: Peru | M66: 27430.0544 | N66: 0.0009127502057 | O66: -16407.694
A67: 64 | B67: HongKong | C67: 11528.0934 | D67: 0.0008307945247 | F67: 64 | G67: Moldava, República de | H67: 12178.8658 | I67: 0.0007528922573 | K67: 64 | L67: Nigéria | M67: 25016.4128 | N67: 0.0008324349488 | O67: 12658.324
A68: 65 | B68: Kuwait | C68: 10775.802 | D68: 0.0007765791784 | F68: 65 | G68: Sérvia | H68: 11730.1152 | I68: 0.0007251506877 | K68: 65 | L68: Estónia | M68: 24786.1618 | N68: 0.0008247732196 | O68: -7854.9218
A69: 66 | B69: Chipre | C69: 10753.9998 | D69: 0.0007750079604 | F69: 66 | G69: Tunísia | H69: 11549.772 | I69: 0.0007140019485 | K69: 66 | L69: Uganda | M69: 24133.8048 | N69: 0.0008030656803 | O69: -21814.9432
A70: 67 | B70: Malta | C70: 10377.2016 | D70: 0.0007478532635 | F70: 67 | G70: Belize | H70: 10934.5394 | I70: 0.0006759685332 | K70: 67 | L70: Eslovénia | M70: 23946.301 | N70: 0.0007968263878 | O70: -8106.8694
A71: 68 | B71: Tailândia | C71: 9256.6804 | D71: 0.0006671007188 | F71: 68 | G71: Paraguai | H71: 10263.5706 | I71: 0.0006344895299 | K71: 68 | L71: Namíbia | M71: 23765.809 | N71: 0.0007908204168 | O71: -22033.5738
A72: 69 | B72: Colômbia | C72: 8905.6078 | D72: 0.0006417999875 | F72: 69 | G72: Maurícias | H72: 9873.1322 | I72: 0.0006103527956 | K72: 69 | L72: Camarões | M72: 21652.1438 | N72: 0.0007204870402 | O72: -4393.5114
A73: 70 | B73: Geórgia | C73: 8776.724 | D73: 0.0006325117252 | F73: 70 | G73: Reino Unido (Irlanda do Norte) pós-2020 | H73: 9138.2728 | I73: 0.0005649241029 | K73: 70 | L73: Tailândia | M73: 21572.7944 | N73: 0.0007178466451 | O73: -3059.4336
A74: 71 | B74: Líbano | C74: 8677.7716 | D74: 0.0006253805276 | F74: 71 | G74: Islândia | H74: 9112.164 | I74: 0.000563310068 | K74: 71 | L74: Nova Zelânda | M74: 20810.7044 | N74: 0.0006924876796 | O74: -12208.0876
A75: 72 | B75: Camarões | C75: 8629.3162 | D75: 0.0006218884947 | F75: 72 | G75: Luxemburgo | H75: 8829.0722 | I75: 0.0005458094545 | K75: 72 | L75: Croácia | M75: 20488.528 | N75: 0.000681767082 | O75: 4178.592
A76: 73 | B76: Estónia | C76: 8465.62 | D76: 0.0006100914089 | F76: 73 | G76: Croácia | H76: 8154.968 | I76: 0.0005041366221 | K76: 73 | L76: Eslováquia | M76: 20124.608 | N76: 0.000669657443 | O76: 5463.2256
A77: 74 | B77: Gana | C77: 8178.0838 | D77: 0.0005893695521 | F77: 74 | G77: Israel | H77: 8052.3576 | I77: 0.0004977932912 | K77: 74 | L77: Suazilândia | M77: 19975.6478 | N77: 0.0006647007101 | O77: -15841.411
A78: 75 | B78: Eslovénia | C78: 7919.7158 | D78: 0.0005707497585 | F78: 75 | G78: Bangladesh | H78: 7823.177 | I78: 0.0004836254449 | K78: 75 | L78: Sérvia | M78: 19112.5644 | N78: 0.0006359811335 | O78: -4347.666
A79: 76 | B79: Belarus | C79: 7872.655 | D79: 0.0005673582302 | F79: 76 | G79: Malásia | H79: 7805.5168 | I79: 0.0004825336989 | K79: 76 | L79: Paquistão | M79: 17209.3712 | N79: 0.0005726513289 | O79: -8022.18
A80: 77 | B80: Sérvia | C80: 7382.4492 | D80: 0.0005320305936 | F80: 77 | G80: Quénia | H80: 7356.7132 | I80: 0.0004547888529 | K80: 77 | L80: Mauritânia | M80: 16816.7526 | N80: 0.0005595867282 | O80: -10069.7186
A81: 78 | B81: Gibraltar | C81: 7309.7404 | D81: 0.0005267906922 | F81: 78 | G81: Eslováquia | H81: 7330.6912 | I81: 0.0004531801841 | K81: 78 | L81: Maurícias | M81: 16663.174 | N81: 0.0005544763155 | O81: -3083.0904
A82: 79 | B82: Cuba | C82: 7088.722 | D82: 0.0005108625703 | F82: 79 | G82: Filipinas | H82: 7323.2812 | I82: 0.000452722101 | K82: 79 | L82: Moldava, República de | M82: 15413.0416 | N82: 0.0005128774696 | O82: -8944.69
A83: 80 | B83: Maurícias | C83: 6790.0418 | D83: 0.0004893375994 | F83: 80 | G83: Gana | H83: 6780.4694 | I83: 0.0004191657085 | K83: 80 | L83: Chipre | M83: 14994.9744 | N83: 0.0004989660527 | O83: 6513.0252
A84: 81 | B84: Taiwan | C84: 6498.8018 | D84: 0.0004683488211 | F84: 81 | G84: Argélia | H84: 6675.0502 | I84: 0.0004126487388 | K84: 81 | L84: Gana | M84: 14958.5532 | N84: 0.0004977541171 | O84: 1397.6144
A85: 82 | B85: Vietname | C85: 6293.7406 | D85: 0.0004535706859 | F85: 82 | G85: Nigéria | H85: 6179.0444 | I85: 0.0003819858731 | K85: 82 | L85: Macau | M85: 14605.4142 | N85: 0.0004860032219 | O85: 14563.8882
A86: 83 | B86: Andorra | C86: 6022.5714 | D86: 0.0004340283489 | F86: 83 | G86: Panamá | H86: 5653.6226 | I86: 0.0003495045229 | K86: 83 | L86: HongKong | M86: 14502.5934 | N86: 0.000482581803 | O86: 8553.5934
A87: 84 | B87: Guatemala | C87: 5731.0826 | D87: 0.0004130216402 | F87: 84 | G87: Congo | H87: 5587.8752 | I87: 0.0003454400469 | K87: 84 | L87: Dominicana, República | M87: 14480.0812 | N87: 0.0004818326971 | O87: 9215.96
A88: 85 | B88: Peru | C88: 5511.1802 | D88: 0.0003971739451 | F88: 85 | G88: Honduras | H88: 5352.3066 | I88: 0.0003308772971 | K88: 85 | L88: Líbia, Jamahira Árabe da | M88: 13839.6806 | N88: 0.0004605230136 | O88: 13757.3998
A89: 86 | B89: Singapura | C89: 5118.6402 | D89: 0.0003688847847 | F89: 86 | G89: Camboja | H89: 5251.3418 | I89: 0.0003246356965 | K89: 86 | L89: Iraque | M89: 13672.6982 | N89: 0.000454966582 | O89: 13646.351
A90: 87 | B90: Omã | C90: 4766.6966 | D90: 0.0003435212831 | F90: 87 | G90: Zimbabwe | H90: 5173.412 | I90: 0.0003198181097 | K90: 87 | L90: Tanzânia, República Unida da | M90: 13489.132 | N90: 0.0004488583154 | O90: -12670.0436
A91: 88 | B91: Panamá | C91: 4742.5904 | D91: 0.0003417840228 | F91: 88 | G91: Etiópia | H91: 4865.2444 | I91: 0.0003007673209 | K91: 88 | L91: Malta | M91: 12868.9092 | N91: 0.0004282200592 | O91: 7885.494
A92: 89 | B92: Paquistão | C92: 4593.5956 | D92: 0.0003310464221 | F92: 89 | G92: Sri Lanca | H92: 4526.3628 | I92: 0.0002798178058 | K92: 89 | L92: Reino Unido (Irlanda do Norte) pós-2020 | M92: 12739.7782 | N92: 0.0004239231539 | O92: -5536.7674
A93: 90 | B93: Mali | C93: 4507.5844 | D93: 0.0003248478573 | F93: 90 | G93: Suriname | H93: 4461.0484 | I93: 0.0002757800977 | K93: 90 | L93: Kuwait | M93: 12319.6144 | N93: 0.0004099419715 | O93: 9231.9896
A94: 91 | B94: Costa Rica | C94: 4345.8664 | D94: 0.0003131933343 | F94: 91 | G94: Macedónia, Antiga República jugoslava da | H94: 4419.1744 | I94: 0.0002731914649 | K94: 91 | L94: Síria, República Árabe da | M94: 12141.732 | N94: 0.0004040228364 | O94: 11848.9104
A95: 92 | B95: Indonésia | C95: 4327.6936 | D95: 0.0003118836761 | F95: 92 | G95: Myanmar | H95: 4417.7084 | I95: 0.0002731008374 | K95: 92 | L95: Território Palestiniano Ocupado | M95: 11817.7626 | N95: 0.0003932425757 | O95: 11794.423
A96: 93 | B96: Nova Zelânda | C96: 4301.3084 | D96: 0.0003099821752 | F96: 93 | G96: Papuásia-Nova Guiné | H96: 4268.11 | I96: 0.0002638527286 | K96: 93 | L96: Paraguai | M96: 11233.3798 | N96: 0.0003737969154 | O96: -9293.7614
A97: 94 | B97: Burquina Faso | C97: 4086.0794 | D97: 0.0002944712777 | F97: 94 | G97: Chipre | H97: 4240.9746 | I97: 0.0002621752298 | K97: 94 | L97: Islândia | M97: 10997.3204 | N97: 0.0003659419085 | O97: -7227.0076
A98: 95 | B98: Venezuela | C98: 3914.122 | D98: 0.0002820788325 | F98: 95 | G98: Suíça | H98: 4064.2032 | I98: 0.0002512472977 | K98: 95 | L98: Belize | M98: 10954.0486 | N98: 0.0003645020155 | O98: -10915.0302
A99: 96 | B99: Reino Unido (Irlanda do Norte) pós-2020 | C99: 3601.5054 | D99: 0.0002595495077 | F99: 96 | G99: Guatemala | H99: 3891.5604 | I99: 0.0002405745939 | K99: 96 | L99: Filipinas | M99: 10864.8014 | N99: 0.0003615322656 | O99: -3781.761
A100: 97 | B100: Filipinas | C100: 3541.5202 | D100: 0.0002552265574 | F100: 97 | G100: Malavi | H100: 3761.9744 | I100: 0.000232563643 | K100: 97 | L100: Malásia | M100: 10802.9 | N100: 0.0003594724623 | O100: -4808.1336
A101: 98 | B101: Catar | C101: 3509.4766 | D101: 0.0002529172729 | F101: 98 | G101: Congo, República Democrática do | H101: 3658.6746 | I101: 0.0002261776937 | K101: 98 | L101: Panamá | M101: 10396.213 | N101: 0.0003459397279 | O101: -911.0322
A102: 99 | B102: Mauritânia | C102: 3373.517 | D102: 0.0002431190792 | F102: 99 | G102: Madagáscar | H102: 3530.0814 | I102: 0.0002182281172 | K102: 99 | L102: Bangladesh | M102: 9992.5026 | N102: 0.0003325060414 | O102: -5653.8514
A103: 100 | B103: Uruguai | C103: 3271.2554 | D103: 0.0002357493977 | F103: 100 | G103: Taiwan | H103: 3371.904 | I103: 0.0002084496582 | K103: 100 | L103: Taiwan | M103: 9870.7058 | N103: 0.0003284531856 | O103: 3126.8978
A104: 101 | B104: Moldava, República de | C104: 3234.1758 | D104: 0.000233077184 | F104: 101 | G104: Nicarágua | H104: 3348.1498 | I104: 0.0002069811838 | K104: 101 | L104: Geórgia | M104: 9763.0358 | N104: 0.0003248704069 | O104: 7790.4122
A105: 102 | B105: Guiné | C105: 3199.9078 | D105: 0.0002306075938 | F105: 102 | G105: Gâmbia | H105: 3121.0524 | I105: 0.00019294212 | K105: 102 | L105: Quénia | M105: 9728.6568 | N105: 0.0003237264267 | O105: -4984.7696
A106: 103 | B106: Malásia | C106: 2997.3832 | D106: 0.0002160122637 | F106: 103 | G106: HongKong | H106: 2974.5 | I106: 0.0001838823135 | K106: 103 | L106: Guatemala | M106: 9622.643 | N106: 0.000320198759 | O106: 1839.5222
A107: 104 | B107: Gabão | C107: 2969.7446 | D107: 0.0002140204341 | F107: 104 | G107: Gabão | H107: 2833.2392 | I107: 0.0001751496315 | K107: 104 | L107: Líbano | M107: 9030.5168 | N107: 0.0003004954327 | O107: 8325.0264
A108: 105 | B108: Equador | C108: 2812.108 | D108: 0.0002026600452 | F108: 105 | G108: Dominicana, República | H108: 2632.0606 | I108: 0.0001627128568 | K108: 105 | L108: Belarus | M108: 8568.8254 | N108: 0.0002851323965 | O108: 7176.4846
A109: 106 | B109: Arménia | C109: 2727.7232 | D109: 0.0001965786901 | F109: 106 | G109: Malta | H109: 2491.7076 | I109: 0.0001540362945 | K109: 106 | L109: Congo | M109: 8278.2768 | N109: 0.0002754642314 | O109: -2897.4736
A110: 107 | B110: Guiné Equatorial | C110: 2712.0278 | D110: 0.0001954475705 | F110: 107 | G110: Mali | H110: 2475.2544 | I110: 0.0001530191648 | K110: 107 | L110: Gibraltar | M110: 7352.4128 | N110: 0.0002446555956 | O110: 7267.068
A111: 108 | B111: Congo | C111: 2690.4016 | D111: 0.0001938890362 | F111: 108 | G111: Centro-Africana, República | H111: 2466.2132 | I111: 0.0001524602417 | K111: 108 | L111: Mali | M111: 6982.8388 | N111: 0.0002323578167 | O111: 2032.33
A112: 109 | B112: Timor-Leste | C112: 2668.7438 | D112: 0.0001923282246 | F112: 109 | G112: Benim | H112: 1927.4492 | I112: 0.0001191540824 | K112: 109 | L112: Singapura | M112: 6659.3268 | N112: 0.0002215927762 | O112: 3577.9536
A113: 110 | B113: Benim | C113: 2476.0626 | D113: 0.0001784422783 | F113: 110 | G113: Serra Leoa | H113: 1903.7664 | I113: 0.0001176900219 | K113: 110 | L113: Honduras | M113: 6528.2066 | N113: 0.0002172296792 | O113: -4176.4066
A114: 111 | B114: Quénia | C114: 2371.9436 | D114: 0.0001709387396 | F114: 111 | G114: Laos, República Democrática Popular do | H114: 1764.877 | I114: 0.0001091039388 | K114: 111 | L114: Etiópia | M114: 6273.7972 | N114: 0.0002087640659 | O114: -3456.6916
A115: 112 | B115: Seychelles | C115: 2348.937 | D115: 0.0001692807241 | F115: 112 | G115: Burquina Faso | H115: 1596.8146 | I115: 9.871439331e-05 | K115: 112 | L115: Camboja | M115: 6129.6458 | N115: 0.0002039673485 | O115: -4373.0378
A116: 113 | B116: Congo, República Democrática do | C116: 2232.4506 | D116: 0.0001608859046 | F116: 113 | G116: Kuwait | H116: 1543.8124 | I116: 9.543782005e-05 | K116: 113 | L116: Andorra | M116: 6085.3588 | N116: 0.0002024936741 | O116: 5959.784
A117: 114 | B117: Bangladesh | C117: 2169.3256 | D117: 0.0001563366784 | F117: 114 | G117: Singapura | H117: 1540.6866 | I117: 9.524458443e-05 | K117: 114 | L117: Sri Lanca | M117: 6081.5556 | N117: 0.0002023671205 | O117: -2971.17
A118: 115 | B118: Suazilândia | C118: 2067.1184 | D118: 0.0001489709173 | F118: 115 | G118: Seychelles | H118: 1430.66 | I118: 8.844278724e-05 | K118: 115 | L118: Congo, República Democrática do | M118: 5891.1252 | N118: 0.0001960304438 | O118: -1426.224
A119: 116 | B119: Irão, República Islâmica do | C119: 2015.5486 | D119: 0.0001452544391 | F119: 116 | G119: Bolívia | H119: 1415.5294 | I119: 8.750742004e-05 | K119: 116 | L119: Gabão | M119: 5802.9838 | N119: 0.0001930974901 | O119: 136.5054
A120: 117 | B120: Islândia | C120: 1885.1564 | D120: 0.0001358574711 | F120: 117 | G120: São Tomé e Príncipe | H120: 1089.0898 | I120: 6.732706406e-05 | K120: 117 | L120: Burquina Faso | M120: 5682.894 | N120: 0.0001891014357 | O120: 2489.2648
A121: 118 | B121: Togo | C121: 1879.1826 | D121: 0.0001354269575 | F121: 118 | G121: Venezuela | H121: 1080.4086 | I121: 6.6790396e-05 | K121: 118 | L121: Omã | M121: 5590.2944 | N121: 0.0001860201329 | O121: 3943.0988
A122: 119 | B122: Sudão | C122: 1868.0632 | D122: 0.0001346256163 | F122: 119 | G122: Bósnia-Herzegovina | H122: 1034.9794 | I122: 6.398198235e-05 | K122: 119 | L122: Macedónia, Antiga República jugoslava da | M122: 5497.1524 | N122: 0.0001829207814 | O122: -3341.1964
A123: 120 | B123: Nicarágua | C123: 1709.2518 | D123: 0.0001231805631 | F123: 120 | G123: Geórgia | H123: 986.3118 | I123: 6.097337221e-05 | K123: 120 | L123: Zimbabwe | M123: 5240.2714 | N123: 0.0001743729243 | O123: -5106.5526
A124: 121 | B124: Jamaica | C124: 1645.8018 | D124: 0.0001186079152 | F124: 121 | G124: Cazaquistão | H124: 977.1902 | I124: 6.040947881e-05 | K124: 121 | L124: Suriname | M124: 5124.6412 | N124: 0.0001705252655 | O124: -3797.4556
A125: 122 | B125: El Salvador | C125: 1616.0178 | D125: 0.0001164614732 | F125: 122 | G125: El Salvador | H125: 921.9616 | I125: 5.699527046e-05 | K125: 122 | L125: Nicarágua | M125: 5057.4016 | N125: 0.0001682878307 | O125: -1638.898
A126: 123 | B126: Cazaquistão | C126: 1586.0954 | D126: 0.0001143050571 | F126: 123 | G126: Omã | H126: 823.5978 | I126: 5.091446255e-05 | K126: 123 | L126: Venezuela | M126: 4994.5306 | N126: 0.0001661957635 | O126: 2833.7134
A127: 124 | B127: Sri Lanca | C127: 1555.1928 | D127: 0.000112078001 | F127: 124 | G127: Timor-Leste | H127: 773.0574 | I127: 4.779007671e-05 | K127: 124 | L127: Myanmar | M127: 4788.3204 | N127: 0.0001593340052 | O127: -4047.0964
A128: 125 | B128: Ruanda | C128: 1542.3664 | D128: 0.0001111536414 | F128: 125 | G128: Emirados Árabes Unidos | H128: 758.5788 | I128: 4.689501588e-05 | K128: 125 | L128: Benim | M128: 4403.5118 | N128: 0.0001465292866 | O128: 548.6134
A129: 126 | B129: Azerbaijão | C129: 1447.7444 | D129: 0.0001043345225 | F129: 126 | G129: Belarus | H129: 696.1704 | I129: 4.303695537e-05 | K129: 126 | L129: Papuásia-Nova Guiné | M129: 4270.9956 | N129: 0.0001421197368 | O129: -4265.2244
A130: 127 | B130: Etiópia | C130: 1408.5528 | D130: 0.0001015101035 | F130: 127 | G130: Turquemenistão | H130: 693.7048 | I130: 4.288453304e-05 | K130: 127 | L130: Madagáscar | M130: 3916.3472 | N130: 0.0001303186155 | O130: -3143.8156
A131: 128 | B131: Albânia | C131: 1395.6804 | D131: 0.0001005824289 | F131: 128 | G131: Iémen | H131: 684.2014 | I131: 4.229703693e-05 | K131: 128 | L131: Seychelles | M131: 3779.597 | N131: 0.0001257681771 | O131: 918.277
A132: 129 | B132: Bolívia | C132: 1235.6182 | D132: 8.904723441e-05 | F132: 129 | G132: Gronelândia | H132: 628.3832 | I132: 3.884637976e-05 | K132: 129 | L132: Malavi | M132: 3770.4898 | N132: 0.00012546513 | O132: -3753.459
A133: 130 | B133: Montenegro | C133: 1193.9358 | D133: 8.604331099e-05 | F133: 130 | G133: Faroé, Ilhas | H133: 595.1746 | I133: 3.679343836e-05 | K133: 130 | L133: Gâmbia | M133: 3599.2092 | N133: 0.0001197656734 | O133: -2642.8956
A134: 131 | B134: São Bartolomeu | C134: 1183.3114 | D134: 8.527764289e-05 | F134: 131 | G134: Cabo Verde | H134: 418.902 | I134: 2.589634187e-05 | K134: 131 | L134: Catar | M134: 3530.8284 | N134: 0.0001174902646 | O134: 3488.1248
A135: 132 | B135: Honduras | C135: 1175.9 | D135: 8.47435259e-05 | F135: 132 | G135: Usbequistão | H135: 380.4082 | I135: 2.351667167e-05 | K135: 132 | L135: Guiné | M135: 3487.284 | N135: 0.0001160413006 | O135: 2912.5316
A136: 133 | B136: Uganda | C136: 1159.4308 | D136: 8.35566409e-05 | F136: 133 | G136: Líbano | H136: 352.7452 | I136: 2.180655689e-05 | K136: 133 | L136: Timor-Leste | M136: 3441.8012 | N136: 0.0001145278353 | O136: 1895.6864
A137: 134 | B137: Macedónia, Antiga República jugoslava da | C137: 1077.978 | D137: 7.768658608e-05 | F137: 134 | G137: Chade | H137: 303.1764 | I137: 1.874223494e-05 | K137: 134 | L137: Arménia | M137: 2777.2048 | N137: 9.241302316e-05 | O137: 2678.2416
A138: 135 | B138: Paraguai | C138: 969.8092 | D138: 6.989119063e-05 | F138: 135 | G138: Guiné-Bissau | H138: 291.7994 | I138: 1.803891368e-05 | K138: 135 | L138: Guiné Equatorial | M138: 2721.8116 | N138: 9.056978384e-05 | O138: 2702.244
A139: 136 | B139: Bermudas | C139: 957.27 | D139: 6.898752874e-05 | F139: 136 | G139: Guiné | H139: 287.3762 | I139: 1.776547336e-05 | K139: 136 | L139: Bolívia | M139: 2651.1476 | N139: 8.821840023e-05 | O139: -179.9112
A140: 137 | B140: Aruba | C140: 940.2512 | D140: 6.776103574e-05 | F140: 137 | G140: Togo | H140: 238.6312 | I140: 1.475207838e-05 | K140: 137 | L140: Centro-Africana, República | M140: 2569.5112 | N140: 8.550190394e-05 | O140: -2362.9152
A141: 138 | B141: Barbados | C141: 924.8742 | D141: 6.665286225e-05 | F141: 138 | G141: Irão, República Islâmica do | H141: 211.8398 | I141: 1.309584553e-05 | K141: 138 | L141: Cazaquistão | M141: 2563.2856 | N141: 8.529474366e-05 | O141: 608.9052
A142: 139 | B142: Camboja | C142: 878.304 | D142: 6.329669e-05 | F142: 139 | G142: Zâmbia | H142: 183.9494 | I142: 1.137167297e-05 | K142: 139 | L142: El Salvador | M142: 2537.9794 | N142: 8.445266589e-05 | O142: 694.0562
A143: 140 | B143: Trindade e Tobago | C143: 878.2468 | D143: 6.329256777e-05 | F143: 140 | G143: Jordânia | H143: 147.7944 | I143: 9.136586383e-06 | K143: 140 | L143: Serra Leoa | M143: 2340.2336 | N143: 7.787256521e-05 | O143: -1467.2992
A144: 141 | B144: Kosovo | C144: 870.5922 | D144: 6.27409241e-05 | F144: 141 | G144: Síria, República Árabe da | H144: 146.4108 | I144: 9.051052825e-06 | K144: 141 | L144: Irão, República Islâmica do | M144: 2227.3884 | N144: 7.411757887e-05 | O144: 1803.7088
A145: 142 | B145: Namíbia | C145: 866.1176 | D145: 6.241845333e-05 | F145: 142 | G145: Maldivas | H145: 127.2588 | I145: 7.867084403e-06 | K145: 142 | L145: Togo | M145: 2117.8138 | N145: 7.047142355e-05 | O145: 1640.5514
A146: 143 | B146: Turquemenistão | C146: 749.1004 | D146: 5.398538069e-05 | F146: 143 | G146: Albânia | H146: 125.4572 | I146: 7.755710265e-06 | K146: 143 | L146: Laos, República Democrática Popular do | M146: 1935.8146 | N146: 6.441529968e-05 | O146: -1593.9394
A147: 144 | B147: Barém | C147: 728.9324 | D147: 5.253193445e-05 | F147: 144 | G147: Azerbaijão | H147: 124.9342 | I147: 7.723378629e-06 | K147: 144 | L147: Sudão | M147: 1883.1514 | N147: 6.266290262e-05 | O147: 1852.975
A148: 145 | B148: Iémen | C148: 704.0114 | D148: 5.0735954e-05 | F148: 145 | G148: Kosovo | H148: 80.0466 | I148: 4.94844646e-06 | K148: 145 | L148: Jamaica | M148: 1660.4886 | N148: 5.525367501e-05 | O148: 1631.115
A149: 146 | B149: Suriname | C149: 663.5928 | D149: 4.78231088e-05 | F149: 146 | G149: Tajiquistão | H149: 74.7168 | I149: 4.618960512e-06 | K149: 146 | L149: Azerbaijão | M149: 1572.6786 | N149: 5.233174877e-05 | O149: 1322.8102
A150: 147 | B150: Niger | C150: 619.0434 | D150: 4.461256944e-05 | F150: 147 | G150: Andorra | H150: 62.7874 | I150: 3.881490123e-06 | K150: 147 | L150: Bósnia-Herzegovina | M150: 1571.857 | N150: 5.230440958e-05 | O150: -498.1018
A151: 148 | B151: São Martinho (parte holandesa) | C151: 606.1984 | D151: 4.368686947e-05 | F151: 148 | G151: Libéria | H151: 54.4472 | I151: 3.365902538e-06 | K151: 148 | L151: Ruanda | M151: 1569.669 | N151: 5.223160267e-05 | O151: 1515.0638
A152: 149 | B152: Bósnia-Herzegovina | C152: 536.8776 | D152: 3.869113088e-05 | F152: 149 | G152: Arábia Saudita | H152: 51.2828 | I152: 3.170280688e-06 | K152: 149 | L152: Albânia | M152: 1521.1376 | N152: 5.061669354e-05 | O152: 1270.2232
A153: 150 | B153: Curaçau | C153: 534.0534 | D153: 3.84875994e-05 | F153: 150 | G153: Fiji, Ilhas | H153: 50.1218 | I153: 3.098508166e-06 | K153: 150 | L153: Turquemenistão | M153: 1442.8052 | N153: 4.801013968e-05 | O153: 55.3956
A154: 151 | B154: Burundi | C154: 485.0592 | D154: 3.495673687e-05 | F154: 151 | G154: Arménia | H154: 49.4816 | I154: 3.058931277e-06 | K154: 151 | L154: Iémen | M154: 1388.2128 | N154: 4.619354742e-05 | O154: 19.81
A155: 152 | B155: Gâmbia | C155: 478.1568 | D155: 3.445930195e-05 | F155: 152 | G155: Falkland Ilhas (Malvinas) | H155: 46.09 | I155: 2.849264021e-06 | K155: 152 | L155: Montenegro | M155: 1194.2042 | N155: 3.973780414e-05 | O155: 1193.6674
A156: 153 | B156: Antígua e Barbuda | C156: 468.1724 | D156: 3.37397567e-05 | F156: 153 | G156: Aruba | H156: 45.6344 | I156: 2.821099024e-06 | K156: 153 | L156: São Bartolomeu | M156: 1185.2626 | N156: 3.944026746e-05 | O156: 1181.3602
A157: 154 | B157: Serra Leoa | C157: 436.4672 | D157: 3.145485966e-05 | F157: 154 | G157: Gibraltar | H157: 42.6724 | I157: 2.637989455e-06 | K157: 154 | L157: Aruba | M157: 985.8856 | N157: 3.28058877e-05 | O157: 894.6168
A158: 155 | B158: Tanzânia, República Unida da | C158: 409.5442 | D158: 2.951460117e-05 | F158: 155 | G158: Líbia, Jamahira Árabe da | H158: 41.1404 | I158: 2.543281873e-06 | K158: 155 | L158: Bermudas | M158: 958.1048 | N158: 3.188146624e-05 | O158: 956.4352
A159: 156 | B159: Nova Caledónia | C159: 388.6078 | D159: 2.800577869e-05 | F159: 156 | G159: Curaçau | H159: 39.2148 | I159: 2.424242107e-06 | K159: 156 | L159: Kosovo | M159: 950.6388 | N159: 3.163303097e-05 | O159: 790.5456
A160: 157 | B160: Madagáscar | C160: 386.2658 | D160: 2.78369979e-05 | F160: 157 | G160: Botswana | H160: 30.037 | I160: 1.85687445e-06 | K160: 157 | L160: Barbados | M160: 935.22 | N160: 3.111996188e-05 | O160: 914.5284
A161: 158 | B161: Myanmar | C161: 370.612 | D161: 2.670887628e-05 | F161: 158 | G161: São Pedro e Miquelon | H161: 28.9156 | I161: 1.787549983e-06 | K161: 158 | L161: Trindade e Tobago | M161: 878.6292 | N161: 2.923687177e-05 | O161: 877.8644
A162: 159 | B162: Comores | C162: 333.8038 | D162: 2.405622159e-05 | F162: 159 | G162: Ruanda | H162: 27.3026 | I162: 1.687835015e-06 | K162: 159 | L162: Barém | M162: 733.5568 | N162: 2.440950756e-05 | O162: 724.308
A163: 160 | B163: Haiti | C163: 328.0528 | D163: 2.364176457e-05 | F163: 160 | G163: São Marino | H163: 25.3104 | I163: 1.564678066e-06 | K163: 160 | L163: Usbequistão | M163: 665.2294 | N163: 2.213587559e-05 | O163: -95.587
A164: 161 | B164: Polinésia Francesa | C164: 317.6242 | D164: 2.289020718e-05 | F164: 161 | G164: Catar | H164: 21.3518 | I164: 1.319959113e-06 | K164: 161 | L164: Gronelândia | M164: 629.1046 | N164: 2.093380293e-05 | O164: -627.6618
A165: 162 | B165: Bahamas | C165: 305.389 | D165: 2.200845364e-05 | F165: 162 | G165: Macau | H165: 20.763 | I165: 1.28355975e-06 | K165: 162 | L165: Niger | M165: 622.3102 | N165: 2.070771552e-05 | O165: 615.7766
A166: 163 | B166: Libéria | C166: 303.6128 | D166: 2.188044832e-05 | F166: 163 | G166: Marshall, Ilhas | H166: 18.3784 | I166: 1.136144801e-06 | K166: 163 | L166: São Martinho (parte holandesa) | M166: 606.2012 | N166: 2.017167965e-05 | O166: 606.1956
A167: 164 | B167: Somália | C167: 293.0252 | D167: 2.111743229e-05 | F167: 164 | G167: Quirguizistão | H167: 17.5046 | I167: 1.08212686e-06 | K167: 164 | L167: Faroé, Ilhas | M167: 600.7416 | N167: 1.999000844e-05 | O167: -589.6076
A168: 165 | B168: Usbequistão | C168: 284.8212 | D168: 2.052619503e-05 | F168: 165 | G168: Salomão, Ilhas | H168: 16.0532 | I168: 9.924019348e-07 | K168: 165 | L168: Curaçau | M168: 573.2682 | N168: 1.907581589e-05 | O168: 494.8386
A169: 166 | B169: São Marino | C169: 251.4926 | D169: 1.81243045e-05 | F169: 166 | G169: Sudão | H169: 15.0882 | I169: 9.32746049e-07 | K169: 166 | L169: Burundi | M169: 485.2096 | N169: 1.614561735e-05 | O169: 484.9088
A170: 167 | B170: Bonaire, Santo Eustáquio e Saba | C170: 241.8602 | D170: 1.743012682e-05 | F170: 167 | G170: Jamaica | H170: 14.6868 | I170: 9.079316732e-07 | K170: 167 | L170: Antígua e Barbuda | M170: 477.853 | N170: 1.590082242e-05 | O170: 458.4918
A171: 168 | B171: Laos, República Democrática Popular do | C171: 170.9376 | D171: 1.231895138e-05 | F171: 168 | G171: Iraque | H171: 13.1736 | I171: 8.143862986e-07 | K171: 168 | L171: Nova Caledónia | M171: 390.0338 | N171: 1.297859005e-05 | O171: 387.1818
A172: 169 | B172: Zâmbia | C172: 164.8696 | D172: 1.188164914e-05 | F172: 169 | G172: São Cristovão e Nevis | H172: 12.4064 | I172: 7.669583239e-07 | K172: 169 | L172: Libéria | M172: 358.06 | N172: 1.19146442e-05 | O172: 249.1656
A173: 170 | B173: Santa Lúcia | C173: 158.8492 | D173: 1.144777727e-05 | F173: 170 | G173: Nepal | H173: 12.0278 | I173: 7.435534343e-07 | K173: 170 | L173: Zâmbia | M173: 348.819 | N173: 1.160714483e-05 | O173: -19.0798
A174: 171 | B174: Liechtenstein | C174: 144.4366 | D174: 1.040910516e-05 | F174: 171 | G174: Território Palestiniano Ocupado | H174: 11.6698 | I174: 7.21422028e-07 | K174: 171 | L174: Comores | M174: 333.8038 | N174: 1.110750576e-05 | O174: 333.8038
A175: 172 | B175: Maldivas | C175: 139.5096 | D175: 1.00540313e-05 | F175: 172 | G175: Barbados | H175: 10.3458 | I175: 6.395729161e-07 | K175: 172 | L175: Haiti | M175: 328.3394 | N175: 1.092567483e-05 | O175: 327.7662
A176: 173 | B176: Ceuta e Melilha | C176: 132.796 | D176: 9.570202624e-06 | F176: 173 | G176: Jibuti | H176: 9.885 | I176: 6.110864579e-07 | K176: 173 | L176: Polinésia Francesa | M176: 318.4566 | N176: 1.05968192e-05 | O176: 316.7918
A177: 174 | B177: Quirguizistão | C177: 130.9018 | D177: 9.433693408e-06 | F177: 174 | G177: Guiné Equatorial | H177: 9.7838 | I177: 6.048303173e-07 | K177: 174 | L177: Bahamas | M177: 305.389 | N177: 1.01619876e-05 | O177: 305.389
A178: 175 | B178: Botswana | C178: 118.8382 | D178: 8.564306557e-06 | F178: 175 | G178: Antígua e Barbuda | H178: 9.6806 | I178: 5.984505376e-07 | K178: 175 | L178: Chade | M178: 303.2232 | N178: 1.008991941e-05 | O178: -303.1296
A179: 176 | B179: Guiana | C179: 116.6432 | D179: 8.406119603e-06 | F179: 176 | G179: Santa Helena | H179: 5.0476 | I179: 3.120404658e-07 | K179: 176 | L179: Somália | M179: 293.0252 | N179: 9.750575325e-06 | O179: 293.0252
A180: 177 | B180: Nepal | C180: 114.3036 | D180: 8.237511767e-06 | F180: 177 | G180: Barém | H180: 4.6244 | I180: 2.858784235e-07 | K180: 177 | L180: São Marino | M180: 276.803 | N180: 9.210772662e-06 | O180: 226.1822
A181: 178 | B181: Afeganistão | C181: 109.4574 | D181: 7.888260917e-06 | F181: 178 | G181: Niger | H181: 3.2668 | I181: 2.019521741e-07 | K181: 178 | L181: Maldivas | M181: 266.7684 | N181: 8.876865807e-06 | O181: 12.2508
A182: 179 | B182: Virgens Britânicas, Ilhas | C182: 106.6708 | D182: 7.687439155e-06 | F182: 179 | G182: São Bartolomeu | H182: 1.9512 | I182: 1.206223467e-07 | K182: 179 | L182: Bonaire, Santo Eustáquio e Saba | M182: 241.8602 | N182: 8.048031699e-06 | O182: 241.8602
A183: 180 | B183: Centro-Africana, República | C183: 103.298 | D183: 7.444371748e-06 | F183: 180 | G183: Liechtenstein | H183: 1.8568 | I183: 1.147865792e-07 | K183: 180 | L183: Santa Lúcia | M183: 158.8768 | N183: 5.286713244e-06 | O183: 158.8216
A184: 181 | B184: Jibuti | C184: 90.5704 | D184: 6.527132442e-06 | F184: 181 | G184: Lesoto | H184: 1.7136 | I184: 1.059340166e-07 | K184: 181 | L184: Botswana | M184: 148.8752 | N184: 4.953904482e-06 | O184: 88.8012
A185: 182 | B185: Caimão, Ilhas | C185: 73.8006 | D185: 5.318584112e-06 | F185: 182 | G185: Nova Caledónia | H185: 1.426 | I185: 8.815470804e-08 | K185: 182 | L185: Quirguizistão | M185: 148.4064 | N185: 4.938304903e-06 | O185: 113.3972
A186: 183 | B186: Zimbabwe | C186: 66.8594 | D186: 4.818353003e-06 | F186: 183 | G186: Bermudas | H186: 0.8348 | I186: 5.160697775e-08 | K186: 183 | L186: Liechtenstein | M186: 146.2934 | N186: 4.867993661e-06 | O186: 142.5798
A187: 184 | B187: Turcas e Caicos, Ilhas | C187: 48.519 | D187: 3.496616322e-06 | F187: 184 | G187: Polinésia Francesa | H187: 0.8324 | I187: 5.145861078e-08 | K187: 184 | L187: Ceuta e Melilha | M187: 132.796 | N187: 4.418860224e-06 | O187: 132.796
A188: 185 | B188: Virgens dos Estados Unidos, Ilhas | C188: 27.4406 | D188: 1.977560334e-06 | F188: 185 | G188: Micronésia, Estados Federados da | H188: 0.6592 | I188: 4.075146111e-08 | K188: 185 | L188: Nepal | M188: 126.3314 | N188: 4.203747089e-06 | O188: 102.2758
A189: 186 | B189: Mongólia | C189: 26.1112 | D189: 1.881754531e-06 | F189: 186 | G189: Afeganistão | H189: 0.6156 | I189: 3.805612782e-08 | K189: 186 | L189: Afeganistão | M189: 110.073 | N189: 3.662739852e-06 | O189: 108.8418
A190: 187 | B190: Belize | C190: 19.5092 | D190: 1.405968531e-06 | F190: 187 | G190: Trindade e Tobago | H190: 0.3824 | I190: 2.363980389e-08 | K190: 187 | L190: Virgens Britânicas, Ilhas | M190: 106.6778 | N190: 3.549762697e-06 | O190: 106.6638
A191: 188 | B191: Anguila | C191: 15.482 | D191: 1.115740512e-06 | F191: 188 | G191: Haiti | H191: 0.2866 | I191: 1.771748901e-08 | K191: 188 | L191: Jibuti | M191: 100.4554 | N191: 3.342708902e-06 | O191: 80.6854
A192: 189 | B192: Brunei Darussalam | C192: 13.5634 | D192: 9.774728627e-07 | F192: 189 | G192: Montenegro | H192: 0.2684 | I192: 1.659237282e-08 | K192: 189 | L192: Tajiquistão | M192: 74.7168 | N192: 2.486242775e-06 | O192: -74.7168
A193: 190 | B193: Fiji, Ilhas | C193: 11.4598 | D193: 8.258728277e-07 | F193: 190 | G193: Burundi | H193: 0.1504 | I193: 9.297663457e-09 | K193: 190 | L193: Caimão, Ilhas | M193: 73.8014 | N193: 2.455782335e-06 | O193: 73.7998
A194: 191 | B194: Malavi | C194: 8.5154 | D194: 6.136789017e-07 | F194: 191 | G194: Oceano Indico, Território Britânico do | H194: 0.1384 | I194: 8.555828606e-09 | K194: 191 | L194: Fiji, Ilhas | M194: 61.5816 | N194: 2.049161742e-06 | O194: -38.662
A195: 192 | B195: São Vicente e Granadinas | C195: 7.5006 | D195: 5.405453613e-07 | F195: 192 | G195: Vanuatu | H195: 0.0874 | I195: 5.403030493e-09 | K195: 192 | L195: Turcas e Caicos, Ilhas | M195: 48.519 | N195: 1.614496515e-06 | O195: 48.519
A196: 193 | B196: Guam | C196: 6.4026 | D196: 4.614158508e-07 | F196: 193 | G196: Nauru | H196: 0.0694 | I196: 4.290278217e-09 | K196: 193 | L196: Falkland Ilhas (Malvinas) | M196: 46.09 | N196: 1.533670199e-06 | O196: -46.09
A197: 194 | B197: Territórios Franceses do Sul | C197: 6.3292 | D197: 4.561261367e-07 | F197: 194 | G197: Palau | H197: 0.0478 | I197: 2.954975487e-09 | K197: 194 | L197: São Pedro e Miquelon | M197: 28.9156 | N197: 9.621825558e-07 | O197: -28.9156
A198: 195 | B198: Faroé, Ilhas | C198: 5.567 | D198: 4.011967078e-07 | F198: 195 | G198: Santa Lúcia | H198: 0.0276 | I198: 1.706220156e-09 | K198: 195 | L198: Virgens dos Estados Unidos, Ilhas | M198: 27.4406 | N198: 9.131011164e-07 | O198: 27.4406
A199: 196 | B199: Sudão do Sul | C199: 3.771 | D199: 2.717644665e-07 | F199: 196 | G199: Coreia, República Popular Democrática da | H199: 0.0196 | I199: 1.211663589e-09 | K199: 196 | L199: Mongólia | M199: 26.1254 | N199: 8.693371102e-07 | O199: 26.097
A200: 197 | B200: Marianas do Norte, Ilhas | C200: 2.9244 | D200: 2.107525871e-07 | F200: 197 | G200: São Vicente e Granadinas | H200: 0.0144 | I200: 8.902018203e-10 | K200: 197 | L200: Marshall, Ilhas | M200: 18.3784 | N200: 6.115514077e-07 | O200: -18.3784
... 58 more rows

Sheet 2AA
A1: Ranking dos parceiros comerciais de Portugal por país (média 2019-2023 em milhares de euros) produtos agrícolas e agroalimentares
A2: Exportações | F2: Importações | K2: Trocas comerciais (total e saldo)
A3: P | B3: País | C3: média quinquénio | D3: % do Total | F3: P | G3: País | H3: média quinquénio | I3: % do Total | K3: P | L3: País | M3: Total (exp+imp) | N3: % do Total | O3: Saldo (exp-imp)
A4: 1 | B4: Espanha | C4: 2756093.353 | D4: 0.355769475 | F4: 1 | G4: Espanha | H4: 5218042.717 | I4: 0.4651610503 | K4: 1 | L4: Espanha | M4: 7974136.07 | N4: 0.4204755872 | O4: -2461949.364
A5: 2 | B5: França | C5: 750650.2316 | D5: 0.0968974576 | F5: 2 | G5: França | H5: 878313.0456 | I5: 0.07829698623 | K5: 2 | L5: França | M5: 1628963.277 | N5: 0.08589510946 | O5: -127662.814
A6: 3 | B6: Itália | C6: 480436.9156 | D6: 0.06201705361 | F6: 3 | G6: Alemanha | H6: 721146.7026 | I6: 0.06428643378 | K6: 3 | L6: Países Baixos | M6: 1048192.809 | N6: 0.05527112696 | O6: -310787.729
A7: 4 | B7: Brasil | C7: 405387.3582 | D7: 0.05232930424 | F7: 4 | G7: Países Baixos | H7: 679490.2692 | I7: 0.06057298194 | K7: 4 | L7: Brasil | M7: 1040823.749 | N7: 0.05488255698 | O7: -230049.033
A8: 5 | B8: Países Baixos | C8: 368702.5402 | D8: 0.04759385563 | F8: 5 | G8: Brasil | H8: 635436.3912 | I8: 0.05664581054 | K8: 5 | L8: Alemanha | M8: 1002872.88 | N8: 0.05288141054 | O8: -439420.525
A9: 6 | B9: Alemanha | C9: 281726.1776 | D9: 0.03636653823 | F9: 6 | G9: Itália | H9: 370236.6922 | I9: 0.03300465288 | K9: 6 | L9: Itália | M9: 850673.6078 | N9: 0.04485595451 | O9: 110200.2234 | P9: Nota: Nesta listagem, o Reino Unido passa a ser constituído por três componentes: Reino Unido [até 2020] ; Reino Unido (sem Irlanda do Norte) pós-2020 e Reino Unido (Irlanda do Norte) pós-2020. Estas componentes são calculadas igualmente como média do quinquénio, embora a primeira corresponda apenas a 2019-2020 e as duas últimas a 2021-2023.
A10: 7 | B10: Angola | C10: 239258.0836 | D10: 0.03088455719 | F10: 7 | G10: Bélgica | H10: 281579.9028 | I10: 0.02510136663 | K10: 7 | L10: Bélgica | M10: 455978.039 | N10: 0.02404368725 | O10: -107181.7666
A11: 8 | B11: Reino Unido (sem Irlanda do Norte) pós 2020 | C11: 237670.7152 | D11: 0.03067965222 | F11: 8 | G11: Ucrânia | H11: 218361.6698 | I11: 0.01946579382 | K11: 8 | L11: Estados Unidos | M11: 399330.4768 | N11: 0.02105666561 | O11: -4827.0664
A12: 9 | B12: Estados Unidos | C12: 197251.7052 | D12: 0.02546217657 | F12: 9 | G12: Polónia | H12: 216442.184 | I12: 0.01929468176 | K12: 9 | L12: Polónia | M12: 361797.3752 | N12: 0.01907754802 | O12: -71086.9928
A13: 10 | B13: Israel | C13: 180621.8384 | D13: 0.02331551526 | F13: 10 | G13: Estados Unidos | H13: 202078.7716 | I13: 0.01801425913 | K13: 10 | L13: Reino Unido (sem Irlanda do Norte) pós 2020 | M13: 312265.2586 | N13: 0.01646572329 | O13: 163076.1718
A14: 11 | B14: Bélgica | C14: 174398.1362 | D14: 0.02251213054 | F14: 11 | G14: Roménia | H14: 147921.5572 | I14: 0.01318642844 | K14: 11 | L14: Angola | M14: 248844.089 | N14: 0.01312152985 | O14: 229672.0782
A15: 12 | B15: Polónia | C15: 145355.1912 | D15: 0.01876313079 | F15: 12 | G15: África do Sul | H15: 122030.5704 | I15: 0.01087838321 | K15: 12 | L15: Ucrânia | M15: 226323.7844 | N15: 0.0119340359 | O15: -210399.5552
A16: 13 | B16: Reino Unido | C16: 140181.6612 | D16: 0.01809530724 | F16: 13 | G16: Canadá | H16: 114587.6202 | I16: 0.01021488337 | K16: 13 | L16: Reino Unido | M16: 218445.519 | N16: 0.01151861557 | O16: 61917.8034
A17: 14 | B17: Suíça | C17: 101113.5758 | D17: 0.01305221528 | F17: 14 | G17: Irlanda | H17: 113855.5454 | I17: 0.01014962275 | K17: 14 | L17: Canadá | M17: 187938.0432 | N17: 0.009909958695 | O17: -41237.1972
A18: 15 | B18: Cabo Verde | C18: 93276.7052 | D18: 0.01204059522 | F18: 15 | G18: Argentina | H18: 81740.7412 | I18: 0.007286756949 | K18: 15 | L18: Israel | M18: 185954.1124 | N18: 0.009805346175 | O18: 175289.5644
A19: 16 | B19: Canadá | C19: 73350.423 | D19: 0.009468417118 | F19: 16 | G19: Reino Unido | H19: 78263.8578 | I19: 0.00697681109 | K19: 16 | L19: Roménia | M19: 164671.813 | N19: 0.00868313215 | O19: -131171.3014
A20: 17 | B20: China, República Popular da | C20: 65002.3268 | D20: 0.00839080565 | F20: 17 | G20: Dinamarca | H20: 77963.4376 | I20: 0.00695003021 | K20: 17 | L20: Irlanda | M20: 144404.9996 | N20: 0.007614464624 | O20: -83306.0912
A21: 18 | B21: Japão | C21: 61056.1688 | D21: 0.007881417041 | F21: 18 | G21: Reino Unido (sem Irlanda do Norte) pós 2020 | H21: 74594.5434 | I21: 0.006649711019 | K21: 18 | L21: África do Sul | M21: 144191.7208 | N21: 0.007603218449 | O21: -99869.42
A22: 19 | B22: Suécia | C22: 55383.66 | D22: 0.007149182962 | F22: 19 | G22: Costa Rica | H22: 70756.5738 | I22: 0.006307576225 | K22: 19 | L22: Dinamarca | M22: 126433.7134 | N22: 0.006666840072 | O22: -29493.1618
A23: 20 | B23: Marrocos | C23: 49767.4468 | D23: 0.006424215784 | F23: 20 | G23: China, República Popular da | H23: 48105.6586 | I23: 0.004288366327 | K23: 20 | L23: China, República Popular da | M23: 113107.9854 | N23: 0.00596417545 | O23: 16896.6682
A24: 21 | B24: Dinamarca | C24: 48470.2758 | D24: 0.006256770858 | F24: 21 | G24: Bulgária | H24: 41846.0794 | I24: 0.00373035778 | K24: 21 | L24: Suíça | M24: 103785.6028 | N24: 0.005472606926 | O24: 98441.5488
A25: 22 | B25: Luxemburgo | C25: 48434.8998 | D25: 0.006252204358 | F25: 22 | G25: Grécia | H25: 35033.7506 | I25: 0.003123074514 | K25: 22 | L25: Cabo Verde | M25: 93421.8838 | N25: 0.004926128813 | O25: 93131.5266
A26: 23 | B26: Rússia, Federação da | C26: 47519.044 | D26: 0.00613398139 | F26: 23 | G26: Colômbia | H26: 31210.9096 | I26: 0.002782288355 | K26: 23 | L26: Argentina | M26: 82057.1494 | N26: 0.004326867234 | O26: -81424.333
A27: 24 | B27: Guiné-Bissau | C27: 33196.0112 | D27: 0.004285097043 | F27: 24 | G27: Guiana | H27: 31014.2578 | I27: 0.002764757882 | K27: 24 | L27: Japão | M27: 72872.0242 | N27: 0.003842536282 | O27: 49240.3134
A28: 25 | B28: Irlanda | C28: 30549.4542 | D28: 0.003943467035 | F28: 25 | G28: Vietname | H28: 30892.5166 | I28: 0.002753905295 | K28: 25 | L28: Costa Rica | M28: 72068.7862 | N28: 0.003800181604 | O28: -69444.3614
A29: 26 | B29: Arábia Saudita | C29: 29146.6976 | D29: 0.003762392624 | F29: 26 | G29: Cuba | H29: 28789.5394 | I29: 0.002566435944 | K29: 26 | L29: Suécia | M29: 68731.8356 | N29: 0.003624224453 | O29: 42035.4844
A30: 27 | B30: Moçambique | C30: 28593.955 | D30: 0.003691042013 | F30: 27 | G30: Áustria | H30: 27643.7092 | I30: 0.002464291211 | K30: 27 | L30: Marrocos | M30: 61090.9854 | N30: 0.003221323004 | O30: 38443.9082
A31: 28 | B31: São Tomé e Príncipe | C31: 25054.826 | D31: 0.003234194619 | F31: 28 | G31: Chile | H31: 26079.5266 | I31: 0.002324852563 | K31: 28 | L31: Grécia | M31: 59934.495 | N31: 0.003160341354 | O31: -10133.0062
A32: 29 | B32: Grécia | C32: 24900.7444 | D32: 0.003214305043 | F32: 29 | G32: Checa, República | H32: 24321.05 | I32: 0.002168093627 | K32: 29 | L32: Rússia, Federação da | M32: 59387.4766 | N32: 0.003131497115 | O32: 35650.6114
A33: 30 | B33: Finlândia | C33: 22507.9646 | D33: 0.002905433787 | F33: 30 | G33: Índia | H33: 24071.1366 | I33: 0.002145815163 | K33: 30 | L33: Luxemburgo | M33: 56679.3754 | N33: 0.002988699145 | O33: 40190.4242
A34: 31 | B34: África do Sul | C34: 22161.1504 | D34: 0.002860665382 | F34: 31 | G34: Uruguai | H34: 22728.6906 | I34: 0.002026143166 | K34: 31 | L34: Bulgária | M34: 50875.6622 | N34: 0.002682669791 | O34: -32816.4966
A35: 32 | B35: Jordânia | C35: 21893.2362 | D35: 0.002826081758 | F35: 32 | G35: Costa do Marfim | H35: 22619.1534 | I35: 0.002016378501 | K35: 32 | L35: Checa, República | M35: 43840.9252 | N35: 0.002311728645 | O35: -4801.1748
A36: 33 | B36: Argélia | C36: 20568.7852 | D36: 0.002655115402 | F36: 33 | G36: Turquia | H36: 19669.1464 | I36: 0.0017534009 | K36: 33 | L36: Áustria | M36: 42201.1454 | N36: 0.002225263181 | O36: -13086.273
A37: 34 | B37: Checa, República | C37: 19519.8752 | D37: 0.002519717173 | F37: 34 | G37: Hungria | H37: 19322.5132 | I37: 0.001722500375 | K37: 34 | L37: Moçambique | M37: 38413.517 | N37: 0.002025541824 | O37: 18774.393
A38: 35 | B38: Noruega | C38: 18383.7692 | D38: 0.002373063274 | F38: 35 | G38: Suazilândia | H38: 17908.3876 | I38: 0.001596438519 | K38: 35 | L38: Colômbia | M38: 37783.0652 | N38: 0.001992298149 | O38: -24638.754
A39: 36 | B39: Coreia, República da | C39: 16791.4172 | D39: 0.002167514999 | F39: 36 | G39: Letónia | H39: 17568.283 | I39: 0.001566119983 | K39: 36 | L39: Guiné-Bissau | M39: 33466.8492 | N39: 0.001764704408 | O39: 32925.1732
A40: 37 | B40: Roménia | C40: 16750.2558 | D40: 0.002162201692 | F40: 37 | G40: Uganda | H40: 17520.2176 | I40: 0.001561835206 | K40: 37 | L40: Austrália | M40: 33457.6176 | N40: 0.001764217626 | O40: -224.8624
A41: 38 | B41: Austrália | C41: 16616.3776 | D41: 0.002144920065 | F41: 38 | G41: Austrália | H41: 16841.24 | I41: 0.001501307925 | K41: 38 | L41: Cuba | M41: 33227.7552 | N41: 0.001752096999 | O41: -24351.3236
A42: 39 | B42: Áustria | C42: 14557.4362 | D42: 0.001879142239 | F42: 39 | G42: Lituânia | H42: 14594.912 | I42: 0.001301059605 | K42: 39 | L42: Vietname | M42: 32990.675 | N42: 0.001739595779 | O42: -28794.3582
A43: 40 | B43: Emirados Árabes Unidos | C43: 13772.665 | D43: 0.001777840287 | F43: 40 | G43: México | H43: 13942.9954 | I43: 0.00124294467 | K43: 40 | L43: Hungria | M43: 31339.561 | N43: 0.001652532663 | O43: -7305.4654
A44: 41 | B44: Iraque | C44: 13213.736 | D44: 0.001705691106 | F44: 41 | G44: Peru | H44: 13551.1124 | I44: 0.001208010363 | K44: 41 | L44: Chile | M44: 31046.9382 | N44: 0.001637102685 | O44: -21112.115
A45: 42 | B45: Nigéria | C45: 12563.3872 | D45: 0.001621741028 | F45: 42 | G45: Egito | H45: 13444.2972 | I45: 0.00119848835 | K45: 42 | L45: Guiana | M45: 31034.393 | N45: 0.001636441178 | O45: -30994.1226
A46: 43 | B46: Hungria | C46: 12017.0478 | D46: 0.001551216972 | F46: 43 | G46: Indonésia | H46: 13373.0146 | I46: 0.001192133881 | K46: 43 | L46: Finlândia | M46: 30593.483 | N46: 0.001613192027 | O46: 14422.4462
A47: 44 | B47: Macau | C47: 11451.795 | D47: 0.001478251486 | F47: 44 | G47: Suécia | H47: 13348.1756 | I47: 0.001189919615 | K47: 44 | L47: Costa do Marfim | M47: 30195.695 | N47: 0.001592216696 | O47: -15042.6118
A48: 45 | B48: Território Palestiniano Ocupado | C48: 11126.9966 | D48: 0.001436324983 | F48: 45 | G48: Paquistão | H48: 12392.2934 | I48: 0.001104707747 | K48: 45 | L48: Turquia | M48: 29730.2176 | N48: 0.001567672108 | O48: -9608.0752
A49: 46 | B49: Líbia, Jamahira Árabe da | C49: 10747.1924 | D49: 0.001387298073 | F49: 46 | G49: Moldava, República de | H49: 12169.9448 | I49: 0.001084886539 | K49: 46 | L49: Arábia Saudita | M49: 29183.7518 | N49: 0.001538857008 | O49: 29109.6434
A50: 47 | B50: Senegal | C50: 10277.8906 | D50: 0.001326718392 | F50: 47 | G50: Rússia, Federação da | H50: 11868.4326 | I50: 0.001058008313 | K50: 47 | L50: Índia | M50: 27213.734 | N50: 0.00143497812 | O50: -20928.5392
A51: 48 | B51: Turquia | C51: 10061.0712 | D51: 0.001298730326 | F51: 48 | G51: Japão | H51: 11815.8554 | I51: 0.001053321333 | K51: 48 | L51: São Tomé e Príncipe | M51: 26143.659 | N51: 0.001378553147 | O51: 23965.993
A52: 49 | B52: Kuwait | C52: 9238.6512 | D52: 0.00119256849 | F52: 49 | G52: Marrocos | H52: 11323.5386 | I52: 0.00100943388 | K52: 49 | L52: Uruguai | M52: 24804.8014 | N52: 0.001307955287 | O52: -20652.5798
A53: 50 | B53: Bulgária | C53: 9029.5828 | D53: 0.001165580959 | F53: 50 | G53: Tailândia | H53: 10221.1584 | I53: 0.0009111624865 | K53: 50 | L53: Letónia | M53: 24571.9238 | N53: 0.001295675669 | O53: -10564.6422
A54: 51 | B54: Eslováquia | C54: 8981.6584 | D54: 0.001159394652 | F54: 51 | G54: Paraguai | H54: 9863.0808 | I54: 0.0008792417527 | K54: 51 | L54: Argélia | M54: 22398.8544 | N54: 0.001181089885 | O54: 18738.716
A55: 52 | B55: Ucrânia | C55: 7962.1146 | D55: 0.00102778715 | F55: 52 | G55: Moçambique | H55: 9819.562 | I55: 0.0008753622806 | K55: 52 | L55: Jordânia | M55: 22013.8634 | N55: 0.001160789339 | O55: 21772.609
A56: 53 | B56: Costa do Marfim | C56: 7576.5416 | D56: 0.0009780155757 | F56: 53 | G56: Angola | H56: 9586.0054 | I56: 0.0008545419388 | K56: 53 | L56: México | M56: 20411.1484 | N56: 0.0010762783 | O56: -7474.8424
A57: 54 | B57: Letónia | C57: 7003.6408 | D57: 0.0009040628496 | F57: 54 | G57: Equador | H57: 9434.7056 | I57: 0.0008410543577 | K57: 54 | L57: Lituânia | M57: 20237.3848 | N57: 0.001067115758 | O57: -8952.4392
A58: 55 | B58: Gibraltar | C58: 6867.0166 | D58: 0.0008864267562 | F58: 55 | G58: Sérvia | H58: 8961.3684 | I58: 0.0007988588371 | K58: 55 | L58: Suazilândia | M58: 19974.7344 | N58: 0.001053266223 | O58: -15842.0408
A59: 56 | B59: Maurícias | C59: 6601.9064 | D59: 0.0008522050864 | F59: 56 | G59: Belize | H59: 8481.6488 | I59: 0.0007560943591 | K59: 56 | L59: Noruega | M59: 19562.9914 | N59: 0.001031555046 | O59: 17204.547
A60: 57 | B60: Colômbia | C60: 6572.1556 | D60: 0.0008483647134 | F60: 57 | G60: Luxemburgo | H60: 8244.4756 | I60: 0.0007349516164 | K60: 57 | L60: Uganda | M60: 18130.6166 | N60: 0.0009560260316 | O60: -16909.8186
A61: 58 | B61: México | C61: 6468.153 | D61: 0.0008349395693 | F61: 58 | G61: Estónia | H61: 8133.3802 | I61: 0.0007250480461 | K61: 58 | L61: Coreia, República da | M61: 18110.515 | N61: 0.0009549660757 | O61: 15472.3194
A62: 59 | B62: Andorra | C62: 5880.33 | D62: 0.0007590606155 | F62: 59 | G62: Finlândia | H62: 8085.5184 | I62: 0.0007207814184 | K62: 59 | L62: Peru | M62: 15536.0606 | N62: 0.0008192152914 | O62: -11566.1642
A63: 60 | B63: Lituânia | C63: 5642.4728 | D63: 0.0007283568909 | F63: 60 | G63: Nova Zelânda | H63: 7373.8184 | I63: 0.0006573371085 | K63: 60 | L63: Egito | M63: 15081.7762 | N63: 0.0007952609096 | O63: -11806.8182
A64: 61 | B64: Malta | C64: 5438.0306 | D64: 0.0007019665315 | F64: 61 | G64: Malásia | H64: 6878.308 | I64: 0.0006131649638 | K64: 61 | L64: Indonésia | M64: 14601.4892 | N64: 0.0007699354127 | O64: -12144.54
A65: 62 | B65: Estónia | C65: 5388.6736 | D65: 0.0006955952981 | F65: 62 | G65: Camarões | H65: 6873.6916 | I65: 0.000612753436 | K65: 62 | L65: Emirados Árabes Unidos | M65: 14301.0792 | N65: 0.0007540948163 | O65: 13244.2508
A66: 63 | B66: HongKong | C66: 4973.9084 | D66: 0.000642055458 | F66: 63 | G66: Eslovénia | H66: 5854.3628 | I66: 0.0005218856373 | K66: 63 | L66: Eslováquia | M66: 14115.3302 | N66: 0.0007443002857 | O66: 3847.9866
A67: 64 | B67: Chile | C67: 4967.4116 | D67: 0.0006412168206 | F67: 64 | G67: Israel | H67: 5332.274 | I67: 0.0004753441681 | K67: 64 | L67: Tailândia | M67: 13545.4648 | N67: 0.0007142513266 | O67: -6896.852
A68: 65 | B68: Chipre | C68: 4599.9132 | D68: 0.000593778401 | F68: 65 | G68: Honduras | H68: 5320.7232 | I68: 0.000474314475 | K68: 65 | L68: Estónia | M68: 13522.0538 | N68: 0.0007130168663 | O68: -2744.7066
A69: 66 | B69: Cuba | C69: 4438.2158 | D69: 0.0005729057412 | F69: 66 | G69: Camboja | H69: 5251.2876 | I69: 0.0004681246567 | K69: 66 | L69: Iraque | M69: 13226 | N69: 0.000697405972 | O69: 13201.472
A70: 67 | B70: Mali | C70: 4408.7876 | D70: 0.0005691070109 | F70: 67 | G70: Zimbabwe | H70: 5172.692 | I70: 0.0004611182725 | K70: 67 | L70: Paquistão | M70: 12653.1142 | N70: 0.0006671977475 | O70: -12131.4726
A71: 68 | B71: Omã | C71: 4251.3822 | D71: 0.0005487883825 | F71: 68 | G71: Eslováquia | H71: 5133.6718 | I71: 0.000457639827 | K71: 68 | L71: Nigéria | M71: 12613.3818 | N71: 0.000665102661 | O71: 12513.3926
A72: 69 | B72: Sérvia | C72: 3643.2286 | D72: 0.0004702850594 | F72: 69 | G72: Etiópia | H72: 4865.161 | I72: 0.0004337035021 | K72: 69 | L72: Sérvia | M72: 12604.597 | N72: 0.0006646394392 | O72: -5318.1398
A73: 70 | B73: Gana | C73: 3561.703 | D73: 0.0004597613521 | F73: 70 | G73: Reino Unido (Irlanda do Norte) pós-2020 | H73: 4852.6168 | I73: 0.0004325852527 | K73: 70 | L73: Moldava, República de | M73: 12435.7646 | N73: 0.0006557369196 | O73: -11904.125
A74: 71 | B74: Síria, República Árabe da | C74: 3557.076 | D74: 0.0004591640772 | F74: 71 | G74: Tanzânia, República Unida da | H74: 4645.6104 | I74: 0.0004141317214 | K74: 71 | L74: Macau | M74: 11470.0196 | N74: 0.0006048132594 | O74: 11433.5704
A75: 72 | B75: Tailândia | C75: 3324.3064 | D75: 0.0004291170839 | F75: 72 | G75: Filipinas | H75: 4316.8954 | I75: 0.0003848285089 | K75: 72 | L75: Território Palestiniano Ocupado | M75: 11138.6664 | N75: 0.0005873410304 | O75: 11115.3268
A76: 73 | B76: Singapura | C76: 3292.5498 | D76: 0.0004250177928 | F76: 73 | G76: Macedónia, Antiga República jugoslava da | H76: 4269.76 | I76: 0.000380626636 | K76: 73 | L76: Kuwait | M76: 10781.5982 | N76: 0.0005685128514 | O76: 7695.7042
A77: 74 | B77: Eslovénia | C77: 3210.1356 | D77: 0.0004143793808 | F77: 74 | G77: Myanmar | H77: 4258.6984 | I77: 0.0003796405526 | K77: 74 | L77: Senegal | M77: 10777.8706 | N77: 0.0005683162953 | O77: 9777.9106
A78: 75 | B78: Índia | C78: 3142.5974 | D78: 0.0004056612327 | F78: 75 | G78: Tunísia | H78: 4096.3914 | I78: 0.0003651717376 | K78: 75 | L78: Líbia, Jamahira Árabe da | M78: 10763.4438 | N78: 0.0005675555713 | O78: 10730.941
A79: 76 | B79: Taiwan | C79: 3027.0112 | D79: 0.0003907408232 | F79: 76 | G79: Quénia | H79: 3999.6272 | I79: 0.0003565457184 | K79: 76 | L79: Paraguai | M79: 10570.8508 | N79: 0.0005574001571 | O79: -9155.3108
A80: 77 | B80: Guiné | C80: 2745.3572 | D80: 0.0003543836019 | F80: 77 | G80: Chipre | H80: 3965.5184 | I80: 0.0003535050983 | K80: 77 | L80: Equador | M80: 10263.4314 | N80: 0.0005411899555 | O80: -8605.9798
A81: 78 | B81: Burquina Faso | C81: 2525.8832 | D81: 0.0003260528672 | F81: 78 | G81: Suriname | H81: 3877.4378 | I81: 0.0003456531763 | K81: 78 | L81: Nova Zelânda | M81: 9856.0686 | N81: 0.0005197097461 | O81: -4891.5682
A82: 79 | B82: Venezuela | C82: 2486.9168 | D82: 0.0003210229012 | F82: 79 | G82: Malavi | H82: 3756.8802 | I82: 0.0003349061007 | K82: 79 | L82: Maurícias | M82: 9426.6558 | N82: 0.0004970668419 | O82: 3777.157
A83: 80 | B83: Nova Zelânda | C83: 2482.2502 | D83: 0.0003204205146 | F83: 80 | G83: Guatemala | H83: 3336.065 | I83: 0.00029739264 | K83: 80 | L83: Eslovénia | M83: 9064.4984 | N83: 0.0004779703098 | O83: -2644.2272
A84: 81 | B84: Timor-Leste | C84: 2425.5014 | D84: 0.000313095113 | F84: 81 | G84: Sri Lanca | H84: 3081.7942 | I84: 0.0002747257362 | K84: 81 | L84: Camarões | M84: 8912.7596 | N84: 0.0004699691345 | O84: -4834.6236
A85: 82 | B85: Filipinas | C85: 2423.494 | D85: 0.0003128359883 | F85: 82 | G85: Nicarágua | H85: 3050.9764 | I85: 0.0002719784915 | K85: 82 | L85: Chipre | M85: 8565.4316 | N85: 0.0004516545555 | O85: 634.3948
A86: 83 | B86: Congo | C86: 2401.0914 | D86: 0.0003099441555 | F86: 83 | G86: Maurícias | H86: 2824.7494 | I86: 0.0002518115449 | K86: 83 | L86: Belize | M86: 8501.158 | N86: 0.0004482654135 | O86: -8462.1396
A87: 84 | B87: Dominicana, República | C87: 2366.1238 | D87: 0.0003054303735 | F87: 84 | G87: Suíça | H87: 2672.027 | I87: 0.0002381971465 | K87: 84 | L87: Malásia | M87: 8478.9536 | N87: 0.0004470945771 | O87: -5277.6624
A88: 85 | B88: Seychelles | C88: 2266.2448 | D88: 0.000292537523 | F88: 85 | G88: Taiwan | H88: 2620.8988 | I88: 0.0002336393366 | K88: 85 | L88: Mali | M88: 6882.4546 | N88: 0.0003629113065 | O88: 1935.1206
A89: 86 | B89: Belarus | C89: 2265.0334 | D89: 0.0002923811498 | F89: 86 | G89: Dominicana, República | H89: 2590.705 | I89: 0.0002309477182 | K89: 86 | L89: Gibraltar | M89: 6867.0382 | N89: 0.0003620984009 | O89: 6866.995
A90: 87 | B90: Benim | C90: 2254.9256 | D90: 0.0002910763875 | F90: 87 | G90: Mali | H90: 2473.667 | I90: 0.0002205143963 | K90: 87 | L90: Filipinas | M90: 6740.3894 | N90: 0.0003554202194 | O90: -1893.4014
A91: 88 | B91: Guiné Equatorial | C91: 2237.2378 | D91: 0.0002887931632 | F91: 88 | G91: Gana | H91: 2244.213 | I91: 0.0002000597796 | K91: 88 | L91: Reino Unido (Irlanda do Norte) pós-2020 | M91: 6619.5794 | N91: 0.0003490499173 | O91: -3085.6542
A92: 89 | B92: Líbano | C92: 2221.1552 | D92: 0.0002867171457 | F92: 89 | G92: Croácia | H92: 2137.0316 | I92: 0.0001905051218 | K92: 89 | L92: HongKong | M92: 6486.8174 | N92: 0.0003420493871 | O92: 3460.9994
A93: 90 | B93: Gabão | C93: 2209.6904 | D93: 0.0002852372154 | F93: 90 | G93: Congo, República Democrática do | H93: 1937.5966 | I93: 0.000172726541 | K93: 90 | L93: Honduras | M93: 6000.5624 | N93: 0.000316409198 | O93: -4640.884
A94: 91 | B94: Croácia | C94: 2104.1144 | D94: 0.0002716089695 | F94: 91 | G94: Benim | H94: 1901.2374 | I94: 0.0001694853097 | K94: 91 | L94: Malta | M94: 5960.075 | N94: 0.0003142743005 | O94: 4915.9862
A95: 92 | B95: Vietname | C95: 2098.1584 | D95: 0.000270840141 | F95: 92 | G95: Serra Leoa | H95: 1900.5094 | I95: 0.0001694204123 | K95: 92 | L95: Andorra | M95: 5897.0704 | N95: 0.0003109520728 | O95: 5863.5896
A96: 93 | B96: Uruguai | C96: 2076.1108 | D96: 0.0002679941333 | F96: 93 | G96: Argélia | H96: 1830.0692 | I96: 0.0001631410391 | K96: 93 | L96: Gana | M96: 5805.916 | N96: 0.0003061455082 | O96: 1317.49
A97: 94 | B97: Suazilândia | C97: 2066.3468 | D97: 0.0002667337503 | F97: 94 | G97: Laos, República Democrática Popular do | H97: 1764.7672 | I97: 0.0001573197095 | K97: 94 | L97: Camboja | M97: 5661.8046 | N97: 0.0002985465251 | O97: -4840.7706
A98: 95 | B98: Camarões | C98: 2039.068 | D98: 0.0002632124747 | F98: 95 | G98: Burquina Faso | H98: 1596.6714 | I98: 0.0001423348534 | K98: 95 | L98: Taiwan | M98: 5647.91 | N98: 0.0002978138639 | O98: 406.1124
A99: 96 | B99: Peru | C99: 1984.9482 | D99: 0.0002562264367 | F99: 96 | G99: Kuwait | H99: 1542.947 | I99: 0.0001375456059 | K99: 96 | L99: Etiópia | M99: 5274.7014 | N99: 0.0002781346028 | O99: -4455.6206
A100: 97 | B100: Catar | C100: 1923.0908 | D100: 0.000248241593 | F100: 97 | G100: HongKong | H100: 1512.909 | I100: 0.0001348678762 | K100: 97 | L100: Zimbabwe | M100: 5238.022 | N100: 0.0002762005009 | O100: -5107.362
A101: 98 | B101: Irão, República Islâmica do | C101: 1920.529 | D101: 0.0002479109038 | F101: 98 | G101: Panamá | H101: 1505.4946 | I101: 0.0001342069215 | K101: 98 | L101: Tunísia | M101: 5011.6662 | N101: 0.0002642647768 | O101: -3181.1166
A102: 99 | B102: Geórgia | C102: 1916.3824 | D102: 0.0002473756412 | F102: 99 | G102: Madagáscar | H102: 1471.794 | I102: 0.0001312026904 | K102: 99 | L102: Tanzânia, República Unida da | M102: 4986.1414 | N102: 0.000262918856 | O102: -4305.0794
A103: 100 | B103: Reino Unido (Irlanda do Norte) pós-2020 | C103: 1766.9626 | D103: 0.0002280878316 | F103: 100 | G103: Coreia, República da | H103: 1319.0978 | I103: 0.0001175906276 | K103: 100 | L103: Dominicana, República | M103: 4956.8288 | N103: 0.0002613732049 | O103: -224.5812
A104: 101 | B104: Egito | C104: 1637.479 | D104: 0.0002113734803 | F104: 101 | G104: Singapura | H104: 1313.0876 | I104: 0.0001170548499 | K104: 101 | L104: Omã | M104: 4826.1814 | N104: 0.0002544841774 | O104: 3676.583
A105: 102 | B105: Malásia | C105: 1600.6456 | D105: 0.0002066188521 | F105: 102 | G105: Noruega | H105: 1179.2222 | I105: 0.0001051214539 | K105: 102 | L105: Singapura | M105: 4605.6374 | N105: 0.0002428549091 | O105: 1979.4622
A106: 103 | B106: Bangladesh | C106: 1592.1082 | D106: 0.0002055168044 | F106: 103 | G106: São Tomé e Príncipe | H106: 1088.833 | I106: 9.706373239e-05 | K106: 103 | L106: Myanmar | M106: 4593.3818 | N106: 0.0002422086722 | O106: -3924.015
A107: 104 | B107: Congo, República Democrática do | C107: 1487.5888 | D107: 0.0001920249493 | F107: 104 | G107: Timor-Leste | H107: 773.0574 | I107: 6.891399929e-05 | K107: 104 | L107: Macedónia, Antiga República jugoslava da | M107: 4569.63 | N107: 0.0002409562416 | O107: -3969.89
A108: 105 | B108: Costa Rica | C108: 1312.2124 | D108: 0.0001693865399 | F108: 105 | G108: El Salvador | H108: 699.8376 | I108: 6.238683941e-05 | K108: 105 | L108: Quénia | M108: 4449.3114 | N108: 0.000234611851 | O108: -3549.943
A109: 106 | B109: Sudão | C109: 1307.024 | D109: 0.0001687167968 | F109: 106 | G109: Turquemenistão | H109: 693.7048 | I109: 6.184013257e-05 | K109: 106 | L109: Croácia | M109: 4241.146 | N109: 0.0002236353054 | O109: -32.9172
A110: 107 | B110: Togo | C110: 1248.9136 | D110: 0.0001612156335 | F110: 107 | G110: Cazaquistão | H110: 686.1514 | I110: 6.11667867e-05 | K110: 107 | L110: Benim | M110: 4156.163 | N110: 0.0002191541582 | O110: 353.6882
A111: 108 | B111: Indonésia | C111: 1228.4746 | D111: 0.0001585772713 | F111: 108 | G111: Omã | H111: 574.7992 | I111: 5.124032402e-05 | K111: 108 | L111: Burquina Faso | M111: 4122.5546 | N111: 0.0002173819899 | O111: 929.2118
A112: 109 | B112: Islândia | C112: 1198.9784 | D112: 0.0001547697633 | F112: 109 | G112: Geórgia | H112: 547.4606 | I112: 4.880323169e-05 | K112: 109 | L112: Suriname | M112: 4115.4388 | N112: 0.0002170067743 | O112: -3639.4368
A113: 110 | B113: Panamá | C113: 1014.5438 | D113: 0.0001309620789 | F113: 110 | G113: Emirados Árabes Unidos | H113: 528.4142 | I113: 4.710534535e-05 | K113: 110 | L113: Guatemala | M113: 3875.6304 | N113: 0.0002043616956 | O113: -2796.4996
A114: 111 | B114: Tunísia | C114: 915.2748 | D114: 0.0001181479701 | F114: 111 | G114: Malta | H114: 522.0444 | I114: 4.65375112e-05 | K114: 111 | L114: Malavi | M114: 3763.5146 | N114: 0.000198449838 | O114: -3750.2458
A115: 112 | B115: Equador | C115: 828.7258 | D115: 0.0001069758187 | F115: 112 | G115: Senegal | H115: 499.98 | I115: 4.457058605e-05 | K115: 112 | L115: Síria, República Árabe da | M115: 3703.4868 | N115: 0.0001952845767 | O115: 3410.6652
A116: 113 | B116: Bermudas | C116: 818.2718 | D116: 0.0001056263673 | F116: 113 | G116: Usbequistão | H116: 380.3558 | I116: 3.390671809e-05 | K116: 113 | L116: Sri Lanca | M116: 3487.0654 | N116: 0.0001838726928 | O116: -2676.523
A117: 114 | B117: Kosovo | C117: 799.843 | D117: 0.0001032474912 | F117: 114 | G117: Líbano | H117: 342.8862 | I117: 3.056650042e-05 | K117: 114 | L117: Nicarágua | M117: 3449.8386 | N117: 0.0001819097265 | O117: -2652.1142
A118: 115 | B118: Paraguai | C118: 707.77 | D118: 9.13622759e-05 | F118: 115 | G118: Chade | H118: 303.1764 | I118: 2.702658071e-05 | K118: 115 | L118: Congo, República Democrática do | M118: 3425.1854 | N118: 0.0001806097651 | O118: -450.0078
A119: 116 | B119: Honduras | C119: 679.8392 | D119: 8.775683705e-05 | F119: 116 | G119: Bangladesh | H119: 298.8156 | I119: 2.663783834e-05 | K119: 116 | L119: Timor-Leste | M119: 3198.5588 | N119: 0.0001686597618 | O119: 1652.444
A120: 117 | B120: Aruba | C120: 651.3298 | D120: 8.407670979e-05 | F120: 117 | G120: Bolívia | H120: 296.509 | I120: 2.643221709e-05 | K120: 117 | L120: Guiné | M120: 3020.6542 | N120: 0.0001592788658 | O120: 2470.0602
A121: 118 | B121: Mauritânia | C121: 615.705 | D121: 7.947809328e-05 | F121: 118 | G121: Venezuela | H121: 285.0498 | I121: 2.541068971e-05 | K121: 118 | L121: Venezuela | M121: 2771.9666 | N121: 0.0001461655876 | O121: 2201.867
A122: 119 | B122: Uganda | C122: 610.399 | D122: 7.879316988e-05 | F122: 119 | G122: Guiné | H122: 275.297 | I122: 2.454127891e-05 | K122: 119 | L122: Congo | M122: 2655.1662 | N122: 0.0001400067114 | O122: 2147.0166
A123: 120 | B123: Namíbia | C123: 600.2532 | D123: 7.748350236e-05 | F123: 120 | G123: Guiné-Bissau | H123: 270.838 | I123: 2.414378252e-05 | K123: 120 | L123: Líbano | M123: 2564.0414 | N123: 0.0001352017076 | O123: 1878.269
A124: 121 | B124: Cazaquistão | C124: 584.6762 | D124: 7.547275004e-05 | F124: 121 | G124: Congo | H124: 254.0748 | I124: 2.264943145e-05 | K124: 121 | L124: Panamá | M124: 2520.0384 | N124: 0.0001328814328 | O124: -490.9508
A125: 122 | B125: Albânia | C125: 582.0574 | D125: 7.513470304e-05 | F125: 122 | G125: Belarus | H125: 241.8304 | I125: 2.155790762e-05 | K125: 122 | L125: Belarus | M125: 2506.8638 | N125: 0.0001321867371 | O125: 2023.203
A126: 123 | B126: Ruanda | C126: 580.43 | D126: 7.49246306e-05 | F126: 123 | G126: Togo | H126: 238.6312 | I126: 2.127271578e-05 | K126: 123 | L126: Geórgia | M126: 2463.843 | N126: 0.0001299182536 | O126: 1368.9218
A127: 124 | B127: Azerbaijão | C127: 564.159 | D127: 7.28242935e-05 | F127: 124 | G127: Irão, República Islâmica do | H127: 186.7426 | I127: 1.664712013e-05 | K127: 124 | L127: Serra Leoa | M127: 2326.8524 | N127: 0.0001226947497 | O127: -1474.1664
A128: 125 | B128: São Bartolomeu | C128: 548.5216 | D128: 7.080574446e-05 | F128: 125 | G128: Zâmbia | H128: 183.9494 | I128: 1.639812105e-05 | K128: 125 | L128: Seychelles | M128: 2267.3882 | N128: 0.000119559207 | O128: 2265.1014
A129: 126 | B129: Guatemala | C129: 539.5654 | D129: 6.96496361e-05 | F129: 126 | G129: Islândia | H129: 183.9414 | I129: 1.639740789e-05 | K129: 126 | L129: Guiné Equatorial | M129: 2237.2378 | N129: 0.0001179693787 | O129: 2237.2378
A130: 127 | B130: Arménia | C130: 525.5354 | D130: 6.78385778e-05 | F130: 127 | G130: Síria, República Árabe da | H130: 146.4108 | I130: 1.305175239e-05 | K130: 127 | L130: Gabão | M130: 2210.0274 | N130: 0.0001165345764 | O130: 2209.3534
A131: 128 | B131: Barém | C131: 502.4658 | D131: 6.486064548e-05 | F131: 128 | G131: Cabo Verde | H131: 145.1786 | I131: 1.294190824e-05 | K131: 128 | L131: Irão, República Islâmica do | M131: 2107.2716 | N131: 0.0001111162709 | O131: 1733.7864
A132: 129 | B132: Bolívia | C132: 494.4554 | D132: 6.382662542e-05 | F132: 129 | G132: Azerbaijão | H132: 124.8964 | I132: 1.113385684e-05 | K132: 129 | L132: Catar | M132: 1939.3412 | N132: 0.0001022613137 | O132: 1906.8404
A133: 130 | B133: Burundi | C133: 484.978 | D133: 6.260323811e-05 | F133: 130 | G133: Jordânia | H133: 120.6272 | I133: 1.075328013e-05 | K133: 130 | L133: Bangladesh | M133: 1890.9238 | N133: 9.970826787e-05 | O133: 1293.2926
A134: 131 | B134: Quénia | C134: 449.6842 | D134: 5.804734864e-05 | F134: 131 | G134: Albânia | H134: 120.2784 | I134: 1.072218644e-05 | K134: 131 | L134: Laos, República Democrática Popular do | M134: 1777.8864 | N134: 9.374781438e-05 | O134: -1751.648
A135: 132 | B135: Gâmbia | C135: 434.028 | D135: 5.602637281e-05 | F135: 132 | G135: Iémen | H135: 84.6154 | I135: 7.543017654e-06 | K135: 132 | L135: Madagáscar | M135: 1602.4536 | N135: 8.44972562e-05 | O135: -1341.1344
A136: 133 | B136: Serra Leoa | C136: 426.343 | D136: 5.503435691e-05 | F136: 133 | G136: Kosovo | H136: 79.8322 | I136: 7.116620544e-06 | K136: 133 | L136: Togo | M136: 1487.5448 | N136: 7.843812394e-05 | O136: 1010.2824
A137: 134 | B137: Camboja | C137: 410.517 | D137: 5.29914625e-05 | F137: 134 | G137: Tajiquistão | H137: 74.7168 | I137: 6.660609552e-06 | K137: 134 | L137: Islândia | M137: 1382.9198 | N137: 7.292125566e-05 | O137: 1015.037
A138: 135 | B138: Etiópia | C138: 409.5404 | D138: 5.286539839e-05 | F138: 135 | G138: Namíbia | H138: 64.9894 | I138: 5.793463028e-06 | K138: 135 | L138: Sudão | M138: 1318.1622 | N138: 6.950659235e-05 | O138: 1295.8858
A139: 136 | B139: Sri Lanca | C139: 405.2712 | D139: 5.231431e-05 | F139: 136 | G139: Libéria | H139: 54.4472 | I139: 4.853681373e-06 | K139: 136 | L139: Cazaquistão | M139: 1270.8276 | N139: 6.70106425e-05 | O139: -101.4752
A140: 137 | B140: Antígua e Barbuda | C140: 403.3246 | D140: 5.206303373e-05 | F140: 137 | G140: Nigéria | H140: 49.9946 | I140: 4.456755513e-06 | K140: 137 | L140: El Salvador | M140: 1081.0474 | N140: 5.700354701e-05 | O140: -318.6278
A141: 138 | B141: Nicarágua | C141: 398.8622 | D141: 5.148700618e-05 | F141: 138 | G141: Aruba | H141: 45.6144 | I141: 4.066283732e-06 | K141: 138 | L141: Kosovo | M141: 879.6752 | N141: 4.638520626e-05 | O141: 720.0108
A142: 139 | B142: El Salvador | C142: 381.2098 | D142: 4.920835147e-05 | F142: 139 | G142: Bósnia-Herzegovina | H142: 42.5574 | I142: 3.793768268e-06 | K142: 139 | L142: Bermudas | M142: 818.9736 | N142: 4.318441551e-05 | O142: 817.57
A143: 140 | B143: São Martinho (parte holandesa) | C143: 373.2376 | D143: 4.817926245e-05 | F143: 140 | G143: Curaçau | H143: 39.2148 | I143: 3.495793067e-06 | K143: 140 | L143: Bolívia | M143: 790.9644 | N143: 4.170749253e-05 | O143: 197.9464
A144: 141 | B144: Iémen | C144: 360.3172 | D144: 4.651143654e-05 | F144: 141 | G144: Arménia | H144: 37.5752 | I144: 3.349631355e-06 | K144: 141 | L144: Albânia | M144: 702.3358 | N144: 3.703411321e-05 | O144: 461.779
A145: 142 | B145: Tanzânia, República Unida da | C145: 340.531 | D145: 4.395734091e-05 | F145: 142 | G145: Arábia Saudita | H145: 37.0542 | I145: 3.303186947e-06 | K145: 142 | L145: Turquemenistão | M145: 700.9924 | N145: 3.696327583e-05 | O145: -686.4172
A146: 143 | B146: Myanmar | C146: 334.6834 | D146: 4.320250523e-05 | F146: 143 | G146: Botswana | H146: 30.037 | I146: 2.677640492e-06 | K146: 143 | L146: Aruba | M146: 696.9442 | N146: 3.674981455e-05 | O146: 605.7154
A147: 144 | B147: Comores | C147: 333.8038 | D147: 4.308896233e-05 | F147: 144 | G147: Ruanda | H147: 26.8278 | I147: 2.391557199e-06 | K147: 144 | L147: Azerbaijão | M147: 689.0554 | N147: 3.633383873e-05 | O147: 439.2626
A148: 145 | B148: Argentina | C148: 316.4082 | D148: 4.084345658e-05 | F148: 145 | G148: São Marino | H148: 25.2246 | I148: 2.248640355e-06 | K148: 145 | L148: Namíbia | M148: 665.2426 | N148: 3.50781916e-05 | O148: 535.2638
A149: 146 | B149: Jamaica | C149: 302.5728 | D149: 3.905751817e-05 | F149: 146 | G149: Macau | H149: 18.2246 | I149: 1.62462719e-06 | K149: 146 | L149: Mauritânia | M149: 617.715 | N149: 3.257206487e-05 | O149: 613.695
A150: 147 | B150: Libéria | C150: 301.9358 | D150: 3.897529121e-05 | F150: 147 | G150: Quirguizistão | H150: 17.5046 | I150: 1.560442979e-06 | K150: 147 | L150: Ruanda | M150: 607.2578 | N150: 3.202065751e-05 | O150: 553.6022
A151: 148 | B151: Macedónia, Antiga República jugoslava da | C151: 299.87 | D151: 3.870862805e-05 | F151: 148 | G151: Andorra | H151: 16.7404 | I151: 1.49231857e-06 | K151: 148 | L151: Arménia | M151: 563.1106 | N151: 2.969277902e-05 | O151: 487.9602
A152: 149 | B152: Somália | C152: 292.8384 | D152: 3.780095609e-05 | F152: 149 | G152: Líbia, Jamahira Árabe da | H152: 16.2514 | I152: 1.448726793e-06 | K152: 149 | L152: São Bartolomeu | M152: 548.8046 | N152: 2.893842473e-05 | O152: 548.2386
A153: 150 | B153: Moldava, República de | C153: 265.8198 | D153: 3.43132683e-05 | F153: 150 | G153: Catar | H153: 16.2504 | I153: 1.448637649e-06 | K153: 150 | L153: Barém | M153: 506.7884 | N153: 2.672291371e-05 | O153: 498.1432
A154: 151 | B154: Paquistão | C154: 260.8208 | D154: 3.36679739e-05 | F154: 151 | G154: Jamaica | H154: 14.6512 | I154: 1.306077384e-06 | K154: 151 | L154: Burundi | M154: 485.092 | N154: 2.557886419e-05 | O154: 484.864
A155: 152 | B155: Curaçau | C155: 251.4226 | D155: 3.245481011e-05 | F155: 152 | G155: São Cristovão e Nevis | H155: 12.4064 | I155: 1.105965276e-06 | K155: 152 | L155: Iémen | M155: 444.9326 | N155: 2.346126209e-05 | O155: 275.7018
A156: 153 | B156: Suriname | C156: 238.001 | D156: 3.072228694e-05 | F156: 153 | G156: Iraque | H156: 12.264 | I156: 1.093271065e-06 | K156: 153 | L156: Gâmbia | M156: 434.067 | N156: 2.288831983e-05 | O156: 433.989
A157: 154 | B157: Nova Caledónia | C157: 206.2626 | D157: 2.662534519e-05 | F157: 154 | G157: Território Palestiniano Ocupado | H157: 11.6698 | I157: 1.040301262e-06 | K157: 154 | L157: Usbequistão | M157: 421.6984 | N157: 2.223612449e-05 | O157: -339.0132
A158: 155 | B158: Trindade e Tobago | C158: 189.8074 | D158: 2.450123069e-05 | F158: 155 | G158: Sudão | H158: 11.1382 | I158: 9.929119195e-07 | K158: 155 | L158: Antígua e Barbuda | M158: 403.7924 | N158: 2.129194248e-05 | O158: 402.8568
A159: 156 | B159: Haiti | C159: 187.225 | D159: 2.416788237e-05 | F159: 156 | G159: Barém | H159: 4.3226 | I159: 3.85337044e-07 | K159: 156 | L159: São Martinho (parte holandesa) | M159: 373.2376 | N159: 1.96807902e-05 | O159: 373.2376
A160: 157 | B160: Zâmbia | C160: 152.2624 | D160: 1.965474575e-05 | F160: 157 | G160: Nepal | H160: 2.6584 | I160: 2.369823712e-07 | K160: 157 | L160: Libéria | M160: 356.383 | N160: 1.879204843e-05 | O160: 247.4886
A161: 158 | B161: Maldivas | C161: 137.7162 | D161: 1.777705393e-05 | F161: 158 | G161: Fiji, Ilhas | H161: 2.251 | I161: 2.00664805e-07 | K161: 158 | L161: Zâmbia | M161: 336.2118 | N161: 1.772842259e-05 | O161: -31.687
A162: 159 | B162: Liechtenstein | C162: 135.8048 | D162: 1.753032144e-05 | F162: 159 | G162: Mauritânia | H162: 2.01 | I162: 1.791809232e-07 | K162: 159 | L162: Comores | M162: 333.8038 | N162: 1.760144893e-05 | O162: 333.8038
A163: 160 | B163: Polinésia Francesa | C163: 133.9344 | D163: 1.728888142e-05 | F163: 160 | G163: Liechtenstein | H163: 1.7982 | I163: 1.603000677e-07 | K163: 160 | L163: Jamaica | M163: 317.224 | N163: 1.672719734e-05 | O163: 287.9216
A164: 161 | B164: Madagáscar | C164: 130.6596 | D164: 1.686615486e-05 | F164: 161 | G164: Lesoto | H164: 1.7136 | I164: 1.527584228e-07 | K164: 161 | L164: Chade | M164: 303.1804 | N164: 1.598667939e-05 | O164: -303.1724
A165: 162 | B165: Niger | C165: 126.732 | D165: 1.63591618e-05 | F165: 162 | G165: Seychelles | H165: 1.1434 | I165: 1.019280933e-07 | K165: 162 | L165: Somália | M165: 292.8384 | N165: 1.544134651e-05 | O165: 292.8384
A166: 163 | B166: Bósnia-Herzegovina | C166: 90.5322 | D166: 1.168632159e-05 | F166: 163 | G166: Bermudas | H166: 0.7018 | I166: 6.256177705e-08 | K166: 163 | L166: Curaçau | M166: 290.6374 | N166: 1.532528795e-05 | O166: 212.2078
A167: 164 | B167: Centro-Africana, República | C167: 89.9082 | D167: 1.160577274e-05 | F167: 164 | G167: Afeganistão | H167: 0.5848 | I167: 5.213184272e-08 | K167: 164 | L167: Nova Caledónia | M167: 206.2906 | N167: 1.087768762e-05 | O167: 206.2346
A168: 165 | B168: Nepal | C168: 87.8934 | D168: 1.13456929e-05 | F168: 165 | G168: Antígua e Barbuda | H168: 0.4678 | I168: 4.170190838e-08 | K168: 165 | L168: Trindade e Tobago | M168: 189.8764 | N168: 1.00121681e-05 | O168: 189.7384
A169: 166 | B169: Jibuti | C169: 70.7204 | D169: 9.128921396e-06 | F169: 166 | G169: Gabão | H169: 0.337 | I169: 3.004177667e-08 | K169: 166 | L169: Haiti | M169: 187.2274 | N169: 9.872486533e-06 | O169: 187.2226
A170: 167 | B170: Zimbabwe | C170: 65.33 | D170: 8.433103246e-06 | F170: 167 | G170: São Bartolomeu | H170: 0.283 | I170: 2.522796082e-08 | K170: 167 | L170: Maldivas | M170: 137.7198 | N170: 7.261954558e-06 | O170: 137.7126
A171: 168 | B171: Montenegro | C171: 54.6326 | D171: 7.05223261e-06 | F171: 168 | G171: Barbados | H171: 0.1636 | I171: 1.458407912e-08 | K171: 168 | L171: Liechtenstein | M171: 137.603 | N171: 7.255795703e-06 | O171: 134.0066
A172: 169 | B172: Caimão, Ilhas | C172: 53.1296 | D172: 6.85821831e-06 | F172: 169 | G172: Oceano Indico, Território Britânico do | H172: 0.1384 | I172: 1.233763172e-08 | K172: 169 | L172: Polinésia Francesa | M172: 133.9626 | N172: 7.063837689e-06 | O172: 133.9062
A173: 170 | B173: Ceuta e Melilha | C173: 51.6648 | D173: 6.669135046e-06 | F173: 170 | G173: Niger | H173: 0.1252 | I173: 1.116092118e-08 | K173: 170 | L173: Bósnia-Herzegovina | M173: 133.0896 | N173: 7.017804465e-06 | O173: 47.9748
A174: 171 | B174: Bahamas | C174: 43.9552 | D174: 5.673943668e-06 | F174: 171 | G174: Burundi | H174: 0.114 | I174: 1.016250012e-08 | K174: 171 | L174: Niger | M174: 126.8572 | N174: 6.689170488e-06 | O174: 126.6068
A175: 172 | B175: Usbequistão | C175: 41.3426 | D175: 5.336696988e-06 | F175: 172 | G175: Trindade e Tobago | H175: 0.069 | I175: 6.150986914e-09 | K175: 172 | L175: Nepal | M175: 90.5518 | N175: 4.774789513e-06 | O175: 85.235
A176: 173 | B176: Virgens dos Estados Unidos, Ilhas | C176: 26.0742 | D176: 3.365780203e-06 | F176: 173 | G176: Gâmbia | H176: 0.039 | I176: 3.476644778e-09 | K176: 173 | L176: Centro-Africana, República | M176: 89.9082 | N176: 4.740852534e-06 | O176: 89.9082
A177: 174 | B177: Turcas e Caicos, Ilhas | C177: 25.0024 | D177: 3.227427225e-06 | F177: 174 | G177: Polinésia Francesa | H177: 0.0282 | I177: 2.513881608e-09 | K177: 174 | L177: Tajiquistão | M177: 74.7168 | N177: 3.93981117e-06 | O177: -74.7168
A178: 175 | B178: Quirguizistão | C178: 23.7908 | D178: 3.071028206e-06 | F178: 175 | G178: Nova Caledónia | H178: 0.028 | I178: 2.496052661e-09 | K178: 175 | L178: Jibuti | M178: 70.7204 | N178: 3.729081302e-06 | O178: 70.7204
A179: 176 | B179: Guiana | C179: 20.1352 | D179: 2.599146188e-06 | F179: 176 | G179: Papuásia-Nova Guiné | H179: 0.0222 | I179: 1.979013181e-09 | K179: 176 | L179: Montenegro | M179: 54.634 | N179: 2.880846656e-06 | O179: 54.6312
A180: 177 | B180: Belize | C180: 19.5092 | D180: 2.518339168e-06 | F180: 177 | G180: Gibraltar | H180: 0.0216 | I180: 1.925526338e-09 | K180: 177 | L180: Caimão, Ilhas | M180: 53.1304 | N180: 2.801561943e-06 | O180: 53.1288
A181: 178 | B181: Mongólia | C181: 19.1206 | D181: 2.468176855e-06 | F181: 178 | G181: São Vicente e Granadinas | H181: 0.0144 | I181: 1.283684226e-09 | K181: 178 | L181: Ceuta e Melilha | M181: 51.6648 | N181: 2.724280967e-06 | O181: 51.6648
A182: 179 | B182: Afeganistão | C182: 18.9718 | D182: 2.448969052e-06 | F182: 179 | G182: Mongólia | H182: 0.0112 | I182: 9.984210643e-10 | K182: 179 | L182: Bahamas | M182: 43.9552 | N182: 2.317754346e-06 | O182: 43.9552
A183: 180 | B183: Barbados | C183: 15.4724 | D183: 1.997250064e-06 | F183: 180 | G183: Santa Lúcia | H183: 0.009 | I183: 8.02302641e-10 | K183: 180 | L183: Quirguizistão | M183: 41.2954 | N183: 2.177503295e-06 | O183: 6.2862
A184: 181 | B184: Virgens Britânicas, Ilhas | C184: 13.47 | D184: 1.738770867e-06 | F184: 181 | G184: Virgens Britânicas, Ilhas | H184: 0.007 | I184: 6.240131652e-10 | K184: 181 | L184: Botswana | M184: 30.0886 | N184: 1.586569585e-06 | O184: -29.9854
A185: 182 | B185: Laos, República Democrática Popular do | C185: 13.1192 | D185: 1.693487955e-06 | F185: 182 | G185: Maldivas | H185: 0.0036 | I185: 3.209210564e-10 | K185: 182 | L185: Virgens dos Estados Unidos, Ilhas | M185: 26.0742 | N185: 1.374890579e-06 | O185: 26.0742
A186: 183 | B186: Brunei Darussalam | C186: 12.819 | D186: 1.654736729e-06 | F186: 183 | G186: Faroé, Ilhas | H186: 0.0026 | I186: 2.317763185e-10 | K186: 183 | L186: São Marino | M186: 25.2486 | N186: 1.331356754e-06 | O186: -25.2006
A187: 184 | B187: Fiji, Ilhas | C187: 11.4226 | D187: 1.474482858e-06 | F187: 184 | G187: Haiti | H187: 0.0024 | I187: 2.139473709e-10 | K187: 184 | L187: Turcas e Caicos, Ilhas | M187: 25.0024 | N187: 1.318374647e-06 | O187: 25.0024
A188: 185 | B188: Turquemenistão | C188: 7.2876 | D188: 9.407176369e-07 | F188: 185 | G188: Montenegro | H188: 0.0014 | I188: 1.24802633e-10 | K188: 185 | L188: Afeganistão | M188: 19.5566 | N188: 1.031218028e-06 | O188: 18.387
A189: 186 | B189: Santa Lúcia | C189: 7.138 | D189: 9.214065662e-07 | F189: 186 | G189: Caimão, Ilhas | H189: 0.0008 | I189: 7.131579031e-11 | K189: 186 | L189: Mongólia | M189: 19.1318 | N189: 1.008818356e-06 | O189: 19.1094
A190: 187 | B190: Malavi | C190: 6.6344 | D190: 8.563995129e-07 | F190: 187 | G190: Anguila | H190: 0 | I190: 0 | K190: 187 | L190: Barbados | M190: 15.636 | N190: 8.244850884e-07 | O190: 15.3088
A191: 188 | B191: Bonaire, Santo Eustáquio e Saba | C191: 6.6316 | D191: 8.560380757e-07 | F191: 188 | G191: Antárctica | H191: 0 | I191: 0 | K191: 188 | L191: Fiji, Ilhas | M191: 13.6736 | N191: 7.210078859e-07 | O191: 9.1716
A192: 189 | B192: Guam | C192: 6.3336 | D192: 8.17570836e-07 | F192: 189 | G192: Antilhas Holandesas | H192: 0 | I192: 0 | K192: 189 | L192: Virgens Britânicas, Ilhas | M192: 13.477 | N192: 7.106411829e-07 | O192: 13.463
A193: 190 | B193: São Vicente e Granadinas | C193: 4.3128 | D193: 5.567164806e-07 | F193: 190 | G193: Bahamas | H193: 0 | I193: 0 | K193: 190 | L193: São Cristovão e Nevis | M193: 13.1558 | N193: 6.937043314e-07 | O193: -11.657
A194: 191 | B194: Sudão do Sul | C194: 3.771 | D194: 4.867783919e-07 | F194: 191 | G194: Bonaire, Santo Eustáquio e Saba | H194: 0 | I194: 0 | K194: 191 | L194: Brunei Darussalam | M194: 12.819 | N194: 6.759448931e-07 | O194: 12.819
A195: 192 | B195: Marianas do Norte, Ilhas | C195: 2.9244 | D195: 3.774952875e-07 | F195: 192 | G195: Bouvet, Ilha | H195: 0 | I195: 0 | K195: 192 | L195: Santa Lúcia | M195: 7.147 | N195: 3.768607653e-07 | O195: 7.129
A196: 193 | B196: Papuásia-Nova Guiné | C196: 2.8856 | D196: 3.724868013e-07 | F196: 193 | G196: Brunei Darussalam | H196: 0 | I196: 0 | K196: 193 | L196: Bonaire, Santo Eustáquio e Saba | M196: 6.6316 | N196: 3.496837626e-07 | O196: 6.6316
A197: 194 | B197: Anguila | C197: 2.7816 | D197: 3.590619928e-07 | F197: 194 | G197: Butão | H197: 0 | I197: 0 | K197: 194 | L197: Guam | M197: 6.3336 | N197: 3.339702453e-07 | O197: 6.3336
A198: 195 | B198: Domínica | C198: 1.4248 | D198: 1.839198761e-07 | F198: 195 | G198: Centro-Africana, República | H198: 0 | I198: 0 | K198: 195 | L198: São Vicente e Granadinas | M198: 4.3272 | N198: 2.281729262e-07 | O198: 4.2984
A199: 196 | B199: São Cristovão e Nevis | C199: 0.7494 | D199: 9.673607183e-08 | F199: 196 | G199: Ceuta | H199: 0 | I199: 0 | K199: 196 | L199: Sudão do Sul | M199: 3.771 | N199: 1.988445426e-07 | O199: 3.771
A200: 197 | B200: Granada | C200: 0.6942 | D200: 8.961059656e-08 | F200: 197 | G200: Ceuta e Melilha | H200: 0 | I200: 0 | K200: 197 | L200: Marianas do Norte, Ilhas | M200: 2.9244 | N200: 1.542033891e-07 | O200: 2.9244
... 58 more rows

Sheet 2A
A1: Parceiros comerciais de Portugal - União Europeia vs. Países Terceiros (média 2019-2023 em milhões de euros) produtos agrícolas e agroalimentares, do mar e da floresta
A2: Exportações | F2: Importações | K2: Trocas comerciais (total e saldo)
A3: P | B3: Grupo de Países | C3: média quinquénio | D3: % do Total | F3: P | G3: Grupo de Países | H3: média quinquénio | I3: % do Total | K3: P | L3: Grupo de Países | M3: média quinquénio | N3: % do Total | O3: Saldo (exp-imp)
A4: 1 | B4: União Europeia | C4: 9407.139979 | D4: 0.6779438817 | F4: 1 | G4: União Europeia | H4: 12705.30685 | I4: 0.7854366173 | K4: 1 | L4: União Europeia | M4: 22112.44683 | N4: 0.7358038778 | O4: -3298.166875
A5: 2 | B5: Países Terceiros | C5: 4469.1217 | D5: 0.3220759678 | F5: 2 | G5: Países Terceiros | H5: 3470.800262 | I5: 0.2145633827 | K5: 2 | L5: Países Terceiros | M5: 7939.921962 | N5: 0.2642052873 | O5: 998.3214384
B6: Outros | C6: -0.2754318 | D6: -1.984952962e-05 | G6: Outros | H6: 0 | I6: 0 | L6: Outros | M6: -0.2754318 | N6: -9.165145225e-06 | O6: -0.2754318
B7: Total | C7: 13875.98625 | D7: 1 | G7: Total | H7: 16176.10712 | I7: 1 | L7: Total | M7: 30052.09336 | N7: 1 | O7: -2300.120868
F27: valores em milhões de euros
A28: Nota: Outros = Países não determinados, abastecimentos de bordo, etc.
A29: Fonte: GPP a partir de dados INE/Comércio Internacional (2022 provisórios) | M29: 2024-03-04

Sheet 3
A1: Principais produtos agrícolas e agroalimentares, do mar e da floresta transacionados entre Portugal e Bélgica em 2019-2023 (NC a 2 e 4 dígitos) em milhões de euros
AC4: P | AE4: Cód.NC | AF4: Descritivo | AG4: Média export quinquénio | AH4: % do total | AI4: % acumulada | AN4: P | AO4: NC | AP4: Exportações | AQ4: 2019 | AR4: 2020 | AS4: 2021 | AT4: 2022 | AU4: 2023 | AV4: média quinquénio
AC5: 1 | AD5: º | AE5: 22 | AF5: Bebidas, líquidos alcoólicos e vinagres | AG5: 56.6192102 | AH5: 0.2224029079 | AN5: 1º | AO5: 22 | AP5: Bebidas, líquidos alcoólicos e vinagres | AQ5: 52.358262 | AR5: 53.021638 | AS5: 57.711948 | AT5: 62.332108 | AU5: 57.672095 | AV5: 56.6192102
AC6: 2 | AD6: º | AE6: 07 | AF6: Produtos hortícolas | AG6: 44.5204842 | AH6: 0.1748785459 | AN6: 2º | AO6: 07 | AP6: Produtos hortícolas | AQ6: 44.835709 | AR6: 42.754079 | AS6: 37.853371 | AT6: 47.137256 | AU6: 50.022006 | AV6: 44.5204842
AC7: 3 | AD7: º | AE7: 48 | AF7: Papel e cartão | AG7: 33.9354544 | AH7: 0.1333000533 | AI7: 0.5305815071 | AN7: 3º | AO7: 48 | AP7: Papel e cartão | AQ7: 30.274989 | AR7: 26.266604 | AS7: 28.683107 | AT7: 46.097563 | AU7: 38.355009 | AV7: 33.9354544
AC8: 4 | AD8: º | AE8: 20 | AF8: Preparações de produtos vegetais | AG8: 22.9381516 | AH8: 0.09010213318 | AO8: - | AP8: Outros | AQ8: 102.11041 | AR8: 98.30204 | AS8: 110.670757 | AT8: 133.924085 | AU8: 152.514219 | AV8: 119.5043022
AC9: 5 | AD9: º | AE9: 44 | AF9: Madeira e suas obras | AG9: 21.532034 | AH9: 0.08457883743 | AP9: Total | AQ9: 229.57937 | AR9: 220.344361 | AS9: 234.919183 | AT9: 289.491012 | AU9: 298.563329 | AV9: 254.579451
AC10: 6 | AD10: º | AE10: 08 | AF10: Frutas | AG10: 12.4243736 | AH10: 0.04880352107
AC11: 7 | AD11: º | AE11: 45 | AF11: Cortiça e suas obras | AG11: 11.0991138 | AH11: 0.04359783854
AC12: 8 | AD12: º | AE12: 19a | AF12: Preparações à base de cereais (exc. NC 19022010) (a) | AG12: 7.3186594 | AH12: 0.0287480367
AC13: 9 | AD13: º | AE13: 04 | AF13: Leite e laticínios; ovos; mel, etc. | AG13: 6.7925756 | AH13: 0.02668155491
AC14: 10 | AD14: º | AE14: 16p | AF14: Preparações e conservas de peixes ou crustáceos (NC 1604-05) (p) | AG14: 6.6848678 | AH14: 0.02625847363 | AI14: 0.8793519026
AE15: - | AF15: Outros | AG15: 30.7145264 | AH15: 0.1206480974
AE16: Total | AG16: 254.579451 | AH16: 1
AC38: P | AE38: Cód.NC | AF38: Descritivo | AG38: Média import quinquénio | AH38: % do total | AI38: % acumulada | AN38: P | AO38: NC | AP38: Importações | AQ38: 2019 | AR38: 2020 | AS38: 2021 | AT38: 2022 | AU38: 2023 | AV38: média quinquénio
AC39: 1 | AD39: º | AE39: 20 | AF39: Preparações de produtos vegetais | AG39: 40.2799062 | AH39: 0.129145156 | AN39: 1º | AO39: 20 | AP39: Preparações de produtos vegetais | AQ39: 37.490672 | AR39: 29.009635 | AS39: 32.572755 | AT39: 43.883548 | AU39: 58.442921 | AV39: 40.2799062
AC40: 2 | AD40: º | AE40: 04 | AF40: Leite e laticínios; ovos; mel, etc. | AG40: 29.8569554 | AH40: 0.09572716338 | AN40: 2º | AO40: 04 | AP40: Leite e laticínios; ovos; mel, etc. | AQ40: 24.912039 | AR40: 22.922181 | AS40: 30.270173 | AT40: 36.553572 | AU40: 34.626812 | AV40: 29.8569554
AC41: 3 | AD41: º | AE41: 15 | AF41: Gorduras e óleos animais ou vegetais | AG41: 25.6707262 | AH41: 0.08230530434 | AI41: 0.3071776237 | AN41: 3º | AO41: 15 | AP41: Gorduras e óleos animais ou vegetais | AQ41: 7.931739 | AR41: 3.278269 | AS41: 32.418865 | AT41: 50.575937 | AU41: 34.148821 | AV41: 25.6707262
AC42: 4 | AD42: º | AE42: 19a | AF42: Preparações à base de cereais (exc. NC 19022010) (a) | AG42: 22.571322 | AH42: 0.07236801609 | AO42: - | AP42: Outros | AQ42: 208.181553 | AR42: 162.813707 | AS42: 208.779036 | AT42: 248.345053 | AU42: 252.324595 | AV42: 216.0887888
AC43: 5 | AD43: º | AE43: 02 | AF43: Carnes e miudezas | AG43: 20.5935816 | AH43: 0.06602699853 | AP43: Total | AQ43: 278.516003 | AR43: 218.023792 | AS43: 304.040829 | AT43: 379.35811 | AU43: 379.543149 | AV43: 311.8963766
AC44: 6 | AD44: º | AE44: 18 | AF44: Cacau e suas preparações | AG44: 18.2043734 | AH44: 0.05836673577
AC45: 7 | AD45: º | AE45: 21 | AF45: Preparações alimentícias diversas | AG45: 18.099941 | AH45: 0.05803190533
AC46: 8 | AD46: º | AE46: 08 | AF46: Frutas | AG46: 16.6438072 | AH46: 0.05336325924
AC47: 9 | AD47: º | AE47: 07 | AF47: Produtos hortícolas | AG47: 15.2605546 | AH47: 0.04892828434
AC48: 10 | AD48: º | AE48: 24 | AF48: Tabaco | AG48: 15.2114792 | AH48: 0.04877093914 | AI48: 0.7130337621
AE49: - | AF49: Outros | AG49: 89.5037298 | AH49: 0.2869662379
AE50: Total | AG50: 311.8963766 | AH50: 1
AC62: DESAGREGAÇÃO A 4 DÍGITOS | AN62: DESAGREGAÇÃO A 4 DÍGITOS
AC64: P | AE64: Cód.NC | AF64: Descritivo | AG64: Média export quinquénio | AH64: % do total | AI64: % acumulada | AN64: P | AO64: NC | AP64: Exportações | AQ64: 2019 | AR64: 2020 | AS64: 2021 | AT64: 2022 | AU64: 2023 | AV64: média quinquénio
AC65: 1 | AD65: º | AE65: 2204 | AF65: Vinhos de uvas frescas | AG65: 46.2563254 | AH65: 0.1816970114 | AN65: 1º | AO65: 2204 | AP65: Vinhos de uvas frescas | AQ65: 46.141172 | AR65: 46.845667 | AS65: 48.355213 | AT65: 49.147355 | AU65: 40.79222 | AV65: 46.2563254
AC66: 2 | AD66: º | AE66: 0710 | AF66: Produtos hortícolas congelados | AG66: 38.7631016 | AH66: 0.1522632775 | AN66: 2º | AO66: 0710 | AP66: Produtos hortícolas congelados | AQ66: 38.949651 | AR66: 37.870952 | AS66: 32.505447 | AT66: 41.960498 | AU66: 42.52896 | AV66: 38.7631016
AC67: 3 | AD67: º | AE67: 4802 | AF67: Papel e cartão p/ escrita, etc. | AG67: 25.0963264 | AH67: 0.09857954482 | AI67: 0.4325398337 | AN67: 3º | AO67: 4802 | AP67: Papel e cartão p/ escrita, etc. | AQ67: 23.509445 | AR67: 17.960777 | AS67: 20.030148 | AT67: 36.103373 | AU67: 27.877889 | AV67: 25.0963264
AC68: 4 | AD68: º | AE68: 2002 | AF68: Tomates preparados | AG68: 10.917325 | AH68: 0.04288376362 | AN68: - | AO68: - | AP68: Outros | AQ68: 120.979102 | AR68: 117.666965 | AS68: 134.028375 | AT68: 162.279786 | AU68: 187.36426 | AV68: 144.4636976
AC69: 5 | AD69: º | AE69: 0810 | AF69: Outras frutas frescas | AG69: 10.0869146 | AH69: 0.0396218727 | AP69: Total | AQ69: 229.57937 | AR69: 220.344361 | AS69: 234.919183 | AT69: 289.491012 | AU69: 298.563329 | AV69: 254.579451
AC70: 6 | AD70: º | AE70: 2004 | AF70: Produtos hortícolas preparados, congelados | AG70: 9.1271016 | AH70: 0.03585168231
AC71: 7 | AD71: º | AE71: 2202 | AF71: Águas com açúcar ou outros produtos; outras bebidas | AG71: 8.6735898 | AH71: 0.03407026673
AC72: 8 | AD72: º | AE72: 4504 | AF72: Cortiça aglomerada e suas obras | AG72: 7.8819392 | AH72: 0.03096062612
AC73: 9 | AD73: º | AE73: 4408 | AF73: Folhas para folheados ou contraplacados, etc. | AG73: 7.0907864 | AH73: 0.02785294089
AC74: 10 | AD74: º | AE74: 1604 | AF74: Preparações e conservas de peixes, etc. | AG74: 6.5044478 | AH74: 0.02554977542 | AI74: 0.6693307615
AE75: - | AF75: Outros | AG75: 84.1815932 | AH75: 0.3306692385
AE76: Total | AG76: 254.579451 | AH76: 1
AC89: DESAGREGAÇÃO A 4 DÍGITOS | AN89: DESAGREGAÇÃO A 4 DÍGITOS
G91: média 2019-2023 em milhões de euros | I91: Cód. NC | J91: Descritivo | K91: Export | L91: Import | M91: Saldo | AC91: P | AE91: Cód.NC | AF91: Descritivo | AG91: Média import quinquénio | AH91: % do total | AI91: % acumulada | AN91: P | AO91: NC | AP91: Importações | AQ91: 2019 | AR91: 2020 | AS91: 2021 | AT91: 2022 | AU91: 2023 | AV91: média quinquénio
I92: 2204 | J92: Vinhos de uvas frescas | K92: 46.2563254 | L92: 0.4590582 | M92: 45.7972672 | AC92: 1 | AD92: º | AE92: 2004 | AF92: Produtos hortícolas preparados, congelados | AG92: 31.1807176 | AH92: 0.09997140057 | AN92: 1º | AO92: 2004 | AP92: Produtos hortícolas preparados, congelados | AQ92: 29.18827 | AR92: 22.323663 | AS92: 24.270308 | AT92: 33.898582 | AU92: 46.222765 | AV92: 31.1807176
I93: 0710 | J93: Produtos hortícolas congelados | K93: 38.7631016 | L93: 9.2717422 | M93: 29.4913594 | AC93: 2 | AD93: º | AE93: 1806 | AF93: Chocolate e outras preparações com cacau | AG93: 18.0578052 | AH93: 0.05789680982 | AN93: 2º | AO93: 1806 | AP93: Chocolate e outras preparações com cacau | AQ93: 17.851416 | AR93: 14.11896 | AS93: 17.894642 | AT93: 21.418542 | AU93: 19.005466 | AV93: 18.0578052
I94: 4802 | J94: Papel e cartão p/ escrita, etc. | K94: 25.0963264 | L94: 1.7694738 | M94: 23.3268526 | AC94: 3 | AD94: º | AE94: 0406 | AF94: Queijos e requeijão | AG94: 16.875943 | AH94: 0.05410753143 | AI94: 0.2119757418 | AN94: 3º | AO94: 0406 | AP94: Queijos e requeijão | AQ94: 12.482309 | AR94: 10.134254 | AS94: 14.989004 | AT94: 23.823985 | AU94: 22.950163 | AV94: 16.875943
I95: 2002 | J95: Tomates preparados | K95: 10.917325 | L95: 0.0286028 | M95: 10.8887222 | AC95: 4 | AD95: º | AE95: 0201 | AF95: Carnes de bovino, frescas ou refrigeradas | AG95: 15.068892 | AH95: 0.04831377704 | AN95: - | AO95: - | AP95: Outros | AQ95: 218.994008 | AR95: 171.446915 | AS95: 246.886875 | AT95: 300.217001 | AU95: 291.364755 | AV95: 245.7819108
I96: 4504 | J96: Cortiça aglomerada e suas obras | K96: 7.8819392 | L96: 0.001719 | M96: 7.8802202 | AC96: 5 | AD96: º | AE96: 2309 | AF96: Preparações p/ alimentação animal | AG96: 14.5202386 | AH96: 0.04655468832 | AP96: Total | AQ96: 278.516003 | AR96: 218.023792 | AS96: 304.040829 | AT96: 379.35811 | AU96: 379.543149 | AV96: 311.8963766
I97: 4408 | J97: Folhas para folheados ou contraplacados, etc. | K97: 7.0907864 | L97: 0.237633 | M97: 6.8531534 | AC97: 6 | AD97: º | AE97: 1905 | AF97: Produtos de padaria, pastelaria, etc. | AG97: 13.6719044 | AH97: 0.04383476509
I98: 2202 | J98: Águas com açúcar ou outros produtos; outras bebidas | K98: 8.6735898 | L98: 2.3832218 | M98: 6.290368 | AC98: 7 | AD98: º | AE98: 2106 | AF98: Outras preparações alimentícias | AG98: 12.1899138 | AH98: 0.0390832171
I99: 4401 | J99: Lenha, resíduos de madeira, etc. | K99: 6.3385168 | L99: 0.1132786 | M99: 6.2252382 | AC99: 8 | AD99: º | AE99: 1518 | AF99: Gorduras e óleos, animais ou vegetais, processados de outras formas | AG99: 12.039063 | AH99: 0.03859956031
I100: 1604 | J100: Preparações e conservas de peixes, etc. | K100: 6.5044478 | L100: 1.5706948 | M100: 4.933753 | AC100: 9 | AD100: º | AE100: 0810 | AF100: Outras frutas frescas | AG100: 11.2777442 | AH100: 0.03615862526
I101: 4418 | J101: Obras de marcenaria ou carpintaria | K101: 3.9350076 | L101: 0.6474728 | M101: 3.2875348 | AC101: 10 | AD101: º | AE101: 0405 | AF101: Manteiga | AG101: 9.4742168 | AH101: 0.03037616821 | AI101: 0.4948965431
I102: - | J102: Outros | K102: 71.575465 | L102: 144.9855142 | M102: -73.4100492 | AE102: - | AF102: Outros | AG102: 157.539938 | AH102: 0.5051034569
I103: 2402 | J103: Charutos, cigarrilhas e cigarros | K103: 0.0001892 | L103: 7.349271 | M103: -7.3490818 | AE103: Total | AG103: 311.8963766 | AH103: 1
I104: 1905 | J104: Produtos de padaria, pastelaria, etc. | K104: 5.8377594 | L104: 13.6719044 | M104: -7.834145
I105: 0405 | J105: Manteiga | K105: 1.4748956 | L105: 9.4742168 | M105: -7.9993212
I106: 2106 | J106: Outras preparações alimentícias | K106: 0.4651106 | L106: 12.1899138 | M106: -11.7248032
I107: 1518 | J107: Gorduras e óleos, animais ou vegetais, processados de outras formas | K107: 0.2126046 | L107: 12.039063 | M107: -11.8264584
I108: 0201 | J108: Carnes de bovino, frescas ou refrigeradas | K108: 1.640478 | L108: 15.068892 | M108: -13.428414
I109: 2309 | J109: Preparações p/ alimentação animal | K109: 0.7423072 | L109: 14.5202386 | M109: -13.7779314
I110: 0406 | J110: Queijos e requeijão | K110: 1.549816 | L110: 16.875943 | M110: -15.326127
I111: 1806 | J111: Chocolate e outras preparações com cacau | K111: 0.4963578 | L111: 18.0578052 | M111: -17.5614474
I112: 2004 | J112: Produtos hortícolas preparados, congelados | K112: 9.1271016 | L112: 31.1807176 | M112: -22.053616
I113: Total | K113: 254.579451 | L113: 311.8963766 | M113: -57.3169256
A116: Fonte: GPP a partir de dados INE/Comércio Internacional (2022 definitivos) | Y116: 2024-05-10T15:05:53.600

Sheet 3A
A1: Principais produtos agrícolas e agroalimentares transacionados entre Portugal e Bélgica em 2019-2023 (NC a 2 e 4 dígitos) em milhões de euros
AC4: P | AE4: Cód.NC | AF4: Descritivo | AG4: Média export quinquénio | AH4: % do total | AI4: % acumulada | AN4: P | AO4: NC | AP4: Exportações | AQ4: 2019 | AR4: 2020 | AS4: 2021 | AT4: 2022 | AU4: 2023 | AV4: média quinquénio
AC5: 1 | AD5: º | AE5: 22 | AF5: Bebidas, líquidos alcoólicos e vinagres | AG5: 56.6192102 | AH5: 0.3246549042 | AN5: 1º | AO5: 22 | AP5: Bebidas, líquidos alcoólicos e vinagres | AQ5: 52.358262 | AR5: 53.021638 | AS5: 57.711948 | AT5: 62.332108 | AU5: 57.672095 | AV5: 56.6192102
AC6: 2 | AD6: º | AE6: 07 | AF6: Produtos hortícolas | AG6: 44.5204842 | AH6: 0.2552807339 | AN6: 2º | AO6: 07 | AP6: Produtos hortícolas | AQ6: 44.835709 | AR6: 42.754079 | AS6: 37.853371 | AT6: 47.137256 | AU6: 50.022006 | AV6: 44.5204842
AC7: 3 | AD7: º | AE7: 20 | AF7: Preparações de produtos vegetais | AG7: 22.9381516 | AH7: 0.1315275042 | AI7: 0.7114631423 | AN7: 3º | AO7: 20 | AP7: Preparações de produtos vegetais | AQ7: 20.140453 | AR7: 18.376846 | AS7: 21.140834 | AT7: 25.336682 | AU7: 29.695943 | AV7: 22.9381516
AC8: 4 | AD8: º | AE8: 08 | AF8: Frutas | AG8: 12.4243736 | AH8: 0.07124143566 | AO8: - | AP8: Outros | AQ8: 47.116809 | AR8: 42.726244 | AS8: 46.831421 | AT8: 53.284089 | AU8: 61.642888 | AV8: 50.3202902
AC9: 5 | AD9: º | AE9: 19a | AF9: Preparações à base de cereais (exc. NC 19022010) (a) | AG9: 7.3186594 | AH9: 0.04196523862 | AP9: Total | AQ9: 164.451233 | AR9: 156.878807 | AS9: 163.537574 | AT9: 188.090135 | AU9: 199.032932 | AV9: 174.3981362
AC10: 6 | AD10: º | AE10: 04 | AF10: Leite e laticínios; ovos; mel, etc. | AG10: 6.7925756 | AH10: 0.03894867083
AC11: 7 | AD11: º | AE11: 15 | AF11: Gorduras e óleos animais ou vegetais | AG11: 4.0287816 | AH11: 0.02310105881
AC12: 8 | AD12: º | AE12: 21 | AF12: Preparações alimentícias diversas | AG12: 3.9930832 | AH12: 0.02289636396
AC13: 9 | AD13: º | AE13: 02 | AF13: Carnes e miudezas | AG13: 3.2813294 | AH13: 0.01881516323
AC14: 10 | AD14: º | AE14: 14 | AF14: Matérias para entrançar e outros | AG14: 2.4452022 | AH14: 0.01402080466 | AI14: 0.9424518781
AE15: - | AF15: Outros | AG15: 10.0362852 | AH15: 0.05754812189
AE16: Total | AG16: 174.3981362 | AH16: 1
AC38: P | AE38: Cód.NC | AF38: Descritivo | AG38: Média import quinquénio | AH38: % do total | AI38: % acumulada | AN38: P | AO38: NC | AP38: Importações | AQ38: 2019 | AR38: 2020 | AS38: 2021 | AT38: 2022 | AU38: 2023 | AV38: média quinquénio
AC39: 1 | AD39: º | AE39: 20 | AF39: Preparações de produtos vegetais | AG39: 40.2799062 | AH39: 0.1430496488 | AN39: 1º | AO39: 20 | AP39: Preparações de produtos vegetais | AQ39: 37.490672 | AR39: 29.009635 | AS39: 32.572755 | AT39: 43.883548 | AU39: 58.442921 | AV39: 40.2799062
AC40: 2 | AD40: º | AE40: 04 | AF40: Leite e laticínios; ovos; mel, etc. | AG40: 29.8569554 | AH40: 0.1060336874 | AN40: 2º | AO40: 04 | AP40: Leite e laticínios; ovos; mel, etc. | AQ40: 24.912039 | AR40: 22.922181 | AS40: 30.270173 | AT40: 36.553572 | AU40: 34.626812 | AV40: 29.8569554
AC41: 3 | AD41: º | AE41: 15 | AF41: Gorduras e óleos animais ou vegetais | AG41: 25.6707262 | AH41: 0.09116675567 | AI41: 0.3402500919 | AN41: 3º | AO41: 15 | AP41: Gorduras e óleos animais ou vegetais | AQ41: 7.931739 | AR41: 3.278269 | AS41: 32.418865 | AT41: 50.575937 | AU41: 34.148821 | AV41: 25.6707262
AC42: 4 | AD42: º | AE42: 19a | AF42: Preparações à base de cereais (exc. NC 19022010) (a) | AG42: 22.571322 | AH42: 0.08015956315 | AO42: - | AP42: Outros | AQ42: 178.619139 | AR42: 138.863342 | AS42: 179.067929 | AT42: 212.391381 | AU42: 219.919784 | AV42: 185.772315
AC43: 5 | AD43: º | AE43: 02 | AF43: Carnes e miudezas | AG43: 20.5935816 | AH43: 0.07313583603 | AP43: Total | AQ43: 248.953589 | AR43: 194.073427 | AS43: 274.329722 | AT43: 343.404438 | AU43: 347.138338 | AV43: 281.5799028
AC44: 6 | AD44: º | AE44: 18 | AF44: Cacau e suas preparações | AG44: 18.2043734 | AH44: 0.06465082635
AC45: 7 | AD45: º | AE45: 21 | AF45: Preparações alimentícias diversas | AG45: 18.099941 | AH45: 0.06427994619
AC46: 8 | AD46: º | AE46: 08 | AF46: Frutas | AG46: 16.6438072 | AH46: 0.05910864744
AC47: 9 | AD47: º | AE47: 07 | AF47: Produtos hortícolas | AG47: 15.2605546 | AH47: 0.05419617824
AC48: 10 | AD48: º | AE48: 24 | AF48: Tabaco | AG48: 15.2114792 | AH48: 0.05402189236 | AI48: 0.7898029816
AE49: - | AF49: Outros | AG49: 59.187256 | AH49: 0.2101970184
AE50: Total | AG50: 281.5799028 | AH50: 1
AC62: DESAGREGAÇÃO A 4 DÍGITOS | AN62: DESAGREGAÇÃO A 4 DÍGITOS
AC64: P | AE64: Cód.NC | AF64: Descritivo | AG64: Média export quinquénio | AH64: % do total | AI64: % acumulada | AN64: P | AO64: NC | AP64: Exportações | AQ64: 2019 | AR64: 2020 | AS64: 2021 | AT64: 2022 | AU64: 2023 | AV64: média quinquénio
AC65: 1 | AD65: º | AE65: 2204 | AF65: Vinhos de uvas frescas | AG65: 46.2563254 | AH65: 0.2652340582 | AN65: 1º | AO65: 2204 | AP65: Vinhos de uvas frescas | AQ65: 46.141172 | AR65: 46.845667 | AS65: 48.355213 | AT65: 49.147355 | AU65: 40.79222 | AV65: 46.2563254
AC66: 2 | AD66: º | AE66: 0710 | AF66: Produtos hortícolas congelados | AG66: 38.7631016 | AH66: 0.2222678662 | AN66: 2º | AO66: 0710 | AP66: Produtos hortícolas congelados | AQ66: 38.949651 | AR66: 37.870952 | AS66: 32.505447 | AT66: 41.960498 | AU66: 42.52896 | AV66: 38.7631016
AC67: 3 | AD67: º | AE67: 2002 | AF67: Tomates preparados | AG67: 10.917325 | AH67: 0.0626000096 | AI67: 0.5501019339 | AN67: 3º | AO67: 2002 | AP67: Tomates preparados | AQ67: 6.701206 | AR67: 8.019024 | AS67: 9.243879 | AT67: 12.660749 | AU67: 17.961767 | AV67: 10.917325
AC68: 4 | AD68: º | AE68: 0810 | AF68: Outras frutas frescas | AG68: 10.0869146 | AH68: 0.05783843119 | AN68: - | AO68: - | AP68: Outros | AQ68: 72.659204 | AR68: 64.143164 | AS68: 73.433035 | AT68: 84.321533 | AU68: 97.749985 | AV68: 78.4613842
AC69: 5 | AD69: º | AE69: 2004 | AF69: Produtos hortícolas preparados, congelados | AG69: 9.1271016 | AH69: 0.05233485746 | AP69: Total | AQ69: 164.451233 | AR69: 156.878807 | AS69: 163.537574 | AT69: 188.090135 | AU69: 199.032932 | AV69: 174.3981362
AC70: 6 | AD70: º | AE70: 2202 | AF70: Águas com açúcar ou outros produtos; outras bebidas | AG70: 8.6735898 | AH70: 0.04973441798
AC71: 7 | AD71: º | AE71: 1905 | AF71: Produtos de padaria, pastelaria, etc. | AG71: 5.8377594 | AH71: 0.03347374879
AC72: 8 | AD72: º | AE72: 2104 | AF72: Preparações para caldos e sopas | AG72: 2.4608696 | AH72: 0.01411064163
AC73: 9 | AD73: º | AE73: 1404 | AF73: Outros produtos vegetais | AG73: 2.4452014 | AH73: 0.01402080007
AC74: 10 | AD74: º | AE74: 0709 | AF74: Outros produtos hortícolas, frescos ou refrigerados | AG74: 2.00743 | AH74: 0.01151061613 | AI74: 0.7831254472
AE75: - | AF75: Outros | AG75: 37.8225178 | AH75: 0.2168745528
AE76: Total | AG76: 174.3981362 | AH76: 1
AC89: DESAGREGAÇÃO A 4 DÍGITOS | AN89: DESAGREGAÇÃO A 4 DÍGITOS
G91: média 2019-2023 em milhões de euros | I91: Cód. NC | J91: Descritivo | K91: Export | L91: Import | M91: Saldo | AC91: P | AE91: Cód.NC | AF91: Descritivo | AG91: Média import quinquénio | AH91: % do total | AI91: % acumulada | AN91: P | AO91: NC | AP91: Importações | AQ91: 2019 | AR91: 2020 | AS91: 2021 | AT91: 2022 | AU91: 2023 | AV91: média quinquénio
I92: 2204 | J92: Vinhos de uvas frescas | K92: 46.2563254 | L92: 0.4590582 | M92: 45.7972672 | AC92: 1 | AD92: º | AE92: 2004 | AF92: Produtos hortícolas preparados, congelados | AG92: 31.1807176 | AH92: 0.110734883 | AN92: 1º | AO92: 2004 | AP92: Produtos hortícolas preparados, congelados | AQ92: 29.18827 | AR92: 22.323663 | AS92: 24.270308 | AT92: 33.898582 | AU92: 46.222765 | AV92: 31.1807176
I93: 0710 | J93: Produtos hortícolas congelados | K93: 38.7631016 | L93: 9.2717422 | M93: 29.4913594 | AC93: 2 | AD93: º | AE93: 1806 | AF93: Chocolate e outras preparações com cacau | AG93: 18.0578052 | AH93: 0.06413030554 | AN93: 2º | AO93: 1806 | AP93: Chocolate e outras preparações com cacau | AQ93: 17.851416 | AR93: 14.11896 | AS93: 17.894642 | AT93: 21.418542 | AU93: 19.005466 | AV93: 18.0578052
I94: 2002 | J94: Tomates preparados | K94: 10.917325 | L94: 0.0286028 | M94: 10.8887222 | AC94: 3 | AD94: º | AE94: 0406 | AF94: Queijos e requeijão | AG94: 16.875943 | AH94: 0.05993305215 | AI94: 0.2347982407 | AN94: 3º | AO94: 0406 | AP94: Queijos e requeijão | AQ94: 12.482309 | AR94: 10.134254 | AS94: 14.989004 | AT94: 23.823985 | AU94: 22.950163 | AV94: 16.875943
I95: 2202 | J95: Águas com açúcar ou outros produtos; outras bebidas | K95: 8.6735898 | L95: 2.3832218 | M95: 6.290368 | AC95: 4 | AD95: º | AE95: 0201 | AF95: Carnes de bovino, frescas ou refrigeradas | AG95: 15.068892 | AH95: 0.05351550963 | AN95: - | AO95: - | AP95: Outros | AQ95: 189.431594 | AR95: 147.49655 | AS95: 217.175768 | AT95: 264.263329 | AU95: 258.959944 | AV95: 215.465437
I96: 1404 | J96: Outros produtos vegetais | K96: 2.4452014 | L96: 0.0031154 | M96: 2.442086 | AC96: 5 | AD96: º | AE96: 2309 | AF96: Preparações p/ alimentação animal | AG96: 14.5202386 | AH96: 0.05156702753 | AP96: Total | AQ96: 248.953589 | AR96: 194.073427 | AS96: 274.329722 | AT96: 343.404438 | AU96: 347.138338 | AV96: 281.5799028
I97: 2104 | J97: Preparações para caldos e sopas | K97: 2.4608696 | L97: 0.084835 | M97: 2.3760346 | AC97: 6 | AD97: º | AE97: 1905 | AF97: Produtos de padaria, pastelaria, etc. | AG97: 13.6719044 | AH97: 0.04855426209
I98: 0402 | J98: Leite e nata, concentrados | K98: 1.9096204 | L98: 0.5627034 | M98: 1.346917 | AC98: 7 | AD98: º | AE98: 2106 | AF98: Outras preparações alimentícias | AG98: 12.1899138 | AH98: 0.04329113576
I99: 0714 | J99: Raízes de mandioca, de araruta, batata-doce, etc. | K99: 1.4359846 | L99: 0.111854 | M99: 1.3241306 | AC99: 8 | AD99: º | AE99: 1518 | AF99: Gorduras e óleos, animais ou vegetais, processados de outras formas | AG99: 12.039063 | AH99: 0.04275540577
I100: 1509 | J100: Azeite (processos mecânicos ou físicos) | K100: 1.3105406 | L100: 0.0041536 | M100: 1.306387 | AC100: 9 | AD100: º | AE100: 0810 | AF100: Outras frutas frescas | AG100: 11.2777442 | AH100: 0.04005166593
I101: 1006 | J101: Arroz | K101: 1.436339 | L101: 0.1563904 | M101: 1.2799486 | AC101: 10 | AD101: º | AE101: 0405 | AF101: Manteiga | AG101: 9.4742168 | AH101: 0.03364663709 | AI101: 0.5481798845
I102: - | J102: Outros | K102: 37.2426188 | L102: 118.0862606 | M102: -80.8436418 | AE102: - | AF102: Outros | AG102: 127.2234642 | AH102: 0.4518201155
I103: 2402 | J103: Charutos, cigarrilhas e cigarros | K103: 0.0001892 | L103: 7.349271 | M103: -7.3490818 | AE103: Total | AG103: 281.5799028 | AH103: 1
I104: 1905 | J104: Produtos de padaria, pastelaria, etc. | K104: 5.8377594 | L104: 13.6719044 | M104: -7.834145
I105: 0405 | J105: Manteiga | K105: 1.4748956 | L105: 9.4742168 | M105: -7.9993212
I106: 2106 | J106: Outras preparações alimentícias | K106: 0.4651106 | L106: 12.1899138 | M106: -11.7248032
I107: 1518 | J107: Gorduras e óleos, animais ou vegetais, processados de outras formas | K107: 0.2126046 | L107: 12.039063 | M107: -11.8264584
I108: 0201 | J108: Carnes de bovino, frescas ou refrigeradas | K108: 1.640478 | L108: 15.068892 | M108: -13.428414
I109: 2309 | J109: Preparações p/ alimentação animal | K109: 0.7423072 | L109: 14.5202386 | M109: -13.7779314
I110: 0406 | J110: Queijos e requeijão | K110: 1.549816 | L110: 16.875943 | M110: -15.326127
I111: 1806 | J111: Chocolate e outras preparações com cacau | K111: 0.4963578 | L111: 18.0578052 | M111: -17.5614474
I112: 2004 | J112: Produtos hortícolas preparados, congelados | K112: 9.1271016 | L112: 31.1807176 | M112: -22.053616
I113: Total | K113: 174.3981362 | L113: 281.5799028 | M113: -107.1817666
A116: Fonte: GPP a partir de dados INE/Comércio Internacional (2022 definitivos) | Y116: 2024-05-10T15:05:53.600

Sheet 4A
A1: Evolução da balança comercial Portugal-Bélgica 2019-2023 por produto em euros (NC 2 dígitos)
A3: =+aux!A31 -> Evolução da balança comercial Portugal-Bélgica para Bebidas, líquidos alcoólicos e vinagres
A5: Selecione o produto:
Q7: Para obter uma maior desagregação deste produto, clique no botão respetivo:
A20: =+aux!A43 -> Evolução da balança comercial Portugal-Bélgica para Preparações de produtos vegetais
A22: Selecione o produto:
A38: Fonte: GPP a partir de dados INE/Comércio Internacional (2022 definitivos) | N38: 2024-05-10T15:05:53.600

Sheet 5.2
A1: Trocas comerciais Portugal-Bélgica 2019-2023 em milhares de euros (NC 2 dígitos) | C1: Produtos agrícolas e agroalimentares, do mar e da floresta
A2: Cód. NC | B2: Descritivo | C2: Importações | K2: Exportações | S2: Saldo quinquénio (exp-imp) | T2: Evolução das importações | U2: =+"Variação das Importações " & INDEX(K3:N3,1,aux!AL1) & "-"& '5.2'!O3 &"" -> Variação das Importações 2019-2023 | Z2: Evolução das exportações | AA2: ="Variação das Exportações " & INDEX(K3:N3,1,aux!AL1) & "-"& '5.2'!O3 &"" -> Variação das Exportações 2019-2023
C3: 2019 | D3: 2020 | E3: 2021 | F3: 2022 | G3: 2023 | H3: média quinquénio | I3: % Subtot | J3: % Total | K3: 2019 | L3: 2020 | M3: 2021 | N3: 2022 | O3: 2023 | P3: média quinquénio | Q3: % Subtot | R3: % Total | U3: variação total em valor | V3: % no subtotal de variação | W3: % no total de variação | X3: taxa de variação média anual | Y3: taxa de variação total | AA3: variação total em valor | AB3: % no subtotal de variação | AC3: % no total de variação | AD3: taxa de variação média anual | AE3: taxa de variação total
A4: 01 | B4: Animais vivos | C4: 498.821 | D4: 847.068 | E4: 9626.655 | F4: 7308.13 | G4: 3907.481 | H4: 4437.631 | I4: 0.01575975755 | J4: 0.01422790174 | K4: 353.82 | L4: 84.575 | M4: 55.82 | N4: 174.273 | O4: 330.003 | P4: 199.6982 | Q4: 0.001145070724 | R4: 0.0007844238772 | S4: -4237.9328 | U4: =G4-INDEX($C4:$G4,1,aux!$AL$1) -> 3408.66 | V4: =IF($U$37<>0,U4/$U$37, "n.d.") -> 0.034716797 | W4: =IF($U$53<>0,U4/$U$53, "n.d.") -> 0.03374004052 | X4: =+IF(INDEX($C4:$G4,1,aux!$AL$1)>0,(G4/INDEX($C4:$G4,1,aux!$AL$1))^(1/($G$3-INDEX($C$3:$G$3,1,aux!$AL$1)))-1,"n.d.") -> 0.6729695508 | Y4: =IF(INDEX($C4:$G4,1,aux!$AL$1)>0,(G4-INDEX($C4:$G4,1,aux!$AL$1))/INDEX($C4:$G4,1,aux!$AL$1),"n.d.") -> 6.833433236 | AA4: =O4-INDEX($K4:$O4,1,aux!$AL$1) -> -23.817 | AB4: =IF($AA$37<>0,AA4/$AA$37, "n.d.") -> -0.0006887168846 | AC4: =IF($AA$53<>0,AA4/$AA$53, "n.d.") -> -0.0003452541771 | AD4: =+IF(INDEX($K4:$O4,1,aux!$AL$1)>0,(O4/INDEX($K4:$O4,1,aux!$AL$1))^(1/($O$3-INDEX($K$3:$O$3,1,aux!$AL$1)))-1,"n.d.") -> -0.01727076165 | AE4: =IF(INDEX($K4:$O4,1,aux!$AL$1)>0,(O4-INDEX($K4:$O4,1,aux!$AL$1))/INDEX($K4:$O4,1,aux!$AL$1),"n.d.") -> -0.06731388842
A5: 02 | B5: Carnes e miudezas | C5: 15219.094 | D5: 13581.209 | E5: 17891.639 | F5: 24437.08 | G5: 31838.886 | H5: 20593.5816 | I5: 0.07313583603 | J5: 0.06602699853 | K5: 4768.703 | L5: 2504.799 | M5: 2383.076 | N5: 2713.582 | O5: 4036.487 | P5: 3281.3294 | Q5: 0.01881516323 | R5: 0.01288921548 | S5: -17312.2522 | U5: =G5-INDEX($C5:$G5,1,aux!$AL$1) -> 16619.792 | V5: 0.1692706064 | W5: 0.1645081808 | X5: =+IF(INDEX($C5:$G5,1,aux!$AL$1)>0,(G5/INDEX($C5:$G5,1,aux!$AL$1))^(1/($G$3-INDEX($C$3:$G$3,1,aux!$AL$1)))-1,"n.d.") -> 0.2026583367 | Y5: =IF(INDEX($C5:$G5,1,aux!$AL$1)>0,(G5-INDEX($C5:$G5,1,aux!$AL$1))/INDEX($C5:$G5,1,aux!$AL$1),"n.d.") -> 1.092035571 | AA5: =O5-INDEX($K5:$O5,1,aux!$AL$1) -> -732.216 | AB5: -0.02117351146 | AC5: -0.01061429368 | AD5: =+IF(INDEX($K5:$O5,1,aux!$AL$1)>0,(O5/INDEX($K5:$O5,1,aux!$AL$1))^(1/($O$3-INDEX($K$3:$O$3,1,aux!$AL$1)))-1,"n.d.") -> -0.04081844041 | AE5: =IF(INDEX($K5:$O5,1,aux!$AL$1)>0,(O5-INDEX($K5:$O5,1,aux!$AL$1))/INDEX($K5:$O5,1,aux!$AL$1),"n.d.") -> -0.1535461529
A6: 04 | B6: Leite e laticínios; ovos; mel, etc. | C6: 24912.039 | D6: 22922.181 | E6: 30270.173 | F6: 36553.572 | G6: 34626.812 | H6: 29856.9554 | I6: 0.1060336874 | J6: 0.09572716338 | K6: 7666.677 | L6: 7292.482 | M6: 7062.291 | N6: 5435.847 | O6: 6505.581 | P6: 6792.5756 | Q6: 0.03894867083 | R6: 0.02668155491 | S6: -23064.3798 | U6: =G6-INDEX($C6:$G6,1,aux!$AL$1) -> 9714.773 | V6: 0.09894380847 | W6: 0.09616002614 | X6: =+IF(INDEX($C6:$G6,1,aux!$AL$1)>0,(G6/INDEX($C6:$G6,1,aux!$AL$1))^(1/($G$3-INDEX($C$3:$G$3,1,aux!$AL$1)))-1,"n.d.") -> 0.08580242804 | Y6: =IF(INDEX($C6:$G6,1,aux!$AL$1)>0,(G6-INDEX($C6:$G6,1,aux!$AL$1))/INDEX($C6:$G6,1,aux!$AL$1),"n.d.") -> 0.3899629814 | AA6: =O6-INDEX($K6:$O6,1,aux!$AL$1) -> -1161.096 | AB6: -0.03357544694 | AC6: -0.01683139119 | AD6: =+IF(INDEX($K6:$O6,1,aux!$AL$1)>0,(O6/INDEX($K6:$O6,1,aux!$AL$1))^(1/($O$3-INDEX($K$3:$O$3,1,aux!$AL$1)))-1,"n.d.") -> -0.04022434333 | AE6: =IF(INDEX($K6:$O6,1,aux!$AL$1)>0,(O6-INDEX($K6:$O6,1,aux!$AL$1))/INDEX($K6:$O6,1,aux!$AL$1),"n.d.") -> -0.1514471002
A7: 05a | B7: Outros produtos de origem animal (exc. NC 0508, 051191) (a) | C7: 92.712 | D7: 0.466 | E7: 34.048 | F7: 17.106 | G7: 2.327 | H7: 29.3318 | I7: 0.0001041686559 | J7: 9.404341378e-05 | K7: 120.312 | L7: 64.459 | M7: 56.647 | N7: 7.343 | O7: 2.458 | P7: 50.2438 | Q7: 0.0002880982624 | R7: 0.0001973599982 | S7: 20.912 | U7: =G7-INDEX($C7:$G7,1,aux!$AL$1) -> -90.385 | V7: -0.0009205604834 | W7: -0.0008946605302 | X7: =+IF(INDEX($C7:$G7,1,aux!$AL$1)>0,(G7/INDEX($C7:$G7,1,aux!$AL$1))^(1/($G$3-INDEX($C$3:$G$3,1,aux!$AL$1)))-1,"n.d.") -> -0.6019706399 | Y7: =IF(INDEX($C7:$G7,1,aux!$AL$1)>0,(G7-INDEX($C7:$G7,1,aux!$AL$1))/INDEX($C7:$G7,1,aux!$AL$1),"n.d.") -> -0.974900768 | AA7: =O7-INDEX($K7:$O7,1,aux!$AL$1) -> -117.854 | AB7: -0.00340798756 | AC7: -0.001708426157 | AD7: =+IF(INDEX($K7:$O7,1,aux!$AL$1)>0,(O7/INDEX($K7:$O7,1,aux!$AL$1))^(1/($O$3-INDEX($K$3:$O$3,1,aux!$AL$1)))-1,"n.d.") -> -0.6219334684 | AE7: =IF(INDEX($K7:$O7,1,aux!$AL$1)>0,(O7-INDEX($K7:$O7,1,aux!$AL$1))/INDEX($K7:$O7,1,aux!$AL$1),"n.d.") -> -0.9795697852
A8: 06 | B8: Plantas vivas e produtos de floricultura | C8: 605.614 | D8: 474.011 | E8: 743.197 | F8: 732.197 | G8: 924.406 | H8: 695.885 | I8: 0.002471358904 | J8: 0.002231141662 | K8: 830.494 | L8: 476.443 | M8: 795.514 | N8: 1028.533 | O8: 940.659 | P8: 814.3286 | Q8: 0.004669365268 | R8: 0.003198720858 | S8: 118.4436 | U8: =G8-INDEX($C8:$G8,1,aux!$AL$1) -> 318.792 | V8: 0.003246858634 | W8: 0.003155508322 | X8: =+IF(INDEX($C8:$G8,1,aux!$AL$1)>0,(G8/INDEX($C8:$G8,1,aux!$AL$1))^(1/($G$3-INDEX($C$3:$G$3,1,aux!$AL$1)))-1,"n.d.") -> 0.1115185433 | Y8: =IF(INDEX($C8:$G8,1,aux!$AL$1)>0,(G8-INDEX($C8:$G8,1,aux!$AL$1))/INDEX($C8:$G8,1,aux!$AL$1),"n.d.") -> 0.5263947003 | AA8: =O8-INDEX($K8:$O8,1,aux!$AL$1) -> 110.165 | AB8: 0.003185644523 | AC8: 0.001596965463 | AD8: =+IF(INDEX($K8:$O8,1,aux!$AL$1)>0,(O8/INDEX($K8:$O8,1,aux!$AL$1))^(1/($O$3-INDEX($K$3:$O$3,1,aux!$AL$1)))-1,"n.d.") -> 0.03162991913 | AE8: =IF(INDEX($K8:$O8,1,aux!$AL$1)>0,(O8-INDEX($K8:$O8,1,aux!$AL$1))/INDEX($K8:$O8,1,aux!$AL$1),"n.d.") -> 0.132649965
A9: 07 | B9: Produtos hortícolas | C9: 13672.94 | D9: 10850.593 | E9: 12263.493 | F9: 17691.726 | G9: 21824.021 | H9: 15260.5546 | I9: 0.05419617824 | J9: 0.04892828434 | K9: 44835.709 | L9: 42754.079 | M9: 37853.371 | N9: 47137.256 | O9: 50022.006 | P9: 44520.4842 | Q9: 0.2552807339 | R9: 0.1748785459 | S9: 29259.9296 | U9: =G9-INDEX($C9:$G9,1,aux!$AL$1) -> 8151.081 | V9: 0.08301779129 | W9: 0.08068208717 | X9: =+IF(INDEX($C9:$G9,1,aux!$AL$1)>0,(G9/INDEX($C9:$G9,1,aux!$AL$1))^(1/($G$3-INDEX($C$3:$G$3,1,aux!$AL$1)))-1,"n.d.") -> 0.124004929 | Y9: =IF(INDEX($C9:$G9,1,aux!$AL$1)>0,(G9-INDEX($C9:$G9,1,aux!$AL$1))/INDEX($C9:$G9,1,aux!$AL$1),"n.d.") -> 0.596146915 | AA9: =O9-INDEX($K9:$O9,1,aux!$AL$1) -> 5186.297 | AB9: 0.1499723018 | AC9: 0.07518120263 | AD9: =+IF(INDEX($K9:$O9,1,aux!$AL$1)>0,(O9/INDEX($K9:$O9,1,aux!$AL$1))^(1/($O$3-INDEX($K$3:$O$3,1,aux!$AL$1)))-1,"n.d.") -> 0.02774238019 | AE9: =IF(INDEX($K9:$O9,1,aux!$AL$1)>0,(O9-INDEX($K9:$O9,1,aux!$AL$1))/INDEX($K9:$O9,1,aux!$AL$1),"n.d.") -> 0.1156733576
A10: 08 | B10: Frutas | C10: 8438.81 | D10: 9171.888 | E10: 21564.161 | F10: 22535.477 | G10: 21508.7 | H10: 16643.8072 | I10: 0.05910864744 | J10: 0.05336325924 | K10: 12540.569 | L10: 11210.747 | M10: 12428.431 | N10: 13740.291 | O10: 12201.83 | P10: 12424.3736 | Q10: 0.07124143566 | R10: 0.04880352107 | S10: -4219.4336 | U10: =G10-INDEX($C10:$G10,1,aux!$AL$1) -> 13069.89 | V10: 0.1331152764 | W10: 0.1293700804 | X10: =+IF(INDEX($C10:$G10,1,aux!$AL$1)>0,(G10/INDEX($C10:$G10,1,aux!$AL$1))^(1/($G$3-INDEX($C$3:$G$3,1,aux!$AL$1)))-1,"n.d.") -> 0.2635232517 | Y10: =IF(INDEX($C10:$G10,1,aux!$AL$1)>0,(G10-INDEX($C10:$G10,1,aux!$AL$1))/INDEX($C10:$G10,1,aux!$AL$1),"n.d.") -> 1.548783537 | AA10: =O10-INDEX($K10:$O10,1,aux!$AL$1) -> -338.739 | AB10: -0.009795325556 | AC10: -0.004910402431 | AD10: =+IF(INDEX($K10:$O10,1,aux!$AL$1)>0,(O10/INDEX($K10:$O10,1,aux!$AL$1))^(1/($O$3-INDEX($K$3:$O$3,1,aux!$AL$1)))-1,"n.d.") -> -0.006822363407 | AE10: =IF(INDEX($K10:$O10,1,aux!$AL$1)>0,(O10-INDEX($K10:$O10,1,aux!$AL$1))/INDEX($K10:$O10,1,aux!$AL$1),"n.d.") -> -0.02701145379
A11: 09 | B11: Café, chá, mate e especiarias | C11: 2560.141 | D11: 1469.544 | E11: 3132.141 | F11: 9081.283 | G11: 8976.79 | H11: 5043.9798 | I11: 0.01791313851 | J11: 0.01617197306 | K11: 1581.416 | L11: 1322.393 | M11: 1444.13 | N11: 1643.139 | O11: 1889.676 | P11: 1576.1508 | Q11: 0.009037658511 | R11: 0.00619119412 | S11: -3467.829 | U11: =G11-INDEX($C11:$G11,1,aux!$AL$1) -> 6416.649 | V11: 0.06535280749 | W11: 0.06351410739 | X11: =+IF(INDEX($C11:$G11,1,aux!$AL$1)>0,(G11/INDEX($C11:$G11,1,aux!$AL$1))^(1/($G$3-INDEX($C$3:$G$3,1,aux!$AL$1)))-1,"n.d.") -> 0.3684038746 | Y11: =IF(INDEX($C11:$G11,1,aux!$AL$1)>0,(G11-INDEX($C11:$G11,1,aux!$AL$1))/INDEX($C11:$G11,1,aux!$AL$1),"n.d.") -> 2.50636547 | AA11: =O11-INDEX($K11:$O11,1,aux!$AL$1) -> 308.26 | AB11: 0.008913963423 | AC11: 0.004468575078 | AD11: =+IF(INDEX($K11:$O11,1,aux!$AL$1)>0,(O11/INDEX($K11:$O11,1,aux!$AL$1))^(1/($O$3-INDEX($K$3:$O$3,1,aux!$AL$1)))-1,"n.d.") -> 0.04552712534 | AE11: =IF(INDEX($K11:$O11,1,aux!$AL$1)>0,(O11-INDEX($K11:$O11,1,aux!$AL$1))/INDEX($K11:$O11,1,aux!$AL$1),"n.d.") -> 0.1949265721
A12: 10 | B12: Cereais | C12: 339.964 | D12: 282.208 | E12: 245.678 | F12: 342.243 | G12: 338.869 | H12: 309.7924 | I12: 0.001100193575 | J12: 0.0009932542448 | K12: 2088.732 | L12: 1495.122 | M12: 1355.953 | N12: 1169.012 | O12: 1128.533 | P12: 1447.4704 | Q12: 0.008299804296 | R12: 0.005685731485 | S12: 1137.678 | U12: =G12-INDEX($C12:$G12,1,aux!$AL$1) -> -1.095 | V12: -1.115244487e-05 | W12: -1.083867102e-05 | X12: =+IF(INDEX($C12:$G12,1,aux!$AL$1)>0,(G12/INDEX($C12:$G12,1,aux!$AL$1))^(1/($G$3-INDEX($C$3:$G$3,1,aux!$AL$1)))-1,"n.d.") -> -0.0008062067488 | Y12: =IF(INDEX($C12:$G12,1,aux!$AL$1)>0,(G12-INDEX($C12:$G12,1,aux!$AL$1))/INDEX($C12:$G12,1,aux!$AL$1),"n.d.") -> -0.003220929275 | AA12: =O12-INDEX($K12:$O12,1,aux!$AL$1) -> -960.199 | AB12: -0.02776610253 | AC12: -0.01391916344 | AD12: =+IF(INDEX($K12:$O12,1,aux!$AL$1)>0,(O12/INDEX($K12:$O12,1,aux!$AL$1))^(1/($O$3-INDEX($K$3:$O$3,1,aux!$AL$1)))-1,"n.d.") -> -0.1426505261 | AE12: =IF(INDEX($K12:$O12,1,aux!$AL$1)>0,(O12-INDEX($K12:$O12,1,aux!$AL$1))/INDEX($K12:$O12,1,aux!$AL$1),"n.d.") -> -0.4597042608
A13: 11 | B13: Produtos da indústria de moagem e outros | C13: 5067.219 | D13: 4434.936 | E13: 5070.368 | F13: 6396.161 | G13: 5157.873 | H13: 5225.3114 | I13: 0.01855711771 | J13: 0.01675335718 | K13: 136.223 | L13: 1090.32 | M13: 817.839 | N13: 1007.016 | O13: 535.811 | P13: 717.4418 | Q13: 0.004113815753 | R13: 0.002818144973 | S13: -4507.8696 | U13: =G13-INDEX($C13:$G13,1,aux!$AL$1) -> 90.654 | V13: 0.0009233002164 | W13: 0.0008973231808 | X13: =+IF(INDEX($C13:$G13,1,aux!$AL$1)>0,(G13/INDEX($C13:$G13,1,aux!$AL$1))^(1/($G$3-INDEX($C$3:$G$3,1,aux!$AL$1)))-1,"n.d.") -> 0.004442875136 | Y13: =IF(INDEX($C13:$G13,1,aux!$AL$1)>0,(G13-INDEX($C13:$G13,1,aux!$AL$1))/INDEX($C13:$G13,1,aux!$AL$1),"n.d.") -> 0.01789028657 | AA13: =O13-INDEX($K13:$O13,1,aux!$AL$1) -> 399.588 | AB13: 0.01155489787 | AC13: 0.00579247706 | AD13: =+IF(INDEX($K13:$O13,1,aux!$AL$1)>0,(O13/INDEX($K13:$O13,1,aux!$AL$1))^(1/($O$3-INDEX($K$3:$O$3,1,aux!$AL$1)))-1,"n.d.") -> 0.4082841656 | AE13: =IF(INDEX($K13:$O13,1,aux!$AL$1)>0,(O13-INDEX($K13:$O13,1,aux!$AL$1))/INDEX($K13:$O13,1,aux!$AL$1),"n.d.") -> 2.933337248
A14: 12 | B14: Sementes e frutos oleaginosos | C14: 1719.013 | D14: 403.145 | E14: 619.177 | F14: 2825.073 | G14: 791.948 | H14: 1271.6712 | I14: 0.004516200153 | J14: 0.004077223384 | K14: 11.644 | L14: 399.154 | M14: 330.24 | N14: 271.885 | O14: 568.6 | P14: 316.3046 | Q14: 0.001813692548 | R14: 0.001242459275 | S14: -955.3666 | U14: =G14-INDEX($C14:$G14,1,aux!$AL$1) -> -927.065 | V14: -0.00944204685 | W14: -0.009176395026 | X14: =+IF(INDEX($C14:$G14,1,aux!$AL$1)>0,(G14/INDEX($C14:$G14,1,aux!$AL$1))^(1/($G$3-INDEX($C$3:$G$3,1,aux!$AL$1)))-1,"n.d.") -> -0.1761381811 | Y14: =IF(INDEX($C14:$G14,1,aux!$AL$1)>0,(G14-INDEX($C14:$G14,1,aux!$AL$1))/INDEX($C14:$G14,1,aux!$AL$1),"n.d.") -> -0.5393007499 | AA14: =O14-INDEX($K14:$O14,1,aux!$AL$1) -> 556.956 | AB14: 0.01610551292 | AC14: 0.008073703047 | AD14: =+IF(INDEX($K14:$O14,1,aux!$AL$1)>0,(O14/INDEX($K14:$O14,1,aux!$AL$1))^(1/($O$3-INDEX($K$3:$O$3,1,aux!$AL$1)))-1,"n.d.") -> 1.643480826 | AE14: =IF(INDEX($K14:$O14,1,aux!$AL$1)>0,(O14-INDEX($K14:$O14,1,aux!$AL$1))/INDEX($K14:$O14,1,aux!$AL$1),"n.d.") -> 47.83201649
A15: 13a | B15: Sucos e extratos vegetais (exc. NC 1301) (a) | C15: 521.501 | D15: 615.63 | E15: 647.245 | F15: 741.619 | G15: 1407.567 | H15: 786.7124 | I15: 0.002793922408 | J15: 0.002522351842 | K15: 0.796 | L15: 0.03 | M15: 0 | N15: 0 | O15: 0 | P15: 0.1652 | Q15: 9.472578297e-07 | R15: 6.489133328e-07 | S15: -786.5472 | U15: =G15-INDEX($C15:$G15,1,aux!$AL$1) -> 886.066 | V15: 0.009024476907 | W15: 0.008770573406 | X15: =+IF(INDEX($C15:$G15,1,aux!$AL$1)>0,(G15/INDEX($C15:$G15,1,aux!$AL$1))^(1/($G$3-INDEX($C$3:$G$3,1,aux!$AL$1)))-1,"n.d.") -> 0.2817504622 | Y15: =IF(INDEX($C15:$G15,1,aux!$AL$1)>0,(G15-INDEX($C15:$G15,1,aux!$AL$1))/INDEX($C15:$G15,1,aux!$AL$1),"n.d.") -> 1.69906865 | AA15: =O15-INDEX($K15:$O15,1,aux!$AL$1) -> -0.796 | AB15: -2.301795525e-05 | AC15: -1.153891443e-05 | AD15: =+IF(INDEX($K15:$O15,1,aux!$AL$1)>0,(O15/INDEX($K15:$O15,1,aux!$AL$1))^(1/($O$3-INDEX($K$3:$O$3,1,aux!$AL$1)))-1,"n.d.") -> -1 | AE15: =IF(INDEX($K15:$O15,1,aux!$AL$1)>0,(O15-INDEX($K15:$O15,1,aux!$AL$1))/INDEX($K15:$O15,1,aux!$AL$1),"n.d.") -> -1
A16: 14 | B16: Matérias para entrançar e outros | C16: 2.024 | D16: 0.382 | E16: 9.165 | F16: 5.195 | G16: 3.983 | H16: 4.1498 | I16: 1.473755747e-05 | J16: 1.330505999e-05 | K16: 0.001 | L16: 3262.887 | M16: 3774.776 | N16: 2669.295 | O16: 2519.052 | P16: 2445.2022 | Q16: 0.01402080466 | R16: 0.009604868698 | S16: 2441.0524 | U16: =G16-INDEX($C16:$G16,1,aux!$AL$1) -> 1.959 | V16: 1.995218219e-05 | W16: 1.939082789e-05 | X16: =+IF(INDEX($C16:$G16,1,aux!$AL$1)>0,(G16/INDEX($C16:$G16,1,aux!$AL$1))^(1/($G$3-INDEX($C$3:$G$3,1,aux!$AL$1)))-1,"n.d.") -> 0.1844042294 | Y16: =IF(INDEX($C16:$G16,1,aux!$AL$1)>0,(G16-INDEX($C16:$G16,1,aux!$AL$1))/INDEX($C16:$G16,1,aux!$AL$1),"n.d.") -> 0.9678853755 | AA16: =O16-INDEX($K16:$O16,1,aux!$AL$1) -> 2519.051 | AB16: 0.07284347134 | AC16: 0.03651647479 | AD16: =+IF(INDEX($K16:$O16,1,aux!$AL$1)>0,(O16/INDEX($K16:$O16,1,aux!$AL$1))^(1/($O$3-INDEX($K$3:$O$3,1,aux!$AL$1)))-1,"n.d.") -> 38.83907839 | AE16: =IF(INDEX($K16:$O16,1,aux!$AL$1)>0,(O16-INDEX($K16:$O16,1,aux!$AL$1))/INDEX($K16:$O16,1,aux!$AL$1),"n.d.") -> 2519051
A17: 15 | B17: Gorduras e óleos animais ou vegetais | C17: 7931.739 | D17: 3278.269 | E17: 32418.865 | F17: 50575.937 | G17: 34148.821 | H17: 25670.7262 | I17: 0.09116675567 | J17: 0.08230530434 | K17: 6332.214 | L17: 1623.168 | M17: 1799.591 | N17: 3081.78 | O17: 7307.155 | P17: 4028.7816 | Q17: 0.02310105881 | R17: 0.01582524271 | S17: -21641.9446 | U17: =G17-INDEX($C17:$G17,1,aux!$AL$1) -> 26217.082 | V17: 0.2670178645 | W17: 0.2595053215 | X17: =+IF(INDEX($C17:$G17,1,aux!$AL$1)>0,(G17/INDEX($C17:$G17,1,aux!$AL$1))^(1/($G$3-INDEX($C$3:$G$3,1,aux!$AL$1)))-1,"n.d.") -> 0.4404620627 | Y17: =IF(INDEX($C17:$G17,1,aux!$AL$1)>0,(G17-INDEX($C17:$G17,1,aux!$AL$1))/INDEX($C17:$G17,1,aux!$AL$1),"n.d.") -> 3.305338464 | AA17: =O17-INDEX($K17:$O17,1,aux!$AL$1) -> 974.941 | AB17: 0.02819239737 | AC17: 0.01413286529 | AD17: =+IF(INDEX($K17:$O17,1,aux!$AL$1)>0,(O17/INDEX($K17:$O17,1,aux!$AL$1))^(1/($O$3-INDEX($K$3:$O$3,1,aux!$AL$1)))-1,"n.d.") -> 0.03644958988 | AE17: =IF(INDEX($K17:$O17,1,aux!$AL$1)>0,(O17-INDEX($K17:$O17,1,aux!$AL$1))/INDEX($K17:$O17,1,aux!$AL$1),"n.d.") -> 0.153965264
A18: 16a | B18: Preparações de carnes (exc. NC 1604-05) (a) | C18: 1459.686 | D18: 1254.723 | E18: 1010.019 | F18: 1746.84 | G18: 2269.59 | H18: 1548.1716 | I18: 0.005498160858 | J18: 0.004963737049 | K18: 1599.453 | L18: 1980.317 | M18: 2035.015 | N18: 2519.704 | O18: 3977.959 | P18: 2422.4896 | Q18: 0.01389057047 | R18: 0.009515652542 | S18: 874.318 | U18: =G18-INDEX($C18:$G18,1,aux!$AL$1) -> 809.904 | V18: 0.008248775989 | W18: 0.008016696819 | X18: =+IF(INDEX($C18:$G18,1,aux!$AL$1)>0,(G18/INDEX($C18:$G18,1,aux!$AL$1))^(1/($G$3-INDEX($C$3:$G$3,1,aux!$AL$1)))-1,"n.d.") -> 0.1166626538 | Y18: =IF(INDEX($C18:$G18,1,aux!$AL$1)>0,(G18-INDEX($C18:$G18,1,aux!$AL$1))/INDEX($C18:$G18,1,aux!$AL$1),"n.d.") -> 0.5548480975 | AA18: =O18-INDEX($K18:$O18,1,aux!$AL$1) -> 2378.506 | AB18: 0.06877932747 | AC18: 0.03447911709 | AD18: =+IF(INDEX($K18:$O18,1,aux!$AL$1)>0,(O18/INDEX($K18:$O18,1,aux!$AL$1))^(1/($O$3-INDEX($K$3:$O$3,1,aux!$AL$1)))-1,"n.d.") -> 0.2558049915 | AE18: =IF(INDEX($K18:$O18,1,aux!$AL$1)>0,(O18-INDEX($K18:$O18,1,aux!$AL$1))/INDEX($K18:$O18,1,aux!$AL$1),"n.d.") -> 1.487074644
A19: 17 | B19: Açúcares e produtos de confeitaria | C19: 5078.287 | D19: 6607.926 | E19: 6780.019 | F19: 5534.069 | G19: 8530.572 | H19: 6506.1746 | I19: 0.02310596223 | J19: 0.02086005189 | K19: 98.863 | L19: 67.827 | M19: 487.921 | N19: 1207.253 | O19: 810.964 | P19: 534.5656 | Q19: 0.003065202482 | R19: 0.002099798699 | S19: -5971.609 | U19: =G19-INDEX($C19:$G19,1,aux!$AL$1) -> 3452.285 | V19: 0.03516111245 | W19: 0.03417185516 | X19: =+IF(INDEX($C19:$G19,1,aux!$AL$1)>0,(G19/INDEX($C19:$G19,1,aux!$AL$1))^(1/($G$3-INDEX($C$3:$G$3,1,aux!$AL$1)))-1,"n.d.") -> 0.1384533198 | Y19: =IF(INDEX($C19:$G19,1,aux!$AL$1)>0,(G19-INDEX($C19:$G19,1,aux!$AL$1))/INDEX($C19:$G19,1,aux!$AL$1),"n.d.") -> 0.6798128975 | AA19: =O19-INDEX($K19:$O19,1,aux!$AL$1) -> 712.101 | AB19: 0.02059184542 | AC19: 0.01032270415 | AD19: =+IF(INDEX($K19:$O19,1,aux!$AL$1)>0,(O19/INDEX($K19:$O19,1,aux!$AL$1))^(1/($O$3-INDEX($K$3:$O$3,1,aux!$AL$1)))-1,"n.d.") -> 0.6923568658 | AE19: =IF(INDEX($K19:$O19,1,aux!$AL$1)>0,(O19-INDEX($K19:$O19,1,aux!$AL$1))/INDEX($K19:$O19,1,aux!$AL$1),"n.d.") -> 7.202907053
A20: 18 | B20: Cacau e suas preparações | C20: 17941.297 | D20: 14303.5 | E20: 17973.925 | F20: 21539.06 | G20: 19264.085 | H20: 18204.3734 | I20: 0.06465082635 | J20: 0.05836673577 | K20: 307.686 | L20: 235.205 | M20: 540.501 | N20: 487.331 | O20: 922.401 | P20: 498.6248 | Q20: 0.002859117711 | R20: 0.001958621554 | S20: -17705.7486 | U20: =G20-INDEX($C20:$G20,1,aux!$AL$1) -> 1322.788 | V20: 0.01347243858 | W20: 0.01309339175 | X20: =+IF(INDEX($C20:$G20,1,aux!$AL$1)>0,(G20/INDEX($C20:$G20,1,aux!$AL$1))^(1/($G$3-INDEX($C$3:$G$3,1,aux!$AL$1)))-1,"n.d.") -> 0.01794341564 | Y20: =IF(INDEX($C20:$G20,1,aux!$AL$1)>0,(G20-INDEX($C20:$G20,1,aux!$AL$1))/INDEX($C20:$G20,1,aux!$AL$1),"n.d.") -> 0.0737286719 | AA20: =O20-INDEX($K20:$O20,1,aux!$AL$1) -> 614.715 | AB20: 0.01777573161 | AC20: 0.008910984654 | AD20: =+IF(INDEX($K20:$O20,1,aux!$AL$1)>0,(O20/INDEX($K20:$O20,1,aux!$AL$1))^(1/($O$3-INDEX($K$3:$O$3,1,aux!$AL$1)))-1,"n.d.") -> 0.3158397667 | AE20: =IF(INDEX($K20:$O20,1,aux!$AL$1)>0,(O20-INDEX($K20:$O20,1,aux!$AL$1))/INDEX($K20:$O20,1,aux!$AL$1),"n.d.") -> 1.997864706
A21: 19a | B21: Preparações à base de cereais (exc. NC 19022010) (a) | C21: 18613.338 | D21: 17460.124 | E21: 20173.626 | F21: 25789.037 | G21: 30820.485 | H21: 22571.322 | I21: 0.08015956315 | J21: 0.07236801609 | K21: 4005.098 | L21: 5989.395 | M21: 7144.302 | N21: 10238.591 | O21: 9215.911 | P21: 7318.6594 | Q21: 0.04196523862 | R21: 0.0287480367 | S21: -15252.6626 | U21: =G21-INDEX($C21:$G21,1,aux!$AL$1) -> 12207.147 | V21: 0.1243283415 | W21: 0.1208303657 | X21: =+IF(INDEX($C21:$G21,1,aux!$AL$1)>0,(G21/INDEX($C21:$G21,1,aux!$AL$1))^(1/($G$3-INDEX($C$3:$G$3,1,aux!$AL$1)))-1,"n.d.") -> 0.1343675676 | Y21: =IF(INDEX($C21:$G21,1,aux!$AL$1)>0,(G21-INDEX($C21:$G21,1,aux!$AL$1))/INDEX($C21:$G21,1,aux!$AL$1),"n.d.") -> 0.6558279337 | AA21: =O21-INDEX($K21:$O21,1,aux!$AL$1) -> 5210.813 | AB21: 0.1506812317 | AC21: 0.0755365896 | AD21: =+IF(INDEX($K21:$O21,1,aux!$AL$1)>0,(O21/INDEX($K21:$O21,1,aux!$AL$1))^(1/($O$3-INDEX($K$3:$O$3,1,aux!$AL$1)))-1,"n.d.") -> 0.2316328992 | AE21: =IF(INDEX($K21:$O21,1,aux!$AL$1)>0,(O21-INDEX($K21:$O21,1,aux!$AL$1))/INDEX($K21:$O21,1,aux!$AL$1),"n.d.") -> 1.301045068
A22: 20 | B22: Preparações de produtos vegetais | C22: 37490.672 | D22: 29009.635 | E22: 32572.755 | F22: 43883.548 | G22: 58442.921 | H22: 40279.9062 | I22: 0.1430496488 | J22: 0.129145156 | K22: 20140.453 | L22: 18376.846 | M22: 21140.834 | N22: 25336.682 | O22: 29695.943 | P22: 22938.1516 | Q22: 0.1315275042 | R22: 0.09010213318 | S22: -17341.7546 | U22: =G22-INDEX($C22:$G22,1,aux!$AL$1) -> 20952.249 | V22: 0.213396166 | W22: 0.2073922686 | X22: =+IF(INDEX($C22:$G22,1,aux!$AL$1)>0,(G22/INDEX($C22:$G22,1,aux!$AL$1))^(1/($G$3-INDEX($C$3:$G$3,1,aux!$AL$1)))-1,"n.d.") -> 0.1173832897 | Y22: =IF(INDEX($C22:$G22,1,aux!$AL$1)>0,(G22-INDEX($C22:$G22,1,aux!$AL$1))/INDEX($C22:$G22,1,aux!$AL$1),"n.d.") -> 0.558865656 | AA22: =O22-INDEX($K22:$O22,1,aux!$AL$1) -> 9555.49 | AB22: 0.2763163834 | AC22: 0.1385175646 | AD22: =+IF(INDEX($K22:$O22,1,aux!$AL$1)>0,(O22/INDEX($K22:$O22,1,aux!$AL$1))^(1/($O$3-INDEX($K$3:$O$3,1,aux!$AL$1)))-1,"n.d.") -> 0.1019375224 | AE22: =IF(INDEX($K22:$O22,1,aux!$AL$1)>0,(O22-INDEX($K22:$O22,1,aux!$AL$1))/INDEX($K22:$O22,1,aux!$AL$1),"n.d.") -> 0.4744426553
A23: 21 | B23: Preparações alimentícias diversas | C23: 22895.414 | D23: 20537.416 | E23: 16262.721 | F23: 15077.638 | G23: 15726.516 | H23: 18099.941 | I23: 0.06427994619 | J23: 0.05803190533 | K23: 2245.613 | L23: 2415.487 | M23: 3112.849 | N23: 4711.274 | O23: 7480.193 | P23: 3993.0832 | Q23: 0.02289636396 | R23: 0.01568501772 | S23: -14106.8578 | U23: =G23-INDEX($C23:$G23,1,aux!$AL$1) -> -7168.898 | V23: -0.07301437416 | W23: -0.07096011601 | X23: =+IF(INDEX($C23:$G23,1,aux!$AL$1)>0,(G23/INDEX($C23:$G23,1,aux!$AL$1))^(1/($G$3-INDEX($C$3:$G$3,1,aux!$AL$1)))-1,"n.d.") -> -0.08962357021 | Y23: =IF(INDEX($C23:$G23,1,aux!$AL$1)>0,(G23-INDEX($C23:$G23,1,aux!$AL$1))/INDEX($C23:$G23,1,aux!$AL$1),"n.d.") -> -0.3131150195 | AA23: =O23-INDEX($K23:$O23,1,aux!$AL$1) -> 5234.58 | AB23: 0.1513685027 | AC23: 0.07588111897 | AD23: =+IF(INDEX($K23:$O23,1,aux!$AL$1)>0,(O23/INDEX($K23:$O23,1,aux!$AL$1))^(1/($O$3-INDEX($K$3:$O$3,1,aux!$AL$1)))-1,"n.d.") -> 0.3509661656 | AE23: =IF(INDEX($K23:$O23,1,aux!$AL$1)>0,(O23-INDEX($K23:$O23,1,aux!$AL$1))/INDEX($K23:$O23,1,aux!$AL$1),"n.d.") -> 2.331024981
A24: 22 | B24: Bebidas, líquidos alcoólicos e vinagres | C24: 7336.689 | D24: 8023.906 | E24: 15252.905 | F24: 15211.09 | G24: 16066.612 | H24: 12378.2404 | I24: 0.04395995693 | J24: 0.03968702854 | K24: 52358.262 | L24: 53021.638 | M24: 57711.948 | N24: 62332.108 | O24: 57672.095 | P24: 56619.2102 | Q24: 0.3246549042 | R24: 0.2224029079 | S24: 44240.9698 | U24: =G24-INDEX($C24:$G24,1,aux!$AL$1) -> 8729.923 | V24: 0.08891322827 | W24: 0.08641165613 | X24: =+IF(INDEX($C24:$G24,1,aux!$AL$1)>0,(G24/INDEX($C24:$G24,1,aux!$AL$1))^(1/($G$3-INDEX($C$3:$G$3,1,aux!$AL$1)))-1,"n.d.") -> 0.2164830135 | Y24: =IF(INDEX($C24:$G24,1,aux!$AL$1)>0,(G24-INDEX($C24:$G24,1,aux!$AL$1))/INDEX($C24:$G24,1,aux!$AL$1),"n.d.") -> 1.189899558 | AA24: =O24-INDEX($K24:$O24,1,aux!$AL$1) -> 5313.833 | AB24: 0.1536602641 | AC24: 0.07702998026 | AD24: =+IF(INDEX($K24:$O24,1,aux!$AL$1)>0,(O24/INDEX($K24:$O24,1,aux!$AL$1))^(1/($O$3-INDEX($K$3:$O$3,1,aux!$AL$1)))-1,"n.d.") -> 0.02446028407 | AE24: =IF(INDEX($K24:$O24,1,aux!$AL$1)>0,(O24-INDEX($K24:$O24,1,aux!$AL$1))/INDEX($K24:$O24,1,aux!$AL$1),"n.d.") -> 0.1014898661
A25: 23a | B25: Resíduos indústrias alimentares; alimentos p/ animais (exc. NC 230120) (a) | C25: 13661.672 | D25: 14246.625 | E25: 14662.016 | F25: 18964.654 | G25: 12467.744 | H25: 14800.5422 | I25: 0.05256249488 | J25: 0.04745339578 | K25: 1228.724 | L25: 615.406 | M25: 801.523 | N25: 561.197 | O25: 536.594 | P25: 748.6888 | Q25: 0.004292986246 | R25: 0.002940884651 | S25: -14051.8534 | U25: =G25-INDEX($C25:$G25,1,aux!$AL$1) -> -1193.928 | V25: -0.01216001479 | W25: -0.01181789298 | X25: =+IF(INDEX($C25:$G25,1,aux!$AL$1)>0,(G25/INDEX($C25:$G25,1,aux!$AL$1))^(1/($G$3-INDEX($C$3:$G$3,1,aux!$AL$1)))-1,"n.d.") -> -0.02260299135 | Y25: =IF(INDEX($C25:$G25,1,aux!$AL$1)>0,(G25-INDEX($C25:$G25,1,aux!$AL$1))/INDEX($C25:$G25,1,aux!$AL$1),"n.d.") -> -0.08739252414 | AA25: =O25-INDEX($K25:$O25,1,aux!$AL$1) -> -692.13 | AB25: -0.02001434342 | AC25: -0.01003320207 | AD25: =+IF(INDEX($K25:$O25,1,aux!$AL$1)>0,(O25/INDEX($K25:$O25,1,aux!$AL$1))^(1/($O$3-INDEX($K$3:$O$3,1,aux!$AL$1)))-1,"n.d.") -> -0.187079889 | AE25: =IF(INDEX($K25:$O25,1,aux!$AL$1)>0,(O25-INDEX($K25:$O25,1,aux!$AL$1))/INDEX($K25:$O25,1,aux!$AL$1),"n.d.") -> -0.5632916749
A26: 24 | B26: Tabaco | C26: 36574.53 | D26: 10082.491 | E26: 9227.134 | F26: 8705.999 | G26: 11467.242 | H26: 15211.4792 | I26: 0.05402189236 | J26: 0.04877093914 | K26: 37.228 | L26: 0.02 | M26: 0.926 | N26: 0 | O26: 499.552 | P26: 107.5452 | Q26: 0.0006166648471 | R26: 0.0004224425796 | S26: -15103.934 | U26: =G26-INDEX($C26:$G26,1,aux!$AL$1) -> -25107.288 | V26: -0.2557147445 | W26: -0.2485202146 | X26: =+IF(INDEX($C26:$G26,1,aux!$AL$1)>0,(G26/INDEX($C26:$G26,1,aux!$AL$1))^(1/($G$3-INDEX($C$3:$G$3,1,aux!$AL$1)))-1,"n.d.") -> -0.2517098027 | Y26: =IF(INDEX($C26:$G26,1,aux!$AL$1)>0,(G26-INDEX($C26:$G26,1,aux!$AL$1))/INDEX($C26:$G26,1,aux!$AL$1),"n.d.") -> -0.6864691904 | AA26: =O26-INDEX($K26:$O26,1,aux!$AL$1) -> 462.324 | AB26: 0.01336903661 | AC26: 0.006701905874 | AD26: =+IF(INDEX($K26:$O26,1,aux!$AL$1)>0,(O26/INDEX($K26:$O26,1,aux!$AL$1))^(1/($O$3-INDEX($K$3:$O$3,1,aux!$AL$1)))-1,"n.d.") -> 0.913937489 | AE26: =IF(INDEX($K26:$O26,1,aux!$AL$1)>0,(O26-INDEX($K26:$O26,1,aux!$AL$1))/INDEX($K26:$O26,1,aux!$AL$1),"n.d.") -> 12.41871709
A27: 29 | B27: Manitol e sorbitol (NC 290543; 290544) | C27: 572.781 | D27: 493.388 | E27: 555.505 | F27: 211.9 | G27: 240.194 | H27: 414.7536 | I27: 0.001472951712 | J27: 0.001329780116 | K27: 0 | L27: 0 | M27: 0 | N27: 0 | O27: 0 | P27: 0 | Q27: 0 | R27: 0 | S27: -414.7536 | U27: =G27-INDEX($C27:$G27,1,aux!$AL$1) -> -332.587 | V27: -0.003387359069 | W27: -0.003292055781 | X27: =+IF(INDEX($C27:$G27,1,aux!$AL$1)>0,(G27/INDEX($C27:$G27,1,aux!$AL$1))^(1/($G$3-INDEX($C$3:$G$3,1,aux!$AL$1)))-1,"n.d.") -> -0.1952826077 | Y27: =IF(INDEX($C27:$G27,1,aux!$AL$1)>0,(G27-INDEX($C27:$G27,1,aux!$AL$1))/INDEX($C27:$G27,1,aux!$AL$1),"n.d.") -> -0.5806529895 | AA27: =O27-INDEX($K27:$O27,1,aux!$AL$1) -> 0 | AB27: 0 | AC27: 0 | AD27: =+IF(INDEX($K27:$O27,1,aux!$AL$1)>0,(O27/INDEX($K27:$O27,1,aux!$AL$1))^(1/($O$3-INDEX($K$3:$O$3,1,aux!$AL$1)))-1,"n.d.") -> n.d. | AE27: =IF(INDEX($K27:$O27,1,aux!$AL$1)>0,(O27-INDEX($K27:$O27,1,aux!$AL$1))/INDEX($K27:$O27,1,aux!$AL$1),"n.d.") -> n.d.
A28: 33 | B28: Óleos essenciais e resinóides (NC 3301) | C28: 676.893 | D28: 819.738 | E28: 793.59 | F28: 1673.143 | G28: 1216.729 | H28: 1036.0186 | I28: 0.003679305908 | J28: 0.003321675652 | K28: 31.712 | L28: 35.684 | M28: 62.587 | N28: 100.625 | O28: 14.002 | P28: 48.922 | Q28: 0.0002805190529 | R28: 0.000192167906 | S28: -987.0966 | U28: =G28-INDEX($C28:$G28,1,aux!$AL$1) -> 539.836 | V28: 0.005498165504 | W28: 0.005343474713 | X28: =+IF(INDEX($C28:$G28,1,aux!$AL$1)>0,(G28/INDEX($C28:$G28,1,aux!$AL$1))^(1/($G$3-INDEX($C$3:$G$3,1,aux!$AL$1)))-1,"n.d.") -> 0.1578930818 | Y28: =IF(INDEX($C28:$G28,1,aux!$AL$1)>0,(G28-INDEX($C28:$G28,1,aux!$AL$1))/INDEX($C28:$G28,1,aux!$AL$1),"n.d.") -> 0.7975204353 | AA28: =O28-INDEX($K28:$O28,1,aux!$AL$1) -> -17.71 | AB28: -0.0005121205873 | AC28: -0.00025672635 | AD28: =+IF(INDEX($K28:$O28,1,aux!$AL$1)>0,(O28/INDEX($K28:$O28,1,aux!$AL$1))^(1/($O$3-INDEX($K$3:$O$3,1,aux!$AL$1)))-1,"n.d.") -> -0.1848423472 | AE28: =IF(INDEX($K28:$O28,1,aux!$AL$1)>0,(O28-INDEX($K28:$O28,1,aux!$AL$1))/INDEX($K28:$O28,1,aux!$AL$1),"n.d.") -> -0.5584636731
A29: 35 | B29: Caseínas, albuminas, gelatinas, peptonas, dextrinas (NC 3501 a 3505) | C29: 1318.16 | D29: 943.026 | E29: 1500.937 | F29: 1497.44 | G29: 2258.207 | H29: 1503.554 | I29: 0.005339706368 | J29: 0.004820684409 | K29: 74.337 | L29: 59.596 | M29: 17.804 | N29: 33.193 | O29: 19.515 | P29: 40.889 | Q29: 0.0002344577809 | R29: 0.000160613906 | S29: -1462.665 | U29: =G29-INDEX($C29:$G29,1,aux!$AL$1) -> 940.047 | V29: 0.009574266977 | W29: 0.009304895142 | X29: =+IF(INDEX($C29:$G29,1,aux!$AL$1)>0,(G29/INDEX($C29:$G29,1,aux!$AL$1))^(1/($G$3-INDEX($C$3:$G$3,1,aux!$AL$1)))-1,"n.d.") -> 0.1440602729 | Y29: =IF(INDEX($C29:$G29,1,aux!$AL$1)>0,(G29-INDEX($C29:$G29,1,aux!$AL$1))/INDEX($C29:$G29,1,aux!$AL$1),"n.d.") -> 0.7131509073 | AA29: =O29-INDEX($K29:$O29,1,aux!$AL$1) -> -54.822 | AB29: -0.001585289375 | AC29: -0.0007947064911 | AD29: =+IF(INDEX($K29:$O29,1,aux!$AL$1)>0,(O29/INDEX($K29:$O29,1,aux!$AL$1))^(1/($O$3-INDEX($K$3:$O$3,1,aux!$AL$1)))-1,"n.d.") -> -0.2842013396 | AE29: =IF(INDEX($K29:$O29,1,aux!$AL$1)>0,(O29-INDEX($K29:$O29,1,aux!$AL$1))/INDEX($K29:$O29,1,aux!$AL$1),"n.d.") -> -0.7374793172
A30: 38a | B30: Agentes de acabamento, ácidos gordos, sorbitol (NC 380910, 382311-12-13-19-70, 382460) (a) | C30: 1373.724 | D30: 654.637 | E30: 455.288 | F30: 1364.988 | G30: 1180.925 | H30: 1005.9124 | I30: 0.003572387056 | J30: 0.003225149362 | K30: 0 | L30: 0 | M30: 0 | N30: 0 | O30: 0 | P30: 0 | Q30: 0 | R30: 0 | S30: -1005.9124 | U30: =G30-INDEX($C30:$G30,1,aux!$AL$1) -> -192.799 | V30: -0.001963634902 | W30: -0.001908388068 | X30: =+IF(INDEX($C30:$G30,1,aux!$AL$1)>0,(G30/INDEX($C30:$G30,1,aux!$AL$1))^(1/($G$3-INDEX($C$3:$G$3,1,aux!$AL$1)))-1,"n.d.") -> -0.03710106199 | Y30: =IF(INDEX($C30:$G30,1,aux!$AL$1)>0,(G30-INDEX($C30:$G30,1,aux!$AL$1))/INDEX($C30:$G30,1,aux!$AL$1),"n.d.") -> -0.1403476972 | AA30: =O30-INDEX($K30:$O30,1,aux!$AL$1) -> 0 | AB30: 0 | AC30: 0 | AD30: =+IF(INDEX($K30:$O30,1,aux!$AL$1)>0,(O30/INDEX($K30:$O30,1,aux!$AL$1))^(1/($O$3-INDEX($K$3:$O$3,1,aux!$AL$1)))-1,"n.d.") -> n.d. | AE30: =IF(INDEX($K30:$O30,1,aux!$AL$1)>0,(O30-INDEX($K30:$O30,1,aux!$AL$1))/INDEX($K30:$O30,1,aux!$AL$1),"n.d.") -> n.d.
A31: 41 | B31: Couro e peles em bruto (NC 4101 a 4103) | C31: 457.585 | D31: 369.231 | E31: 129.374 | F31: 523.904 | G31: 0 | H31: 296.0188 | I31: 0.001051278153 | J31: 0.000949093424 | K31: 0 | L31: 71.442 | M31: 5.428 | N31: 0 | O31: 0 | P31: 15.374 | Q31: 8.815461183e-05 | R31: 6.038979163e-05 | S31: -280.6448 | U31: =G31-INDEX($C31:$G31,1,aux!$AL$1) -> -457.585 | V31: -0.004660448844 | W31: -0.004529327197 | X31: =+IF(INDEX($C31:$G31,1,aux!$AL$1)>0,(G31/INDEX($C31:$G31,1,aux!$AL$1))^(1/($G$3-INDEX($C$3:$G$3,1,aux!$AL$1)))-1,"n.d.") -> -1 | Y31: =IF(INDEX($C31:$G31,1,aux!$AL$1)>0,(G31-INDEX($C31:$G31,1,aux!$AL$1))/INDEX($C31:$G31,1,aux!$AL$1),"n.d.") -> -1 | AA31: =O31-INDEX($K31:$O31,1,aux!$AL$1) -> 0 | AB31: 0 | AC31: 0 | AD31: =+IF(INDEX($K31:$O31,1,aux!$AL$1)>0,(O31/INDEX($K31:$O31,1,aux!$AL$1))^(1/($O$3-INDEX($K$3:$O$3,1,aux!$AL$1)))-1,"n.d.") -> n.d. | AE31: =IF(INDEX($K31:$O31,1,aux!$AL$1)>0,(O31-INDEX($K31:$O31,1,aux!$AL$1))/INDEX($K31:$O31,1,aux!$AL$1),"n.d.") -> n.d.
A32: 43 | B32: Peles com pelo em bruto (NC 4301) | C32: 351.845 | D32: 247.899 | E32: 278.354 | F32: 1007.784 | G32: 630.93 | H32: 503.3624 | I32: 0.001787636103 | J32: 0.001613877037 | K32: 0 | L32: 0 | M32: 0 | N32: 0 | O32: 0 | P32: 0 | Q32: 0 | R32: 0 | S32: -503.3624 | U32: =G32-INDEX($C32:$G32,1,aux!$AL$1) -> 279.085 | V32: 0.002842447558 | W32: 0.002762475345 | X32: =+IF(INDEX($C32:$G32,1,aux!$AL$1)>0,(G32/INDEX($C32:$G32,1,aux!$AL$1))^(1/($G$3-INDEX($C$3:$G$3,1,aux!$AL$1)))-1,"n.d.") -> 0.1571973984 | Y32: =IF(INDEX($C32:$G32,1,aux!$AL$1)>0,(G32-INDEX($C32:$G32,1,aux!$AL$1))/INDEX($C32:$G32,1,aux!$AL$1),"n.d.") -> 0.793204394 | AA32: =O32-INDEX($K32:$O32,1,aux!$AL$1) -> 0 | AB32: 0 | AC32: 0 | AD32: =+IF(INDEX($K32:$O32,1,aux!$AL$1)>0,(O32/INDEX($K32:$O32,1,aux!$AL$1))^(1/($O$3-INDEX($K$3:$O$3,1,aux!$AL$1)))-1,"n.d.") -> n.d. | AE32: =IF(INDEX($K32:$O32,1,aux!$AL$1)>0,(O32-INDEX($K32:$O32,1,aux!$AL$1))/INDEX($K32:$O32,1,aux!$AL$1),"n.d.") -> n.d.
A33: 50 | B33: Seda crua (NC 5001-5003) | C33: 0 | D33: 0 | E33: 0 | F33: 0 | G33: 0 | H33: 0 | I33: 0 | J33: 0 | K33: 31.054 | L33: 0 | M33: 0 | N33: 0 | O33: 0 | P33: 6.2108 | Q33: 3.561276591e-05 | R33: 2.439631312e-05 | S33: 6.2108 | U33: =G33-INDEX($C33:$G33,1,aux!$AL$1) -> 0 | V33: 0 | W33: 0 | X33: =+IF(INDEX($C33:$G33,1,aux!$AL$1)>0,(G33/INDEX($C33:$G33,1,aux!$AL$1))^(1/($G$3-INDEX($C$3:$G$3,1,aux!$AL$1)))-1,"n.d.") -> n.d. | Y33: =IF(INDEX($C33:$G33,1,aux!$AL$1)>0,(G33-INDEX($C33:$G33,1,aux!$AL$1))/INDEX($C33:$G33,1,aux!$AL$1),"n.d.") -> n.d. | AA33: =O33-INDEX($K33:$O33,1,aux!$AL$1) -> -31.054 | AB33: -0.000897989425 | AC33: -0.000450162624 | AD33: =+IF(INDEX($K33:$O33,1,aux!$AL$1)>0,(O33/INDEX($K33:$O33,1,aux!$AL$1))^(1/($O$3-INDEX($K$3:$O$3,1,aux!$AL$1)))-1,"n.d.") -> -1 | AE33: =IF(INDEX($K33:$O33,1,aux!$AL$1)>0,(O33-INDEX($K33:$O33,1,aux!$AL$1))/INDEX($K33:$O33,1,aux!$AL$1),"n.d.") -> -1
A34: 51 | B34: Lã não cardada (NC 5101-5103) | C34: 85.066 | D34: 93.061 | E34: 424.537 | F34: 301.301 | G34: 254.738 | H34: 231.7406 | I34: 0.0008230012075 | J34: 0.0007430051049 | K34: 1025.326 | L34: 429.173 | M34: 285.982 | N34: 475.632 | O34: 144.861 | P34: 472.1948 | Q34: 0.002707567926 | R34: 0.001854803277 | S34: 240.4542 | U34: =G34-INDEX($C34:$G34,1,aux!$AL$1) -> 169.672 | V34: 0.001728089156 | W34: 0.001679469397 | X34: =+IF(INDEX($C34:$G34,1,aux!$AL$1)>0,(G34/INDEX($C34:$G34,1,aux!$AL$1))^(1/($G$3-INDEX($C$3:$G$3,1,aux!$AL$1)))-1,"n.d.") -> 0.3154805486 | Y34: =IF(INDEX($C34:$G34,1,aux!$AL$1)>0,(G34-INDEX($C34:$G34,1,aux!$AL$1))/INDEX($C34:$G34,1,aux!$AL$1),"n.d.") -> 1.994592434 | AA34: =O34-INDEX($K34:$O34,1,aux!$AL$1) -> -880.465 | AB34: -0.02546043212 | AC34: -0.01276332952 | AD34: =+IF(INDEX($K34:$O34,1,aux!$AL$1)>0,(O34/INDEX($K34:$O34,1,aux!$AL$1))^(1/($O$3-INDEX($K$3:$O$3,1,aux!$AL$1)))-1,"n.d.") -> -0.3869126191 | AE34: =IF(INDEX($K34:$O34,1,aux!$AL$1)>0,(O34-INDEX($K34:$O34,1,aux!$AL$1))/INDEX($K34:$O34,1,aux!$AL$1),"n.d.") -> -0.85871713
A35: 52 | B35: Algodão (NC 5201-5203) | C35: 0.554 | D35: 19.643 | E35: 616.216 | F35: 223.583 | G35: 57.425 | H35: 183.4842 | I35: 0.0006516239198 | J35: 0.0005882857698 | K35: 0.114 | L35: 0.113 | M35: 32.275 | N35: 7.293 | O35: 55.091 | P35: 18.9772 | Q35: 0.0001088153831 | R35: 7.454332989e-05 | S35: -164.507 | U35: =G35-INDEX($C35:$G35,1,aux!$AL$1) -> 56.871 | V35: 0.0005792243763 | W35: 0.0005629279085 | X35: =+IF(INDEX($C35:$G35,1,aux!$AL$1)>0,(G35/INDEX($C35:$G35,1,aux!$AL$1))^(1/($G$3-INDEX($C$3:$G$3,1,aux!$AL$1)))-1,"n.d.") -> 2.190786969 | Y35: =IF(INDEX($C35:$G35,1,aux!$AL$1)>0,(G35-INDEX($C35:$G35,1,aux!$AL$1))/INDEX($C35:$G35,1,aux!$AL$1),"n.d.") -> 102.6552347 | AA35: =O35-INDEX($K35:$O35,1,aux!$AL$1) -> 54.977 | AB35: 0.001589771515 | AC35: 0.0007969533903 | AD35: =+IF(INDEX($K35:$O35,1,aux!$AL$1)>0,(O35/INDEX($K35:$O35,1,aux!$AL$1))^(1/($O$3-INDEX($K$3:$O$3,1,aux!$AL$1)))-1,"n.d.") -> 3.68860829 | AE35: =IF(INDEX($K35:$O35,1,aux!$AL$1)>0,(O35-INDEX($K35:$O35,1,aux!$AL$1))/INDEX($K35:$O35,1,aux!$AL$1),"n.d.") -> 482.254386
A36: 53 | B36: Linho e cânhamo em bruto (NC 5301-5302) | C36: 1483.765 | D36: 574.928 | E36: 1124.796 | F36: 905.661 | G36: 784.939 | H36: 974.8178 | I36: 0.00346195801 | J36: 0.003125454071 | K36: 0 | L36: 0 | M36: 0 | N36: 0 | O36: 0 | P36: 0 | Q36: 0 | R36: 0 | S36: -974.8178 | U36: =G36-INDEX($C36:$G36,1,aux!$AL$1) -> -698.826 | V36: -0.007117459759 | W36: =IF($U$53<>0,U36/$U$53, "n.d.") -> -0.006917210153 | X36: =+IF(INDEX($C36:$G36,1,aux!$AL$1)>0,(G36/INDEX($C36:$G36,1,aux!$AL$1))^(1/($G$3-INDEX($C$3:$G$3,1,aux!$AL$1)))-1,"n.d.") -> -0.1471597352 | Y36: =IF(INDEX($C36:$G36,1,aux!$AL$1)>0,(G36-INDEX($C36:$G36,1,aux!$AL$1))/INDEX($C36:$G36,1,aux!$AL$1),"n.d.") -> -0.4709815908 | AA36: =O36-INDEX($K36:$O36,1,aux!$AL$1) -> 0 | AB36: 0 | AC36: =IF($AA$53<>0,AA36/$AA$53, "n.d.") -> 0 | AD36: =+IF(INDEX($K36:$O36,1,aux!$AL$1)>0,(O36/INDEX($K36:$O36,1,aux!$AL$1))^(1/($O$3-INDEX($K$3:$O$3,1,aux!$AL$1)))-1,"n.d.") -> n.d. | AE36: =IF(INDEX($K36:$O36,1,aux!$AL$1)>0,(O36-INDEX($K36:$O36,1,aux!$AL$1))/INDEX($K36:$O36,1,aux!$AL$1),"n.d.") -> n.d.
A37: Subtotal Agrícola e Agroalimentar | C37: 248953.589 | D37: 194073.427 | E37: 274329.722 | F37: 343404.438 | G37: 347138.338 | H37: 281579.9028 | I37: 1 | J37: 0.9027995319 | K37: 164451.233 | L37: 156878.807 | M37: 163537.574 | N37: 188090.135 | O37: 199032.932 | P37: 174398.1362 | Q37: 1 | R37: 0.6850440423 | S37: -107181.7666 | U37: =G37-INDEX($C37:$G37,1,aux!$AL$1) -> 98184.749 | V37: 1 | W37: 0.9718650173 | X37: =+IF(INDEX($C37:$G37,1,aux!$AL$1)>0,(G37/INDEX($C37:$G37,1,aux!$AL$1))^(1/($G$3-INDEX($C$3:$G$3,1,aux!$AL$1)))-1,"n.d.") -> 0.08666592032 | Y37: =IF(INDEX($C37:$G37,1,aux!$AL$1)>0,(G37-INDEX($C37:$G37,1,aux!$AL$1))/INDEX($C37:$G37,1,aux!$AL$1),"n.d.") -> 0.3943897712 | AA37: =O37-INDEX($K37:$O37,1,aux!$AL$1) -> 34581.699 | AB37: 1 | AC37: 0.501300585 | AD37: =+IF(INDEX($K37:$O37,1,aux!$AL$1)>0,(O37/INDEX($K37:$O37,1,aux!$AL$1))^(1/($O$3-INDEX($K$3:$O$3,1,aux!$AL$1)))-1,"n.d.") -> 0.04887069525 | AE37: =IF(INDEX($K37:$O37,1,aux!$AL$1)>0,(O37-INDEX($K37:$O37,1,aux!$AL$1))/INDEX($K37:$O37,1,aux!$AL$1),"n.d.") -> 0.2102854346
A38: 03 | B38: Peixes e crustáceos | C38: 5758.676 | D38: 5940.598 | E38: 7881.979 | F38: 6572.36 | G38: 7795.803 | H38: 6789.8832 | I38: 0.7684539236 | J38: 0.02176967644 | K38: 4171.116 | L38: 4845.685 | M38: 4661.573 | N38: 6402.862 | O38: 6479.877 | P38: 5312.2226 | Q38: 0.4372884648 | R38: 0.02086665903 | S38: -1477.6606 | U38: =G38-INDEX($C38:$G38,1,aux!$AL$1) -> 2037.127 | V38: =IF($U$44<>0,U38/$U$44, "n.d.") -> 0.8788758511 | W38: 0.02016415469 | X38: =+IF(INDEX($C38:$G38,1,aux!$AL$1)>0,(G38/INDEX($C38:$G38,1,aux!$AL$1))^(1/($G$3-INDEX($C$3:$G$3,1,aux!$AL$1)))-1,"n.d.") -> 0.07865994731 | Y38: =IF(INDEX($C38:$G38,1,aux!$AL$1)>0,(G38-INDEX($C38:$G38,1,aux!$AL$1))/INDEX($C38:$G38,1,aux!$AL$1),"n.d.") -> 0.3537491951 | AA38: =O38-INDEX($K38:$O38,1,aux!$AL$1) -> 2308.761 | AB38: =IF($AA$44<>0,AA38/$AA$44, "n.d.") -> 0.259298801 | AC38: 0.03346808495 | AD38: =+IF(INDEX($K38:$O38,1,aux!$AL$1)>0,(O38/INDEX($K38:$O38,1,aux!$AL$1))^(1/($O$3-INDEX($K$3:$O$3,1,aux!$AL$1)))-1,"n.d.") -> 0.1164226107 | AE38: =IF(INDEX($K38:$O38,1,aux!$AL$1)>0,(O38-INDEX($K38:$O38,1,aux!$AL$1))/INDEX($K38:$O38,1,aux!$AL$1),"n.d.") -> 0.5535115782
A39: 05p | B39: Outros produtos de pescado (NC 0508, 051191) (p) | C39: 131.814 | D39: 99.89 | E39: 138.034 | F39: 253.025 | G39: 128.097 | H39: 150.172 | I39: 0.01699591277 | J39: 0.0004814804251 | K39: 0 | L39: 0 | M39: 0.171 | N39: 0 | O39: 0 | P39: 0.0342 | Q39: 2.815255802e-06 | R39: 1.343392008e-07 | S39: -150.1378 | U39: =G39-INDEX($C39:$G39,1,aux!$AL$1) -> -3.717 | V39: -0.001603621934 | W39: -3.67920915e-05 | X39: =+IF(INDEX($C39:$G39,1,aux!$AL$1)>0,(G39/INDEX($C39:$G39,1,aux!$AL$1))^(1/($G$3-INDEX($C$3:$G$3,1,aux!$AL$1)))-1,"n.d.") -> -0.007125504488 | Y39: =IF(INDEX($C39:$G39,1,aux!$AL$1)>0,(G39-INDEX($C39:$G39,1,aux!$AL$1))/INDEX($C39:$G39,1,aux!$AL$1),"n.d.") -> -0.02819882562 | AA39: =O39-INDEX($K39:$O39,1,aux!$AL$1) -> 0 | AB39: 0 | AC39: 0 | AD39: =+IF(INDEX($K39:$O39,1,aux!$AL$1)>0,(O39/INDEX($K39:$O39,1,aux!$AL$1))^(1/($O$3-INDEX($K$3:$O$3,1,aux!$AL$1)))-1,"n.d.") -> n.d. | AE39: =IF(INDEX($K39:$O39,1,aux!$AL$1)>0,(O39-INDEX($K39:$O39,1,aux!$AL$1))/INDEX($K39:$O39,1,aux!$AL$1),"n.d.") -> n.d.
A40: 16p | B40: Preparações e conservas de peixes ou crustáceos (NC 1604-05) (p) | C40: 1726.036 | D40: 1563.131 | E40: 1224.878 | F40: 2490.392 | G40: 2030.575 | H40: 1807.0024 | I40: 0.2045098632 | J40: 0.005793598565 | K40: 4493.619 | L40: 5876.437 | M40: 6053.346 | N40: 5957.204 | O40: 11043.733 | P40: 6684.8678 | Q40: 0.5502810778 | R40: 0.02625847363 | S40: 4877.8654 | U40: =G40-INDEX($C40:$G40,1,aux!$AL$1) -> 304.539 | V40: 0.1313869841 | W40: 0.003014427429 | X40: =+IF(INDEX($C40:$G40,1,aux!$AL$1)>0,(G40/INDEX($C40:$G40,1,aux!$AL$1))^(1/($G$3-INDEX($C$3:$G$3,1,aux!$AL$1)))-1,"n.d.") -> 0.04145928528 | Y40: =IF(INDEX($C40:$G40,1,aux!$AL$1)>0,(G40-INDEX($C40:$G40,1,aux!$AL$1))/INDEX($C40:$G40,1,aux!$AL$1),"n.d.") -> 0.1764383825 | AA40: =O40-INDEX($K40:$O40,1,aux!$AL$1) -> 6550.114 | AB40: 0.7356485606 | AC40: 0.09495126251 | AD40: =+IF(INDEX($K40:$O40,1,aux!$AL$1)>0,(O40/INDEX($K40:$O40,1,aux!$AL$1))^(1/($O$3-INDEX($K$3:$O$3,1,aux!$AL$1)))-1,"n.d.") -> 0.2520737564 | AE40: =IF(INDEX($K40:$O40,1,aux!$AL$1)>0,(O40-INDEX($K40:$O40,1,aux!$AL$1))/INDEX($K40:$O40,1,aux!$AL$1),"n.d.") -> 1.457647834
A41: 19p | B41: Massas recheadas com pescado (NC 19022010) (p) | C41: 0 | D41: 0 | E41: 7.222 | F41: 0 | G41: 0 | H41: 1.4444 | I41: 0.0001634718617 | J41: 4.631025265e-06 | K41: 1.316 | L41: 0.79 | M41: 2.172 | N41: 0.931 | O41: 1.815 | P41: 1.4048 | Q41: 0.0001156395132 | R41: 5.518120157e-06 | S41: -0.0396 | U41: =G41-INDEX($C41:$G41,1,aux!$AL$1) -> 0 | V41: 0 | W41: 0 | X41: =+IF(INDEX($C41:$G41,1,aux!$AL$1)>0,(G41/INDEX($C41:$G41,1,aux!$AL$1))^(1/($G$3-INDEX($C$3:$G$3,1,aux!$AL$1)))-1,"n.d.") -> n.d. | Y41: =IF(INDEX($C41:$G41,1,aux!$AL$1)>0,(G41-INDEX($C41:$G41,1,aux!$AL$1))/INDEX($C41:$G41,1,aux!$AL$1),"n.d.") -> n.d. | AA41: =O41-INDEX($K41:$O41,1,aux!$AL$1) -> 0.499 | AB41: 5.604309051e-05 | AC41: 7.233565705e-06 | AD41: =+IF(INDEX($K41:$O41,1,aux!$AL$1)>0,(O41/INDEX($K41:$O41,1,aux!$AL$1))^(1/($O$3-INDEX($K$3:$O$3,1,aux!$AL$1)))-1,"n.d.") -> 0.08369029741 | AE41: =IF(INDEX($K41:$O41,1,aux!$AL$1)>0,(O41-INDEX($K41:$O41,1,aux!$AL$1))/INDEX($K41:$O41,1,aux!$AL$1),"n.d.") -> 0.3791793313
A42: 23p | B42: Farinhas de pescado (NC 230120) (p) | C42: 0 | D42: 0 | E42: 0 | F42: 0 | G42: 0 | H42: 0 | I42: 0 | J42: 0 | K42: 0 | L42: 0 | M42: 0 | N42: 0 | O42: 94.052 | P42: 18.8104 | Q42: 0.001548423618 | R42: 7.388813169e-05 | S42: 18.8104 | U42: =G42-INDEX($C42:$G42,1,aux!$AL$1) -> 0 | V42: 0 | W42: 0 | X42: =+IF(INDEX($C42:$G42,1,aux!$AL$1)>0,(G42/INDEX($C42:$G42,1,aux!$AL$1))^(1/($G$3-INDEX($C$3:$G$3,1,aux!$AL$1)))-1,"n.d.") -> n.d. | Y42: =IF(INDEX($C42:$G42,1,aux!$AL$1)>0,(G42-INDEX($C42:$G42,1,aux!$AL$1))/INDEX($C42:$G42,1,aux!$AL$1),"n.d.") -> n.d. | AA42: =O42-INDEX($K42:$O42,1,aux!$AL$1) -> 94.052 | AB42: 0.01056305561 | AC42: 0.001363389422 | AD42: =+IF(INDEX($K42:$O42,1,aux!$AL$1)>0,(O42/INDEX($K42:$O42,1,aux!$AL$1))^(1/($O$3-INDEX($K$3:$O$3,1,aux!$AL$1)))-1,"n.d.") -> n.d. | AE42: =IF(INDEX($K42:$O42,1,aux!$AL$1)>0,(O42-INDEX($K42:$O42,1,aux!$AL$1))/INDEX($K42:$O42,1,aux!$AL$1),"n.d.") -> n.d.
A43: 25 | B43: Sal e cloreto de sódio puro; água do mar (NC 2501) | C43: 123.651 | D43: 77.648 | E43: 61.62 | F43: 69.848 | G43: 103.58 | H43: 87.2694 | I43: 0.009876828638 | J43: 0.0002798025452 | K43: 138.155 | L43: 130.02 | M43: 146.732 | N43: 150.286 | O43: 88.592 | P43: 130.757 | Q43: 0.01076357903 | R43: 0.0005136196165 | S43: 43.4876 | U43: =G43-INDEX($C43:$G43,1,aux!$AL$1) -> -20.071 | V43: -0.008659213298 | W43: -0.0001986693755 | X43: =+IF(INDEX($C43:$G43,1,aux!$AL$1)>0,(G43/INDEX($C43:$G43,1,aux!$AL$1))^(1/($G$3-INDEX($C$3:$G$3,1,aux!$AL$1)))-1,"n.d.") -> -0.04331366997 | Y43: =IF(INDEX($C43:$G43,1,aux!$AL$1)>0,(G43-INDEX($C43:$G43,1,aux!$AL$1))/INDEX($C43:$G43,1,aux!$AL$1),"n.d.") -> -0.1623197548 | AA43: =O43-INDEX($K43:$O43,1,aux!$AL$1) -> -49.563 | AB43: -0.005566460311 | AC43: -0.0007184713768 | AD43: =+IF(INDEX($K43:$O43,1,aux!$AL$1)>0,(O43/INDEX($K43:$O43,1,aux!$AL$1))^(1/($O$3-INDEX($K$3:$O$3,1,aux!$AL$1)))-1,"n.d.") -> -0.1051361282 | AE43: =IF(INDEX($K43:$O43,1,aux!$AL$1)>0,(O43-INDEX($K43:$O43,1,aux!$AL$1))/INDEX($K43:$O43,1,aux!$AL$1),"n.d.") -> -0.3587492309
A44: Subtotal Mar | C44: 7740.177 | D44: 7681.267 | E44: 9313.733 | F44: 9385.625 | G44: 10058.055 | H44: 8835.7714 | I44: 1 | J44: 0.028329189 | K44: 8804.206 | L44: 10852.932 | M44: 10863.994 | N44: 12511.283 | O44: 17708.069 | P44: 12148.0968 | Q44: 1 | R44: 0.04771829286 | S44: 3312.3254 | U44: =G44-INDEX($C44:$G44,1,aux!$AL$1) -> 2317.878 | V44: 1 | W44: 0.02294312065 | X44: =+IF(INDEX($C44:$G44,1,aux!$AL$1)>0,(G44/INDEX($C44:$G44,1,aux!$AL$1))^(1/($G$3-INDEX($C$3:$G$3,1,aux!$AL$1)))-1,"n.d.") -> 0.06767919117 | Y44: =IF(INDEX($C44:$G44,1,aux!$AL$1)>0,(G44-INDEX($C44:$G44,1,aux!$AL$1))/INDEX($C44:$G44,1,aux!$AL$1),"n.d.") -> 0.2994605937 | AA44: =O44-INDEX($K44:$O44,1,aux!$AL$1) -> 8903.863 | AB44: 1 | AC44: 0.1290714991 | AD44: =+IF(INDEX($K44:$O44,1,aux!$AL$1)>0,(O44/INDEX($K44:$O44,1,aux!$AL$1))^(1/($O$3-INDEX($K$3:$O$3,1,aux!$AL$1)))-1,"n.d.") -> 0.1908861721 | AE44: =IF(INDEX($K44:$O44,1,aux!$AL$1)>0,(O44-INDEX($K44:$O44,1,aux!$AL$1))/INDEX($K44:$O44,1,aux!$AL$1),"n.d.") -> 1.011319249
A45: 13f | B45: Gomas e resinas (NC 1301) (f) | C45: 16.55 | D45: 22.246 | E45: 14.279 | F45: 23.265 | G45: 153.927 | H45: 46.0534 | I45: 0.002143942928 | J45: 0.0001476560918 | K45: 0.401 | L45: 38.651 | M45: 0.829 | N45: 2.461 | O45: 1.579 | P45: 8.7842 | Q45: 0.0001291163384 | R45: 3.450474877e-05 | S45: -37.2692 | U45: =G45-INDEX($C45:$G45,1,aux!$AL$1) -> 137.377 | V45: =IF($U$52<>0,U45/$U$52, "n.d.") -> 0.261910436 | W45: 0.00135980284 | X45: =+IF(INDEX($C45:$G45,1,aux!$AL$1)>0,(G45/INDEX($C45:$G45,1,aux!$AL$1))^(1/($G$3-INDEX($C$3:$G$3,1,aux!$AL$1)))-1,"n.d.") -> 0.7463416089 | Y45: =IF(INDEX($C45:$G45,1,aux!$AL$1)>0,(G45-INDEX($C45:$G45,1,aux!$AL$1))/INDEX($C45:$G45,1,aux!$AL$1),"n.d.") -> 8.300725076 | AA45: =O45-INDEX($K45:$O45,1,aux!$AL$1) -> 1.178 | AB45: =IF($AA$52<>0,AA45/$AA$52, "n.d.") -> 4.619898263e-05 | AC45: 1.707643367e-05 | AD45: =+IF(INDEX($K45:$O45,1,aux!$AL$1)>0,(O45/INDEX($K45:$O45,1,aux!$AL$1))^(1/($O$3-INDEX($K$3:$O$3,1,aux!$AL$1)))-1,"n.d.") -> 0.4086705633 | AE45: =IF(INDEX($K45:$O45,1,aux!$AL$1)>0,(O45-INDEX($K45:$O45,1,aux!$AL$1))/INDEX($K45:$O45,1,aux!$AL$1),"n.d.") -> 2.93765586
A46: 38f | B46: Tall oil, essências e colofónias (NC 3803,3805,3806) (f) | C46: 0.167 | D46: 0 | E46: 535.462 | F46: 1109.679 | G46: 890.267 | H46: 507.115 | I46: 0.02360793379 | J46: 0.001625908597 | K46: 826.281 | L46: 752.277 | M46: 1123.996 | N46: 1286.946 | O46: 669.354 | P46: 931.7708 | Q46: 0.01369582136 | R46: 0.003660039317 | S46: 424.6558 | U46: =G46-INDEX($C46:$G46,1,aux!$AL$1) -> 890.1 | V46: 1.696983331 | W46: 0.008810503268 | X46: =+IF(INDEX($C46:$G46,1,aux!$AL$1)>0,(G46/INDEX($C46:$G46,1,aux!$AL$1))^(1/($G$3-INDEX($C$3:$G$3,1,aux!$AL$1)))-1,"n.d.") -> 7.544781289 | Y46: =IF(INDEX($C46:$G46,1,aux!$AL$1)>0,(G46-INDEX($C46:$G46,1,aux!$AL$1))/INDEX($C46:$G46,1,aux!$AL$1),"n.d.") -> 5329.94012 | AA46: =O46-INDEX($K46:$O46,1,aux!$AL$1) -> -156.927 | AB46: -0.006154386882 | AC46: -0.002274833197 | AD46: =+IF(INDEX($K46:$O46,1,aux!$AL$1)>0,(O46/INDEX($K46:$O46,1,aux!$AL$1))^(1/($O$3-INDEX($K$3:$O$3,1,aux!$AL$1)))-1,"n.d.") -> -0.05129317666 | AE46: =IF(INDEX($K46:$O46,1,aux!$AL$1)>0,(O46-INDEX($K46:$O46,1,aux!$AL$1))/INDEX($K46:$O46,1,aux!$AL$1),"n.d.") -> -0.189919652
A47: 44 | B47: Madeira e suas obras | C47: 6647.638 | D47: 4358.5 | E47: 6943.199 | F47: 8060.732 | G47: 7227.375 | H47: 6647.4888 | I47: 0.3094632883 | J47: 0.0213131325 | K47: 15024.051 | L47: 15834.74 | M47: 19338.858 | N47: 27832.391 | O47: 29630.13 | P47: 21532.034 | Q47: 0.316492952 | R47: 0.08457883743 | S47: 14884.5452 | U47: =G47-INDEX($C47:$G47,1,aux!$AL$1) -> 579.737 | V47: 1.105273594 | W47: 0.005738427967 | X47: =+IF(INDEX($C47:$G47,1,aux!$AL$1)>0,(G47/INDEX($C47:$G47,1,aux!$AL$1))^(1/($G$3-INDEX($C$3:$G$3,1,aux!$AL$1)))-1,"n.d.") -> 0.02112358405 | Y47: =IF(INDEX($C47:$G47,1,aux!$AL$1)>0,(G47-INDEX($C47:$G47,1,aux!$AL$1))/INDEX($C47:$G47,1,aux!$AL$1),"n.d.") -> 0.087209472 | AA47: =O47-INDEX($K47:$O47,1,aux!$AL$1) -> 14606.079 | AB47: 0.572823421 | AC47: 0.2117315273 | AD47: =+IF(INDEX($K47:$O47,1,aux!$AL$1)>0,(O47/INDEX($K47:$O47,1,aux!$AL$1))^(1/($O$3-INDEX($K$3:$O$3,1,aux!$AL$1)))-1,"n.d.") -> 0.1850498699 | AE47: =IF(INDEX($K47:$O47,1,aux!$AL$1)>0,(O47-INDEX($K47:$O47,1,aux!$AL$1))/INDEX($K47:$O47,1,aux!$AL$1),"n.d.") -> 0.9721798069
A48: 45 | B48: Cortiça e suas obras | C48: 6.516 | D48: 6.754 | E48: 4.61 | F48: 14.704 | G48: 17.464 | H48: 10.0096 | I48: 0.0004659810379 | J48: 3.209271011e-05 | K48: 10176.018 | L48: 9627.39 | M48: 10901.643 | N48: 12500.398 | O48: 12290.12 | P48: 11099.1138 | Q48: 0.1631425666 | R48: 0.04359783854 | S48: 11089.1042 | U48: =G48-INDEX($C48:$G48,1,aux!$AL$1) -> 10.948 | V48: 0.02087245648 | W48: 0.0001083669136 | X48: =+IF(INDEX($C48:$G48,1,aux!$AL$1)>0,(G48/INDEX($C48:$G48,1,aux!$AL$1))^(1/($G$3-INDEX($C$3:$G$3,1,aux!$AL$1)))-1,"n.d.") -> 0.2795010946 | Y48: =IF(INDEX($C48:$G48,1,aux!$AL$1)>0,(G48-INDEX($C48:$G48,1,aux!$AL$1))/INDEX($C48:$G48,1,aux!$AL$1),"n.d.") -> 1.680171885 | AA48: =O48-INDEX($K48:$O48,1,aux!$AL$1) -> 2114.102 | AB48: 0.08291117281 | AC48: 0.03064628402 | AD48: =+IF(INDEX($K48:$O48,1,aux!$AL$1)>0,(O48/INDEX($K48:$O48,1,aux!$AL$1))^(1/($O$3-INDEX($K$3:$O$3,1,aux!$AL$1)))-1,"n.d.") -> 0.04832167231 | AE48: =IF(INDEX($K48:$O48,1,aux!$AL$1)>0,(O48-INDEX($K48:$O48,1,aux!$AL$1))/INDEX($K48:$O48,1,aux!$AL$1),"n.d.") -> 0.2077533668
A49: 46 | B49: Obras de espartaria ou de cestaria | C49: 295.733 | D49: 247.099 | E49: 271.678 | F49: 301.484 | G49: 209.269 | H49: 265.0526 | I49: 0.01233910303 | J49: 0.0008498098083 | K49: 0.374 | L49: 0.123 | M49: 0.499 | N49: 0 | O49: 0.694 | P49: 0.338 | Q49: 4.968161289e-06 | R49: 1.327679821e-06 | S49: -264.7146 | U49: =G49-INDEX($C49:$G49,1,aux!$AL$1) -> -86.464 | V49: -0.1648443622 | W49: -0.0008558491794 | X49: =+IF(INDEX($C49:$G49,1,aux!$AL$1)>0,(G49/INDEX($C49:$G49,1,aux!$AL$1))^(1/($G$3-INDEX($C$3:$G$3,1,aux!$AL$1)))-1,"n.d.") -> -0.08282696586 | Y49: =IF(INDEX($C49:$G49,1,aux!$AL$1)>0,(G49-INDEX($C49:$G49,1,aux!$AL$1))/INDEX($C49:$G49,1,aux!$AL$1),"n.d.") -> -0.2923718354 | AA49: =O49-INDEX($K49:$O49,1,aux!$AL$1) -> 0.32 | AB49: 1.254980852e-05 | AC49: 4.63875957e-06 | AD49: =+IF(INDEX($K49:$O49,1,aux!$AL$1)>0,(O49/INDEX($K49:$O49,1,aux!$AL$1))^(1/($O$3-INDEX($K$3:$O$3,1,aux!$AL$1)))-1,"n.d.") -> 0.1671373494 | AE49: =IF(INDEX($K49:$O49,1,aux!$AL$1)>0,(O49-INDEX($K49:$O49,1,aux!$AL$1))/INDEX($K49:$O49,1,aux!$AL$1),"n.d.") -> 0.8556149733
A50: 47 | B50: Pastas de madeira | C50: 68.985 | D50: 5.016 | E50: 16.08 | F50: 85.174 | G50: 101.463 | H50: 55.3436 | I50: 0.002576433441 | J50: 0.0001774422666 | K50: 21.817 | L50: 92.837 | M50: 468.683 | N50: 1169.835 | O50: 875.442 | P50: 525.7228 | Q50: 0.007727442791 | R50: 0.002065063767 | S50: 470.3792 | U50: =G50-INDEX($C50:$G50,1,aux!$AL$1) -> 32.478 | V50: 0.06191958728 | W50: 0.0003214779521 | X50: =+IF(INDEX($C50:$G50,1,aux!$AL$1)>0,(G50/INDEX($C50:$G50,1,aux!$AL$1))^(1/($G$3-INDEX($C$3:$G$3,1,aux!$AL$1)))-1,"n.d.") -> 0.101255924 | Y50: =IF(INDEX($C50:$G50,1,aux!$AL$1)>0,(G50-INDEX($C50:$G50,1,aux!$AL$1))/INDEX($C50:$G50,1,aux!$AL$1),"n.d.") -> 0.4707979996 | AA50: =O50-INDEX($K50:$O50,1,aux!$AL$1) -> 853.625 | AB50: 0.03347759469 | AC50: 0.01237425356 | AD50: =+IF(INDEX($K50:$O50,1,aux!$AL$1)>0,(O50/INDEX($K50:$O50,1,aux!$AL$1))^(1/($O$3-INDEX($K$3:$O$3,1,aux!$AL$1)))-1,"n.d.") -> 1.516854367 | AE50: =IF(INDEX($K50:$O50,1,aux!$AL$1)>0,(O50-INDEX($K50:$O50,1,aux!$AL$1))/INDEX($K50:$O50,1,aux!$AL$1),"n.d.") -> 39.12659852
A51: 48 | B51: Papel e cartão | C51: 14786.648 | D51: 11629.483 | E51: 12612.066 | F51: 16973.009 | G51: 13746.991 | H51: 13949.6394 | I51: 0.6494033175 | J51: 0.04472523712 | K51: 30274.989 | L51: 26266.604 | M51: 28683.107 | N51: 46097.563 | O51: 38355.009 | P51: 33935.4544 | Q51: 0.4988071327 | R51: 0.1333000533 | S51: 19985.815 | U51: =G51-INDEX($C51:$G51,1,aux!$AL$1) -> -1039.657 | V51: -1.982115043 | W51: -0.01029086776 | X51: =+IF(INDEX($C51:$G51,1,aux!$AL$1)>0,(G51/INDEX($C51:$G51,1,aux!$AL$1))^(1/($G$3-INDEX($C$3:$G$3,1,aux!$AL$1)))-1,"n.d.") -> -0.01806106993 | Y51: =IF(INDEX($C51:$G51,1,aux!$AL$1)>0,(G51-INDEX($C51:$G51,1,aux!$AL$1))/INDEX($C51:$G51,1,aux!$AL$1),"n.d.") -> -0.07031052609 | AA51: =O51-INDEX($K51:$O51,1,aux!$AL$1) -> 8080.02 | AB51: 0.3168834496 | AC51: 0.1171289691 | AD51: =+IF(INDEX($K51:$O51,1,aux!$AL$1)>0,(O51/INDEX($K51:$O51,1,aux!$AL$1))^(1/($O$3-INDEX($K$3:$O$3,1,aux!$AL$1)))-1,"n.d.") -> 0.06092460999 | AE51: =IF(INDEX($K51:$O51,1,aux!$AL$1)>0,(O51-INDEX($K51:$O51,1,aux!$AL$1))/INDEX($K51:$O51,1,aux!$AL$1),"n.d.") -> 0.2668876279
A52: Subtotal Florestas | C52: 21822.237 | D52: 16269.098 | E52: 20397.374 | F52: 26568.047 | G52: 22346.756 | H52: 21480.7024 | I52: 1 | J52: 0.06887127909 | K52: 56323.931 | L52: 52612.622 | M52: 60517.615 | N52: 88889.594 | O52: 81822.328 | P52: 68033.218 | Q52: 1 | R52: 0.2672376648 | S52: 46552.5156 | U52: =G52-INDEX($C52:$G52,1,aux!$AL$1) -> 524.519 | V52: 1 | W52: 0.005191861997 | X52: =+IF(INDEX($C52:$G52,1,aux!$AL$1)>0,(G52/INDEX($C52:$G52,1,aux!$AL$1))^(1/($G$3-INDEX($C$3:$G$3,1,aux!$AL$1)))-1,"n.d.") -> 0.005955581711 | Y52: =IF(INDEX($C52:$G52,1,aux!$AL$1)>0,(G52-INDEX($C52:$G52,1,aux!$AL$1))/INDEX($C52:$G52,1,aux!$AL$1),"n.d.") -> 0.02403598678 | AA52: =O52-INDEX($K52:$O52,1,aux!$AL$1) -> 25498.397 | AB52: 1 | AC52: 0.369627916 | AD52: =+IF(INDEX($K52:$O52,1,aux!$AL$1)>0,(O52/INDEX($K52:$O52,1,aux!$AL$1))^(1/($O$3-INDEX($K$3:$O$3,1,aux!$AL$1)))-1,"n.d.") -> 0.09785432852 | AE52: =IF(INDEX($K52:$O52,1,aux!$AL$1)>0,(O52-INDEX($K52:$O52,1,aux!$AL$1))/INDEX($K52:$O52,1,aux!$AL$1),"n.d.") -> 0.452709826
B53: TOTAL | C53: 278516.003 | D53: 218023.792 | E53: 304040.829 | F53: 379358.11 | G53: 379543.149 | H53: 311896.3766 | J53: 1 | K53: 229579.37 | L53: 220344.361 | M53: 234919.183 | N53: 289491.012 | O53: 298563.329 | P53: 254579.451 | R53: 1 | S53: -57316.9256 | U53: =G53-INDEX($C53:$G53,1,aux!$AL$1) -> 101027.146 | W53: 1 | X53: =+IF(INDEX($C53:$G53,1,aux!$AL$1)>0,(G53/INDEX($C53:$G53,1,aux!$AL$1))^(1/($G$3-INDEX($C$3:$G$3,1,aux!$AL$1)))-1,"n.d.") -> 0.08044521545 | Y53: =IF(INDEX($C53:$G53,1,aux!$AL$1)>0,(G53-INDEX($C53:$G53,1,aux!$AL$1))/INDEX($C53:$G53,1,aux!$AL$1),"n.d.") -> 0.3627337205 | AA53: =O53-INDEX($K53:$O53,1,aux!$AL$1) -> 68983.959 | AC53: 1 | AD53: =+IF(INDEX($K53:$O53,1,aux!$AL$1)>0,(O53/INDEX($K53:$O53,1,aux!$AL$1))^(1/($O$3-INDEX($K$3:$O$3,1,aux!$AL$1)))-1,"n.d.") -> 0.06788847916 | AE53: =IF(INDEX($K53:$O53,1,aux!$AL$1)>0,(O53-INDEX($K53:$O53,1,aux!$AL$1))/INDEX($K53:$O53,1,aux!$AL$1),"n.d.") -> 0.3004797818
B54: a - agrícola e agroalimentar; p - pescas; f - florestas
A55: Fonte: GPP a partir de dados INE/Comércio Internacional (2022 definitivos) | S55: 2024-05-10T15:05:53.600

Sheet 5.2_var
A1: ="Principais contributos por produto para a variação das trocas comerciais PT-Bélgica_x000D_ no período " & INDEX('5.2'!K3:N3,1,aux!AL1) & "-2023 (NC 2 dígitos - milhares de euros) Produtos agrícolas e agroalimentares, do mar e da floresta" -> Principais contributos por produto para a variação das trocas comerciais PT-Bélgica no período 2019-2023 (NC 2 dígitos - milhares de euros) Produtos agrícolas e agroalimentares, do mar e da floresta
E5: aumento das importações | J5: aumento das exportações
E17: redução das importações | J17: redução das exportações
A28: Fonte: GPP a partir de dados INE/Comércio Internacional (2022 definitivos) | F28: a - agrícola e agroalimentar; p - mar; f - florestas | H28: ='3'!Y116 -> 2024-05-10T15:05:53.600
A29: Cód. NC | B29: Descritivo | C29: ="Variação das Importações " & INDEX('5.2'!K3:N3,1,aux!AL1) & "-"& '5.2'!O3 &"" -> Variação das Importações 2019-2023 | F29: Cód. NC | G29: Descritivo | H29: ="Variação das Exportações " & INDEX('5.2'!K3:N3,1,aux!AL1) & "-"& '5.2'!O3 &"" -> Variação das Exportações 2019-2023
C30: variação total em valor | D30: % do aumento/ redução total | H30: variação total em valor | I30: % do aumento/ redução total
A31: =IF(C31>0,aux!AU6,"") -> 15 | B31: =IF(C31>0,aux!AV6,"") -> Gorduras e óleos animais ou vegetais | C31: =IF(aux!AW6>0,aux!AW6,0) -> 26217.082 | D31: =IF(SUM($C$31:$C$41)<>0,C31/SUM($C$31:$C$41),0) -> 0.1895016528 | F31: =IF(H31>0,aux!AZ6,"") -> 44 | G31: =IF(H31>0,aux!BA6,"") -> Madeira e suas obras | H31: =IF(aux!BB6>0,aux!BB6,0) -> 14606.079 | I31: =IF(SUM($H$31:$H$41)<>0,H31/SUM($H$31:$H$41),0) -> 0.1968438524
A32: =IF(C32>0,aux!AU7,"") -> 20 | B32: =IF(C32>0,aux!AV7,"") -> Preparações de produtos vegetais | C32: =IF(aux!AW7>0,aux!AW7,0) -> 20952.249 | D32: =IF(SUM($C$31:$C$41)<>0,C32/SUM($C$31:$C$41),0) -> 0.1514465193 | F32: =IF(H32>0,aux!AZ7,"") -> 20 | G32: =IF(H32>0,aux!BA7,"") -> Preparações de produtos vegetais | H32: =IF(aux!BB7>0,aux!BB7,0) -> 9555.49 | I32: =IF(SUM($H$31:$H$41)<>0,H32/SUM($H$31:$H$41),0) -> 0.1287778509
A33: =IF(C33>0,aux!AU8,"") -> 02 | B33: =IF(C33>0,aux!AV8,"") -> Carnes e miudezas | C33: =IF(aux!AW8>0,aux!AW8,0) -> 16619.792 | D33: 0.1201307626 | F33: =IF(H33>0,aux!AZ8,"") -> 48 | G33: =IF(H33>0,aux!BA8,"") -> Papel e cartão | H33: =IF(aux!BB8>0,aux!BB8,0) -> 8080.02 | I33: 0.1088931714
A34: =IF(C34>0,aux!AU9,"") -> 08 | B34: =IF(C34>0,aux!AV9,"") -> Frutas | C34: =IF(aux!AW9>0,aux!AW9,0) -> 13069.89 | D34: 0.09447145023 | F34: =IF(H34>0,aux!AZ9,"") -> 16p | G34: =IF(H34>0,aux!BA9,"") -> Preparações e conservas de peixes ou crustáceos (NC 1604-05) (p) | H34: =IF(aux!BB9>0,aux!BB9,0) -> 6550.114 | I34: 0.08827486649
A35: =IF(C35>0,aux!AU10,"") -> 19a | B35: =IF(C35>0,aux!AV10,"") -> Preparações à base de cereais (exc. NC 19022010) (a) | C35: =IF(aux!AW10>0,aux!AW10,0) -> 12207.147 | D35: 0.08823539297 | F35: =IF(H35>0,aux!AZ10,"") -> 22 | G35: =IF(H35>0,aux!BA10,"") -> Bebidas, líquidos alcoólicos e vinagres | H35: =IF(aux!BB10>0,aux!BB10,0) -> 5313.833 | I35: 0.07161369995
A36: =IF(C36>0,aux!AU11,"") -> 04 | B36: =IF(C36>0,aux!AV11,"") -> Leite e laticínios; ovos; mel, etc. | C36: =IF(aux!AW11>0,aux!AW11,0) -> 9714.773 | D36: 0.0702200779 | F36: =IF(H36>0,aux!AZ11,"") -> 21 | G36: =IF(H36>0,aux!BA11,"") -> Preparações alimentícias diversas | H36: =IF(aux!BB11>0,aux!BB11,0) -> 5234.58 | I36: 0.07054561961
A37: =IF(C37>0,aux!AU12,"") -> 22 | B37: =IF(C37>0,aux!AV12,"") -> Bebidas, líquidos alcoólicos e vinagres | C37: =IF(aux!AW12>0,aux!AW12,0) -> 8729.923 | D37: 0.0631014099 | F37: =IF(H37>0,aux!AZ12,"") -> 19a | G37: =IF(H37>0,aux!BA12,"") -> Preparações à base de cereais (exc. NC 19022010) (a) | H37: =IF(aux!BB12>0,aux!BB12,0) -> 5210.813 | I37: 0.07022531545
A38: =IF(C38>0,aux!AU13,"") -> 07 | B38: =IF(C38>0,aux!AV13,"") -> Produtos hortícolas | C38: =IF(aux!AW13>0,aux!AW13,0) -> 8151.081 | D38: 0.05891743871 | F38: =IF(H38>0,aux!AZ13,"") -> 07 | G38: =IF(H38>0,aux!BA13,"") -> Produtos hortícolas | H38: =IF(aux!BB13>0,aux!BB13,0) -> 5186.297 | I38: 0.06989491714
A39: =IF(C39>0,aux!AU14,"") -> 09 | B39: =IF(C39>0,aux!AV14,"") -> Café, chá, mate e especiarias | C39: =IF(aux!AW14>0,aux!AW14,0) -> 6416.649 | D39: 0.04638066094 | F39: =IF(H39>0,aux!AZ14,"") -> 14 | G39: =IF(H39>0,aux!BA14,"") -> Matérias para entrançar e outros | H39: =IF(aux!BB14>0,aux!BB14,0) -> 2519.051 | I39: 0.0339488581
A40: =IF(C40>0,aux!AU15,"") -> 17 | B40: =IF(C40>0,aux!AV15,"") -> Açúcares e produtos de confeitaria | C40: =IF(aux!AW15>0,aux!AW15,0) -> 3452.285 | D40: 0.02495371962 | F40: =IF(H40>0,aux!AZ15,"") -> 16a | G40: =IF(H40>0,aux!BA15,"") -> Preparações de carnes (exc. NC 1604-05) (a) | H40: =IF(aux!BB15>0,aux!BB15,0) -> 2378.506 | I40: 0.03205475502
B41: Outros contributos para o aumento das importações | C41: =SUMIF(aux!AW16:AW51,">0") -> 12816.64 | D41: 0.09264091495 | G41: Outros contributos para o aumento das exportações | H41: =SUMIF(aux!BB16:BB51,">0") -> 9566.564 | I41: 0.1289270935
B42: Outros contributos para a redução das importações | C42: =SUMIF(aux!AW6:AW41,"<0") -> -111.347 | D42: =IF(SUM($C$42:$C$52)<>0,C42/SUM($C$42:$C$52),0) -> 0.002983545311 | G42: Outros contributos para a redução das exportações | H42: =SUMIF(aux!BB6:BB41,"<0") -> -73.377 | I42: =IF(SUM($H$42:$H$52)<>0,H42/SUM($H$42:$H$52),0) -> 0.01406393391
A43: =IF(C43<>0,aux!AU42,"") -> 05a | B43: =IF(C43<0,aux!AV42,"") -> Outros produtos de origem animal (exc. NC 0508, 051191) (a) | C43: =IF(aux!AW42<0,aux!AW42,0) -> -90.385 | D43: =IF(SUM($C$42:$C$52)<>0,C43/SUM($C$42:$C$52),0) -> 0.002421868061 | F43: =IF(H43<>0,aux!AZ42,"") -> 25 | G43: =IF(H43<>0,aux!BA42,"") -> Sal e cloreto de sódio puro; água do mar (NC 2501) | H43: =IF(aux!BB42<0,aux!BB42,0) -> -49.563 | I43: =IF(SUM($H$42:$H$52)<>0,H43/SUM($H$42:$H$52),0) -> 0.009499581016
A44: =IF(C44<>0,aux!AU43,"") -> 38a | B44: =IF(C44<0,aux!AV43,"") -> Agentes de acabamento, ácidos gordos, sorbitol (NC 380910, 382311-12-13-19-70, 382460) (a) | C44: =IF(aux!AW43<0,aux!AW43,0) -> -192.799 | D44: 0.00516605344 | F44: =IF(H44<>0,aux!AZ43,"") -> 35 | G44: =IF(H44<>0,aux!BA43,"") -> Caseínas, albuminas, gelatinas, peptonas, dextrinas (NC 3501 a 3505) | H44: =IF(aux!BB43<0,aux!BB43,0) -> -54.822 | I44: 0.01050755665
A45: =IF(C45<>0,aux!AU44,"") -> 29 | B45: =IF(C45<0,aux!AV44,"") -> Manitol e sorbitol (NC 290543; 290544) | C45: =IF(aux!AW44<0,aux!AW44,0) -> -332.587 | D45: 0.008911675971 | F45: =IF(H45<>0,aux!AZ44,"") -> 05a | G45: =IF(H45<>0,aux!BA44,"") -> Outros produtos de origem animal (exc. NC 0508, 051191) (a) | H45: =IF(aux!BB44<0,aux!BB44,0) -> -117.854 | I45: 0.02258869764
A46: =IF(C46<>0,aux!AU45,"") -> 41 | B46: =IF(C46<0,aux!AV45,"") -> Couro e peles em bruto (NC 4101 a 4103) | C46: =IF(aux!AW45<0,aux!AW45,0) -> -457.585 | D46: 0.01226100013 | F46: =IF(H46<>0,aux!AZ45,"") -> 38f | G46: =IF(H46<>0,aux!BA45,"") -> Tall oil, essências e colofónias (NC 3803,3805,3806) (f) | H46: =IF(aux!BB45<0,aux!BB45,0) -> -156.927 | I46: 0.03007769405
A47: =IF(C47<>0,aux!AU46,"") -> 53 | B47: =IF(C47<0,aux!AV46,"") -> Linho e cânhamo em bruto (NC 5301-5302) | C47: =IF(aux!AW46<0,aux!AW46,0) -> -698.826 | D47: 0.01872505802 | F47: =IF(H47<>0,aux!AZ46,"") -> 08 | G47: =IF(H47<>0,aux!BA46,"") -> Frutas | H47: =IF(aux!BB46<0,aux!BB46,0) -> -338.739 | I47: 0.06492501612
A48: =IF(C48<>0,aux!AU47,"") -> 12 | B48: =IF(C48<0,aux!AV47,"") -> Sementes e frutos oleaginosos | C48: =IF(aux!AW47<0,aux!AW47,0) -> -927.065 | D48: 0.02484072704 | F48: =IF(H48<>0,aux!AZ47,"") -> 23a | G48: =IF(H48<>0,aux!BA47,"") -> Resíduos indústrias alimentares; alimentos p/ animais (exc. NC 230120) (a) | H48: =IF(aux!BB47<0,aux!BB47,0) -> -692.13 | I48: 0.132658334
A49: =IF(C49<>0,aux!AU48,"") -> 48 | B49: =IF(C49<0,aux!AV48,"") -> Papel e cartão | C49: =IF(aux!AW48<0,aux!AW48,0) -> -1039.657 | D49: 0.02785763215 | F49: =IF(H49<>0,aux!AZ48,"") -> 02 | G49: =IF(H49<>0,aux!BA48,"") -> Carnes e miudezas | H49: =IF(aux!BB48<0,aux!BB48,0) -> -732.216 | I49: 0.1403414889
A50: =IF(C50<>0,aux!AU49,"") -> 23a | B50: =IF(C50<0,aux!AV49,"") -> Resíduos indústrias alimentares; alimentos p/ animais (exc. NC 230120) (a) | C50: =IF(aux!AW49<0,aux!AW49,0) -> -1193.928 | D50: 0.03199132699 | F50: =IF(H50<>0,aux!AZ49,"") -> 51 | G50: =IF(H50<>0,aux!BA49,"") -> Lã não cardada (NC 5101-5103) | H50: =IF(aux!BB49<0,aux!BB49,0) -> -880.465 | I50: 0.1687558985
A51: =IF(C51<>0,aux!AU50,"") -> 21 | B51: =IF(C51<0,aux!AV50,"") -> Preparações alimentícias diversas | C51: =IF(aux!AW50<0,aux!AW50,0) -> -7168.898 | D51: 0.1920907794 | F51: =IF(H51<>0,aux!AZ50,"") -> 10 | G51: =IF(H51<>0,aux!BA50,"") -> Cereais | H51: =IF(aux!BB50<0,aux!BB50,0) -> -960.199 | I51: 0.1840382582
A52: =IF(C52<>0,aux!AU51,"") -> 24 | B52: =IF(C52<0,aux!AV51,"") -> Tabaco | C52: =IF(aux!AW51<0,aux!AW51,0) -> -25107.288 | D52: 0.6727503335 | F52: =IF(H52<>0,aux!AZ51,"") -> 04 | G52: =IF(H52<>0,aux!BA51,"") -> Leite e laticínios; ovos; mel, etc. | H52: =IF(aux!BB51<0,aux!BB51,0) -> -1161.096 | I52: 0.2225435409
A53: TOTAL | C53: =SUM(C31:C52) -> 101027.146 | F53: TOTAL | H53: =SUM(H31:H52) -> 68983.959

Sheet 5.2A
A1: Trocas comerciais Portugal-Bélgica 2019-2023 em milhares de euros (NC 4 dígitos) | G1: Produtos agrícolas e agroalimentares, do mar e da floresta
A2: Cód. NC | B2: Descritivo | C2: Importações | K2: Exportações | S2: Saldo quinquénio (exp-imp) | T2: Evolução das importações | U2: =+"Variação das Importações " & INDEX(K3:N3,1,aux!AL1) & "-"& '5.2'!O3 &"" -> Variação das Importações 2019-2023 | Z2: Evolução das exportações | AA2: ="Variação das Exportações " & INDEX(K3:N3,1,aux!AL1) & "-"& '5.2'!O3 &"" -> Variação das Exportações 2019-2023
C3: 2019 | D3: 2020 | E3: 2021 | F3: 2022 | G3: 2023 | H3: média quinquénio | I3: % Subtot | J3: % Total | K3: 2019 | L3: 2020 | M3: 2021 | N3: 2022 | O3: 2023 | P3: média quinquénio | Q3: % Subtot | R3: % Total | U3: variação total em valor | V3: % no subtotal de variação | W3: % no total de variação | X3: taxa de variação média anual | Y3: taxa de variação total | AA3: variação total em valor | AB3: % no subtotal de variação | AC3: % no total de variação | AD3: taxa de variação média anual | AE3: taxa de variação total | AX3: filtro
A4: 0101 | B4: Equídeos vivos | C4: 0 | D4: 30.06 | E4: 0 | F4: 524.046 | G4: 1267.53 | H4: 364.3272 | I4: 0.001293867909 | J4: 0.001168103342 | K4: 99.5 | L4: 84.575 | M4: 0 | N4: 0 | O4: 99.5 | P4: 56.715 | Q4: 0.0003252041635 | R4: 0.0002227791747 | S4: -307.6122 | U4: =G4-INDEX($C4:$G4,1,aux!$AL$1) -> 1267.53 | V4: =IF($U$237<>0,U4/$U$237, "n.d.") -> 0.01290964241 | W4: =IF($U$322<>0,U4/$U$322, "n.d.") -> 0.01254642985 | X4: =+IF(INDEX($C4:$G4,1,aux!$AL$1)>0,(G4/INDEX($C4:$G4,1,aux!$AL$1))^(1/($G$3-INDEX($C$3:$G$3,1,aux!$AL$1)))-1,"n.d.") -> n.d. | Y4: =IF(INDEX($C4:$G4,1,aux!$AL$1)>0,(G4-INDEX($C4:$G4,1,aux!$AL$1))/INDEX($C4:$G4,1,aux!$AL$1),"n.d.") -> n.d. | AA4: =O4-INDEX($K4:$O4,1,aux!$AL$1) -> 0 | AB4: =IF($AA$237<>0,AA4/$AA$237, "n.d.") -> 0 | AC4: =IF($AA$322<>0,AA4/$AA$322, "n.d.") -> 0 | AD4: =+IF(INDEX($K4:$O4,1,aux!$AL$1)>0,(O4/INDEX($K4:$O4,1,aux!$AL$1))^(1/($O$3-INDEX($K$3:$O$3,1,aux!$AL$1)))-1,"n.d.") -> 0 | AE4: =IF(INDEX($K4:$O4,1,aux!$AL$1)>0,(O4-INDEX($K4:$O4,1,aux!$AL$1))/INDEX($K4:$O4,1,aux!$AL$1),"n.d.") -> 0 | AX4: =+LEFT(A4,2) -> 01
A5: 0102 | B5: Bovinos vivos | C5: 0 | D5: 0 | E5: 0 | F5: 0 | G5: 0 | H5: 0 | I5: 0 | J5: 0 | K5: 254.32 | L5: 0 | M5: 0 | N5: 0 | O5: 54.036 | P5: 61.6712 | Q5: 0.0003536230452 | R5: 0.0002422473603 | S5: 61.6712 | U5: =G5-INDEX($C5:$G5,1,aux!$AL$1) -> 0 | V5: 0 | W5: 0 | X5: =+IF(INDEX($C5:$G5,1,aux!$AL$1)>0,(G5/INDEX($C5:$G5,1,aux!$AL$1))^(1/($G$3-INDEX($C$3:$G$3,1,aux!$AL$1)))-1,"n.d.") -> n.d. | Y5: =IF(INDEX($C5:$G5,1,aux!$AL$1)>0,(G5-INDEX($C5:$G5,1,aux!$AL$1))/INDEX($C5:$G5,1,aux!$AL$1),"n.d.") -> n.d. | AA5: =O5-INDEX($K5:$O5,1,aux!$AL$1) -> -200.284 | AB5: -0.005791618278 | AC5: -0.00290334163 | AD5: =+IF(INDEX($K5:$O5,1,aux!$AL$1)>0,(O5/INDEX($K5:$O5,1,aux!$AL$1))^(1/($O$3-INDEX($K$3:$O$3,1,aux!$AL$1)))-1,"n.d.") -> -0.3210689523 | AE5: =IF(INDEX($K5:$O5,1,aux!$AL$1)>0,(O5-INDEX($K5:$O5,1,aux!$AL$1))/INDEX($K5:$O5,1,aux!$AL$1),"n.d.") -> -0.7875275244 | AX5: 01
A6: 0103 | B6: Suínos vivos | C6: 338.488 | D6: 674.977 | E6: 5009.955 | F6: 2430.955 | G6: 2609.196 | H6: 2212.7142 | I6: 0.007858210682 | J6: 0.007094388925 | K6: 0 | L6: 0 | M6: 0 | N6: 0 | O6: 0 | P6: 0 | Q6: 0 | R6: 0 | S6: -2212.7142 | U6: =G6-INDEX($C6:$G6,1,aux!$AL$1) -> 2270.708 | V6: 0.02312689112 | W6: 0.02247621644 | X6: =+IF(INDEX($C6:$G6,1,aux!$AL$1)>0,(G6/INDEX($C6:$G6,1,aux!$AL$1))^(1/($G$3-INDEX($C$3:$G$3,1,aux!$AL$1)))-1,"n.d.") -> 0.6662526642 | Y6: =IF(INDEX($C6:$G6,1,aux!$AL$1)>0,(G6-INDEX($C6:$G6,1,aux!$AL$1))/INDEX($C6:$G6,1,aux!$AL$1),"n.d.") -> 6.708385526 | AA6: =O6-INDEX($K6:$O6,1,aux!$AL$1) -> 0 | AB6: 0 | AC6: 0 | AD6: =+IF(INDEX($K6:$O6,1,aux!$AL$1)>0,(O6/INDEX($K6:$O6,1,aux!$AL$1))^(1/($O$3-INDEX($K$3:$O$3,1,aux!$AL$1)))-1,"n.d.") -> n.d. | AE6: =IF(INDEX($K6:$O6,1,aux!$AL$1)>0,(O6-INDEX($K6:$O6,1,aux!$AL$1))/INDEX($K6:$O6,1,aux!$AL$1),"n.d.") -> n.d. | AX6: 01
A7: 0104 | B7: Ovinos ou caprinos vivos | C7: 0 | D7: 0 | E7: 10.608 | F7: 10.048 | G7: 4.332 | H7: 4.9976 | I7: 1.774842576e-05 | J7: 1.602327047e-05 | K7: 0 | L7: 0 | M7: 0 | N7: 0 | O7: 0 | P7: 0 | Q7: 0 | R7: 0 | S7: -4.9976 | U7: =G7-INDEX($C7:$G7,1,aux!$AL$1) -> 4.332 | V7: 4.412090517e-05 | W7: 4.287956427e-05 | X7: =+IF(INDEX($C7:$G7,1,aux!$AL$1)>0,(G7/INDEX($C7:$G7,1,aux!$AL$1))^(1/($G$3-INDEX($C$3:$G$3,1,aux!$AL$1)))-1,"n.d.") -> n.d. | Y7: =IF(INDEX($C7:$G7,1,aux!$AL$1)>0,(G7-INDEX($C7:$G7,1,aux!$AL$1))/INDEX($C7:$G7,1,aux!$AL$1),"n.d.") -> n.d. | AA7: =O7-INDEX($K7:$O7,1,aux!$AL$1) -> 0 | AB7: 0 | AC7: 0 | AD7: =+IF(INDEX($K7:$O7,1,aux!$AL$1)>0,(O7/INDEX($K7:$O7,1,aux!$AL$1))^(1/($O$3-INDEX($K$3:$O$3,1,aux!$AL$1)))-1,"n.d.") -> n.d. | AE7: =IF(INDEX($K7:$O7,1,aux!$AL$1)>0,(O7-INDEX($K7:$O7,1,aux!$AL$1))/INDEX($K7:$O7,1,aux!$AL$1),"n.d.") -> n.d. | AX7: 01
A8: 0105 | B8: Aves de capoeira vivas | C8: 0 | D8: 0 | E8: 0 | F8: 0 | G8: 0 | H8: 0 | I8: 0 | J8: 0 | K8: 0 | L8: 0 | M8: 0 | N8: 0 | O8: 0 | P8: 0 | Q8: 0 | R8: 0 | S8: 0 | U8: =G8-INDEX($C8:$G8,1,aux!$AL$1) -> 0 | V8: 0 | W8: 0 | X8: =+IF(INDEX($C8:$G8,1,aux!$AL$1)>0,(G8/INDEX($C8:$G8,1,aux!$AL$1))^(1/($G$3-INDEX($C$3:$G$3,1,aux!$AL$1)))-1,"n.d.") -> n.d. | Y8: =IF(INDEX($C8:$G8,1,aux!$AL$1)>0,(G8-INDEX($C8:$G8,1,aux!$AL$1))/INDEX($C8:$G8,1,aux!$AL$1),"n.d.") -> n.d. | AA8: =O8-INDEX($K8:$O8,1,aux!$AL$1) -> 0 | AB8: 0 | AC8: 0 | AD8: =+IF(INDEX($K8:$O8,1,aux!$AL$1)>0,(O8/INDEX($K8:$O8,1,aux!$AL$1))^(1/($O$3-INDEX($K$3:$O$3,1,aux!$AL$1)))-1,"n.d.") -> n.d. | AE8: =IF(INDEX($K8:$O8,1,aux!$AL$1)>0,(O8-INDEX($K8:$O8,1,aux!$AL$1))/INDEX($K8:$O8,1,aux!$AL$1),"n.d.") -> n.d. | AX8: 01
A9: 0106 | B9: Outros animais vivos | C9: 160.333 | D9: 142.031 | E9: 4606.092 | F9: 4343.081 | G9: 26.423 | H9: 1855.592 | I9: 0.006589930537 | J9: 0.005949386204 | K9: 0 | L9: 0 | M9: 55.82 | N9: 174.273 | O9: 176.467 | P9: 81.312 | Q9: 0.0004662435148 | R9: 0.0003193973421 | S9: -1774.28 | U9: =G9-INDEX($C9:$G9,1,aux!$AL$1) -> -133.91 | V9: -0.001363857436 | W9: -0.00132548533 | X9: =+IF(INDEX($C9:$G9,1,aux!$AL$1)>0,(G9/INDEX($C9:$G9,1,aux!$AL$1))^(1/($G$3-INDEX($C$3:$G$3,1,aux!$AL$1)))-1,"n.d.") -> -0.3628527668 | Y9: =IF(INDEX($C9:$G9,1,aux!$AL$1)>0,(G9-INDEX($C9:$G9,1,aux!$AL$1))/INDEX($C9:$G9,1,aux!$AL$1),"n.d.") -> -0.8351992416 | AA9: =O9-INDEX($K9:$O9,1,aux!$AL$1) -> 176.467 | AB9: 0.005102901393 | AC9: 0.002558087453 | AD9: =+IF(INDEX($K9:$O9,1,aux!$AL$1)>0,(O9/INDEX($K9:$O9,1,aux!$AL$1))^(1/($O$3-INDEX($K$3:$O$3,1,aux!$AL$1)))-1,"n.d.") -> n.d. | AE9: =IF(INDEX($K9:$O9,1,aux!$AL$1)>0,(O9-INDEX($K9:$O9,1,aux!$AL$1))/INDEX($K9:$O9,1,aux!$AL$1),"n.d.") -> n.d. | AX9: 01
A10: 01SS | B10: Animais vivos | C10: 0 | D10: 0 | E10: 0 | F10: 0 | G10: 0 | H10: 0 | I10: 0 | J10: 0 | K10: 0 | L10: 0 | M10: 0 | N10: 0 | O10: 0 | P10: 0 | Q10: 0 | R10: 0 | S10: 0 | U10: =G10-INDEX($C10:$G10,1,aux!$AL$1) -> 0 | V10: 0 | W10: 0 | X10: =+IF(INDEX($C10:$G10,1,aux!$AL$1)>0,(G10/INDEX($C10:$G10,1,aux!$AL$1))^(1/($G$3-INDEX($C$3:$G$3,1,aux!$AL$1)))-1,"n.d.") -> n.d. | Y10: =IF(INDEX($C10:$G10,1,aux!$AL$1)>0,(G10-INDEX($C10:$G10,1,aux!$AL$1))/INDEX($C10:$G10,1,aux!$AL$1),"n.d.") -> n.d. | AA10: =O10-INDEX($K10:$O10,1,aux!$AL$1) -> 0 | AB10: 0 | AC10: 0 | AD10: =+IF(INDEX($K10:$O10,1,aux!$AL$1)>0,(O10/INDEX($K10:$O10,1,aux!$AL$1))^(1/($O$3-INDEX($K$3:$O$3,1,aux!$AL$1)))-1,"n.d.") -> n.d. | AE10: =IF(INDEX($K10:$O10,1,aux!$AL$1)>0,(O10-INDEX($K10:$O10,1,aux!$AL$1))/INDEX($K10:$O10,1,aux!$AL$1),"n.d.") -> n.d. | AX10: 01
A11: 0201 | B11: Carnes de bovino, frescas ou refrigeradas | C11: 10118.983 | D11: 10591.799 | E11: 13262.423 | F11: 18471.107 | G11: 22900.148 | H11: 15068.892 | I11: 0.05351550963 | J11: 0.04831377704 | K11: 1444.291 | L11: 815.152 | M11: 1511.195 | N11: 1684.982 | O11: 2746.77 | P11: 1640.478 | Q11: 0.009406511077 | R11: 0.006443874372 | S11: -13428.414 | U11: =G11-INDEX($C11:$G11,1,aux!$AL$1) -> 12781.165 | V11: 0.1301746466 | W11: 0.1265121852 | X11: =+IF(INDEX($C11:$G11,1,aux!$AL$1)>0,(G11/INDEX($C11:$G11,1,aux!$AL$1))^(1/($G$3-INDEX($C$3:$G$3,1,aux!$AL$1)))-1,"n.d.") -> 0.2265220373 | Y11: =IF(INDEX($C11:$G11,1,aux!$AL$1)>0,(G11-INDEX($C11:$G11,1,aux!$AL$1))/INDEX($C11:$G11,1,aux!$AL$1),"n.d.") -> 1.263087901 | AA11: =O11-INDEX($K11:$O11,1,aux!$AL$1) -> 1302.479 | AB11: 0.03766382328 | AC11: 0.01888089664 | AD11: =+IF(INDEX($K11:$O11,1,aux!$AL$1)>0,(O11/INDEX($K11:$O11,1,aux!$AL$1))^(1/($O$3-INDEX($K$3:$O$3,1,aux!$AL$1)))-1,"n.d.") -> 0.1743347101 | AE11: =IF(INDEX($K11:$O11,1,aux!$AL$1)>0,(O11-INDEX($K11:$O11,1,aux!$AL$1))/INDEX($K11:$O11,1,aux!$AL$1),"n.d.") -> 0.901812031 | AX11: 02
A12: 0202 | B12: Carnes de bovino, congeladas | C12: 1934.467 | D12: 1012.773 | E12: 1298.522 | F12: 1609.207 | G12: 3140.6 | H12: 1799.1138 | I12: 0.006389354432 | J12: 0.005768306191 | K12: 30.725 | L12: 38.021 | M12: 64.632 | N12: 48.417 | O12: 58.125 | P12: 47.984 | Q12: 0.0002751405551 | R12: 0.0001884833981 | S12: -1751.1298 | U12: =G12-INDEX($C12:$G12,1,aux!$AL$1) -> 1206.133 | V12: 0.01228432126 | W12: 0.0119387021 | X12: =+IF(INDEX($C12:$G12,1,aux!$AL$1)>0,(G12/INDEX($C12:$G12,1,aux!$AL$1))^(1/($G$3-INDEX($C$3:$G$3,1,aux!$AL$1)))-1,"n.d.") -> 0.1287891472 | Y12: =IF(INDEX($C12:$G12,1,aux!$AL$1)>0,(G12-INDEX($C12:$G12,1,aux!$AL$1))/INDEX($C12:$G12,1,aux!$AL$1),"n.d.") -> 0.6234962912 | AA12: =O12-INDEX($K12:$O12,1,aux!$AL$1) -> 27.4 | AB12: 0.0007923266003 | AC12: 0.0003971937882 | AD12: =+IF(INDEX($K12:$O12,1,aux!$AL$1)>0,(O12/INDEX($K12:$O12,1,aux!$AL$1))^(1/($O$3-INDEX($K$3:$O$3,1,aux!$AL$1)))-1,"n.d.") -> 0.1727832877 | AE12: =IF(INDEX($K12:$O12,1,aux!$AL$1)>0,(O12-INDEX($K12:$O12,1,aux!$AL$1))/INDEX($K12:$O12,1,aux!$AL$1),"n.d.") -> 0.8917819365 | AX12: 02
A13: 0203 | B13: Carnes de suíno | C13: 710.975 | D13: 491.59 | E13: 1436.843 | F13: 1564.508 | G13: 1981.787 | H13: 1237.1406 | I13: 0.004393568531 | J13: 0.003966511614 | K13: 2640.767 | L13: 827.047 | M13: 131.586 | N13: 252.867 | O13: 140.773 | P13: 798.608 | Q13: 0.00457922325 | R13: 0.003136969606 | S13: -438.5326 | U13: =G13-INDEX($C13:$G13,1,aux!$AL$1) -> 1270.812 | V13: 0.01294306919 | W13: 0.01257891617 | X13: =+IF(INDEX($C13:$G13,1,aux!$AL$1)>0,(G13/INDEX($C13:$G13,1,aux!$AL$1))^(1/($G$3-INDEX($C$3:$G$3,1,aux!$AL$1)))-1,"n.d.") -> 0.292113492 | Y13: =IF(INDEX($C13:$G13,1,aux!$AL$1)>0,(G13-INDEX($C13:$G13,1,aux!$AL$1))/INDEX($C13:$G13,1,aux!$AL$1),"n.d.") -> 1.787421499 | AA13: =O13-INDEX($K13:$O13,1,aux!$AL$1) -> -2499.994 | AB13: -0.07229239951 | AC13: -0.03624022217 | AD13: =+IF(INDEX($K13:$O13,1,aux!$AL$1)>0,(O13/INDEX($K13:$O13,1,aux!$AL$1))^(1/($O$3-INDEX($K$3:$O$3,1,aux!$AL$1)))-1,"n.d.") -> -0.5194956536 | AE13: =IF(INDEX($K13:$O13,1,aux!$AL$1)>0,(O13-INDEX($K13:$O13,1,aux!$AL$1))/INDEX($K13:$O13,1,aux!$AL$1),"n.d.") -> -0.9466923814 | AX13: 02
A14: 0204 | B14: Carnes de ovino ou caprino | C14: 431.106 | D14: 372.383 | E14: 506.768 | F14: 337.397 | G14: 972.709 | H14: 524.0726 | I14: 0.001861186096 | J14: 0.001680277936 | K14: 8.285 | L14: 14.604 | M14: 2.731 | N14: 23.974 | O14: 36.118 | P14: 17.1424 | Q14: 9.829462845e-05 | R14: 6.733614961e-05 | S14: -506.9302 | U14: =G14-INDEX($C14:$G14,1,aux!$AL$1) -> 541.603 | V14: 0.005516162189 | W14: 0.005360965062 | X14: =+IF(INDEX($C14:$G14,1,aux!$AL$1)>0,(G14/INDEX($C14:$G14,1,aux!$AL$1))^(1/($G$3-INDEX($C$3:$G$3,1,aux!$AL$1)))-1,"n.d.") -> 0.2256027217 | Y14: =IF(INDEX($C14:$G14,1,aux!$AL$1)>0,(G14-INDEX($C14:$G14,1,aux!$AL$1))/INDEX($C14:$G14,1,aux!$AL$1),"n.d.") -> 1.256310513 | AA14: =O14-INDEX($K14:$O14,1,aux!$AL$1) -> 27.833 | AB14: 0.0008048476739 | AC14: 0.0004034706097 | AD14: =+IF(INDEX($K14:$O14,1,aux!$AL$1)>0,(O14/INDEX($K14:$O14,1,aux!$AL$1))^(1/($O$3-INDEX($K$3:$O$3,1,aux!$AL$1)))-1,"n.d.") -> 0.4449665555 | AE14: =IF(INDEX($K14:$O14,1,aux!$AL$1)>0,(O14-INDEX($K14:$O14,1,aux!$AL$1))/INDEX($K14:$O14,1,aux!$AL$1),"n.d.") -> 3.35944478 | AX14: 02
A15: 0205 | B15: Carnes de equídeo | C15: 0 | D15: 0 | E15: 0 | F15: 0 | G15: 0 | H15: 0 | I15: 0 | J15: 0 | K15: 0 | L15: 0 | M15: 0 | N15: 0 | O15: 0 | P15: 0 | Q15: 0 | R15: 0 | S15: 0 | U15: =G15-INDEX($C15:$G15,1,aux!$AL$1) -> 0 | V15: 0 | W15: 0 | X15: =+IF(INDEX($C15:$G15,1,aux!$AL$1)>0,(G15/INDEX($C15:$G15,1,aux!$AL$1))^(1/($G$3-INDEX($C$3:$G$3,1,aux!$AL$1)))-1,"n.d.") -> n.d. | Y15: =IF(INDEX($C15:$G15,1,aux!$AL$1)>0,(G15-INDEX($C15:$G15,1,aux!$AL$1))/INDEX($C15:$G15,1,aux!$AL$1),"n.d.") -> n.d. | AA15: =O15-INDEX($K15:$O15,1,aux!$AL$1) -> 0 | AB15: 0 | AC15: 0 | AD15: =+IF(INDEX($K15:$O15,1,aux!$AL$1)>0,(O15/INDEX($K15:$O15,1,aux!$AL$1))^(1/($O$3-INDEX($K$3:$O$3,1,aux!$AL$1)))-1,"n.d.") -> n.d. | AE15: =IF(INDEX($K15:$O15,1,aux!$AL$1)>0,(O15-INDEX($K15:$O15,1,aux!$AL$1))/INDEX($K15:$O15,1,aux!$AL$1),"n.d.") -> n.d. | AX15: 02
A16: 0206 | B16: Miudezas de bovino, suíno, ovino, caprino,equídeo | C16: 116.987 | D16: 38.972 | E16: 157.172 | F16: 303.049 | G16: 406.488 | H16: 204.5336 | I16: 0.0007263785447 | J16: 0.0006557742101 | K16: 0.403 | L16: 2.794 | M16: 3.503 | N16: 16.145 | O16: 53.899 | P16: 15.3488 | Q16: 8.801011487e-05 | R16: 6.029080485e-05 | S16: -189.1848 | U16: =G16-INDEX($C16:$G16,1,aux!$AL$1) -> 289.501 | V16: 0.00294853328 | W16: 0.002865576347 | X16: =+IF(INDEX($C16:$G16,1,aux!$AL$1)>0,(G16/INDEX($C16:$G16,1,aux!$AL$1))^(1/($G$3-INDEX($C$3:$G$3,1,aux!$AL$1)))-1,"n.d.") -> 0.3652982428 | Y16: =IF(INDEX($C16:$G16,1,aux!$AL$1)>0,(G16-INDEX($C16:$G16,1,aux!$AL$1))/INDEX($C16:$G16,1,aux!$AL$1),"n.d.") -> 2.474642482 | AA16: =O16-INDEX($K16:$O16,1,aux!$AL$1) -> 53.496 | AB16: 0.001546945394 | AC16: 0.0007754846311 | AD16: =+IF(INDEX($K16:$O16,1,aux!$AL$1)>0,(O16/INDEX($K16:$O16,1,aux!$AL$1))^(1/($O$3-INDEX($K$3:$O$3,1,aux!$AL$1)))-1,"n.d.") -> 2.400704651 | AE16: =IF(INDEX($K16:$O16,1,aux!$AL$1)>0,(O16-INDEX($K16:$O16,1,aux!$AL$1))/INDEX($K16:$O16,1,aux!$AL$1),"n.d.") -> 132.7444169 | AX16: 02
A17: 0207 | B17: Carnes e miudezas de aves de capoeira | C17: 1447.272 | D17: 864.705 | E17: 980.849 | F17: 1784.649 | G17: 1716.125 | H17: 1358.72 | I17: 0.004825344375 | J17: 0.004356318643 | K17: 324.443 | L17: 226.868 | M17: 270.858 | N17: 197.072 | O17: 451.161 | P17: 294.0804 | Q17: 0.001686258847 | R17: 0.001155161577 | S17: -1064.6396 | U17: =G17-INDEX($C17:$G17,1,aux!$AL$1) -> 268.853 | V17: 0.002738235854 | W17: 0.002661195635 | X17: =+IF(INDEX($C17:$G17,1,aux!$AL$1)>0,(G17/INDEX($C17:$G17,1,aux!$AL$1))^(1/($G$3-INDEX($C$3:$G$3,1,aux!$AL$1)))-1,"n.d.") -> 0.04351738668 | Y17: =IF(INDEX($C17:$G17,1,aux!$AL$1)>0,(G17-INDEX($C17:$G17,1,aux!$AL$1))/INDEX($C17:$G17,1,aux!$AL$1),"n.d.") -> 0.1857653572 | AA17: =O17-INDEX($K17:$O17,1,aux!$AL$1) -> 126.718 | AB17: 0.003664308107 | AC17: 0.001836919798 | AD17: =+IF(INDEX($K17:$O17,1,aux!$AL$1)>0,(O17/INDEX($K17:$O17,1,aux!$AL$1))^(1/($O$3-INDEX($K$3:$O$3,1,aux!$AL$1)))-1,"n.d.") -> 0.08592113439 | AE17: =IF(INDEX($K17:$O17,1,aux!$AL$1)>0,(O17-INDEX($K17:$O17,1,aux!$AL$1))/INDEX($K17:$O17,1,aux!$AL$1),"n.d.") -> 0.3905709169 | AX17: 02
A18: 0208 | B18: Outras carnes e miudezas | C18: 0 | D18: 11.072 | E18: 35.03 | F18: 17.406 | G18: 0 | H18: 12.7016 | I18: 4.510833292e-05 | J18: 4.072378185e-05 | K18: 1.126 | L18: 5.851 | M18: 14.665 | N18: 0.344 | O18: 1.397 | P18: 4.6766 | Q18: 2.681565355e-05 | R18: 1.83699037e-05 | S18: -8.025 | U18: =G18-INDEX($C18:$G18,1,aux!$AL$1) -> 0 | V18: 0 | W18: 0 | X18: =+IF(INDEX($C18:$G18,1,aux!$AL$1)>0,(G18/INDEX($C18:$G18,1,aux!$AL$1))^(1/($G$3-INDEX($C$3:$G$3,1,aux!$AL$1)))-1,"n.d.") -> n.d. | Y18: =IF(INDEX($C18:$G18,1,aux!$AL$1)>0,(G18-INDEX($C18:$G18,1,aux!$AL$1))/INDEX($C18:$G18,1,aux!$AL$1),"n.d.") -> n.d. | AA18: =O18-INDEX($K18:$O18,1,aux!$AL$1) -> 0.271 | AB18: 7.836514915e-06 | AC18: 3.928449511e-06 | AD18: =+IF(INDEX($K18:$O18,1,aux!$AL$1)>0,(O18/INDEX($K18:$O18,1,aux!$AL$1))^(1/($O$3-INDEX($K$3:$O$3,1,aux!$AL$1)))-1,"n.d.") -> 0.0553937158 | AE18: =IF(INDEX($K18:$O18,1,aux!$AL$1)>0,(O18-INDEX($K18:$O18,1,aux!$AL$1))/INDEX($K18:$O18,1,aux!$AL$1),"n.d.") -> 0.2406749556 | AX18: 02
A19: 0209 | B19: Toucinho, gorduras de porco e de aves | C19: 1.227 | D19: 8.58 | E19: 52.31 | F19: 104.009 | G19: 192.298 | H19: 71.6848 | I19: 0.0002545806689 | J19: 0.0002298353087 | K19: 9.203 | L19: 15.405 | M19: 12.411 | N19: 9.584 | O19: 37.406 | P19: 16.8018 | Q19: 9.634162593e-05 | R19: 6.599825687e-05 | S19: -54.883 | U19: =G19-INDEX($C19:$G19,1,aux!$AL$1) -> 191.071 | V19: 0.001946035428 | W19: 0.001891283755 | X19: =+IF(INDEX($C19:$G19,1,aux!$AL$1)>0,(G19/INDEX($C19:$G19,1,aux!$AL$1))^(1/($G$3-INDEX($C$3:$G$3,1,aux!$AL$1)))-1,"n.d.") -> 2.538201409 | Y19: =IF(INDEX($C19:$G19,1,aux!$AL$1)>0,(G19-INDEX($C19:$G19,1,aux!$AL$1))/INDEX($C19:$G19,1,aux!$AL$1),"n.d.") -> 155.7220864 | AA19: =O19-INDEX($K19:$O19,1,aux!$AL$1) -> 28.203 | AB19: 0.0008155469747 | AC19: 0.0004088341755 | AD19: =+IF(INDEX($K19:$O19,1,aux!$AL$1)>0,(O19/INDEX($K19:$O19,1,aux!$AL$1))^(1/($O$3-INDEX($K$3:$O$3,1,aux!$AL$1)))-1,"n.d.") -> 0.4198843156 | AE19: =IF(INDEX($K19:$O19,1,aux!$AL$1)>0,(O19-INDEX($K19:$O19,1,aux!$AL$1))/INDEX($K19:$O19,1,aux!$AL$1),"n.d.") -> 3.06454417 | AX19: 02
A20: 0210 | B20: Carnes e miudezas processadas; farinhas de carnes | C20: 458.077 | D20: 189.335 | E20: 161.722 | F20: 245.748 | G20: 528.731 | H20: 316.7226 | I20: 0.001124805417 | J20: 0.001015473804 | K20: 309.46 | L20: 559.057 | M20: 371.495 | N20: 480.197 | O20: 510.838 | P20: 446.2094 | Q20: 0.002558567481 | R20: 0.00175273141 | S20: 129.4868 | U20: =G20-INDEX($C20:$G20,1,aux!$AL$1) -> 70.654 | V20: 0.0007196025933 | W20: 0.0006993565868 | X20: =+IF(INDEX($C20:$G20,1,aux!$AL$1)>0,(G20/INDEX($C20:$G20,1,aux!$AL$1))^(1/($G$3-INDEX($C$3:$G$3,1,aux!$AL$1)))-1,"n.d.") -> 0.0365113736 | Y20: =IF(INDEX($C20:$G20,1,aux!$AL$1)>0,(G20-INDEX($C20:$G20,1,aux!$AL$1))/INDEX($C20:$G20,1,aux!$AL$1),"n.d.") -> 0.1542404443 | AA20: =O20-INDEX($K20:$O20,1,aux!$AL$1) -> 201.378 | AB20: 0.005823253508 | AC20: 0.00291920039 | AD20: =+IF(INDEX($K20:$O20,1,aux!$AL$1)>0,(O20/INDEX($K20:$O20,1,aux!$AL$1))^(1/($O$3-INDEX($K$3:$O$3,1,aux!$AL$1)))-1,"n.d.") -> 0.1334951564 | AE20: =IF(INDEX($K20:$O20,1,aux!$AL$1)>0,(O20-INDEX($K20:$O20,1,aux!$AL$1))/INDEX($K20:$O20,1,aux!$AL$1),"n.d.") -> 0.6507399987 | AX20: 02
A21: 02SS | B21: Carnes e miudezas, comestíveis | C21: 0 | D21: 0 | E21: 0 | F21: 0 | G21: 0 | H21: 0 | I21: 0 | J21: 0 | K21: 0 | L21: 0 | M21: 0 | N21: 0 | O21: 0 | P21: 0 | Q21: 0 | R21: 0 | S21: 0 | U21: =G21-INDEX($C21:$G21,1,aux!$AL$1) -> 0 | V21: 0 | W21: 0 | X21: =+IF(INDEX($C21:$G21,1,aux!$AL$1)>0,(G21/INDEX($C21:$G21,1,aux!$AL$1))^(1/($G$3-INDEX($C$3:$G$3,1,aux!$AL$1)))-1,"n.d.") -> n.d. | Y21: =IF(INDEX($C21:$G21,1,aux!$AL$1)>0,(G21-INDEX($C21:$G21,1,aux!$AL$1))/INDEX($C21:$G21,1,aux!$AL$1),"n.d.") -> n.d. | AA21: =O21-INDEX($K21:$O21,1,aux!$AL$1) -> 0 | AB21: 0 | AC21: 0 | AD21: =+IF(INDEX($K21:$O21,1,aux!$AL$1)>0,(O21/INDEX($K21:$O21,1,aux!$AL$1))^(1/($O$3-INDEX($K$3:$O$3,1,aux!$AL$1)))-1,"n.d.") -> n.d. | AE21: =IF(INDEX($K21:$O21,1,aux!$AL$1)>0,(O21-INDEX($K21:$O21,1,aux!$AL$1))/INDEX($K21:$O21,1,aux!$AL$1),"n.d.") -> n.d. | AX21: 02
A22: 0401 | B22: Leite e nata, não concentrados | C22: 125.657 | D22: 221.275 | E22: 199.416 | F22: 179.246 | G22: 122.172 | H22: 169.5532 | I22: 0.0006021495082 | J22: 0.0005436202942 | K22: 35.786 | L22: 36.038 | M22: 50.848 | N22: 107.529 | O22: 144.117 | P22: 74.8636 | Q22: 0.000429268349 | R22: 0.000294067725 | S22: -94.6896 | U22: =G22-INDEX($C22:$G22,1,aux!$AL$1) -> -3.485 | V22: -3.549431083e-05 | W22: -3.449567901e-05 | X22: =+IF(INDEX($C22:$G22,1,aux!$AL$1)>0,(G22/INDEX($C22:$G22,1,aux!$AL$1))^(1/($G$3-INDEX($C$3:$G$3,1,aux!$AL$1)))-1,"n.d.") -> -0.007006857903 | Y22: =IF(INDEX($C22:$G22,1,aux!$AL$1)>0,(G22-INDEX($C22:$G22,1,aux!$AL$1))/INDEX($C22:$G22,1,aux!$AL$1),"n.d.") -> -0.02773422889 | AA22: =O22-INDEX($K22:$O22,1,aux!$AL$1) -> 108.331 | AB22: 0.003132610691 | AC22: 0.001570379572 | AD22: =+IF(INDEX($K22:$O22,1,aux!$AL$1)>0,(O22/INDEX($K22:$O22,1,aux!$AL$1))^(1/($O$3-INDEX($K$3:$O$3,1,aux!$AL$1)))-1,"n.d.") -> 0.4166106872 | AE22: =IF(INDEX($K22:$O22,1,aux!$AL$1)>0,(O22-INDEX($K22:$O22,1,aux!$AL$1))/INDEX($K22:$O22,1,aux!$AL$1),"n.d.") -> 3.027189404 | AX22: 04
A23: 0402 | B23: Leite e nata, concentrados | C23: 482.947 | D23: 309.239 | E23: 985.781 | F23: 605.343 | G23: 430.207 | H23: 562.7034 | I23: 0.001998379126 | J23: 0.001804135739 | K23: 657.253 | L23: 2263.79 | M23: 1589.239 | N23: 2037.044 | O23: 3000.776 | P23: 1909.6204 | Q23: 0.01094977528 | R23: 0.007501078318 | S23: 1346.917 | U23: =G23-INDEX($C23:$G23,1,aux!$AL$1) -> -52.74 | V23: -0.0005371506322 | W23: -0.0005220379085 | X23: =+IF(INDEX($C23:$G23,1,aux!$AL$1)>0,(G23/INDEX($C23:$G23,1,aux!$AL$1))^(1/($G$3-INDEX($C$3:$G$3,1,aux!$AL$1)))-1,"n.d.") -> -0.02849620821 | Y23: =IF(INDEX($C23:$G23,1,aux!$AL$1)>0,(G23-INDEX($C23:$G23,1,aux!$AL$1))/INDEX($C23:$G23,1,aux!$AL$1),"n.d.") -> -0.1092045297 | AA23: =O23-INDEX($K23:$O23,1,aux!$AL$1) -> 2343.523 | AB23: 0.06776772304 | AC23: 0.0339719992 | AD23: =+IF(INDEX($K23:$O23,1,aux!$AL$1)>0,(O23/INDEX($K23:$O23,1,aux!$AL$1))^(1/($O$3-INDEX($K$3:$O$3,1,aux!$AL$1)))-1,"n.d.") -> 0.4617572286 | AE23: =IF(INDEX($K23:$O23,1,aux!$AL$1)>0,(O23-INDEX($K23:$O23,1,aux!$AL$1))/INDEX($K23:$O23,1,aux!$AL$1),"n.d.") -> 3.565633021 | AX23: 04
A24: 0403 | B24: Leitelho, leite coalhado, iogurte, etc. | C24: 1990.713 | D24: 1458.764 | E24: 3829.653 | F24: 1793.689 | G24: 436.303 | H24: 1901.8244 | I24: 0.006754119811 | J24: 0.006097616204 | K24: 88.574 | L24: 106.967 | M24: 148.914 | N24: 126.491 | O24: 107.273 | P24: 115.6438 | Q24: 0.00066310227 | R24: 0.0004542542595 | S24: -1786.1806 | U24: =G24-INDEX($C24:$G24,1,aux!$AL$1) -> -1554.41 | V24: -0.01583148112 | W24: -0.01538606267 | X24: =+IF(INDEX($C24:$G24,1,aux!$AL$1)>0,(G24/INDEX($C24:$G24,1,aux!$AL$1))^(1/($G$3-INDEX($C$3:$G$3,1,aux!$AL$1)))-1,"n.d.") -> -0.3157813832 | Y24: =IF(INDEX($C24:$G24,1,aux!$AL$1)>0,(G24-INDEX($C24:$G24,1,aux!$AL$1))/INDEX($C24:$G24,1,aux!$AL$1),"n.d.") -> -0.7808307878 | AA24: =O24-INDEX($K24:$O24,1,aux!$AL$1) -> 18.699 | AB24: 0.0005407195291 | AC24: 0.0002710630163 | AD24: =+IF(INDEX($K24:$O24,1,aux!$AL$1)>0,(O24/INDEX($K24:$O24,1,aux!$AL$1))^(1/($O$3-INDEX($K$3:$O$3,1,aux!$AL$1)))-1,"n.d.") -> 0.04904964734 | AE24: =IF(INDEX($K24:$O24,1,aux!$AL$1)>0,(O24-INDEX($K24:$O24,1,aux!$AL$1))/INDEX($K24:$O24,1,aux!$AL$1),"n.d.") -> 0.2111116129 | AX24: 04
A25: 0404 | B25: Soro de leite e outros produtos do leite | C25: 2.407 | D25: 11.458 | E25: 8.237 | F25: 10.621 | G25: 565.536 | H25: 119.6518 | I25: 0.0004249301843 | J25: 0.0003836267715 | K25: 1003.142 | L25: 1110.647 | M25: 1241.198 | N25: 827.49 | O25: 935.673 | P25: 1023.63 | Q25: 0.0058695008 | R25: 0.004020866555 | S25: 903.9782 | U25: =G25-INDEX($C25:$G25,1,aux!$AL$1) -> 563.129 | V25: 0.005735401941 | W25: 0.005574036507 | X25: =+IF(INDEX($C25:$G25,1,aux!$AL$1)>0,(G25/INDEX($C25:$G25,1,aux!$AL$1))^(1/($G$3-INDEX($C$3:$G$3,1,aux!$AL$1)))-1,"n.d.") -> 2.915128686 | Y25: =IF(INDEX($C25:$G25,1,aux!$AL$1)>0,(G25-INDEX($C25:$G25,1,aux!$AL$1))/INDEX($C25:$G25,1,aux!$AL$1),"n.d.") -> 233.9547154 | AA25: =O25-INDEX($K25:$O25,1,aux!$AL$1) -> -67.469 | AB25: -0.001951003044 | AC25: -0.000978038967 | AD25: =+IF(INDEX($K25:$O25,1,aux!$AL$1)>0,(O25/INDEX($K25:$O25,1,aux!$AL$1))^(1/($O$3-INDEX($K$3:$O$3,1,aux!$AL$1)))-1,"n.d.") -> -0.01725595496 | AE25: =IF(INDEX($K25:$O25,1,aux!$AL$1)>0,(O25-INDEX($K25:$O25,1,aux!$AL$1))/INDEX($K25:$O25,1,aux!$AL$1),"n.d.") -> -0.06725767638 | AX25: 04
A26: 0405 | B26: Manteiga | C26: 9054.612 | D26: 9924.733 | E26: 9135.844 | F26: 9787.397 | G26: 9468.498 | H26: 9474.2168 | I26: 0.03364663709 | J26: 0.03037616821 | K26: 3570.075 | L26: 1366.976 | M26: 2327.366 | N26: 51.221 | O26: 58.84 | P26: 1474.8956 | Q26: 0.008457060563 | R26: 0.005793458954 | S26: -7999.3212 | U26: =G26-INDEX($C26:$G26,1,aux!$AL$1) -> 413.886 | V26: 0.004215379723 | W26: 0.004096780087 | X26: =+IF(INDEX($C26:$G26,1,aux!$AL$1)>0,(G26/INDEX($C26:$G26,1,aux!$AL$1))^(1/($G$3-INDEX($C$3:$G$3,1,aux!$AL$1)))-1,"n.d.") -> 0.01123667428 | Y26: =IF(INDEX($C26:$G26,1,aux!$AL$1)>0,(G26-INDEX($C26:$G26,1,aux!$AL$1))/INDEX($C26:$G26,1,aux!$AL$1),"n.d.") -> 0.04570996526 | AA26: =O26-INDEX($K26:$O26,1,aux!$AL$1) -> -3511.235 | AB26: -0.101534485 | AC26: -0.05089929675 | AD26: =+IF(INDEX($K26:$O26,1,aux!$AL$1)>0,(O26/INDEX($K26:$O26,1,aux!$AL$1))^(1/($O$3-INDEX($K$3:$O$3,1,aux!$AL$1)))-1,"n.d.") -> -0.6416983311 | AE26: =IF(INDEX($K26:$O26,1,aux!$AL$1)>0,(O26-INDEX($K26:$O26,1,aux!$AL$1))/INDEX($K26:$O26,1,aux!$AL$1),"n.d.") -> -0.9835185535 | AX26: 04
A27: 0406 | B27: Queijos e requeijão | C27: 12482.309 | D27: 10134.254 | E27: 14989.004 | F27: 23823.985 | G27: 22950.163 | H27: 16875.943 | I27: 0.05993305215 | J27: 0.05410753143 | K27: 1020.074 | L27: 1065.528 | M27: 1388.863 | N27: 2226.59 | O27: 2048.025 | P27: 1549.816 | Q27: 0.008886654604 | R27: 0.006087749792 | S27: -15326.127 | U27: =G27-INDEX($C27:$G27,1,aux!$AL$1) -> 10467.854 | V27: 0.106613849 | W27: 0.1036142702 | X27: =+IF(INDEX($C27:$G27,1,aux!$AL$1)>0,(G27/INDEX($C27:$G27,1,aux!$AL$1))^(1/($G$3-INDEX($C$3:$G$3,1,aux!$AL$1)))-1,"n.d.") -> 0.1644550033 | Y27: =IF(INDEX($C27:$G27,1,aux!$AL$1)>0,(G27-INDEX($C27:$G27,1,aux!$AL$1))/INDEX($C27:$G27,1,aux!$AL$1),"n.d.") -> 0.8386151953 | AA27: =O27-INDEX($K27:$O27,1,aux!$AL$1) -> 1027.951 | AB27: 0.02972528909 | AC27: 0.01490130481 | AD27: =+IF(INDEX($K27:$O27,1,aux!$AL$1)>0,(O27/INDEX($K27:$O27,1,aux!$AL$1))^(1/($O$3-INDEX($K$3:$O$3,1,aux!$AL$1)))-1,"n.d.") -> 0.1903533373 | AE27: =IF(INDEX($K27:$O27,1,aux!$AL$1)>0,(O27-INDEX($K27:$O27,1,aux!$AL$1))/INDEX($K27:$O27,1,aux!$AL$1),"n.d.") -> 1.007721989 | AX27: 04
A28: 0407 | B28: Ovos de aves, com cascas | C28: 0 | D28: 0 | E28: 0 | F28: 0 | G28: 0 | H28: 0 | I28: 0 | J28: 0 | K28: 1047.703 | L28: 1325.999 | M28: 216.641 | N28: 4.817 | O28: 23.324 | P28: 523.6968 | Q28: 0.003002880715 | R28: 0.002057105544 | S28: 523.6968 | U28: =G28-INDEX($C28:$G28,1,aux!$AL$1) -> 0 | V28: 0 | W28: 0 | X28: =+IF(INDEX($C28:$G28,1,aux!$AL$1)>0,(G28/INDEX($C28:$G28,1,aux!$AL$1))^(1/($G$3-INDEX($C$3:$G$3,1,aux!$AL$1)))-1,"n.d.") -> n.d. | Y28: =IF(INDEX($C28:$G28,1,aux!$AL$1)>0,(G28-INDEX($C28:$G28,1,aux!$AL$1))/INDEX($C28:$G28,1,aux!$AL$1),"n.d.") -> n.d. | AA28: =O28-INDEX($K28:$O28,1,aux!$AL$1) -> -1024.379 | AB28: -0.02962199746 | AC28: -0.01484952466 | AD28: =+IF(INDEX($K28:$O28,1,aux!$AL$1)>0,(O28/INDEX($K28:$O28,1,aux!$AL$1))^(1/($O$3-INDEX($K$3:$O$3,1,aux!$AL$1)))-1,"n.d.") -> -0.6137297939 | AE28: =IF(INDEX($K28:$O28,1,aux!$AL$1)>0,(O28-INDEX($K28:$O28,1,aux!$AL$1))/INDEX($K28:$O28,1,aux!$AL$1),"n.d.") -> -0.9777379658 | AX28: 04
A29: 0408 | B29: Ovos de aves, sem casca | C29: 212.541 | D29: 156.181 | E29: 24.995 | F29: 120.551 | G29: 283.906 | H29: 159.6348 | I29: 0.0005669254035 | J29: 0.0005118199889 | K29: 1.381 | L29: 1.576 | M29: 1.496 | N29: 1.825 | O29: 1.839 | P29: 1.6234 | Q29: 9.308585719e-06 | R29: 6.376791189e-06 | S29: -158.0114 | U29: =G29-INDEX($C29:$G29,1,aux!$AL$1) -> 71.365 | V29: 0.0007268440438 | W29: 0.0007063942992 | X29: =+IF(INDEX($C29:$G29,1,aux!$AL$1)>0,(G29/INDEX($C29:$G29,1,aux!$AL$1))^(1/($G$3-INDEX($C$3:$G$3,1,aux!$AL$1)))-1,"n.d.") -> 0.07506064252 | Y29: =IF(INDEX($C29:$G29,1,aux!$AL$1)>0,(G29-INDEX($C29:$G29,1,aux!$AL$1))/INDEX($C29:$G29,1,aux!$AL$1),"n.d.") -> 0.3357705102 | AA29: =O29-INDEX($K29:$O29,1,aux!$AL$1) -> 0.458 | AB29: 1.324399938e-05 | AC29: 6.639224635e-06 | AD29: =+IF(INDEX($K29:$O29,1,aux!$AL$1)>0,(O29/INDEX($K29:$O29,1,aux!$AL$1))^(1/($O$3-INDEX($K$3:$O$3,1,aux!$AL$1)))-1,"n.d.") -> 0.0742293468 | AE29: =IF(INDEX($K29:$O29,1,aux!$AL$1)>0,(O29-INDEX($K29:$O29,1,aux!$AL$1))/INDEX($K29:$O29,1,aux!$AL$1),"n.d.") -> 0.3316437364 | AX29: 04
A30: 0409 | B30: Mel natural | C30: 560.853 | D30: 704.421 | E30: 1096.72 | F30: 232.74 | G30: 370.027 | H30: 592.9522 | I30: 0.002105804406 | J30: 0.001901119232 | K30: 242.689 | L30: 14.961 | M30: 97.726 | N30: 52.84 | O30: 185.714 | P30: 118.786 | Q30: 0.0006811196644 | R30: 0.0004665969682 | S30: -474.1662 | U30: =G30-INDEX($C30:$G30,1,aux!$AL$1) -> -190.826 | V30: -0.001943540132 | W30: -0.001888858664 | X30: =+IF(INDEX($C30:$G30,1,aux!$AL$1)>0,(G30/INDEX($C30:$G30,1,aux!$AL$1))^(1/($G$3-INDEX($C$3:$G$3,1,aux!$AL$1)))-1,"n.d.") -> -0.09874831052 | Y30: =IF(INDEX($C30:$G30,1,aux!$AL$1)>0,(G30-INDEX($C30:$G30,1,aux!$AL$1))/INDEX($C30:$G30,1,aux!$AL$1),"n.d.") -> -0.3402424521 | AA30: =O30-INDEX($K30:$O30,1,aux!$AL$1) -> -56.975 | AB30: -0.001647547739 | AC30: -0.0008259166453 | AD30: =+IF(INDEX($K30:$O30,1,aux!$AL$1)>0,(O30/INDEX($K30:$O30,1,aux!$AL$1))^(1/($O$3-INDEX($K$3:$O$3,1,aux!$AL$1)))-1,"n.d.") -> -0.06470494542 | AE30: =IF(INDEX($K30:$O30,1,aux!$AL$1)>0,(O30-INDEX($K30:$O30,1,aux!$AL$1))/INDEX($K30:$O30,1,aux!$AL$1),"n.d.") -> -0.2347654817 | AX30: 04
A31: 0410 | B31: Outros produtos comestíveis de origem animal | C31: 0 | D31: 1.856 | E31: 0.523 | F31: 0 | G31: 0 | H31: 0.4758 | I31: 1.689751276e-06 | J31: 1.525506661e-06 | K31: 0 | L31: 0 | M31: 0 | N31: 0 | O31: 0 | P31: 0 | Q31: 0 | R31: 0 | S31: -0.4758 | U31: =G31-INDEX($C31:$G31,1,aux!$AL$1) -> 0 | V31: 0 | W31: 0 | X31: =+IF(INDEX($C31:$G31,1,aux!$AL$1)>0,(G31/INDEX($C31:$G31,1,aux!$AL$1))^(1/($G$3-INDEX($C$3:$G$3,1,aux!$AL$1)))-1,"n.d.") -> n.d. | Y31: =IF(INDEX($C31:$G31,1,aux!$AL$1)>0,(G31-INDEX($C31:$G31,1,aux!$AL$1))/INDEX($C31:$G31,1,aux!$AL$1),"n.d.") -> n.d. | AA31: =O31-INDEX($K31:$O31,1,aux!$AL$1) -> 0 | AB31: 0 | AC31: 0 | AD31: =+IF(INDEX($K31:$O31,1,aux!$AL$1)>0,(O31/INDEX($K31:$O31,1,aux!$AL$1))^(1/($O$3-INDEX($K$3:$O$3,1,aux!$AL$1)))-1,"n.d.") -> n.d. | AE31: =IF(INDEX($K31:$O31,1,aux!$AL$1)>0,(O31-INDEX($K31:$O31,1,aux!$AL$1))/INDEX($K31:$O31,1,aux!$AL$1),"n.d.") -> n.d. | AX31: 04
A32: 04SS | B32: Leite e lacticínios; ovos de aves; mel natural; etc. | C32: 0 | D32: 0 | E32: 0 | F32: 0 | G32: 0 | H32: 0 | I32: 0 | J32: 0 | K32: 0 | L32: 0 | M32: 0 | N32: 0 | O32: 0 | P32: 0 | Q32: 0 | R32: 0 | S32: 0 | U32: =G32-INDEX($C32:$G32,1,aux!$AL$1) -> 0 | V32: 0 | W32: 0 | X32: =+IF(INDEX($C32:$G32,1,aux!$AL$1)>0,(G32/INDEX($C32:$G32,1,aux!$AL$1))^(1/($G$3-INDEX($C$3:$G$3,1,aux!$AL$1)))-1,"n.d.") -> n.d. | Y32: =IF(INDEX($C32:$G32,1,aux!$AL$1)>0,(G32-INDEX($C32:$G32,1,aux!$AL$1))/INDEX($C32:$G32,1,aux!$AL$1),"n.d.") -> n.d. | AA32: =O32-INDEX($K32:$O32,1,aux!$AL$1) -> 0 | AB32: 0 | AC32: 0 | AD32: =+IF(INDEX($K32:$O32,1,aux!$AL$1)>0,(O32/INDEX($K32:$O32,1,aux!$AL$1))^(1/($O$3-INDEX($K$3:$O$3,1,aux!$AL$1)))-1,"n.d.") -> n.d. | AE32: =IF(INDEX($K32:$O32,1,aux!$AL$1)>0,(O32-INDEX($K32:$O32,1,aux!$AL$1))/INDEX($K32:$O32,1,aux!$AL$1),"n.d.") -> n.d. | AX32: 04
A33: 0501 | B33: Cabelos em bruto | C33: 0 | D33: 0 | E33: 0 | F33: 0 | G33: 0 | H33: 0 | I33: 0 | J33: 0 | K33: 0 | L33: 0 | M33: 0 | N33: 0 | O33: 0 | P33: 0 | Q33: 0 | R33: 0 | S33: 0 | U33: =G33-INDEX($C33:$G33,1,aux!$AL$1) -> 0 | V33: 0 | W33: 0 | X33: =+IF(INDEX($C33:$G33,1,aux!$AL$1)>0,(G33/INDEX($C33:$G33,1,aux!$AL$1))^(1/($G$3-INDEX($C$3:$G$3,1,aux!$AL$1)))-1,"n.d.") -> n.d. | Y33: =IF(INDEX($C33:$G33,1,aux!$AL$1)>0,(G33-INDEX($C33:$G33,1,aux!$AL$1))/INDEX($C33:$G33,1,aux!$AL$1),"n.d.") -> n.d. | AA33: =O33-INDEX($K33:$O33,1,aux!$AL$1) -> 0 | AB33: 0 | AC33: 0 | AD33: =+IF(INDEX($K33:$O33,1,aux!$AL$1)>0,(O33/INDEX($K33:$O33,1,aux!$AL$1))^(1/($O$3-INDEX($K$3:$O$3,1,aux!$AL$1)))-1,"n.d.") -> n.d. | AE33: =IF(INDEX($K33:$O33,1,aux!$AL$1)>0,(O33-INDEX($K33:$O33,1,aux!$AL$1))/INDEX($K33:$O33,1,aux!$AL$1),"n.d.") -> n.d. | AX33: 05
A34: 0502 | B34: Cerdas de porco ou de javali, etc. | C34: 0 | D34: 0 | E34: 0 | F34: 0 | G34: 0 | H34: 0 | I34: 0 | J34: 0 | K34: 0 | L34: 0 | M34: 0.835 | N34: 0 | O34: 0 | P34: 0.167 | Q34: 9.575790409e-07 | R34: 6.55983817e-07 | S34: 0.167 | U34: =G34-INDEX($C34:$G34,1,aux!$AL$1) -> 0 | V34: 0 | W34: 0 | X34: =+IF(INDEX($C34:$G34,1,aux!$AL$1)>0,(G34/INDEX($C34:$G34,1,aux!$AL$1))^(1/($G$3-INDEX($C$3:$G$3,1,aux!$AL$1)))-1,"n.d.") -> n.d. | Y34: =IF(INDEX($C34:$G34,1,aux!$AL$1)>0,(G34-INDEX($C34:$G34,1,aux!$AL$1))/INDEX($C34:$G34,1,aux!$AL$1),"n.d.") -> n.d. | AA34: =O34-INDEX($K34:$O34,1,aux!$AL$1) -> 0 | AB34: 0 | AC34: 0 | AD34: =+IF(INDEX($K34:$O34,1,aux!$AL$1)>0,(O34/INDEX($K34:$O34,1,aux!$AL$1))^(1/($O$3-INDEX($K$3:$O$3,1,aux!$AL$1)))-1,"n.d.") -> n.d. | AE34: =IF(INDEX($K34:$O34,1,aux!$AL$1)>0,(O34-INDEX($K34:$O34,1,aux!$AL$1))/INDEX($K34:$O34,1,aux!$AL$1),"n.d.") -> n.d. | AX34: 05
A35: 0504 | B35: Tripas de animais (excepto peixes) | C35: 77.067 | D35: 0 | E35: 0.384 | F35: 0.83 | G35: 0.733 | H35: 15.8028 | I35: 5.612190303e-05 | J35: 5.066682779e-05 | K35: 120.312 | L35: 64.459 | M35: 55.812 | N35: 7.339 | O35: 2.428 | P35: 50.07 | Q35: 0.0002871016921 | R35: 0.0001966773037 | S35: 34.2672 | U35: =G35-INDEX($C35:$G35,1,aux!$AL$1) -> -76.334 | V35: -0.0007774527182 | W35: -0.0007555790995 | X35: =+IF(INDEX($C35:$G35,1,aux!$AL$1)>0,(G35/INDEX($C35:$G35,1,aux!$AL$1))^(1/($G$3-INDEX($C$3:$G$3,1,aux!$AL$1)))-1,"n.d.") -> -0.6877094229 | Y35: =IF(INDEX($C35:$G35,1,aux!$AL$1)>0,(G35-INDEX($C35:$G35,1,aux!$AL$1))/INDEX($C35:$G35,1,aux!$AL$1),"n.d.") -> -0.9904887955 | AA35: =O35-INDEX($K35:$O35,1,aux!$AL$1) -> -117.884 | AB35: -0.003408855071 | AC35: -0.001708861041 | AD35: =+IF(INDEX($K35:$O35,1,aux!$AL$1)>0,(O35/INDEX($K35:$O35,1,aux!$AL$1))^(1/($O$3-INDEX($K$3:$O$3,1,aux!$AL$1)))-1,"n.d.") -> -0.6230923659 | AE35: =IF(INDEX($K35:$O35,1,aux!$AL$1)>0,(O35-INDEX($K35:$O35,1,aux!$AL$1))/INDEX($K35:$O35,1,aux!$AL$1),"n.d.") -> -0.9798191369 | AX35: 05
A36: 0505 | B36: Peles e outras partes de aves | C36: 0 | D36: 0 | E36: 0 | F36: 0 | G36: 0 | H36: 0 | I36: 0 | J36: 0 | K36: 0 | L36: 0 | M36: 0 | N36: 0 | O36: 0 | P36: 0 | Q36: 0 | R36: 0 | S36: 0 | U36: =G36-INDEX($C36:$G36,1,aux!$AL$1) -> 0 | V36: 0 | W36: 0 | X36: =+IF(INDEX($C36:$G36,1,aux!$AL$1)>0,(G36/INDEX($C36:$G36,1,aux!$AL$1))^(1/($G$3-INDEX($C$3:$G$3,1,aux!$AL$1)))-1,"n.d.") -> n.d. | Y36: =IF(INDEX($C36:$G36,1,aux!$AL$1)>0,(G36-INDEX($C36:$G36,1,aux!$AL$1))/INDEX($C36:$G36,1,aux!$AL$1),"n.d.") -> n.d. | AA36: =O36-INDEX($K36:$O36,1,aux!$AL$1) -> 0 | AB36: 0 | AC36: 0 | AD36: =+IF(INDEX($K36:$O36,1,aux!$AL$1)>0,(O36/INDEX($K36:$O36,1,aux!$AL$1))^(1/($O$3-INDEX($K$3:$O$3,1,aux!$AL$1)))-1,"n.d.") -> n.d. | AE36: =IF(INDEX($K36:$O36,1,aux!$AL$1)>0,(O36-INDEX($K36:$O36,1,aux!$AL$1))/INDEX($K36:$O36,1,aux!$AL$1),"n.d.") -> n.d. | AX36: 05
A37: 0506 | B37: Ossos e núcleos córneos, em bruto | C37: 15.485 | D37: 0.03 | E37: 32.293 | F37: 14.174 | G37: 0.322 | H37: 12.4608 | I37: 4.425315825e-05 | J37: 3.995173056e-05 | K37: 0 | L37: 0 | M37: 0 | N37: 0 | O37: 0 | P37: 0 | Q37: 0 | R37: 0 | S37: -12.4608 | U37: =G37-INDEX($C37:$G37,1,aux!$AL$1) -> -15.163 | V37: -0.000154433353 | W37: -0.0001500883733 | X37: =+IF(INDEX($C37:$G37,1,aux!$AL$1)>0,(G37/INDEX($C37:$G37,1,aux!$AL$1))^(1/($G$3-INDEX($C$3:$G$3,1,aux!$AL$1)))-1,"n.d.") -> -0.6202601579 | Y37: =IF(INDEX($C37:$G37,1,aux!$AL$1)>0,(G37-INDEX($C37:$G37,1,aux!$AL$1))/INDEX($C37:$G37,1,aux!$AL$1),"n.d.") -> -0.9792056829 | AA37: =O37-INDEX($K37:$O37,1,aux!$AL$1) -> 0 | AB37: 0 | AC37: 0 | AD37: =+IF(INDEX($K37:$O37,1,aux!$AL$1)>0,(O37/INDEX($K37:$O37,1,aux!$AL$1))^(1/($O$3-INDEX($K$3:$O$3,1,aux!$AL$1)))-1,"n.d.") -> n.d. | AE37: =IF(INDEX($K37:$O37,1,aux!$AL$1)>0,(O37-INDEX($K37:$O37,1,aux!$AL$1))/INDEX($K37:$O37,1,aux!$AL$1),"n.d.") -> n.d. | AX37: 05
A38: 0507 | B38: Marfim, carapaças de tartaruga, etc. | C38: 0 | D38: 0 | E38: 0.599 | F38: 1.344 | G38: 0.683 | H38: 0.5252 | I38: 1.865189933e-06 | J38: 1.683892598e-06 | K38: 0 | L38: 0 | M38: 0 | N38: 0 | O38: 0 | P38: 0 | Q38: 0 | R38: 0 | S38: -0.5252 | U38: =G38-INDEX($C38:$G38,1,aux!$AL$1) -> 0.683 | V38: 6.95627383e-06 | W38: 6.760559187e-06 | X38: =+IF(INDEX($C38:$G38,1,aux!$AL$1)>0,(G38/INDEX($C38:$G38,1,aux!$AL$1))^(1/($G$3-INDEX($C$3:$G$3,1,aux!$AL$1)))-1,"n.d.") -> n.d. | Y38: =IF(INDEX($C38:$G38,1,aux!$AL$1)>0,(G38-INDEX($C38:$G38,1,aux!$AL$1))/INDEX($C38:$G38,1,aux!$AL$1),"n.d.") -> n.d. | AA38: =O38-INDEX($K38:$O38,1,aux!$AL$1) -> 0 | AB38: 0 | AC38: 0 | AD38: =+IF(INDEX($K38:$O38,1,aux!$AL$1)>0,(O38/INDEX($K38:$O38,1,aux!$AL$1))^(1/($O$3-INDEX($K$3:$O$3,1,aux!$AL$1)))-1,"n.d.") -> n.d. | AE38: =IF(INDEX($K38:$O38,1,aux!$AL$1)>0,(O38-INDEX($K38:$O38,1,aux!$AL$1))/INDEX($K38:$O38,1,aux!$AL$1),"n.d.") -> n.d. | AX38: 05
A39: 0510 | B39: Âmbar-cinzento, castóreo, algália e almíscar, etc. | C39: 0 | D39: 0 | E39: 0 | F39: 0 | G39: 0 | H39: 0 | I39: 0 | J39: 0 | K39: 0 | L39: 0 | M39: 0 | N39: 0 | O39: 0 | P39: 0 | Q39: 0 | R39: 0 | S39: 0 | U39: =G39-INDEX($C39:$G39,1,aux!$AL$1) -> 0 | V39: 0 | W39: 0 | X39: =+IF(INDEX($C39:$G39,1,aux!$AL$1)>0,(G39/INDEX($C39:$G39,1,aux!$AL$1))^(1/($G$3-INDEX($C$3:$G$3,1,aux!$AL$1)))-1,"n.d.") -> n.d. | Y39: =IF(INDEX($C39:$G39,1,aux!$AL$1)>0,(G39-INDEX($C39:$G39,1,aux!$AL$1))/INDEX($C39:$G39,1,aux!$AL$1),"n.d.") -> n.d. | AA39: =O39-INDEX($K39:$O39,1,aux!$AL$1) -> 0 | AB39: 0 | AC39: 0 | AD39: =+IF(INDEX($K39:$O39,1,aux!$AL$1)>0,(O39/INDEX($K39:$O39,1,aux!$AL$1))^(1/($O$3-INDEX($K$3:$O$3,1,aux!$AL$1)))-1,"n.d.") -> n.d. | AE39: =IF(INDEX($K39:$O39,1,aux!$AL$1)>0,(O39-INDEX($K39:$O39,1,aux!$AL$1))/INDEX($K39:$O39,1,aux!$AL$1),"n.d.") -> n.d. | AX39: 05
A40: 0511 | B40: Outros produtos de origem animal (exc. NC 0511 91) (a) | C40: 0.16 | D40: 0.436 | E40: 0.772 | F40: 0.758 | G40: 0.589 | H40: 0.543 | I40: 1.928404672e-06 | J40: 1.740962835e-06 | K40: 0 | L40: 0 | M40: 0 | N40: 0.004 | O40: 0.03 | P40: 0.0068 | Q40: 3.899124238e-08 | R40: 2.67107183e-08 | S40: -0.5362 | U40: =G40-INDEX($C40:$G40,1,aux!$AL$1) -> 0.429 | V40: 4.369314016e-06 | W40: 4.246383442e-06 | X40: =+IF(INDEX($C40:$G40,1,aux!$AL$1)>0,(G40/INDEX($C40:$G40,1,aux!$AL$1))^(1/($G$3-INDEX($C$3:$G$3,1,aux!$AL$1)))-1,"n.d.") -> 0.385156448 | Y40: =IF(INDEX($C40:$G40,1,aux!$AL$1)>0,(G40-INDEX($C40:$G40,1,aux!$AL$1))/INDEX($C40:$G40,1,aux!$AL$1),"n.d.") -> 2.68125 | AA40: =O40-INDEX($K40:$O40,1,aux!$AL$1) -> 0.03 | AB40: 8.675108762e-07 | AC40: 4.348837097e-07 | AD40: =+IF(INDEX($K40:$O40,1,aux!$AL$1)>0,(O40/INDEX($K40:$O40,1,aux!$AL$1))^(1/($O$3-INDEX($K$3:$O$3,1,aux!$AL$1)))-1,"n.d.") -> n.d. | AE40: =IF(INDEX($K40:$O40,1,aux!$AL$1)>0,(O40-INDEX($K40:$O40,1,aux!$AL$1))/INDEX($K40:$O40,1,aux!$AL$1),"n.d.") -> n.d. | AX40: 05
A41: 05SS | B41: Outros produtos de origem animal | C41: 0 | D41: 0 | E41: 0 | F41: 0 | G41: 0 | H41: 0 | I41: 0 | J41: 0 | K41: 0 | L41: 0 | M41: 0 | N41: 0 | O41: 0 | P41: 0 | Q41: 0 | R41: 0 | S41: 0 | U41: =G41-INDEX($C41:$G41,1,aux!$AL$1) -> 0 | V41: 0 | W41: 0 | X41: =+IF(INDEX($C41:$G41,1,aux!$AL$1)>0,(G41/INDEX($C41:$G41,1,aux!$AL$1))^(1/($G$3-INDEX($C$3:$G$3,1,aux!$AL$1)))-1,"n.d.") -> n.d. | Y41: =IF(INDEX($C41:$G41,1,aux!$AL$1)>0,(G41-INDEX($C41:$G41,1,aux!$AL$1))/INDEX($C41:$G41,1,aux!$AL$1),"n.d.") -> n.d. | AA41: =O41-INDEX($K41:$O41,1,aux!$AL$1) -> 0 | AB41: 0 | AC41: 0 | AD41: =+IF(INDEX($K41:$O41,1,aux!$AL$1)>0,(O41/INDEX($K41:$O41,1,aux!$AL$1))^(1/($O$3-INDEX($K$3:$O$3,1,aux!$AL$1)))-1,"n.d.") -> n.d. | AE41: =IF(INDEX($K41:$O41,1,aux!$AL$1)>0,(O41-INDEX($K41:$O41,1,aux!$AL$1))/INDEX($K41:$O41,1,aux!$AL$1),"n.d.") -> n.d. | AX41: 05
A42: 0601 | B42: Bolbos, tubérculos, raízes, etc. | C42: 10.166 | D42: 8.519 | E42: 8.537 | F42: 11.702 | G42: 21.287 | H42: 12.0422 | I42: 4.276654648e-05 | J42: 3.860961814e-05 | K42: 410.272 | L42: 170.185 | M42: 233.369 | N42: 159.15 | O42: 219.284 | P42: 238.452 | Q42: 0.001367285254 | R42: 0.0009366506176 | S42: 226.4098 | U42: =G42-INDEX($C42:$G42,1,aux!$AL$1) -> 11.121 | V42: 0.0001132660633 | W42: 0.0001100793246 | X42: =+IF(INDEX($C42:$G42,1,aux!$AL$1)>0,(G42/INDEX($C42:$G42,1,aux!$AL$1))^(1/($G$3-INDEX($C$3:$G$3,1,aux!$AL$1)))-1,"n.d.") -> 0.2029320296 | Y42: =IF(INDEX($C42:$G42,1,aux!$AL$1)>0,(G42-INDEX($C42:$G42,1,aux!$AL$1))/INDEX($C42:$G42,1,aux!$AL$1),"n.d.") -> 1.093940586 | AA42: =O42-INDEX($K42:$O42,1,aux!$AL$1) -> -190.988 | AB42: -0.005522805574 | AC42: -0.002768585665 | AD42: =+IF(INDEX($K42:$O42,1,aux!$AL$1)>0,(O42/INDEX($K42:$O42,1,aux!$AL$1))^(1/($O$3-INDEX($K$3:$O$3,1,aux!$AL$1)))-1,"n.d.") -> -0.144965248 | AE42: =IF(INDEX($K42:$O42,1,aux!$AL$1)>0,(O42-INDEX($K42:$O42,1,aux!$AL$1))/INDEX($K42:$O42,1,aux!$AL$1),"n.d.") -> -0.4655155604 | AX42: 06
A43: 0602 | B43: Plantas vivas | C43: 567.241 | D43: 410.79 | E43: 698.772 | F43: 663.445 | G43: 865.109 | H43: 641.0714 | I43: 0.002276694443 | J43: 0.002055398678 | K43: 123.789 | L43: 215.794 | M43: 469.564 | N43: 757.772 | O43: 462.803 | P43: 405.9444 | Q43: 0.00232768772 | R43: 0.001594568605 | S43: -235.127 | U43: =G43-INDEX($C43:$G43,1,aux!$AL$1) -> 297.868 | V43: 0.00303375018 | W43: 0.002948395672 | X43: =+IF(INDEX($C43:$G43,1,aux!$AL$1)>0,(G43/INDEX($C43:$G43,1,aux!$AL$1))^(1/($G$3-INDEX($C$3:$G$3,1,aux!$AL$1)))-1,"n.d.") -> 0.1112859 | Y43: =IF(INDEX($C43:$G43,1,aux!$AL$1)>0,(G43-INDEX($C43:$G43,1,aux!$AL$1))/INDEX($C43:$G43,1,aux!$AL$1),"n.d.") -> 0.52511719 | AA43: =O43-INDEX($K43:$O43,1,aux!$AL$1) -> 339.014 | AB43: 0.009803277739 | AC43: 0.004914388865 | AD43: =+IF(INDEX($K43:$O43,1,aux!$AL$1)>0,(O43/INDEX($K43:$O43,1,aux!$AL$1))^(1/($O$3-INDEX($K$3:$O$3,1,aux!$AL$1)))-1,"n.d.") -> 0.3905241238 | AE43: =IF(INDEX($K43:$O43,1,aux!$AL$1)>0,(O43-INDEX($K43:$O43,1,aux!$AL$1))/INDEX($K43:$O43,1,aux!$AL$1),"n.d.") -> 2.738643983 | AX43: 06
A44: 0603 | B44: Flores e seus botões | C44: 19.347 | D44: 45.402 | E44: 27.389 | F44: 37.667 | G44: 26.175 | H44: 31.196 | I44: 0.0001107891568 | J44: 0.0001000203989 | K44: 233.368 | L44: 19.929 | M44: 1.726 | N44: 13.584 | O44: 83.913 | P44: 70.504 | Q44: 0.0004042703755 | R44: 0.0002769430122 | S44: 39.308 | U44: =G44-INDEX($C44:$G44,1,aux!$AL$1) -> 6.828 | V44: 6.954236854e-05 | W44: 6.758579521e-05 | X44: =+IF(INDEX($C44:$G44,1,aux!$AL$1)>0,(G44/INDEX($C44:$G44,1,aux!$AL$1))^(1/($G$3-INDEX($C$3:$G$3,1,aux!$AL$1)))-1,"n.d.") -> 0.0784953195 | Y44: =IF(INDEX($C44:$G44,1,aux!$AL$1)>0,(G44-INDEX($C44:$G44,1,aux!$AL$1))/INDEX($C44:$G44,1,aux!$AL$1),"n.d.") -> 0.3529229338 | AA44: =O44-INDEX($K44:$O44,1,aux!$AL$1) -> -149.455 | AB44: -0.0043217946 | AC44: -0.002166518161 | AD44: =+IF(INDEX($K44:$O44,1,aux!$AL$1)>0,(O44/INDEX($K44:$O44,1,aux!$AL$1))^(1/($O$3-INDEX($K$3:$O$3,1,aux!$AL$1)))-1,"n.d.") -> -0.2256327345 | AE44: =IF(INDEX($K44:$O44,1,aux!$AL$1)>0,(O44-INDEX($K44:$O44,1,aux!$AL$1))/INDEX($K44:$O44,1,aux!$AL$1),"n.d.") -> -0.6404262795 | AX44: 06
A45: 0604 | B45: Folhagem, folhas, ramos e outras partes de plantas | C45: 8.86 | D45: 9.3 | E45: 8.499 | F45: 19.383 | G45: 11.835 | H45: 11.5754 | I45: 4.110875771e-05 | J45: 3.711296722e-05 | K45: 63.065 | L45: 70.535 | M45: 90.855 | N45: 98.027 | O45: 174.659 | P45: 99.4282 | Q45: 0.0005701219185 | R45: 0.0003905586237 | S45: 87.8528 | U45: =G45-INDEX($C45:$G45,1,aux!$AL$1) -> 2.975 | V45: 3.030002144e-05 | W45: 2.944753086e-05 | X45: =+IF(INDEX($C45:$G45,1,aux!$AL$1)>0,(G45/INDEX($C45:$G45,1,aux!$AL$1))^(1/($G$3-INDEX($C$3:$G$3,1,aux!$AL$1)))-1,"n.d.") -> 0.07506230666 | Y45: =IF(INDEX($C45:$G45,1,aux!$AL$1)>0,(G45-INDEX($C45:$G45,1,aux!$AL$1))/INDEX($C45:$G45,1,aux!$AL$1),"n.d.") -> 0.335778781 | AA45: =O45-INDEX($K45:$O45,1,aux!$AL$1) -> 111.594 | AB45: 0.003226966957 | AC45: 0.001617680423 | AD45: =+IF(INDEX($K45:$O45,1,aux!$AL$1)>0,(O45/INDEX($K45:$O45,1,aux!$AL$1))^(1/($O$3-INDEX($K$3:$O$3,1,aux!$AL$1)))-1,"n.d.") -> 0.2900324721 | AE45: =IF(INDEX($K45:$O45,1,aux!$AL$1)>0,(O45-INDEX($K45:$O45,1,aux!$AL$1))/INDEX($K45:$O45,1,aux!$AL$1),"n.d.") -> 1.769507651 | AX45: 06
A46: 06SS | B46: Plantas vivas e produtos de floricultura | C46: 0 | D46: 0 | E46: 0 | F46: 0 | G46: 0 | H46: 0 | I46: 0 | J46: 0 | K46: 0 | L46: 0 | M46: 0 | N46: 0 | O46: 0 | P46: 0 | Q46: 0 | R46: 0 | S46: 0 | U46: =G46-INDEX($C46:$G46,1,aux!$AL$1) -> 0 | V46: 0 | W46: 0 | X46: =+IF(INDEX($C46:$G46,1,aux!$AL$1)>0,(G46/INDEX($C46:$G46,1,aux!$AL$1))^(1/($G$3-INDEX($C$3:$G$3,1,aux!$AL$1)))-1,"n.d.") -> n.d. | Y46: =IF(INDEX($C46:$G46,1,aux!$AL$1)>0,(G46-INDEX($C46:$G46,1,aux!$AL$1))/INDEX($C46:$G46,1,aux!$AL$1),"n.d.") -> n.d. | AA46: =O46-INDEX($K46:$O46,1,aux!$AL$1) -> 0 | AB46: 0 | AC46: 0 | AD46: =+IF(INDEX($K46:$O46,1,aux!$AL$1)>0,(O46/INDEX($K46:$O46,1,aux!$AL$1))^(1/($O$3-INDEX($K$3:$O$3,1,aux!$AL$1)))-1,"n.d.") -> n.d. | AE46: =IF(INDEX($K46:$O46,1,aux!$AL$1)>0,(O46-INDEX($K46:$O46,1,aux!$AL$1))/INDEX($K46:$O46,1,aux!$AL$1),"n.d.") -> n.d. | AX46: 06
A47: 0701 | B47: Batatas, frescas ou refrigeradas | C47: 1004.086 | D47: 215.125 | E47: 519.076 | F47: 2612.347 | G47: 2644.733 | H47: 1399.0734 | I47: 0.004968655029 | J47: 0.004485699434 | K47: 286.273 | L47: 220.631 | M47: 352 | N47: 188.026 | O47: 2094.116 | P47: 628.2092 | Q47: 0.003602155468 | R47: 0.002467635143 | S47: -770.8642 | U47: =G47-INDEX($C47:$G47,1,aux!$AL$1) -> 1640.647 | V47: 0.01670979472 | W47: 0.01623966493 | X47: =+IF(INDEX($C47:$G47,1,aux!$AL$1)>0,(G47/INDEX($C47:$G47,1,aux!$AL$1))^(1/($G$3-INDEX($C$3:$G$3,1,aux!$AL$1)))-1,"n.d.") -> 0.2739510193 | Y47: =IF(INDEX($C47:$G47,1,aux!$AL$1)>0,(G47-INDEX($C47:$G47,1,aux!$AL$1))/INDEX($C47:$G47,1,aux!$AL$1),"n.d.") -> 1.633970596 | AA47: =O47-INDEX($K47:$O47,1,aux!$AL$1) -> 1807.843 | AB47: 0.05227744883 | AC47: 0.02620671568 | AD47: =+IF(INDEX($K47:$O47,1,aux!$AL$1)>0,(O47/INDEX($K47:$O47,1,aux!$AL$1))^(1/($O$3-INDEX($K$3:$O$3,1,aux!$AL$1)))-1,"n.d.") -> 0.6445803106 | AE47: =IF(INDEX($K47:$O47,1,aux!$AL$1)>0,(O47-INDEX($K47:$O47,1,aux!$AL$1))/INDEX($K47:$O47,1,aux!$AL$1),"n.d.") -> 6.315101319 | AX47: 07
A48: 0702 | B48: Tomates, frescos ou refrigerados | C48: 1012.816 | D48: 687.711 | E48: 887.329 | F48: 1742.302 | G48: 592.357 | H48: 984.503 | I48: 0.003496353931 | J48: 0.003156506692 | K48: 235.582 | L48: 49.116 | M48: 102.962 | N48: 114.185 | O48: 41.507 | P48: 108.6704 | Q48: 0.0006231167509 | R48: 0.0004268624179 | S48: -875.8326 | U48: =G48-INDEX($C48:$G48,1,aux!$AL$1) -> -420.459 | V48: -0.004282324946 | W48: -0.004161841808 | X48: =+IF(INDEX($C48:$G48,1,aux!$AL$1)>0,(G48/INDEX($C48:$G48,1,aux!$AL$1))^(1/($G$3-INDEX($C$3:$G$3,1,aux!$AL$1)))-1,"n.d.") -> -0.1254930952 | Y48: =IF(INDEX($C48:$G48,1,aux!$AL$1)>0,(G48-INDEX($C48:$G48,1,aux!$AL$1))/INDEX($C48:$G48,1,aux!$AL$1),"n.d.") -> -0.4151385839 | AA48: =O48-INDEX($K48:$O48,1,aux!$AL$1) -> -194.075 | AB48: -0.005612072443 | AC48: -0.002813335199 | AD48: =+IF(INDEX($K48:$O48,1,aux!$AL$1)>0,(O48/INDEX($K48:$O48,1,aux!$AL$1))^(1/($O$3-INDEX($K$3:$O$3,1,aux!$AL$1)))-1,"n.d.") -> -0.352119647 | AE48: =IF(INDEX($K48:$O48,1,aux!$AL$1)>0,(O48-INDEX($K48:$O48,1,aux!$AL$1))/INDEX($K48:$O48,1,aux!$AL$1),"n.d.") -> -0.8238108175 | AX48: 07
A49: 0703 | B49: Cebolas, alhos, etc., frescos ou refrigerados | C49: 1277.704 | D49: 625.839 | E49: 582.793 | F49: 718.615 | G49: 3049.433 | H49: 1250.8768 | I49: 0.004442351132 | J49: 0.004010552523 | K49: 20.55 | L49: 15.221 | M49: 378.676 | N49: 229.7 | O49: 208.572 | P49: 170.5438 | Q49: 0.0009778992122 | R49: 0.0006699040293 | S49: -1080.333 | U49: =G49-INDEX($C49:$G49,1,aux!$AL$1) -> 1771.729 | V49: 0.01804484931 | W49: 0.01753715779 | X49: =+IF(INDEX($C49:$G49,1,aux!$AL$1)>0,(G49/INDEX($C49:$G49,1,aux!$AL$1))^(1/($G$3-INDEX($C$3:$G$3,1,aux!$AL$1)))-1,"n.d.") -> 0.242931545 | Y49: =IF(INDEX($C49:$G49,1,aux!$AL$1)>0,(G49-INDEX($C49:$G49,1,aux!$AL$1))/INDEX($C49:$G49,1,aux!$AL$1),"n.d.") -> 1.386650586 | AA49: =O49-INDEX($K49:$O49,1,aux!$AL$1) -> 188.022 | AB49: 0.005437037666 | AC49: 0.002725590162 | AD49: =+IF(INDEX($K49:$O49,1,aux!$AL$1)>0,(O49/INDEX($K49:$O49,1,aux!$AL$1))^(1/($O$3-INDEX($K$3:$O$3,1,aux!$AL$1)))-1,"n.d.") -> 0.7848883087 | AE49: =IF(INDEX($K49:$O49,1,aux!$AL$1)>0,(O49-INDEX($K49:$O49,1,aux!$AL$1))/INDEX($K49:$O49,1,aux!$AL$1),"n.d.") -> 9.149489051 | AX49: 07
A50: 0704 | B50: Couves, frescas ou refrigeradas | C50: 120.642 | D50: 88.045 | E50: 916.913 | F50: 311.692 | G50: 401.747 | H50: 367.8078 | I50: 0.001306228876 | J50: 0.001179262818 | K50: 1382.275 | L50: 96.035 | M50: 51.824 | N50: 101.558 | O50: 123.89 | P50: 351.1164 | Q50: 0.002013303626 | R50: 0.001379201654 | S50: -16.6914 | U50: =G50-INDEX($C50:$G50,1,aux!$AL$1) -> 281.105 | V50: 0.002863021018 | W50: 0.002782469971 | X50: =+IF(INDEX($C50:$G50,1,aux!$AL$1)>0,(G50/INDEX($C50:$G50,1,aux!$AL$1))^(1/($G$3-INDEX($C$3:$G$3,1,aux!$AL$1)))-1,"n.d.") -> 0.3508699114 | Y50: =IF(INDEX($C50:$G50,1,aux!$AL$1)>0,(G50-INDEX($C50:$G50,1,aux!$AL$1))/INDEX($C50:$G50,1,aux!$AL$1),"n.d.") -> 2.330075761 | AA50: =O50-INDEX($K50:$O50,1,aux!$AL$1) -> -1258.385 | AB50: -0.0363887558 | AC50: -0.01824170457 | AD50: =+IF(INDEX($K50:$O50,1,aux!$AL$1)>0,(O50/INDEX($K50:$O50,1,aux!$AL$1))^(1/($O$3-INDEX($K$3:$O$3,1,aux!$AL$1)))-1,"n.d.") -> -0.4528449022 | AE50: =IF(INDEX($K50:$O50,1,aux!$AL$1)>0,(O50-INDEX($K50:$O50,1,aux!$AL$1))/INDEX($K50:$O50,1,aux!$AL$1),"n.d.") -> -0.9103723933 | AX50: 07
A51: 0705 | B51: Alfaces, frescas ou refrigeradas | C51: 113.103 | D51: 1.843 | E51: 195.233 | F51: 253.952 | G51: 125.627 | H51: 137.9516 | I51: 0.0004899199077 | J51: 0.0004422994634 | K51: 4.28 | L51: 5.165 | M51: 5.502 | N51: 5.219 | O51: 11.059 | P51: 6.245 | Q51: 3.580886893e-05 | R51: 2.453065232e-05 | S51: -131.7066 | U51: =G51-INDEX($C51:$G51,1,aux!$AL$1) -> 12.524 | V51: 0.0001275554516 | W51: 0.0001239666812 | X51: =+IF(INDEX($C51:$G51,1,aux!$AL$1)>0,(G51/INDEX($C51:$G51,1,aux!$AL$1))^(1/($G$3-INDEX($C$3:$G$3,1,aux!$AL$1)))-1,"n.d.") -> 0.0266022602 | Y51: =IF(INDEX($C51:$G51,1,aux!$AL$1)>0,(G51-INDEX($C51:$G51,1,aux!$AL$1))/INDEX($C51:$G51,1,aux!$AL$1),"n.d.") -> 0.1107309267 | AA51: =O51-INDEX($K51:$O51,1,aux!$AL$1) -> 6.779 | AB51: 0.000196028541 | AC51: 9.826922227e-05 | AD51: =+IF(INDEX($K51:$O51,1,aux!$AL$1)>0,(O51/INDEX($K51:$O51,1,aux!$AL$1))^(1/($O$3-INDEX($K$3:$O$3,1,aux!$AL$1)))-1,"n.d.") -> 0.26785043 | AE51: =IF(INDEX($K51:$O51,1,aux!$AL$1)>0,(O51-INDEX($K51:$O51,1,aux!$AL$1))/INDEX($K51:$O51,1,aux!$AL$1),"n.d.") -> 1.583878505 | AX51: 07
A52: 0706 | B52: Cenouras, nabos, beterrabas, etc., frescos ou refrigerados | C52: 32.426 | D52: 17.997 | E52: 134.161 | F52: 60.491 | G52: 255.543 | H52: 100.1236 | I52: 0.0003555779337 | J52: 0.0003210155921 | K52: 21.086 | L52: 20.841 | M52: 7.85 | N52: 6.718 | O52: 69.264 | P52: 25.1518 | Q52: 0.000144220578 | R52: 9.879744772e-05 | S52: -74.9718 | U52: =G52-INDEX($C52:$G52,1,aux!$AL$1) -> 223.117 | V52: 0.002272420129 | W52: 0.002208485628 | X52: =+IF(INDEX($C52:$G52,1,aux!$AL$1)>0,(G52/INDEX($C52:$G52,1,aux!$AL$1))^(1/($G$3-INDEX($C$3:$G$3,1,aux!$AL$1)))-1,"n.d.") -> 0.6754931347 | Y52: =IF(INDEX($C52:$G52,1,aux!$AL$1)>0,(G52-INDEX($C52:$G52,1,aux!$AL$1))/INDEX($C52:$G52,1,aux!$AL$1),"n.d.") -> 6.880805526 | AA52: =O52-INDEX($K52:$O52,1,aux!$AL$1) -> 48.178 | AB52: 0.001393164633 | AC52: 0.0006983942455 | AD52: =+IF(INDEX($K52:$O52,1,aux!$AL$1)>0,(O52/INDEX($K52:$O52,1,aux!$AL$1))^(1/($O$3-INDEX($K$3:$O$3,1,aux!$AL$1)))-1,"n.d.") -> 0.346258138 | AE52: =IF(INDEX($K52:$O52,1,aux!$AL$1)>0,(O52-INDEX($K52:$O52,1,aux!$AL$1))/INDEX($K52:$O52,1,aux!$AL$1),"n.d.") -> 2.284833539 | AX52: 07
A53: 0707 | B53: Pepinos e pepininhos, frescos ou refrigerados | C53: 0 | D53: 0 | E53: 0 | F53: 0 | G53: 0 | H53: 0 | I53: 0 | J53: 0 | K53: 5.101 | L53: 5.404 | M53: 2.942 | N53: 3.61 | O53: 4.876 | P53: 4.3866 | Q53: 2.515279174e-05 | R53: 1.723077013e-05 | S53: 4.3866 | U53: =G53-INDEX($C53:$G53,1,aux!$AL$1) -> 0 | V53: 0 | W53: 0 | X53: =+IF(INDEX($C53:$G53,1,aux!$AL$1)>0,(G53/INDEX($C53:$G53,1,aux!$AL$1))^(1/($G$3-INDEX($C$3:$G$3,1,aux!$AL$1)))-1,"n.d.") -> n.d. | Y53: =IF(INDEX($C53:$G53,1,aux!$AL$1)>0,(G53-INDEX($C53:$G53,1,aux!$AL$1))/INDEX($C53:$G53,1,aux!$AL$1),"n.d.") -> n.d. | AA53: =O53-INDEX($K53:$O53,1,aux!$AL$1) -> -0.225 | AB53: -6.506331572e-06 | AC53: -3.261627823e-06 | AD53: =+IF(INDEX($K53:$O53,1,aux!$AL$1)>0,(O53/INDEX($K53:$O53,1,aux!$AL$1))^(1/($O$3-INDEX($K$3:$O$3,1,aux!$AL$1)))-1,"n.d.") -> -0.01121449031 | AE53: =IF(INDEX($K53:$O53,1,aux!$AL$1)>0,(O53-INDEX($K53:$O53,1,aux!$AL$1))/INDEX($K53:$O53,1,aux!$AL$1),"n.d.") -> -0.04410899824 | AX53: 07
A54: 0708 | B54: Tomates preparados ou conservados | C54: 1.688 | D54: 8.77 | E54: 19.926 | F54: 9.475 | G54: 35.373 | H54: 15.0464 | I54: 5.343563177e-05 | J54: 4.824166335e-05 | K54: 9.475 | L54: 101.679 | M54: 115.343 | N54: 42.226 | O54: 85.468 | P54: 70.8382 | Q54: 0.0004061866803 | R54: 0.0002782557654 | S54: 55.7918 | U54: =G54-INDEX($C54:$G54,1,aux!$AL$1) -> 33.685 | V54: 0.0003430777218 | W54: 0.000333425236 | X54: =+IF(INDEX($C54:$G54,1,aux!$AL$1)>0,(G54/INDEX($C54:$G54,1,aux!$AL$1))^(1/($G$3-INDEX($C$3:$G$3,1,aux!$AL$1)))-1,"n.d.") -> 1.139561936 | Y54: =IF(INDEX($C54:$G54,1,aux!$AL$1)>0,(G54-INDEX($C54:$G54,1,aux!$AL$1))/INDEX($C54:$G54,1,aux!$AL$1),"n.d.") -> 19.95556872 | AA54: =O54-INDEX($K54:$O54,1,aux!$AL$1) -> 75.993 | AB54: 0.002197491801 | AC54: 0.001101603925 | AD54: =+IF(INDEX($K54:$O54,1,aux!$AL$1)>0,(O54/INDEX($K54:$O54,1,aux!$AL$1))^(1/($O$3-INDEX($K$3:$O$3,1,aux!$AL$1)))-1,"n.d.") -> 0.7330299998 | AE54: =IF(INDEX($K54:$O54,1,aux!$AL$1)>0,(O54-INDEX($K54:$O54,1,aux!$AL$1))/INDEX($K54:$O54,1,aux!$AL$1),"n.d.") -> 8.020369393 | AX54: 07
A55: 0709 | B55: Outros produtos hortícolas, frescos ou refrigerados | C55: 942.035 | D55: 1533.418 | E55: 1444.314 | F55: 1785.159 | G55: 578.242 | H55: 1256.6336 | I55: 0.004462795773 | J55: 0.004029009935 | K55: 2031.472 | L55: 2183.002 | M55: 2295.722 | N55: 1977.129 | O55: 1549.825 | P55: 2007.43 | Q55: 0.01151061613 | R55: 0.007885279005 | S55: 750.7964 | U55: =G55-INDEX($C55:$G55,1,aux!$AL$1) -> -363.793 | V55: -0.003705188471 | W55: -0.003600943057 | X55: =+IF(INDEX($C55:$G55,1,aux!$AL$1)>0,(G55/INDEX($C55:$G55,1,aux!$AL$1))^(1/($G$3-INDEX($C$3:$G$3,1,aux!$AL$1)))-1,"n.d.") -> -0.1148626875 | Y55: =IF(INDEX($C55:$G55,1,aux!$AL$1)>0,(G55-INDEX($C55:$G55,1,aux!$AL$1))/INDEX($C55:$G55,1,aux!$AL$1),"n.d.") -> -0.3861777959 | AA55: =O55-INDEX($K55:$O55,1,aux!$AL$1) -> -481.647 | AB55: -0.01392780037 | AC55: -0.006982014471 | AD55: =+IF(INDEX($K55:$O55,1,aux!$AL$1)>0,(O55/INDEX($K55:$O55,1,aux!$AL$1))^(1/($O$3-INDEX($K$3:$O$3,1,aux!$AL$1)))-1,"n.d.") -> -0.06541683135 | AE55: =IF(INDEX($K55:$O55,1,aux!$AL$1)>0,(O55-INDEX($K55:$O55,1,aux!$AL$1))/INDEX($K55:$O55,1,aux!$AL$1),"n.d.") -> -0.2370926107 | AX55: 07
A56: 0710 | B56: Produtos hortícolas congelados | C56: 9045.595 | D56: 7483.667 | E56: 6865.039 | F56: 9340.031 | G56: 13624.379 | H56: 9271.7422 | I56: 0.03292757085 | J56: 0.02972699555 | K56: 38949.651 | L56: 37870.952 | M56: 32505.447 | N56: 41960.498 | O56: 42528.96 | P56: 38763.1016 | Q56: 0.2222678662 | R56: 0.1522632775 | S56: 29491.3594 | U56: =G56-INDEX($C56:$G56,1,aux!$AL$1) -> 4578.784 | V56: 0.04663437088 | W56: 0.04532231367 | X56: =+IF(INDEX($C56:$G56,1,aux!$AL$1)>0,(G56/INDEX($C56:$G56,1,aux!$AL$1))^(1/($G$3-INDEX($C$3:$G$3,1,aux!$AL$1)))-1,"n.d.") -> 0.1078217674 | Y56: =IF(INDEX($C56:$G56,1,aux!$AL$1)>0,(G56-INDEX($C56:$G56,1,aux!$AL$1))/INDEX($C56:$G56,1,aux!$AL$1),"n.d.") -> 0.5061893662 | AA56: =O56-INDEX($K56:$O56,1,aux!$AL$1) -> 3579.309 | AB56: 0.1035029829 | AC56: 0.05188610587 | AD56: =+IF(INDEX($K56:$O56,1,aux!$AL$1)>0,(O56/INDEX($K56:$O56,1,aux!$AL$1))^(1/($O$3-INDEX($K$3:$O$3,1,aux!$AL$1)))-1,"n.d.") -> 0.02222217538 | AE56: =IF(INDEX($K56:$O56,1,aux!$AL$1)>0,(O56-INDEX($K56:$O56,1,aux!$AL$1))/INDEX($K56:$O56,1,aux!$AL$1),"n.d.") -> 0.09189579131 | AX56: 07
A57: 0711 | B57: Produtos hortícolas conservados transitoriamente | C57: 0 | D57: 2.332 | E57: 0 | F57: 0.145 | G57: 0 | H57: 0.4954 | I57: 1.759358516e-06 | J57: 1.588348045e-06 | K57: 0.522 | L57: 0.017 | M57: 0.271 | N57: 0.045 | O57: 0.021 | P57: 0.1752 | Q57: 1.004597892e-06 | R57: 6.881938008e-07 | S57: -0.3202 | U57: =G57-INDEX($C57:$G57,1,aux!$AL$1) -> 0 | V57: 0 | W57: 0 | X57: =+IF(INDEX($C57:$G57,1,aux!$AL$1)>0,(G57/INDEX($C57:$G57,1,aux!$AL$1))^(1/($G$3-INDEX($C$3:$G$3,1,aux!$AL$1)))-1,"n.d.") -> n.d. | Y57: =IF(INDEX($C57:$G57,1,aux!$AL$1)>0,(G57-INDEX($C57:$G57,1,aux!$AL$1))/INDEX($C57:$G57,1,aux!$AL$1),"n.d.") -> n.d. | AA57: =O57-INDEX($K57:$O57,1,aux!$AL$1) -> -0.501 | AB57: -1.448743163e-05 | AC57: -7.262557952e-06 | AD57: =+IF(INDEX($K57:$O57,1,aux!$AL$1)>0,(O57/INDEX($K57:$O57,1,aux!$AL$1))^(1/($O$3-INDEX($K$3:$O$3,1,aux!$AL$1)))-1,"n.d.") -> -0.5521452364 | AE57: =IF(INDEX($K57:$O57,1,aux!$AL$1)>0,(O57-INDEX($K57:$O57,1,aux!$AL$1))/INDEX($K57:$O57,1,aux!$AL$1),"n.d.") -> -0.9597701149 | AX57: 07
A58: 0712 | B58: Produtos hortícolas secos | C58: 45.23 | D58: 1.275 | E58: 39.996 | F58: 72.423 | G58: 39.884 | H58: 39.7616 | I58: 0.0001412089414 | J58: 0.0001274833662 | K58: 502.865 | L58: 209.883 | M58: 230.509 | N58: 729.285 | O58: 1003.632 | P58: 535.2348 | Q58: 0.003069039679 | R58: 0.002102427348 | S58: 495.4732 | U58: =G58-INDEX($C58:$G58,1,aux!$AL$1) -> -5.346 | V58: -5.444837467e-05 | W58: -5.291647059e-05 | X58: =+IF(INDEX($C58:$G58,1,aux!$AL$1)>0,(G58/INDEX($C58:$G58,1,aux!$AL$1))^(1/($G$3-INDEX($C$3:$G$3,1,aux!$AL$1)))-1,"n.d.") -> -0.03095704186 | Y58: =IF(INDEX($C58:$G58,1,aux!$AL$1)>0,(G58-INDEX($C58:$G58,1,aux!$AL$1))/INDEX($C58:$G58,1,aux!$AL$1),"n.d.") -> -0.1181958877 | AA58: =O58-INDEX($K58:$O58,1,aux!$AL$1) -> 500.767 | AB58: 0.01448069396 | AC58: 0.007259180355 | AD58: =+IF(INDEX($K58:$O58,1,aux!$AL$1)>0,(O58/INDEX($K58:$O58,1,aux!$AL$1))^(1/($O$3-INDEX($K$3:$O$3,1,aux!$AL$1)))-1,"n.d.") -> 0.1885864438 | AE58: =IF(INDEX($K58:$O58,1,aux!$AL$1)>0,(O58-INDEX($K58:$O58,1,aux!$AL$1))/INDEX($K58:$O58,1,aux!$AL$1),"n.d.") -> 0.9958279061 | AX58: 07
A59: 0713 | B59: Legumes de vagem, secos, em grão | C59: 64.049 | D59: 18.319 | E59: 595.51 | F59: 683.772 | G59: 261.776 | H59: 324.6852 | I59: 0.001153083714 | J59: 0.001041003437 | K59: 248.535 | L59: 529.308 | M59: 354.631 | N59: 398.128 | O59: 536.381 | P59: 413.3966 | Q59: 0.002370418681 | R59: 0.001623841195 | S59: 88.7114 | U59: =G59-INDEX($C59:$G59,1,aux!$AL$1) -> 197.727 | V59: 0.002013825997 | W59: 0.001957167037 | X59: =+IF(INDEX($C59:$G59,1,aux!$AL$1)>0,(G59/INDEX($C59:$G59,1,aux!$AL$1))^(1/($G$3-INDEX($C$3:$G$3,1,aux!$AL$1)))-1,"n.d.") -> 0.421851919 | Y59: =IF(INDEX($C59:$G59,1,aux!$AL$1)>0,(G59-INDEX($C59:$G59,1,aux!$AL$1))/INDEX($C59:$G59,1,aux!$AL$1),"n.d.") -> 3.087120798 | AA59: =O59-INDEX($K59:$O59,1,aux!$AL$1) -> 287.846 | AB59: 0.008323651189 | AC59: 0.00417265121 | AD59: =+IF(INDEX($K59:$O59,1,aux!$AL$1)>0,(O59/INDEX($K59:$O59,1,aux!$AL$1))^(1/($O$3-INDEX($K$3:$O$3,1,aux!$AL$1)))-1,"n.d.") -> 0.2120525711 | AE59: =IF(INDEX($K59:$O59,1,aux!$AL$1)>0,(O59-INDEX($K59:$O59,1,aux!$AL$1))/INDEX($K59:$O59,1,aux!$AL$1),"n.d.") -> 1.158170881 | AX59: 07
A60: 0714 | B60: Raízes de mandioca, de araruta, batata-doce, etc. | C60: 13.566 | D60: 166.252 | E60: 63.203 | F60: 101.322 | G60: 214.927 | H60: 111.854 | I60: 0.0003972371568 | J60: 0.0003586255192 | K60: 1138.042 | L60: 1446.825 | M60: 1449.692 | N60: 1380.929 | O60: 1764.435 | P60: 1435.9846 | Q60: 0.008233944647 | R60: 0.005640614725 | S60: 1324.1306 | U60: =G60-INDEX($C60:$G60,1,aux!$AL$1) -> 201.361 | V60: 0.002050837855 | W60: 0.001993137567 | X60: =+IF(INDEX($C60:$G60,1,aux!$AL$1)>0,(G60/INDEX($C60:$G60,1,aux!$AL$1))^(1/($G$3-INDEX($C$3:$G$3,1,aux!$AL$1)))-1,"n.d.") -> 0.9950775929 | Y60: =IF(INDEX($C60:$G60,1,aux!$AL$1)>0,(G60-INDEX($C60:$G60,1,aux!$AL$1))/INDEX($C60:$G60,1,aux!$AL$1),"n.d.") -> 14.84306354 | AA60: =O60-INDEX($K60:$O60,1,aux!$AL$1) -> 626.393 | AB60: 0.01811342468 | AC60: 0.009080270386 | AD60: =+IF(INDEX($K60:$O60,1,aux!$AL$1)>0,(O60/INDEX($K60:$O60,1,aux!$AL$1))^(1/($O$3-INDEX($K$3:$O$3,1,aux!$AL$1)))-1,"n.d.") -> 0.1158654822 | AE60: =IF(INDEX($K60:$O60,1,aux!$AL$1)>0,(O60-INDEX($K60:$O60,1,aux!$AL$1))/INDEX($K60:$O60,1,aux!$AL$1),"n.d.") -> 0.5504129022 | AX60: 07
A61: 07SS | B61: Produtos hortícolas, plantas, raízes e tubérculos, comestíveis | C61: 0 | D61: 0 | E61: 0 | F61: 0 | G61: 0 | H61: 0 | I61: 0 | J61: 0 | K61: 0 | L61: 0 | M61: 0 | N61: 0 | O61: 0 | P61: 0 | Q61: 0 | R61: 0 | S61: 0 | U61: =G61-INDEX($C61:$G61,1,aux!$AL$1) -> 0 | V61: 0 | W61: 0 | X61: =+IF(INDEX($C61:$G61,1,aux!$AL$1)>0,(G61/INDEX($C61:$G61,1,aux!$AL$1))^(1/($G$3-INDEX($C$3:$G$3,1,aux!$AL$1)))-1,"n.d.") -> n.d. | Y61: =IF(INDEX($C61:$G61,1,aux!$AL$1)>0,(G61-INDEX($C61:$G61,1,aux!$AL$1))/INDEX($C61:$G61,1,aux!$AL$1),"n.d.") -> n.d. | AA61: =O61-INDEX($K61:$O61,1,aux!$AL$1) -> 0 | AB61: 0 | AC61: 0 | AD61: =+IF(INDEX($K61:$O61,1,aux!$AL$1)>0,(O61/INDEX($K61:$O61,1,aux!$AL$1))^(1/($O$3-INDEX($K$3:$O$3,1,aux!$AL$1)))-1,"n.d.") -> n.d. | AE61: =IF(INDEX($K61:$O61,1,aux!$AL$1)>0,(O61-INDEX($K61:$O61,1,aux!$AL$1))/INDEX($K61:$O61,1,aux!$AL$1),"n.d.") -> n.d. | AX61: 07
A62: 0801 | B62: Cocos, castanhas do brasil e castanha de cajú | C62: 159.632 | D62: 137.692 | E62: 91.991 | F62: 130.663 | G62: 124.64 | H62: 128.9236 | I62: 0.0004578579605 | J62: 0.0004133539524 | K62: 4.715 | L62: 2.853 | M62: 4.312 | N62: 4.92 | O62: 13.749 | P62: 6.1098 | Q62: 3.503363128e-05 | R62: 2.399958039e-05 | S62: -122.8138 | U62: =G62-INDEX($C62:$G62,1,aux!$AL$1) -> -34.992 | V62: -0.0003563893614 | W62: -0.0003463623529 | X62: =+IF(INDEX($C62:$G62,1,aux!$AL$1)>0,(G62/INDEX($C62:$G62,1,aux!$AL$1))^(1/($G$3-INDEX($C$3:$G$3,1,aux!$AL$1)))-1,"n.d.") -> -0.05998589265 | Y62: =IF(INDEX($C62:$G62,1,aux!$AL$1)>0,(G62-INDEX($C62:$G62,1,aux!$AL$1))/INDEX($C62:$G62,1,aux!$AL$1),"n.d.") -> -0.2192041696 | AA62: =O62-INDEX($K62:$O62,1,aux!$AL$1) -> 9.034 | AB62: 0.0002612364419 | AC62: 0.0001309579811 | AD62: =+IF(INDEX($K62:$O62,1,aux!$AL$1)>0,(O62/INDEX($K62:$O62,1,aux!$AL$1))^(1/($O$3-INDEX($K$3:$O$3,1,aux!$AL$1)))-1,"n.d.") -> 0.3067645781 | AE62: =IF(INDEX($K62:$O62,1,aux!$AL$1)>0,(O62-INDEX($K62:$O62,1,aux!$AL$1))/INDEX($K62:$O62,1,aux!$AL$1),"n.d.") -> 1.916012725 | AX62: 08
A63: 0802 | B63: Frutas de casca rija | C63: 594.301 | D63: 223.362 | E63: 239.834 | F63: 186.738 | G63: 49.008 | H63: 258.6486 | I63: 0.0009185620047 | J63: 0.0008292773479 | K63: 188.168 | L63: 203.133 | M63: 184.261 | N63: 389.188 | O63: 298.506 | P63: 252.6512 | Q63: 0.001448703556 | R63: 0.0009924257398 | S63: -5.9974 | U63: =G63-INDEX($C63:$G63,1,aux!$AL$1) -> -545.293 | V63: -0.005553744401 | W63: -0.005397489898 | X63: =+IF(INDEX($C63:$G63,1,aux!$AL$1)>0,(G63/INDEX($C63:$G63,1,aux!$AL$1))^(1/($G$3-INDEX($C$3:$G$3,1,aux!$AL$1)))-1,"n.d.") -> -0.4641229849 | Y63: =IF(INDEX($C63:$G63,1,aux!$AL$1)>0,(G63-INDEX($C63:$G63,1,aux!$AL$1))/INDEX($C63:$G63,1,aux!$AL$1),"n.d.") -> -0.9175367364 | AA63: =O63-INDEX($K63:$O63,1,aux!$AL$1) -> 110.338 | AB63: 0.003190647169 | AC63: 0.001599473292 | AD63: =+IF(INDEX($K63:$O63,1,aux!$AL$1)>0,(O63/INDEX($K63:$O63,1,aux!$AL$1))^(1/($O$3-INDEX($K$3:$O$3,1,aux!$AL$1)))-1,"n.d.") -> 0.1222815518 | AE63: =IF(INDEX($K63:$O63,1,aux!$AL$1)>0,(O63-INDEX($K63:$O63,1,aux!$AL$1))/INDEX($K63:$O63,1,aux!$AL$1),"n.d.") -> 0.5863802559 | AX63: 08
A64: 0803 | B64: Bananas, frescas ou secas | C64: 444.234 | D64: 255.247 | E64: 0 | F64: 33.951 | G64: 392.219 | H64: 225.1302 | I64: 0.0007995251002 | J64: 0.0007218108862 | K64: 8.417 | L64: 10.073 | M64: 9.535 | N64: 9.328 | O64: 9.817 | P64: 9.434 | Q64: 5.40946148e-05 | R64: 3.705719359e-05 | S64: -215.6962 | U64: =G64-INDEX($C64:$G64,1,aux!$AL$1) -> -52.015 | V64: -0.0005297665934 | W64: -0.0005148616195 | X64: =+IF(INDEX($C64:$G64,1,aux!$AL$1)>0,(G64/INDEX($C64:$G64,1,aux!$AL$1))^(1/($G$3-INDEX($C$3:$G$3,1,aux!$AL$1)))-1,"n.d.") -> -0.03065313889 | Y64: =IF(INDEX($C64:$G64,1,aux!$AL$1)>0,(G64-INDEX($C64:$G64,1,aux!$AL$1))/INDEX($C64:$G64,1,aux!$AL$1),"n.d.") -> -0.1170891917 | AA64: =O64-INDEX($K64:$O64,1,aux!$AL$1) -> 1.4 | AB64: 4.048384089e-05 | AC64: 2.029457312e-05 | AD64: =+IF(INDEX($K64:$O64,1,aux!$AL$1)>0,(O64/INDEX($K64:$O64,1,aux!$AL$1))^(1/($O$3-INDEX($K$3:$O$3,1,aux!$AL$1)))-1,"n.d.") -> 0.03921490249 | AE64: =IF(INDEX($K64:$O64,1,aux!$AL$1)>0,(O64-INDEX($K64:$O64,1,aux!$AL$1))/INDEX($K64:$O64,1,aux!$AL$1),"n.d.") -> 0.1663300463 | AX64: 08
A65: 0804 | B65: Tâmaras, figos, ananases, abacates, goiabas, mangas | C65: 58.176 | D65: 190.164 | E65: 269.483 | F65: 82.766 | G65: 199.912 | H65: 160.1002 | I65: 0.0005685782203 | J65: 0.0005133121511 | K65: 617.699 | L65: 442.655 | M65: 644.786 | N65: 237.788 | O65: 226.089 | P65: 433.8034 | Q65: 0.0024874314 | R65: 0.001704000061 | S65: 273.7032 | U65: =G65-INDEX($C65:$G65,1,aux!$AL$1) -> 141.736 | V65: 0.001443564316 | W65: 0.001402949659 | X65: =+IF(INDEX($C65:$G65,1,aux!$AL$1)>0,(G65/INDEX($C65:$G65,1,aux!$AL$1))^(1/($G$3-INDEX($C$3:$G$3,1,aux!$AL$1)))-1,"n.d.") -> 0.3615191424 | Y65: =IF(INDEX($C65:$G65,1,aux!$AL$1)>0,(G65-INDEX($C65:$G65,1,aux!$AL$1))/INDEX($C65:$G65,1,aux!$AL$1),"n.d.") -> 2.436331133 | AA65: =O65-INDEX($K65:$O65,1,aux!$AL$1) -> -391.61 | AB65: -0.01132419781 | AC65: -0.005676826985 | AD65: =+IF(INDEX($K65:$O65,1,aux!$AL$1)>0,(O65/INDEX($K65:$O65,1,aux!$AL$1))^(1/($O$3-INDEX($K$3:$O$3,1,aux!$AL$1)))-1,"n.d.") -> -0.2221862188 | AE65: =IF(INDEX($K65:$O65,1,aux!$AL$1)>0,(O65-INDEX($K65:$O65,1,aux!$AL$1))/INDEX($K65:$O65,1,aux!$AL$1),"n.d.") -> -0.6339819232 | AX65: 08
A66: 0805 | B66: Citrinos, frescos ou secos | C66: 0.909 | D66: 0 | E66: 0 | F66: 14.028 | G66: 0.04 | H66: 2.9954 | I66: 1.063783306e-05 | J66: 9.60383071e-06 | K66: 47.006 | L66: 45.291 | M66: 225.461 | N66: 532.114 | O66: 441.007 | P66: 258.1758 | Q66: 0.001480381646 | R66: 0.001014126627 | S66: 255.1804 | U66: =G66-INDEX($C66:$G66,1,aux!$AL$1) -> -0.869 | V66: -8.850661725e-06 | W66: -8.601648511e-06 | X66: =+IF(INDEX($C66:$G66,1,aux!$AL$1)>0,(G66/INDEX($C66:$G66,1,aux!$AL$1))^(1/($G$3-INDEX($C$3:$G$3,1,aux!$AL$1)))-1,"n.d.") -> -0.5419909842 | Y66: =IF(INDEX($C66:$G66,1,aux!$AL$1)>0,(G66-INDEX($C66:$G66,1,aux!$AL$1))/INDEX($C66:$G66,1,aux!$AL$1),"n.d.") -> -0.9559955996 | AA66: =O66-INDEX($K66:$O66,1,aux!$AL$1) -> 394.001 | AB66: 0.01139333842 | AC66: 0.005711487217 | AD66: =+IF(INDEX($K66:$O66,1,aux!$AL$1)>0,(O66/INDEX($K66:$O66,1,aux!$AL$1))^(1/($O$3-INDEX($K$3:$O$3,1,aux!$AL$1)))-1,"n.d.") -> 0.7501410309 | AE66: =IF(INDEX($K66:$O66,1,aux!$AL$1)>0,(O66-INDEX($K66:$O66,1,aux!$AL$1))/INDEX($K66:$O66,1,aux!$AL$1),"n.d.") -> 8.381929966 | AX66: 08
A67: 0806 | B67: Uvas, frescas ou secas | C67: 162.303 | D67: 213.909 | E67: 0.176 | F67: 0.022 | G67: 1.941 | H67: 75.6702 | I67: 0.0002687343779 | J67: 0.0002426132706 | K67: 3.683 | L67: 6.225 | M67: 4.588 | N67: 15.377 | O67: 5.151 | P67: 7.0048 | Q67: 4.016556686e-05 | R67: 2.751518228e-05 | S67: -68.6654 | U67: =G67-INDEX($C67:$G67,1,aux!$AL$1) -> -160.362 | V67: -0.001633267912 | W67: -0.001587315948 | X67: =+IF(INDEX($C67:$G67,1,aux!$AL$1)>0,(G67/INDEX($C67:$G67,1,aux!$AL$1))^(1/($G$3-INDEX($C$3:$G$3,1,aux!$AL$1)))-1,"n.d.") -> -0.6693071942 | Y67: =IF(INDEX($C67:$G67,1,aux!$AL$1)>0,(G67-INDEX($C67:$G67,1,aux!$AL$1))/INDEX($C67:$G67,1,aux!$AL$1),"n.d.") -> -0.9880408865 | AA67: =O67-INDEX($K67:$O67,1,aux!$AL$1) -> 1.468 | AB67: 4.245019888e-05 | AC67: 2.128030953e-05 | AD67: =+IF(INDEX($K67:$O67,1,aux!$AL$1)>0,(O67/INDEX($K67:$O67,1,aux!$AL$1))^(1/($O$3-INDEX($K$3:$O$3,1,aux!$AL$1)))-1,"n.d.") -> 0.08748295281 | AE67: =IF(INDEX($K67:$O67,1,aux!$AL$1)>0,(O67-INDEX($K67:$O67,1,aux!$AL$1))/INDEX($K67:$O67,1,aux!$AL$1),"n.d.") -> 0.3985881075 | AX67: 08
A68: 0807 | B68: Melões, melancias e papaia, frescos | C68: 25.635 | D68: 54.942 | E68: 95.893 | F68: 0 | G68: 0 | H68: 35.294 | I68: 0.0001253427523 | J68: 0.0001131593781 | K68: 20.416 | L68: 30.484 | M68: 15.681 | N68: 18.719 | O68: 23.716 | P68: 21.8032 | Q68: 0.0001250196847 | R68: 8.564399017e-05 | S68: -13.4908 | U68: =G68-INDEX($C68:$G68,1,aux!$AL$1) -> -25.635 | V68: =IF($U$237<>0,U68/$U$237, "n.d.") -> -0.0002610894285 | W68: =IF($U$322<>0,U68/$U$322, "n.d.") -> -0.0002537436819 | X68: =+IF(INDEX($C68:$G68,1,aux!$AL$1)>0,(G68/INDEX($C68:$G68,1,aux!$AL$1))^(1/($G$3-INDEX($C$3:$G$3,1,aux!$AL$1)))-1,"n.d.") -> -1 | Y68: =IF(INDEX($C68:$G68,1,aux!$AL$1)>0,(G68-INDEX($C68:$G68,1,aux!$AL$1))/INDEX($C68:$G68,1,aux!$AL$1),"n.d.") -> -1 | AA68: =O68-INDEX($K68:$O68,1,aux!$AL$1) -> 3.3 | AB68: =IF($AA$237<>0,AA68/$AA$237, "n.d.") -> 9.542619638e-05 | AC68: =IF($AA$322<>0,AA68/$AA$322, "n.d.") -> 4.783720807e-05 | AD68: =+IF(INDEX($K68:$O68,1,aux!$AL$1)>0,(O68/INDEX($K68:$O68,1,aux!$AL$1))^(1/($O$3-INDEX($K$3:$O$3,1,aux!$AL$1)))-1,"n.d.") -> 0.0381681384 | AE68: =IF(INDEX($K68:$O68,1,aux!$AL$1)>0,(O68-INDEX($K68:$O68,1,aux!$AL$1))/INDEX($K68:$O68,1,aux!$AL$1),"n.d.") -> 0.161637931 | AX68: 08
A69: 0808 | B69: Maçãs, peras e marmelos, frescos | C69: 609.911 | D69: 537.044 | E69: 744.86 | F69: 1079.786 | G69: 1544.796 | H69: 903.2794 | I69: 0.003207897265 | J69: 0.002896088149 | K69: 22.749 | L69: 43.584 | M69: 78.319 | N69: 26.699 | O69: 23.961 | P69: 39.0624 | Q69: 0.0002239840451 | R69: 0.0001534389357 | S69: -864.217 | U69: =G69-INDEX($C69:$G69,1,aux!$AL$1) -> 934.885 | V69: 0.009521692621 | W69: 0.009253799964 | X69: =+IF(INDEX($C69:$G69,1,aux!$AL$1)>0,(G69/INDEX($C69:$G69,1,aux!$AL$1))^(1/($G$3-INDEX($C$3:$G$3,1,aux!$AL$1)))-1,"n.d.") -> 0.261540413 | Y69: =IF(INDEX($C69:$G69,1,aux!$AL$1)>0,(G69-INDEX($C69:$G69,1,aux!$AL$1))/INDEX($C69:$G69,1,aux!$AL$1),"n.d.") -> 1.532822002 | AA69: =O69-INDEX($K69:$O69,1,aux!$AL$1) -> 1.212 | AB69: 3.50474394e-05 | AC69: 1.756930187e-05 | AD69: =+IF(INDEX($K69:$O69,1,aux!$AL$1)>0,(O69/INDEX($K69:$O69,1,aux!$AL$1))^(1/($O$3-INDEX($K$3:$O$3,1,aux!$AL$1)))-1,"n.d.") -> 0.01306114124 | AE69: =IF(INDEX($K69:$O69,1,aux!$AL$1)>0,(O69-INDEX($K69:$O69,1,aux!$AL$1))/INDEX($K69:$O69,1,aux!$AL$1),"n.d.") -> 0.05327706712 | AX69: 08
A70: 0809 | B70: Damascos, cerejas, pêssegos, etc., frescos | C70: 0.158 | D70: 33.56 | E70: 15.583 | F70: 0.204 | G70: 0 | H70: 9.901 | I70: 3.51623106e-05 | J70: 3.174451755e-05 | K70: 23.648 | L70: 44.096 | M70: 73.45 | N70: 86.984 | O70: 122.66 | P70: 70.1676 | Q70: 0.0004023414558 | R70: 0.0002756216172 | S70: 60.2666 | U70: =G70-INDEX($C70:$G70,1,aux!$AL$1) -> -0.158 | V70: -1.609211223e-06 | W70: -1.563936093e-06 | X70: =+IF(INDEX($C70:$G70,1,aux!$AL$1)>0,(G70/INDEX($C70:$G70,1,aux!$AL$1))^(1/($G$3-INDEX($C$3:$G$3,1,aux!$AL$1)))-1,"n.d.") -> -1 | Y70: =IF(INDEX($C70:$G70,1,aux!$AL$1)>0,(G70-INDEX($C70:$G70,1,aux!$AL$1))/INDEX($C70:$G70,1,aux!$AL$1),"n.d.") -> -1 | AA70: =O70-INDEX($K70:$O70,1,aux!$AL$1) -> 99.012 | AB70: 0.002863132896 | AC70: 0.001435290196 | AD70: =+IF(INDEX($K70:$O70,1,aux!$AL$1)>0,(O70/INDEX($K70:$O70,1,aux!$AL$1))^(1/($O$3-INDEX($K$3:$O$3,1,aux!$AL$1)))-1,"n.d.") -> 0.5091316797 | AE70: =IF(INDEX($K70:$O70,1,aux!$AL$1)>0,(O70-INDEX($K70:$O70,1,aux!$AL$1))/INDEX($K70:$O70,1,aux!$AL$1),"n.d.") -> 4.186907984 | AX70: 08
A71: 0810 | B71: Outras frutas frescas | C71: 3707.865 | D71: 4829.165 | E71: 16375.734 | F71: 16802.781 | G71: 14673.176 | H71: 11277.7442 | I71: 0.04005166593 | J71: 0.03615862526 | K71: 10086.361 | L71: 9288.851 | M71: 10213.948 | N71: 10885.829 | O71: 9959.584 | P71: 10086.9146 | Q71: 0.05783843119 | R71: 0.0396218727 | S71: -1190.8296 | U71: =G71-INDEX($C71:$G71,1,aux!$AL$1) -> 10965.311 | V71: 0.1116803894 | W71: 0.1085382636 | X71: =+IF(INDEX($C71:$G71,1,aux!$AL$1)>0,(G71/INDEX($C71:$G71,1,aux!$AL$1))^(1/($G$3-INDEX($C$3:$G$3,1,aux!$AL$1)))-1,"n.d.") -> 0.410425182 | Y71: =IF(INDEX($C71:$G71,1,aux!$AL$1)>0,(G71-INDEX($C71:$G71,1,aux!$AL$1))/INDEX($C71:$G71,1,aux!$AL$1),"n.d.") -> 2.957311283 | AA71: =O71-INDEX($K71:$O71,1,aux!$AL$1) -> -126.777 | AB71: -0.003666014212 | AC71: -0.001837775069 | AD71: =+IF(INDEX($K71:$O71,1,aux!$AL$1)>0,(O71/INDEX($K71:$O71,1,aux!$AL$1))^(1/($O$3-INDEX($K$3:$O$3,1,aux!$AL$1)))-1,"n.d.") -> -0.003157208389 | AE71: =IF(INDEX($K71:$O71,1,aux!$AL$1)>0,(O71-INDEX($K71:$O71,1,aux!$AL$1))/INDEX($K71:$O71,1,aux!$AL$1),"n.d.") -> -0.01256915155 | AX71: 08
A72: 0811 | B72: Frutas não cozidas ou cozidas em água ou vapor, congeladas | C72: 2526.401 | D72: 2574.157 | E72: 3472.021 | F72: 4044.644 | G72: 4352.963 | H72: 3394.0372 | I72: 0.01205354916 | J72: 0.01088193854 | K72: 1507.077 | L72: 1087.552 | M72: 970.218 | N72: 1524.552 | O72: 1069.213 | P72: 1231.7224 | Q72: 0.007062703919 | R72: 0.004838263242 | S72: -2162.3148 | U72: =G72-INDEX($C72:$G72,1,aux!$AL$1) -> 1826.562 | V72: 0.0186033169 | W72: 0.0180799129 | X72: =+IF(INDEX($C72:$G72,1,aux!$AL$1)>0,(G72/INDEX($C72:$G72,1,aux!$AL$1))^(1/($G$3-INDEX($C$3:$G$3,1,aux!$AL$1)))-1,"n.d.") -> 0.145699366 | Y72: =IF(INDEX($C72:$G72,1,aux!$AL$1)>0,(G72-INDEX($C72:$G72,1,aux!$AL$1))/INDEX($C72:$G72,1,aux!$AL$1),"n.d.") -> 0.7229897392 | AA72: =O72-INDEX($K72:$O72,1,aux!$AL$1) -> -437.864 | AB72: -0.01266172608 | AC72: -0.006347330689 | AD72: =+IF(INDEX($K72:$O72,1,aux!$AL$1)>0,(O72/INDEX($K72:$O72,1,aux!$AL$1))^(1/($O$3-INDEX($K$3:$O$3,1,aux!$AL$1)))-1,"n.d.") -> -0.08223350857 | AE72: =IF(INDEX($K72:$O72,1,aux!$AL$1)>0,(O72-INDEX($K72:$O72,1,aux!$AL$1))/INDEX($K72:$O72,1,aux!$AL$1),"n.d.") -> -0.2905385723 | AX72: 08
A73: 0812 | B73: Frutas conservadas transitoriamente | C73: 0 | D73: 0.086 | E73: 0.114 | F73: 0 | G73: 0 | H73: 0.04 | I73: 1.420555928e-07 | J73: 1.282477226e-07 | K73: 0 | L73: 0 | M73: 0.626 | N73: 0 | O73: 0.138 | P73: 0.1528 | Q73: 8.761561524e-07 | R73: 6.002055523e-07 | S73: 0.1128 | U73: =G73-INDEX($C73:$G73,1,aux!$AL$1) -> 0 | V73: 0 | W73: 0 | X73: =+IF(INDEX($C73:$G73,1,aux!$AL$1)>0,(G73/INDEX($C73:$G73,1,aux!$AL$1))^(1/($G$3-INDEX($C$3:$G$3,1,aux!$AL$1)))-1,"n.d.") -> n.d. | Y73: =IF(INDEX($C73:$G73,1,aux!$AL$1)>0,(G73-INDEX($C73:$G73,1,aux!$AL$1))/INDEX($C73:$G73,1,aux!$AL$1),"n.d.") -> n.d. | AA73: =O73-INDEX($K73:$O73,1,aux!$AL$1) -> 0.138 | AB73: 3.990550031e-06 | AC73: 2.000465065e-06 | AD73: =+IF(INDEX($K73:$O73,1,aux!$AL$1)>0,(O73/INDEX($K73:$O73,1,aux!$AL$1))^(1/($O$3-INDEX($K$3:$O$3,1,aux!$AL$1)))-1,"n.d.") -> n.d. | AE73: =IF(INDEX($K73:$O73,1,aux!$AL$1)>0,(O73-INDEX($K73:$O73,1,aux!$AL$1))/INDEX($K73:$O73,1,aux!$AL$1),"n.d.") -> n.d. | AX73: 08
A74: 0813 | B74: Outras frutas secas | C74: 149.271 | D74: 122.389 | E74: 258.032 | F74: 159.772 | G74: 169.264 | H74: 171.7456 | I74: 0.0006099355753 | J74: 0.0005506495519 | K74: 10.63 | L74: 5.95 | M74: 3.246 | N74: 8.793 | O74: 8.239 | P74: 7.3716 | Q74: 4.226880035e-05 | R74: 2.895598985e-05 | S74: -164.374 | U74: =G74-INDEX($C74:$G74,1,aux!$AL$1) -> 19.993 | V74: 0.000203626329 | W74: 0.0001978973057 | X74: =+IF(INDEX($C74:$G74,1,aux!$AL$1)>0,(G74/INDEX($C74:$G74,1,aux!$AL$1))^(1/($G$3-INDEX($C$3:$G$3,1,aux!$AL$1)))-1,"n.d.") -> 0.031922993 | Y74: =IF(INDEX($C74:$G74,1,aux!$AL$1)>0,(G74-INDEX($C74:$G74,1,aux!$AL$1))/INDEX($C74:$G74,1,aux!$AL$1),"n.d.") -> 0.1339376034 | AA74: =O74-INDEX($K74:$O74,1,aux!$AL$1) -> -2.391 | AB74: -6.914061683e-05 | AC74: -3.466023166e-05 | AD74: =+IF(INDEX($K74:$O74,1,aux!$AL$1)>0,(O74/INDEX($K74:$O74,1,aux!$AL$1))^(1/($O$3-INDEX($K$3:$O$3,1,aux!$AL$1)))-1,"n.d.") -> -0.06171384176 | AE74: =IF(INDEX($K74:$O74,1,aux!$AL$1)>0,(O74-INDEX($K74:$O74,1,aux!$AL$1))/INDEX($K74:$O74,1,aux!$AL$1),"n.d.") -> -0.224929445 | AX74: 08
A75: 0814 | B75: Cascas de citrinos, melões ou melancias | C75: 0.014 | D75: 0.171 | E75: 0.44 | F75: 0.122 | G75: 0.741 | H75: 0.2976 | I75: 1.05689361e-06 | J75: 9.541630565e-07 | K75: 0 | L75: 0 | M75: 0 | N75: 0 | O75: 0 | P75: 0 | Q75: 0 | R75: 0 | S75: -0.2976 | U75: =G75-INDEX($C75:$G75,1,aux!$AL$1) -> 0.727 | V75: 7.404408601e-06 | W75: 7.196085694e-06 | X75: =+IF(INDEX($C75:$G75,1,aux!$AL$1)>0,(G75/INDEX($C75:$G75,1,aux!$AL$1))^(1/($G$3-INDEX($C$3:$G$3,1,aux!$AL$1)))-1,"n.d.") -> 1.69725833 | Y75: =IF(INDEX($C75:$G75,1,aux!$AL$1)>0,(G75-INDEX($C75:$G75,1,aux!$AL$1))/INDEX($C75:$G75,1,aux!$AL$1),"n.d.") -> 51.92857143 | AA75: =O75-INDEX($K75:$O75,1,aux!$AL$1) -> 0 | AB75: 0 | AC75: 0 | AD75: =+IF(INDEX($K75:$O75,1,aux!$AL$1)>0,(O75/INDEX($K75:$O75,1,aux!$AL$1))^(1/($O$3-INDEX($K$3:$O$3,1,aux!$AL$1)))-1,"n.d.") -> n.d. | AE75: =IF(INDEX($K75:$O75,1,aux!$AL$1)>0,(O75-INDEX($K75:$O75,1,aux!$AL$1))/INDEX($K75:$O75,1,aux!$AL$1),"n.d.") -> n.d. | AX75: =+LEFT(A75,2) -> 08
A76: 08SS | B76: Frutas; cascas de citrinos e de melões | C76: 0 | D76: 0 | E76: 0 | F76: 0 | G76: 0 | H76: 0 | I76: 0 | J76: 0 | K76: 0 | L76: 0 | M76: 0 | N76: 0 | O76: 0 | P76: 0 | Q76: 0 | R76: 0 | S76: 0 | U76: =G76-INDEX($C76:$G76,1,aux!$AL$1) -> 0 | V76: 0 | W76: 0 | X76: =+IF(INDEX($C76:$G76,1,aux!$AL$1)>0,(G76/INDEX($C76:$G76,1,aux!$AL$1))^(1/($G$3-INDEX($C$3:$G$3,1,aux!$AL$1)))-1,"n.d.") -> n.d. | Y76: =IF(INDEX($C76:$G76,1,aux!$AL$1)>0,(G76-INDEX($C76:$G76,1,aux!$AL$1))/INDEX($C76:$G76,1,aux!$AL$1),"n.d.") -> n.d. | AA76: =O76-INDEX($K76:$O76,1,aux!$AL$1) -> 0 | AB76: 0 | AC76: 0 | AD76: =+IF(INDEX($K76:$O76,1,aux!$AL$1)>0,(O76/INDEX($K76:$O76,1,aux!$AL$1))^(1/($O$3-INDEX($K$3:$O$3,1,aux!$AL$1)))-1,"n.d.") -> n.d. | AE76: =IF(INDEX($K76:$O76,1,aux!$AL$1)>0,(O76-INDEX($K76:$O76,1,aux!$AL$1))/INDEX($K76:$O76,1,aux!$AL$1),"n.d.") -> n.d. | AX76: 08
A77: 0901 | B77: Café | C77: 2127.864 | D77: 962.421 | E77: 2763.835 | F77: 8737.367 | G77: 8690.4 | H77: 4656.3774 | I77: 0.01653661129 | J77: 0.01492924493 | K77: 1524.963 | L77: 1282.258 | M77: 1379.064 | N77: 1602.544 | O77: 1828.398 | P77: 1523.4454 | Q77: 0.008735445419 | R77: 0.005984164841 | S77: -3132.932 | U77: =G77-INDEX($C77:$G77,1,aux!$AL$1) -> 6562.536 | V77: 0.06683864925 | W77: 0.06495814501 | X77: =+IF(INDEX($C77:$G77,1,aux!$AL$1)>0,(G77/INDEX($C77:$G77,1,aux!$AL$1))^(1/($G$3-INDEX($C$3:$G$3,1,aux!$AL$1)))-1,"n.d.") -> 0.4215887399 | Y77: =IF(INDEX($C77:$G77,1,aux!$AL$1)>0,(G77-INDEX($C77:$G77,1,aux!$AL$1))/INDEX($C77:$G77,1,aux!$AL$1),"n.d.") -> 3.0840956 | AA77: =O77-INDEX($K77:$O77,1,aux!$AL$1) -> 303.435 | AB77: 0.008774438757 | AC77: 0.004398631282 | AD77: =+IF(INDEX($K77:$O77,1,aux!$AL$1)>0,(O77/INDEX($K77:$O77,1,aux!$AL$1))^(1/($O$3-INDEX($K$3:$O$3,1,aux!$AL$1)))-1,"n.d.") -> 0.04641235263 | AE77: =IF(INDEX($K77:$O77,1,aux!$AL$1)>0,(O77-INDEX($K77:$O77,1,aux!$AL$1))/INDEX($K77:$O77,1,aux!$AL$1),"n.d.") -> 0.1989785982 | AX77: 09
A78: 0902 | B78: Chá | C78: 76.043 | D78: 5.57 | E78: 4.808 | F78: 18.539 | G78: 21.995 | H78: 25.391 | I78: 9.017333889e-05 | J78: 8.140844814e-05 | K78: 1.738 | L78: 3.421 | M78: 4.696 | N78: 3.183 | O78: 2.347 | P78: 3.077 | Q78: 1.764353718e-05 | R78: 1.208660003e-05 | S78: -22.314 | U78: =G78-INDEX($C78:$G78,1,aux!$AL$1) -> -54.048 | V78: -0.0005504724568 | W78: -0.0005349849238 | X78: =+IF(INDEX($C78:$G78,1,aux!$AL$1)>0,(G78/INDEX($C78:$G78,1,aux!$AL$1))^(1/($G$3-INDEX($C$3:$G$3,1,aux!$AL$1)))-1,"n.d.") -> -0.2666417516 | Y78: =IF(INDEX($C78:$G78,1,aux!$AL$1)>0,(G78-INDEX($C78:$G78,1,aux!$AL$1))/INDEX($C78:$G78,1,aux!$AL$1),"n.d.") -> -0.7107557566 | AA78: =O78-INDEX($K78:$O78,1,aux!$AL$1) -> 0.609 | AB78: 1.761047079e-05 | AC78: 8.828139307e-06 | AD78: =+IF(INDEX($K78:$O78,1,aux!$AL$1)>0,(O78/INDEX($K78:$O78,1,aux!$AL$1))^(1/($O$3-INDEX($K$3:$O$3,1,aux!$AL$1)))-1,"n.d.") -> 0.07799272355 | AE78: =IF(INDEX($K78:$O78,1,aux!$AL$1)>0,(O78-INDEX($K78:$O78,1,aux!$AL$1))/INDEX($K78:$O78,1,aux!$AL$1),"n.d.") -> 0.3504027618 | AX78: 09
A79: 0903 | B79: Mate | C79: 0 | D79: 0 | E79: 0.409 | F79: 0.019 | G79: 0 | H79: 0.0856 | I79: 3.039989685e-07 | J79: 2.744501265e-07 | K79: 1.468 | L79: 2.985 | M79: 7.06 | N79: 7.424 | O79: 12.17 | P79: 6.2214 | Q79: 3.567354638e-05 | R79: 2.443795041e-05 | S79: 6.1358 | U79: =G79-INDEX($C79:$G79,1,aux!$AL$1) -> 0 | V79: 0 | W79: 0 | X79: =+IF(INDEX($C79:$G79,1,aux!$AL$1)>0,(G79/INDEX($C79:$G79,1,aux!$AL$1))^(1/($G$3-INDEX($C$3:$G$3,1,aux!$AL$1)))-1,"n.d.") -> n.d. | Y79: =IF(INDEX($C79:$G79,1,aux!$AL$1)>0,(G79-INDEX($C79:$G79,1,aux!$AL$1))/INDEX($C79:$G79,1,aux!$AL$1),"n.d.") -> n.d. | AA79: =O79-INDEX($K79:$O79,1,aux!$AL$1) -> 10.702 | AB79: 0.0003094700466 | AC79: 0.0001551375154 | AD79: =+IF(INDEX($K79:$O79,1,aux!$AL$1)>0,(O79/INDEX($K79:$O79,1,aux!$AL$1))^(1/($O$3-INDEX($K$3:$O$3,1,aux!$AL$1)))-1,"n.d.") -> 0.6968409272 | AE79: =IF(INDEX($K79:$O79,1,aux!$AL$1)>0,(O79-INDEX($K79:$O79,1,aux!$AL$1))/INDEX($K79:$O79,1,aux!$AL$1),"n.d.") -> 7.290190736 | AX79: 09
A80: 0904 | B80: Pimenta | C80: 26.483 | D80: 16.53 | E80: 92.952 | F80: 31.143 | G80: 49.085 | H80: 43.2386 | I80: 0.0001535571238 | J80: 0.0001386312995 | K80: 8.009 | L80: 9.575 | M80: 13.585 | N80: 4.329 | O80: 6.476 | P80: 8.3948 | Q80: 4.813583553e-05 | R80: 3.297516735e-05 | S80: -34.8438 | U80: =G80-INDEX($C80:$G80,1,aux!$AL$1) -> 22.602 | V80: 0.0002301986839 | W80: 0.0002237220479 | X80: =+IF(INDEX($C80:$G80,1,aux!$AL$1)>0,(G80/INDEX($C80:$G80,1,aux!$AL$1))^(1/($G$3-INDEX($C$3:$G$3,1,aux!$AL$1)))-1,"n.d.") -> 0.1667972683 | Y80: =IF(INDEX($C80:$G80,1,aux!$AL$1)>0,(G80-INDEX($C80:$G80,1,aux!$AL$1))/INDEX($C80:$G80,1,aux!$AL$1),"n.d.") -> 0.8534531586 | AA80: =O80-INDEX($K80:$O80,1,aux!$AL$1) -> -1.533 | AB80: -4.432980577e-05 | AC80: -2.222255757e-05 | AD80: =+IF(INDEX($K80:$O80,1,aux!$AL$1)>0,(O80/INDEX($K80:$O80,1,aux!$AL$1))^(1/($O$3-INDEX($K$3:$O$3,1,aux!$AL$1)))-1,"n.d.") -> -0.05172972617 | AE80: =IF(INDEX($K80:$O80,1,aux!$AL$1)>0,(O80-INDEX($K80:$O80,1,aux!$AL$1))/INDEX($K80:$O80,1,aux!$AL$1),"n.d.") -> -0.1914096641 | AX80: 09
A81: 0905 | B81: Baunilha | C81: 8.173 | D81: 0 | E81: 6.947 | F81: 14.113 | G81: 13.419 | H81: 8.5304 | I81: 3.029477571e-05 | J81: 2.735010933e-05 | K81: 0 | L81: 0.03 | M81: 0.033 | N81: 0 | O81: 0 | P81: 0.0126 | Q81: 7.224847854e-08 | R81: 4.949338979e-08 | S81: -8.5178 | U81: =G81-INDEX($C81:$G81,1,aux!$AL$1) -> 5.246 | V81: 5.342988655e-05 | W81: 5.192663762e-05 | X81: =+IF(INDEX($C81:$G81,1,aux!$AL$1)>0,(G81/INDEX($C81:$G81,1,aux!$AL$1))^(1/($G$3-INDEX($C$3:$G$3,1,aux!$AL$1)))-1,"n.d.") -> 0.1319693389 | Y81: =IF(INDEX($C81:$G81,1,aux!$AL$1)>0,(G81-INDEX($C81:$G81,1,aux!$AL$1))/INDEX($C81:$G81,1,aux!$AL$1),"n.d.") -> 0.6418695705 | AA81: =O81-INDEX($K81:$O81,1,aux!$AL$1) -> 0 | AB81: 0 | AC81: 0 | AD81: =+IF(INDEX($K81:$O81,1,aux!$AL$1)>0,(O81/INDEX($K81:$O81,1,aux!$AL$1))^(1/($O$3-INDEX($K$3:$O$3,1,aux!$AL$1)))-1,"n.d.") -> n.d. | AE81: =IF(INDEX($K81:$O81,1,aux!$AL$1)>0,(O81-INDEX($K81:$O81,1,aux!$AL$1))/INDEX($K81:$O81,1,aux!$AL$1),"n.d.") -> n.d. | AX81: 09
A82: 0906 | B82: Canela | C82: 1.184 | D82: 0.852 | E82: 1.668 | F82: 3.19 | G82: 5.801 | H82: 2.539 | I82: 9.01697875e-06 | J82: 8.140524195e-06 | K82: 8.897 | L82: 3.084 | M82: 3.672 | N82: 5.13 | O82: 3.525 | P82: 4.8616 | Q82: 2.78764447e-05 | R82: 1.909659236e-05 | S82: 2.3226 | U82: =G82-INDEX($C82:$G82,1,aux!$AL$1) -> 4.617 | V82: 4.70235963e-05 | W82: 4.570058824e-05 | X82: =+IF(INDEX($C82:$G82,1,aux!$AL$1)>0,(G82/INDEX($C82:$G82,1,aux!$AL$1))^(1/($G$3-INDEX($C$3:$G$3,1,aux!$AL$1)))-1,"n.d.") -> 0.4877768295 | Y82: =IF(INDEX($C82:$G82,1,aux!$AL$1)>0,(G82-INDEX($C82:$G82,1,aux!$AL$1))/INDEX($C82:$G82,1,aux!$AL$1),"n.d.") -> 3.899493243 | AA82: =O82-INDEX($K82:$O82,1,aux!$AL$1) -> -5.372 | AB82: -0.0001553422809 | AC82: -7.787317628e-05 | AD82: =+IF(INDEX($K82:$O82,1,aux!$AL$1)>0,(O82/INDEX($K82:$O82,1,aux!$AL$1))^(1/($O$3-INDEX($K$3:$O$3,1,aux!$AL$1)))-1,"n.d.") -> -0.2066243216 | AE82: =IF(INDEX($K82:$O82,1,aux!$AL$1)>0,(O82-INDEX($K82:$O82,1,aux!$AL$1))/INDEX($K82:$O82,1,aux!$AL$1),"n.d.") -> -0.6037990334 | AX82: 09
A83: 0907 | B83: Cravo-da-índia | C83: 0 | D83: 0 | E83: 0 | F83: 0 | G83: 0 | H83: 0 | I83: 0 | J83: 0 | K83: 0.587 | L83: 0.395 | M83: 0.315 | N83: 0.5 | O83: 1.127 | P83: 0.5848 | Q83: 3.353246845e-06 | R83: 2.297121774e-06 | S83: 0.5848 | U83: =G83-INDEX($C83:$G83,1,aux!$AL$1) -> 0 | V83: 0 | W83: 0 | X83: =+IF(INDEX($C83:$G83,1,aux!$AL$1)>0,(G83/INDEX($C83:$G83,1,aux!$AL$1))^(1/($G$3-INDEX($C$3:$G$3,1,aux!$AL$1)))-1,"n.d.") -> n.d. | Y83: =IF(INDEX($C83:$G83,1,aux!$AL$1)>0,(G83-INDEX($C83:$G83,1,aux!$AL$1))/INDEX($C83:$G83,1,aux!$AL$1),"n.d.") -> n.d. | AA83: =O83-INDEX($K83:$O83,1,aux!$AL$1) -> 0.54 | AB83: 1.561519577e-05 | AC83: 7.827906775e-06 | AD83: =+IF(INDEX($K83:$O83,1,aux!$AL$1)>0,(O83/INDEX($K83:$O83,1,aux!$AL$1))^(1/($O$3-INDEX($K$3:$O$3,1,aux!$AL$1)))-1,"n.d.") -> 0.177121938 | AE83: =IF(INDEX($K83:$O83,1,aux!$AL$1)>0,(O83-INDEX($K83:$O83,1,aux!$AL$1))/INDEX($K83:$O83,1,aux!$AL$1),"n.d.") -> 0.9199318569 | AX83: 09
A84: 0908 | B84: Noz-moscada, etc. | C84: 36.212 | D84: 0 | E84: 0 | F84: 131.19 | G84: 72.997 | H84: 48.0798 | I84: 0.0001707501122 | J84: 0.0001541531214 | K84: 0.178 | L84: 0.482 | M84: 0.309 | N84: 0.372 | O84: 0.561 | P84: 0.3804 | Q84: 2.181215971e-06 | R84: 1.494229006e-06 | S84: -47.6994 | U84: =G84-INDEX($C84:$G84,1,aux!$AL$1) -> 36.785 | V84: 0.0003746508534 | W84: 0.0003641100581 | X84: =+IF(INDEX($C84:$G84,1,aux!$AL$1)>0,(G84/INDEX($C84:$G84,1,aux!$AL$1))^(1/($G$3-INDEX($C$3:$G$3,1,aux!$AL$1)))-1,"n.d.") -> 0.1915523433 | Y84: =IF(INDEX($C84:$G84,1,aux!$AL$1)>0,(G84-INDEX($C84:$G84,1,aux!$AL$1))/INDEX($C84:$G84,1,aux!$AL$1),"n.d.") -> 1.015823484 | AA84: =O84-INDEX($K84:$O84,1,aux!$AL$1) -> 0.383 | AB84: 1.107522219e-05 | AC84: 5.552015361e-06 | AD84: =+IF(INDEX($K84:$O84,1,aux!$AL$1)>0,(O84/INDEX($K84:$O84,1,aux!$AL$1))^(1/($O$3-INDEX($K$3:$O$3,1,aux!$AL$1)))-1,"n.d.") -> 0.3324033463 | AE84: =IF(INDEX($K84:$O84,1,aux!$AL$1)>0,(O84-INDEX($K84:$O84,1,aux!$AL$1))/INDEX($K84:$O84,1,aux!$AL$1),"n.d.") -> 2.151685393 | AX84: 09
A85: 0909 | B85: Sementes de anis, funcho, etc. | C85: 0 | D85: 0 | E85: 0 | F85: 0 | G85: 0.073 | H85: 0.0146 | I85: 5.185029136e-08 | J85: 4.681041877e-08 | K85: 0.933 | L85: 1.574 | M85: 1.664 | N85: 1.244 | O85: 2.06 | P85: 1.495 | Q85: 8.572339318e-06 | R85: 5.872429979e-06 | S85: 1.4804 | U85: =G85-INDEX($C85:$G85,1,aux!$AL$1) -> 0.073 | V85: 7.434963245e-07 | W85: 7.225780683e-07 | X85: =+IF(INDEX($C85:$G85,1,aux!$AL$1)>0,(G85/INDEX($C85:$G85,1,aux!$AL$1))^(1/($G$3-INDEX($C$3:$G$3,1,aux!$AL$1)))-1,"n.d.") -> n.d. | Y85: =IF(INDEX($C85:$G85,1,aux!$AL$1)>0,(G85-INDEX($C85:$G85,1,aux!$AL$1))/INDEX($C85:$G85,1,aux!$AL$1),"n.d.") -> n.d. | AA85: =O85-INDEX($K85:$O85,1,aux!$AL$1) -> 1.127 | AB85: 3.258949192e-05 | AC85: 1.633713136e-05 | AD85: =+IF(INDEX($K85:$O85,1,aux!$AL$1)>0,(O85/INDEX($K85:$O85,1,aux!$AL$1))^(1/($O$3-INDEX($K$3:$O$3,1,aux!$AL$1)))-1,"n.d.") -> 0.218979478 | AE85: =IF(INDEX($K85:$O85,1,aux!$AL$1)>0,(O85-INDEX($K85:$O85,1,aux!$AL$1))/INDEX($K85:$O85,1,aux!$AL$1),"n.d.") -> 1.207931404 | AX85: 09
A86: 0910 | B86: Gengibre, açafrão, tomilho, louro, etc. | C86: 284.182 | D86: 484.171 | E86: 261.522 | F86: 145.722 | G86: 123.02 | H86: 259.7234 | I86: 0.0009223790385 | J86: 0.0008327233642 | K86: 34.643 | L86: 18.589 | M86: 33.732 | N86: 18.413 | O86: 33.012 | P86: 27.6778 | Q86: 0.0001587046777 | R86: 0.000108719694 | S86: -232.0456 | U86: =G86-INDEX($C86:$G86,1,aux!$AL$1) -> -161.162 | V86: -0.001641415817 | W86: -0.001595234611 | X86: =+IF(INDEX($C86:$G86,1,aux!$AL$1)>0,(G86/INDEX($C86:$G86,1,aux!$AL$1))^(1/($G$3-INDEX($C$3:$G$3,1,aux!$AL$1)))-1,"n.d.") -> -0.1888619225 | Y86: =IF(INDEX($C86:$G86,1,aux!$AL$1)>0,(G86-INDEX($C86:$G86,1,aux!$AL$1))/INDEX($C86:$G86,1,aux!$AL$1),"n.d.") -> -0.5671084024 | AA86: =O86-INDEX($K86:$O86,1,aux!$AL$1) -> -1.631 | AB86: -4.716367464e-05 | AC86: -2.364317768e-05 | AD86: =+IF(INDEX($K86:$O86,1,aux!$AL$1)>0,(O86/INDEX($K86:$O86,1,aux!$AL$1))^(1/($O$3-INDEX($K$3:$O$3,1,aux!$AL$1)))-1,"n.d.") -> -0.01198375427 | AE86: =IF(INDEX($K86:$O86,1,aux!$AL$1)>0,(O86-INDEX($K86:$O86,1,aux!$AL$1))/INDEX($K86:$O86,1,aux!$AL$1),"n.d.") -> -0.04708021823 | AX86: 09
A87: 09SS | B87: Café, chá, mate e especiarias | C87: 0 | D87: 0 | E87: 0 | F87: 0 | G87: 0 | H87: 0 | I87: 0 | J87: 0 | K87: 0 | L87: 0 | M87: 0 | N87: 0 | O87: 0 | P87: 0 | Q87: 0 | R87: 0 | S87: 0 | U87: =G87-INDEX($C87:$G87,1,aux!$AL$1) -> 0 | V87: 0 | W87: 0 | X87: =+IF(INDEX($C87:$G87,1,aux!$AL$1)>0,(G87/INDEX($C87:$G87,1,aux!$AL$1))^(1/($G$3-INDEX($C$3:$G$3,1,aux!$AL$1)))-1,"n.d.") -> n.d. | Y87: =IF(INDEX($C87:$G87,1,aux!$AL$1)>0,(G87-INDEX($C87:$G87,1,aux!$AL$1))/INDEX($C87:$G87,1,aux!$AL$1),"n.d.") -> n.d. | AA87: =O87-INDEX($K87:$O87,1,aux!$AL$1) -> 0 | AB87: 0 | AC87: 0 | AD87: =+IF(INDEX($K87:$O87,1,aux!$AL$1)>0,(O87/INDEX($K87:$O87,1,aux!$AL$1))^(1/($O$3-INDEX($K$3:$O$3,1,aux!$AL$1)))-1,"n.d.") -> n.d. | AE87: =IF(INDEX($K87:$O87,1,aux!$AL$1)>0,(O87-INDEX($K87:$O87,1,aux!$AL$1))/INDEX($K87:$O87,1,aux!$AL$1),"n.d.") -> n.d. | AX87: 09
A88: 1001 | B88: Trigo e mistura trigo/centeio | C88: 0.74 | D88: 14.862 | E88: 18.601 | F88: 26.958 | G88: 27.05 | H88: 17.6422 | I88: 6.265432946e-05 | J88: 5.656429931e-05 | K88: 0 | L88: 0 | M88: 0.169 | N88: 0.09 | O88: 0 | P88: 0.0518 | Q88: 2.970215229e-07 | R88: 2.034728247e-07 | S88: -17.5904 | U88: =G88-INDEX($C88:$G88,1,aux!$AL$1) -> 26.31 | V88: 0.0002679642232 | W88: 0.0002604250545 | X88: =+IF(INDEX($C88:$G88,1,aux!$AL$1)>0,(G88/INDEX($C88:$G88,1,aux!$AL$1))^(1/($G$3-INDEX($C$3:$G$3,1,aux!$AL$1)))-1,"n.d.") -> 1.458860483 | Y88: =IF(INDEX($C88:$G88,1,aux!$AL$1)>0,(G88-INDEX($C88:$G88,1,aux!$AL$1))/INDEX($C88:$G88,1,aux!$AL$1),"n.d.") -> 35.55405405 | AA88: =O88-INDEX($K88:$O88,1,aux!$AL$1) -> 0 | AB88: 0 | AC88: 0 | AD88: =+IF(INDEX($K88:$O88,1,aux!$AL$1)>0,(O88/INDEX($K88:$O88,1,aux!$AL$1))^(1/($O$3-INDEX($K$3:$O$3,1,aux!$AL$1)))-1,"n.d.") -> n.d. | AE88: =IF(INDEX($K88:$O88,1,aux!$AL$1)>0,(O88-INDEX($K88:$O88,1,aux!$AL$1))/INDEX($K88:$O88,1,aux!$AL$1),"n.d.") -> n.d. | AX88: 10
A89: 1002 | B89: Centeio | C89: 0 | D89: 0 | E89: 0 | F89: 0 | G89: 0 | H89: 0 | I89: 0 | J89: 0 | K89: 0 | L89: 0 | M89: 0 | N89: 0 | O89: 0 | P89: 0 | Q89: 0 | R89: 0 | S89: 0 | U89: =G89-INDEX($C89:$G89,1,aux!$AL$1) -> 0 | V89: 0 | W89: 0 | X89: =+IF(INDEX($C89:$G89,1,aux!$AL$1)>0,(G89/INDEX($C89:$G89,1,aux!$AL$1))^(1/($G$3-INDEX($C$3:$G$3,1,aux!$AL$1)))-1,"n.d.") -> n.d. | Y89: =IF(INDEX($C89:$G89,1,aux!$AL$1)>0,(G89-INDEX($C89:$G89,1,aux!$AL$1))/INDEX($C89:$G89,1,aux!$AL$1),"n.d.") -> n.d. | AA89: =O89-INDEX($K89:$O89,1,aux!$AL$1) -> 0 | AB89: 0 | AC89: 0 | AD89: =+IF(INDEX($K89:$O89,1,aux!$AL$1)>0,(O89/INDEX($K89:$O89,1,aux!$AL$1))^(1/($O$3-INDEX($K$3:$O$3,1,aux!$AL$1)))-1,"n.d.") -> n.d. | AE89: =IF(INDEX($K89:$O89,1,aux!$AL$1)>0,(O89-INDEX($K89:$O89,1,aux!$AL$1))/INDEX($K89:$O89,1,aux!$AL$1),"n.d.") -> n.d. | AX89: 10
A90: 1003 | B90: Cevada | C90: 3.68 | D90: 5.699 | E90: 4.029 | F90: 3.652 | G90: 3.044 | H90: 4.0208 | I90: 1.427942818e-05 | J90: 1.289146108e-05 | K90: 0.058 | L90: 0.044 | M90: 0.007 | N90: 0 | O90: 0 | P90: 0.0218 | Q90: 1.250013359e-07 | R90: 8.563142042e-08 | S90: -3.999 | U90: =G90-INDEX($C90:$G90,1,aux!$AL$1) -> -0.636 | V90: -6.477584416e-06 | W90: -6.295337691e-06 | X90: =+IF(INDEX($C90:$G90,1,aux!$AL$1)>0,(G90/INDEX($C90:$G90,1,aux!$AL$1))^(1/($G$3-INDEX($C$3:$G$3,1,aux!$AL$1)))-1,"n.d.") -> -0.0463276146 | Y90: =IF(INDEX($C90:$G90,1,aux!$AL$1)>0,(G90-INDEX($C90:$G90,1,aux!$AL$1))/INDEX($C90:$G90,1,aux!$AL$1),"n.d.") -> -0.172826087 | AA90: =O90-INDEX($K90:$O90,1,aux!$AL$1) -> -0.058 | AB90: -1.677187694e-06 | AC90: -8.407751721e-07 | AD90: =+IF(INDEX($K90:$O90,1,aux!$AL$1)>0,(O90/INDEX($K90:$O90,1,aux!$AL$1))^(1/($O$3-INDEX($K$3:$O$3,1,aux!$AL$1)))-1,"n.d.") -> -1 | AE90: =IF(INDEX($K90:$O90,1,aux!$AL$1)>0,(O90-INDEX($K90:$O90,1,aux!$AL$1))/INDEX($K90:$O90,1,aux!$AL$1),"n.d.") -> -1 | AX90: 10
A91: 1004 | B91: Aveia | C91: 0.57 | D91: 0.611 | E91: 1.467 | F91: 0.698 | G91: 0.581 | H91: 0.7854 | I91: 2.789261564e-06 | J91: 2.518144034e-06 | K91: 0 | L91: 0 | M91: 0 | N91: 0 | O91: 0 | P91: 0 | Q91: 0 | R91: 0 | S91: -0.7854 | U91: =G91-INDEX($C91:$G91,1,aux!$AL$1) -> 0.011 | V91: 1.120336927e-07 | W91: 1.088816267e-07 | X91: =+IF(INDEX($C91:$G91,1,aux!$AL$1)>0,(G91/INDEX($C91:$G91,1,aux!$AL$1))^(1/($G$3-INDEX($C$3:$G$3,1,aux!$AL$1)))-1,"n.d.") -> 0.004790034718 | Y91: =IF(INDEX($C91:$G91,1,aux!$AL$1)>0,(G91-INDEX($C91:$G91,1,aux!$AL$1))/INDEX($C91:$G91,1,aux!$AL$1),"n.d.") -> 0.01929824561 | AA91: =O91-INDEX($K91:$O91,1,aux!$AL$1) -> 0 | AB91: 0 | AC91: 0 | AD91: =+IF(INDEX($K91:$O91,1,aux!$AL$1)>0,(O91/INDEX($K91:$O91,1,aux!$AL$1))^(1/($O$3-INDEX($K$3:$O$3,1,aux!$AL$1)))-1,"n.d.") -> n.d. | AE91: =IF(INDEX($K91:$O91,1,aux!$AL$1)>0,(O91-INDEX($K91:$O91,1,aux!$AL$1))/INDEX($K91:$O91,1,aux!$AL$1),"n.d.") -> n.d. | AX91: 10
A92: 1005 | B92: Milho | C92: 3.875 | D92: 3.144 | E92: 4.612 | F92: 2.071 | G92: 14.244 | H92: 5.5892 | I92: 1.984942798e-05 | J92: 1.792005429e-05 | K92: 21.887 | L92: 4.723 | M92: 4.221 | N92: 4.713 | O92: 18.805 | P92: 10.8698 | Q92: 6.232750095e-05 | R92: 4.26970832e-05 | S92: 5.2806 | U92: =G92-INDEX($C92:$G92,1,aux!$AL$1) -> 10.369 | V92: 0.0001056070327 | W92: 0.0001026357807 | X92: =+IF(INDEX($C92:$G92,1,aux!$AL$1)>0,(G92/INDEX($C92:$G92,1,aux!$AL$1))^(1/($G$3-INDEX($C$3:$G$3,1,aux!$AL$1)))-1,"n.d.") -> 0.3846501738 | Y92: =IF(INDEX($C92:$G92,1,aux!$AL$1)>0,(G92-INDEX($C92:$G92,1,aux!$AL$1))/INDEX($C92:$G92,1,aux!$AL$1),"n.d.") -> 2.675870968 | AA92: =O92-INDEX($K92:$O92,1,aux!$AL$1) -> -3.082 | AB92: -8.912228402e-05 | AC92: -4.467705311e-05 | AD92: =+IF(INDEX($K92:$O92,1,aux!$AL$1)>0,(O92/INDEX($K92:$O92,1,aux!$AL$1))^(1/($O$3-INDEX($K$3:$O$3,1,aux!$AL$1)))-1,"n.d.") -> -0.03723171629 | AE92: =IF(INDEX($K92:$O92,1,aux!$AL$1)>0,(O92-INDEX($K92:$O92,1,aux!$AL$1))/INDEX($K92:$O92,1,aux!$AL$1),"n.d.") -> -0.1408141819 | AX92: 10
A93: 1006 | B93: Arroz | C93: 250.778 | D93: 163.33 | E93: 73.719 | F93: 126.844 | G93: 167.281 | H93: 156.3904 | I93: 0.0005554032743 | J93: 0.0005014178161 | K93: 2066.728 | L93: 1490.355 | M93: 1351.305 | N93: 1163.579 | O93: 1109.728 | P93: 1436.339 | Q93: 0.008235976779 | R93: 0.005642006825 | S93: 1279.9486 | U93: =G93-INDEX($C93:$G93,1,aux!$AL$1) -> -83.497 | V93: -0.000850407022 | W93: -0.0008264808352 | X93: =+IF(INDEX($C93:$G93,1,aux!$AL$1)>0,(G93/INDEX($C93:$G93,1,aux!$AL$1))^(1/($G$3-INDEX($C$3:$G$3,1,aux!$AL$1)))-1,"n.d.") -> -0.0962687595 | Y93: =IF(INDEX($C93:$G93,1,aux!$AL$1)>0,(G93-INDEX($C93:$G93,1,aux!$AL$1))/INDEX($C93:$G93,1,aux!$AL$1),"n.d.") -> -0.3329518538 | AA93: =O93-INDEX($K93:$O93,1,aux!$AL$1) -> -957 | AB93: -0.02767359695 | AC93: -0.01387279034 | AD93: =+IF(INDEX($K93:$O93,1,aux!$AL$1)>0,(O93/INDEX($K93:$O93,1,aux!$AL$1))^(1/($O$3-INDEX($K$3:$O$3,1,aux!$AL$1)))-1,"n.d.") -> -0.1439811953 | AE93: =IF(INDEX($K93:$O93,1,aux!$AL$1)>0,(O93-INDEX($K93:$O93,1,aux!$AL$1))/INDEX($K93:$O93,1,aux!$AL$1),"n.d.") -> -0.463050774 | AX93: 10
A94: 1007 | B94: Sorgo de grão | C94: 3.021 | D94: 3.248 | E94: 6.189 | F94: 22.455 | G94: 25.111 | H94: 12.0048 | I94: 4.26337245e-05 | J94: 3.848970652e-05 | K94: 0 | L94: 0 | M94: 0 | N94: 0 | O94: 0 | P94: 0 | Q94: 0 | R94: 0 | S94: -12.0048 | U94: =G94-INDEX($C94:$G94,1,aux!$AL$1) -> 22.09 | V94: 0.0002249840248 | W94: 0.0002186541031 | X94: =+IF(INDEX($C94:$G94,1,aux!$AL$1)>0,(G94/INDEX($C94:$G94,1,aux!$AL$1))^(1/($G$3-INDEX($C$3:$G$3,1,aux!$AL$1)))-1,"n.d.") -> 0.6979633844 | Y94: =IF(INDEX($C94:$G94,1,aux!$AL$1)>0,(G94-INDEX($C94:$G94,1,aux!$AL$1))/INDEX($C94:$G94,1,aux!$AL$1),"n.d.") -> 7.312148295 | AA94: =O94-INDEX($K94:$O94,1,aux!$AL$1) -> 0 | AB94: 0 | AC94: 0 | AD94: =+IF(INDEX($K94:$O94,1,aux!$AL$1)>0,(O94/INDEX($K94:$O94,1,aux!$AL$1))^(1/($O$3-INDEX($K$3:$O$3,1,aux!$AL$1)))-1,"n.d.") -> n.d. | AE94: =IF(INDEX($K94:$O94,1,aux!$AL$1)>0,(O94-INDEX($K94:$O94,1,aux!$AL$1))/INDEX($K94:$O94,1,aux!$AL$1),"n.d.") -> n.d. | AX94: 10
A95: 1008 | B95: Trigo mourisco, painço e outros cereais | C95: 77.3 | D95: 91.314 | E95: 137.061 | F95: 159.565 | G95: 101.558 | H95: 113.3596 | I95: 0.0004025841293 | J95: 0.0003634527635 | K95: 0.059 | L95: 0 | M95: 0.251 | N95: 0.63 | O95: 0 | P95: 0.188 | Q95: 1.077993172e-06 | R95: 7.384728e-07 | S95: -113.1716 | U95: =G95-INDEX($C95:$G95,1,aux!$AL$1) -> 24.258 | V95: 0.0002470648471 | W95: 0.0002401136819 | X95: =+IF(INDEX($C95:$G95,1,aux!$AL$1)>0,(G95/INDEX($C95:$G95,1,aux!$AL$1))^(1/($G$3-INDEX($C$3:$G$3,1,aux!$AL$1)))-1,"n.d.") -> 0.07061583224 | Y95: =IF(INDEX($C95:$G95,1,aux!$AL$1)>0,(G95-INDEX($C95:$G95,1,aux!$AL$1))/INDEX($C95:$G95,1,aux!$AL$1),"n.d.") -> 0.3138163001 | AA95: =O95-INDEX($K95:$O95,1,aux!$AL$1) -> -0.059 | AB95: -1.706104723e-06 | AC95: -8.552712958e-07 | AD95: =+IF(INDEX($K95:$O95,1,aux!$AL$1)>0,(O95/INDEX($K95:$O95,1,aux!$AL$1))^(1/($O$3-INDEX($K$3:$O$3,1,aux!$AL$1)))-1,"n.d.") -> -1 | AE95: =IF(INDEX($K95:$O95,1,aux!$AL$1)>0,(O95-INDEX($K95:$O95,1,aux!$AL$1))/INDEX($K95:$O95,1,aux!$AL$1),"n.d.") -> -1 | AX95: 10
A96: 10SS | B96: Cereais | C96: 0 | D96: 0 | E96: 0 | F96: 0 | G96: 0 | H96: 0 | I96: 0 | J96: 0 | K96: 0 | L96: 0 | M96: 0 | N96: 0 | O96: 0 | P96: 0 | Q96: 0 | R96: 0 | S96: 0 | U96: =G96-INDEX($C96:$G96,1,aux!$AL$1) -> 0 | V96: 0 | W96: 0 | X96: =+IF(INDEX($C96:$G96,1,aux!$AL$1)>0,(G96/INDEX($C96:$G96,1,aux!$AL$1))^(1/($G$3-INDEX($C$3:$G$3,1,aux!$AL$1)))-1,"n.d.") -> n.d. | Y96: =IF(INDEX($C96:$G96,1,aux!$AL$1)>0,(G96-INDEX($C96:$G96,1,aux!$AL$1))/INDEX($C96:$G96,1,aux!$AL$1),"n.d.") -> n.d. | AA96: =O96-INDEX($K96:$O96,1,aux!$AL$1) -> 0 | AB96: 0 | AC96: 0 | AD96: =+IF(INDEX($K96:$O96,1,aux!$AL$1)>0,(O96/INDEX($K96:$O96,1,aux!$AL$1))^(1/($O$3-INDEX($K$3:$O$3,1,aux!$AL$1)))-1,"n.d.") -> n.d. | AE96: =IF(INDEX($K96:$O96,1,aux!$AL$1)>0,(O96-INDEX($K96:$O96,1,aux!$AL$1))/INDEX($K96:$O96,1,aux!$AL$1),"n.d.") -> n.d. | AX96: 10
A97: 1101 | B97: Farinhas de trigo ou trigo/centeio | C97: 235.057 | D97: 138.576 | E97: 115.517 | F97: 92.199 | G97: 125.694 | H97: 141.4086 | I97: 0.0005021970623 | J97: 0.0004533832728 | K97: 16.4 | L97: 180.999 | M97: 9.706 | N97: 14.894 | O97: 11.107 | P97: 46.6212 | Q97: 0.0002673262514 | R97: 0.0001831302559 | S97: -94.7874 | U97: =G97-INDEX($C97:$G97,1,aux!$AL$1) -> -109.363 | V97: -0.001113849158 | W97: -0.001082511031 | X97: =+IF(INDEX($C97:$G97,1,aux!$AL$1)>0,(G97/INDEX($C97:$G97,1,aux!$AL$1))^(1/($G$3-INDEX($C$3:$G$3,1,aux!$AL$1)))-1,"n.d.") -> -0.1448637056 | Y97: =IF(INDEX($C97:$G97,1,aux!$AL$1)>0,(G97-INDEX($C97:$G97,1,aux!$AL$1))/INDEX($C97:$G97,1,aux!$AL$1),"n.d.") -> -0.4652616174 | AA97: =O97-INDEX($K97:$O97,1,aux!$AL$1) -> -5.293 | AB97: -0.0001530578356 | AC97: -7.672798252e-05 | AD97: =+IF(INDEX($K97:$O97,1,aux!$AL$1)>0,(O97/INDEX($K97:$O97,1,aux!$AL$1))^(1/($O$3-INDEX($K$3:$O$3,1,aux!$AL$1)))-1,"n.d.") -> -0.0928309374 | AE97: =IF(INDEX($K97:$O97,1,aux!$AL$1)>0,(O97-INDEX($K97:$O97,1,aux!$AL$1))/INDEX($K97:$O97,1,aux!$AL$1),"n.d.") -> -0.3227439024 | AX97: 11
A98: 1102 | B98: Outras farinhas de cereais | C98: 16.807 | D98: 2.607 | E98: 297.508 | F98: 494.941 | G98: 312.141 | H98: 224.8008 | I98: 0.0007983552724 | J98: 0.0007207547662 | K98: 22.645 | L98: 811.03 | M98: 696.538 | N98: 841.344 | O98: 386.929 | P98: 551.6972 | Q98: 0.003163435184 | R98: 0.002167092426 | S98: 326.8964 | U98: =G98-INDEX($C98:$G98,1,aux!$AL$1) -> 295.334 | V98: 0.003007941692 | W98: 0.002923313304 | X98: =+IF(INDEX($C98:$G98,1,aux!$AL$1)>0,(G98/INDEX($C98:$G98,1,aux!$AL$1))^(1/($G$3-INDEX($C$3:$G$3,1,aux!$AL$1)))-1,"n.d.") -> 1.075941707 | Y98: =IF(INDEX($C98:$G98,1,aux!$AL$1)>0,(G98-INDEX($C98:$G98,1,aux!$AL$1))/INDEX($C98:$G98,1,aux!$AL$1),"n.d.") -> 17.57208306 | AA98: =O98-INDEX($K98:$O98,1,aux!$AL$1) -> 364.284 | AB98: 0.01053401107 | AC98: 0.00528070591 | AD98: =+IF(INDEX($K98:$O98,1,aux!$AL$1)>0,(O98/INDEX($K98:$O98,1,aux!$AL$1))^(1/($O$3-INDEX($K$3:$O$3,1,aux!$AL$1)))-1,"n.d.") -> 1.033128082 | AE98: =IF(INDEX($K98:$O98,1,aux!$AL$1)>0,(O98-INDEX($K98:$O98,1,aux!$AL$1))/INDEX($K98:$O98,1,aux!$AL$1),"n.d.") -> 16.08672996 | AX98: 11
A99: 1103 | B99: Grumos, sêmolas, etc. de cereais | C99: 18.408 | D99: 0 | E99: 31.016 | F99: 3.304 | G99: 0 | H99: 10.5456 | I99: 3.745153647e-05 | J99: 3.38112296e-05 | K99: 0.057 | L99: 0.075 | M99: 0.095 | N99: 0.917 | O99: 0.981 | P99: 0.425 | Q99: 2.436952649e-06 | R99: 1.669419894e-06 | S99: -10.1206 | U99: =G99-INDEX($C99:$G99,1,aux!$AL$1) -> -18.408 | V99: -0.0001874832923 | W99: -0.0001822084532 | X99: =+IF(INDEX($C99:$G99,1,aux!$AL$1)>0,(G99/INDEX($C99:$G99,1,aux!$AL$1))^(1/($G$3-INDEX($C$3:$G$3,1,aux!$AL$1)))-1,"n.d.") -> -1 | Y99: =IF(INDEX($C99:$G99,1,aux!$AL$1)>0,(G99-INDEX($C99:$G99,1,aux!$AL$1))/INDEX($C99:$G99,1,aux!$AL$1),"n.d.") -> -1 | AA99: =O99-INDEX($K99:$O99,1,aux!$AL$1) -> 0.924 | AB99: 2.671933499e-05 | AC99: 1.339441826e-05 | AD99: =+IF(INDEX($K99:$O99,1,aux!$AL$1)>0,(O99/INDEX($K99:$O99,1,aux!$AL$1))^(1/($O$3-INDEX($K$3:$O$3,1,aux!$AL$1)))-1,"n.d.") -> 1.036800711 | AE99: =IF(INDEX($K99:$O99,1,aux!$AL$1)>0,(O99-INDEX($K99:$O99,1,aux!$AL$1))/INDEX($K99:$O99,1,aux!$AL$1),"n.d.") -> 16.21052632 | AX99: 11
A100: 1104 | B100: Grãos de cereais processados | C100: 161.351 | D100: 222.942 | E100: 289.41 | F100: 203.411 | G100: 242.575 | H100: 223.9378 | I100: 0.000795290423 | J100: 0.0007179878216 | K100: 2.761 | L100: 3.857 | M100: 8.352 | N100: 24.174 | O100: 29.332 | P100: 13.6952 | Q100: 7.852836216e-05 | R100: 5.379538665e-05 | S100: -210.2426 | U100: =G100-INDEX($C100:$G100,1,aux!$AL$1) -> 81.224 | V100: 0.0008272567871 | W100: 0.0008039819317 | X100: =+IF(INDEX($C100:$G100,1,aux!$AL$1)>0,(G100/INDEX($C100:$G100,1,aux!$AL$1))^(1/($G$3-INDEX($C$3:$G$3,1,aux!$AL$1)))-1,"n.d.") -> 0.1073084005 | Y100: =IF(INDEX($C100:$G100,1,aux!$AL$1)>0,(G100-INDEX($C100:$G100,1,aux!$AL$1))/INDEX($C100:$G100,1,aux!$AL$1),"n.d.") -> 0.5033994211 | AA100: =O100-INDEX($K100:$O100,1,aux!$AL$1) -> 26.571 | AB100: 0.0007683543831 | AC100: 0.0003851765017 | AD100: =+IF(INDEX($K100:$O100,1,aux!$AL$1)>0,(O100/INDEX($K100:$O100,1,aux!$AL$1))^(1/($O$3-INDEX($K$3:$O$3,1,aux!$AL$1)))-1,"n.d.") -> 0.8053807914 | AE100: =IF(INDEX($K100:$O100,1,aux!$AL$1)>0,(O100-INDEX($K100:$O100,1,aux!$AL$1))/INDEX($K100:$O100,1,aux!$AL$1),"n.d.") -> 9.62368707 | AX100: 11
A101: 1105 | B101: Farinha, sêmola, etc. de batata | C101: 2615.263 | D101: 1987.641 | E101: 1632.566 | F101: 2260.368 | G101: 2457.302 | H101: 2190.628 | I101: 0.007779773976 | J101: 0.007023576304 | K101: 0.152 | L101: 30.2 | M101: 0.026 | N101: 0.059 | O101: 0.243 | P101: 6.136 | Q101: 3.518386225e-05 | R101: 2.410249522e-05 | S101: -2184.492 | U101: =G101-INDEX($C101:$G101,1,aux!$AL$1) -> -157.961 | V101: -0.001608814012 | W101: -0.001563550058 | X101: =+IF(INDEX($C101:$G101,1,aux!$AL$1)>0,(G101/INDEX($C101:$G101,1,aux!$AL$1))^(1/($G$3-INDEX($C$3:$G$3,1,aux!$AL$1)))-1,"n.d.") -> -0.01545450086 | Y101: =IF(INDEX($C101:$G101,1,aux!$AL$1)>0,(G101-INDEX($C101:$G101,1,aux!$AL$1))/INDEX($C101:$G101,1,aux!$AL$1),"n.d.") -> -0.06039966153 | AA101: =O101-INDEX($K101:$O101,1,aux!$AL$1) -> 0.091 | AB101: 2.631449658e-06 | AC101: 1.319147253e-06 | AD101: =+IF(INDEX($K101:$O101,1,aux!$AL$1)>0,(O101/INDEX($K101:$O101,1,aux!$AL$1))^(1/($O$3-INDEX($K$3:$O$3,1,aux!$AL$1)))-1,"n.d.") -> 0.1244513532 | AE101: =IF(INDEX($K101:$O101,1,aux!$AL$1)>0,(O101-INDEX($K101:$O101,1,aux!$AL$1))/INDEX($K101:$O101,1,aux!$AL$1),"n.d.") -> 0.5986842105 | AX101: 11
A102: 1106 | B102: Farinhas, etc. de leguminosas e outros tubérculos | C102: 26.276 | D102: 25.183 | E102: 42.271 | F102: 66.933 | G102: 52.862 | H102: 42.705 | I102: 0.0001516621022 | J102: 0.0001369204749 | K102: 7.352 | L102: 12.505 | M102: 7.076 | N102: 10.873 | O102: 27.573 | P102: 13.0758 | Q102: 7.49767187e-05 | R102: 5.136235446e-05 | S102: -29.6292 | U102: =G102-INDEX($C102:$G102,1,aux!$AL$1) -> 26.586 | V102: 0.0002707752504 | W102: 0.0002631569935 | X102: =+IF(INDEX($C102:$G102,1,aux!$AL$1)>0,(G102/INDEX($C102:$G102,1,aux!$AL$1))^(1/($G$3-INDEX($C$3:$G$3,1,aux!$AL$1)))-1,"n.d.") -> 0.190957008 | Y102: =IF(INDEX($C102:$G102,1,aux!$AL$1)>0,(G102-INDEX($C102:$G102,1,aux!$AL$1))/INDEX($C102:$G102,1,aux!$AL$1),"n.d.") -> 1.011797838 | AA102: =O102-INDEX($K102:$O102,1,aux!$AL$1) -> 20.221 | AB102: 0.0005847312476 | AC102: 0.0002931261165 | AD102: =+IF(INDEX($K102:$O102,1,aux!$AL$1)>0,(O102/INDEX($K102:$O102,1,aux!$AL$1))^(1/($O$3-INDEX($K$3:$O$3,1,aux!$AL$1)))-1,"n.d.") -> 0.3916166961 | AE102: =IF(INDEX($K102:$O102,1,aux!$AL$1)>0,(O102-INDEX($K102:$O102,1,aux!$AL$1))/INDEX($K102:$O102,1,aux!$AL$1),"n.d.") -> 2.750408052 | AX102: 11
A103: 1107 | B103: Malte, mesmo torrado | C103: 299.503 | D103: 34.392 | E103: 73.062 | F103: 171.324 | G103: 180.884 | H103: 151.833 | I103: 0.0005392181704 | J103: 0.0004868059118 | K103: 0 | L103: 0 | M103: 0 | N103: 0 | O103: 0 | P103: 0 | Q103: 0 | R103: 0 | S103: -151.833 | U103: =G103-INDEX($C103:$G103,1,aux!$AL$1) -> -118.619 | V103: -0.001208120418 | W103: -0.001174129971 | X103: =+IF(INDEX($C103:$G103,1,aux!$AL$1)>0,(G103/INDEX($C103:$G103,1,aux!$AL$1))^(1/($G$3-INDEX($C$3:$G$3,1,aux!$AL$1)))-1,"n.d.") -> -0.1184443279 | Y103: =IF(INDEX($C103:$G103,1,aux!$AL$1)>0,(G103-INDEX($C103:$G103,1,aux!$AL$1))/INDEX($C103:$G103,1,aux!$AL$1),"n.d.") -> -0.3960527941 | AA103: =O103-INDEX($K103:$O103,1,aux!$AL$1) -> 0 | AB103: 0 | AC103: 0 | AD103: =+IF(INDEX($K103:$O103,1,aux!$AL$1)>0,(O103/INDEX($K103:$O103,1,aux!$AL$1))^(1/($O$3-INDEX($K$3:$O$3,1,aux!$AL$1)))-1,"n.d.") -> n.d. | AE103: =IF(INDEX($K103:$O103,1,aux!$AL$1)>0,(O103-INDEX($K103:$O103,1,aux!$AL$1))/INDEX($K103:$O103,1,aux!$AL$1),"n.d.") -> n.d. | AX103: 11
A104: 1108 | B104: Amidos e féculas; inulina | C104: 1185.99 | D104: 1308.27 | E104: 1552.645 | F104: 2192.431 | G104: 1170.996 | H104: 1482.0664 | I104: 0.005263395524 | J104: 0.004751791015 | K104: 86.856 | L104: 51.654 | M104: 96.046 | N104: 114.755 | O104: 79.646 | P104: 85.7914 | Q104: 0.0004919284223 | R104: 0.000336992635 | S104: -1396.275 | U104: =G104-INDEX($C104:$G104,1,aux!$AL$1) -> -14.994 | V104: -0.0001527121081 | W104: -0.0001484155556 | X104: =+IF(INDEX($C104:$G104,1,aux!$AL$1)>0,(G104/INDEX($C104:$G104,1,aux!$AL$1))^(1/($G$3-INDEX($C$3:$G$3,1,aux!$AL$1)))-1,"n.d.") -> -0.003175746643 | Y104: =IF(INDEX($C104:$G104,1,aux!$AL$1)>0,(G104-INDEX($C104:$G104,1,aux!$AL$1))/INDEX($C104:$G104,1,aux!$AL$1),"n.d.") -> -0.01264260238 | AA104: =O104-INDEX($K104:$O104,1,aux!$AL$1) -> -7.21 | AB104: -0.0002084917806 | AC104: -0.0001045170516 | AD104: =+IF(INDEX($K104:$O104,1,aux!$AL$1)>0,(O104/INDEX($K104:$O104,1,aux!$AL$1))^(1/($O$3-INDEX($K$3:$O$3,1,aux!$AL$1)))-1,"n.d.") -> -0.02143194075 | AE104: =IF(INDEX($K104:$O104,1,aux!$AL$1)>0,(O104-INDEX($K104:$O104,1,aux!$AL$1))/INDEX($K104:$O104,1,aux!$AL$1),"n.d.") -> -0.08301096067 | AX104: 11
